Workbook

Sheet Sheet1
AB4: corrected for response of HBLED
A5: NICHIA | B5: NS6W183T-E | D5: 0 | E5: 0 | F5: 0.02 | G5: 0.1 | H5: 0.9 | I5: 0.3 | J5: 0.1 | K5: 0.15 | L5: 0.4 | M5: 0.57 | N5: 0.58 | O5: 0.52 | P5: 0.48 | Q5: 0.37 | R5: 0.24 | S5: 0.18 | T5: 0.13 | U5: 0.08 | V5: 0.05 | W5: 0.03 | BA5: energy | BD5: quo
BA6: corrected | BD6: 2
A7: RANGE | B7: COLOR | C7: CHART TITLE | D7: 360 | E7: 380 | F7: 400 | G7: 420 | H7: 440 | I7: 460 | J7: 480 | K7: 500 | L7: 520 | M7: 540 | N7: 560 | O7: 580 | P7: 600 | Q7: 620 | R7: 640 | S7: 660 | T7: 680 | U7: 700 | V7: 720 | W7: 740 | X7: TRANS. | AA7: =D7 -> 360 | AB7: =E7 -> 380 | AC7: =F7 -> 400 | AD7: =G7 -> 420 | AE7: =H7 -> 440 | AF7: =I7 -> 460 | AG7: =J7 -> 480 | AH7: =K7 -> 500 | AI7: =L7 -> 520 | AJ7: =M7 -> 540 | AK7: =N7 -> 560 | AL7: =O7 -> 580 | AM7: =P7 -> 600 | AN7: =Q7 -> 620 | AO7: =R7 -> 640 | AP7: =S7 -> 660 | AQ7: =T7 -> 680 | AR7: =U7 -> 700 | AS7: =V7 -> 720 | AT7: =W7 -> 740 | AV7: uv | AW7: blue | AX7: green | AY7: orange | AZ7: red | BC7: uvness1 | BD7: blueness1 | BE7: greenness1 | BF7: orangeness1 | BG7: redness1
A8: ROSCOLUX | B8: #369 TAHITIAN BLUE | C8: =CONCATENATE(A8," ",B8) -> ROSCOLUX #369 TAHITIAN BLUE | D8: 14.63 | E8: 24.93 | F8: 44.8 | G8: 60.24 | H8: 73.98 | I8: 79.35 | J8: 76.89 | K8: 67.32 | L8: 53.12 | M8: 34.2 | N8: 19.75 | O8: 8.37 | P8: 5.58 | Q8: 4.11 | R8: 4.1 | S8: 11.13 | T8: 14.83 | U8: 24.25 | V8: 28.3 | W8: 48.8 | X8: 0.22 | AA8: =D8*D$5 -> 0 | AB8: =E8*E$5 -> 0 | AC8: =F8*F$5 -> 0.896 | AD8: =G8*G$5 -> 6.024 | AE8: =H8*H$5 -> 66.582 | AF8: =I8*I$5 -> 23.805 | AG8: =J8*J$5 -> 7.689 | AH8: =K8*K$5 -> 10.098 | AI8: =L8*L$5 -> 21.248 | AJ8: =M8*M$5 -> 19.494 | AK8: =N8*N$5 -> 11.455 | AL8: =O8*O$5 -> 4.3524 | AM8: =P8*P$5 -> 2.6784 | AN8: =Q8*Q$5 -> 1.5207 | AO8: =R8*R$5 -> 0.984 | AP8: =S8*S$5 -> 2.0034 | AQ8: =T8*T$5 -> 1.9279 | AR8: =U8*U$5 -> 1.94 | AS8: =V8*V$5 -> 1.415 | AT8: =W8*W$5 -> 1.464 | AV8: =700/420*AVERAGE(AA8:AD8) -> 2.883333333 | AW8: =700/510*AVERAGE(AE8:AH8) -> 37.11852941 | AX8: =700/570*AVERAGE(AI8:AL8) -> 17.36165789 | AY8: =700/640*AVERAGE(AM8:AP8) -> 1.965058594 | AZ8: =AVERAGE(AQ8:AT8) -> 1.686725 | BB8: =B8 -> #369 TAHITIAN BLUE | BC8: =MAX(AV8-SUM(AW8:AZ8)/quo,0) -> 0 | BD8: =MAX(AW8-(AV8+SUM(AX8:AZ8))/quo,0) -> 25.170142 | BE8: =MAX(AX8-(SUM(AV8:AW8)+SUM(AY8:AZ8))/quo,0) -> 0 | BF8: =MAX(AY8-(SUM(AV8:AX8)+AZ8)/quo,0) -> 0 | BG8: =MAX(AZ8-SUM(AV8:AY8)/quo,0) -> 0
A9: ROSCOLUX | B9: #68 SKY BLUE | C9: =CONCATENATE(A9," ",B9) -> ROSCOLUX #68 SKY BLUE | D9: 27.29 | E9: 28.41 | F9: 33.08 | G9: 45.54 | H9: 65.17 | I9: 71.3 | J9: 61.93 | K9: 43.95 | L9: 25.2 | M9: 9.75 | N9: 4.24 | O9: 0.99 | P9: 0.79 | Q9: 0.66 | R9: 0.72 | S9: 12.76 | T9: 54.65 | U9: 79.22 | V9: 85.6 | W9: 87.1 | X9: 0.14 | AA9: =D9*D$5 -> 0 | AB9: =E9*E$5 -> 0 | AC9: =F9*F$5 -> 0.6616 | AD9: =G9*G$5 -> 4.554 | AE9: =H9*H$5 -> 58.653 | AF9: =I9*I$5 -> 21.39 | AG9: =J9*J$5 -> 6.193 | AH9: =K9*K$5 -> 6.5925 | AI9: =L9*L$5 -> 10.08 | AJ9: =M9*M$5 -> 5.5575 | AK9: =N9*N$5 -> 2.4592 | AL9: =O9*O$5 -> 0.5148 | AM9: =P9*P$5 -> 0.3792 | AN9: =Q9*Q$5 -> 0.2442 | AO9: =R9*R$5 -> 0.1728 | AP9: =S9*S$5 -> 2.2968 | AQ9: =T9*T$5 -> 7.1045 | AR9: =U9*U$5 -> 6.3376 | AS9: =V9*V$5 -> 4.28 | AT9: =W9*W$5 -> 2.613 | AV9: =700/420*AVERAGE(AA9:AD9) -> 2.173166667 | AW9: =700/510*AVERAGE(AE9:AH9) -> 31.85291667 | AX9: =700/570*AVERAGE(AI9:AL9) -> 5.714057018 | AY9: =700/640*AVERAGE(AM9:AP9) -> 0.8457421875 | AZ9: =AVERAGE(AQ9:AT9) -> 5.083775 | BB9: =B9 -> #68 SKY BLUE | BC9: =MAX(AV9-SUM(AW9:AZ9)/quo,0) -> 0 | BD9: =MAX(AW9-(AV9+SUM(AX9:AZ9))/quo,0) -> 24.94454623 | BE9: =MAX(AX9-(SUM(AV9:AW9)+SUM(AY9:AZ9))/quo,0) -> 0 | BF9: =MAX(AY9-(SUM(AV9:AX9)+AZ9)/quo,0) -> 0 | BG9: =MAX(AZ9-SUM(AV9:AY9)/quo,0) -> 0
A10: ROSCOLUX | B10: #67 LT SKY BLUE | C10: =CONCATENATE(A10," ",B10) -> ROSCOLUX #67 LT SKY BLUE | D10: 41.73 | E10: 44.44 | F10: 49.46 | G10: 59.58 | H10: 73.13 | I10: 77.22 | J10: 71.65 | K10: 59.2 | L10: 43.47 | M10: 25.57 | N10: 16.08 | O10: 6.83 | P10: 6.29 | Q10: 5.55 | R10: 5.42 | S10: 28.08 | T10: 67.48 | U10: 83.73 | V10: 87.55 | W10: 88.43 | X10: 0.26 | AA10: =D10*D$5 -> 0 | AB10: =E10*E$5 -> 0 | AC10: =F10*F$5 -> 0.9892 | AD10: =G10*G$5 -> 5.958 | AE10: =H10*H$5 -> 65.817 | AF10: =I10*I$5 -> 23.166 | AG10: =J10*J$5 -> 7.165 | AH10: =K10*K$5 -> 8.88 | AI10: =L10*L$5 -> 17.388 | AJ10: =M10*M$5 -> 14.5749 | AK10: =N10*N$5 -> 9.3264 | AL10: =O10*O$5 -> 3.5516 | AM10: =P10*P$5 -> 3.0192 | AN10: =Q10*Q$5 -> 2.0535 | AO10: =R10*R$5 -> 1.3008 | AP10: =S10*S$5 -> 5.0544 | AQ10: =T10*T$5 -> 8.7724 | AR10: =U10*U$5 -> 6.6984 | AS10: =V10*V$5 -> 4.3775 | AT10: =W10*W$5 -> 2.6529 | AV10: =700/420*AVERAGE(AA10:AD10) -> 2.894666667 | AW10: =700/510*AVERAGE(AE10:AH10) -> 36.03901961 | AX10: =700/570*AVERAGE(AI10:AL10) -> 13.76694298 | AY10: =700/640*AVERAGE(AM10:AP10) -> 3.124816406 | AZ10: =AVERAGE(AQ10:AT10) -> 5.6253 | BB10: =B10 -> #67 LT SKY BLUE | BC10: =MAX(AV10-SUM(AW10:AZ10)/quo,0) -> 0 | BD10: =MAX(AW10-(AV10+SUM(AX10:AZ10))/quo,0) -> 23.33315658 | BE10: =MAX(AX10-(SUM(AV10:AW10)+SUM(AY10:AZ10))/quo,0) -> 0 | BF10: =MAX(AY10-(SUM(AV10:AX10)+AZ10)/quo,0) -> 0 | BG10: =MAX(AZ10-SUM(AV10:AY10)/quo,0) -> 0
A11: ROSCOLUX | B11: #366 JORDAN BLUE | C11: =CONCATENATE(A11," ",B11) -> ROSCOLUX #366 JORDAN BLUE | D11: 34.34 | E11: 45.55 | F11: 58.17 | G11: 68.74 | H11: 79.22 | I11: 82.5 | J11: 79.22 | K11: 71.23 | L11: 58.9 | M11: 42.21 | N11: 29.37 | O11: 16.1 | P11: 13.13 | Q11: 11.16 | R11: 10.8 | S11: 23.13 | T11: 28.4 | U11: 54.92 | V11: 63.15 | W11: 74.78 | X11: 0.32 | AA11: =D11*D$5 -> 0 | AB11: =E11*E$5 -> 0 | AC11: =F11*F$5 -> 1.1634 | AD11: =G11*G$5 -> 6.874 | AE11: =H11*H$5 -> 71.298 | AF11: =I11*I$5 -> 24.75 | AG11: =J11*J$5 -> 7.922 | AH11: =K11*K$5 -> 10.6845 | AI11: =L11*L$5 -> 23.56 | AJ11: =M11*M$5 -> 24.0597 | AK11: =N11*N$5 -> 17.0346 | AL11: =O11*O$5 -> 8.372 | AM11: =P11*P$5 -> 6.3024 | AN11: =Q11*Q$5 -> 4.1292 | AO11: =R11*R$5 -> 2.592 | AP11: =S11*S$5 -> 4.1634 | AQ11: =T11*T$5 -> 3.692 | AR11: =U11*U$5 -> 4.3936 | AS11: =V11*V$5 -> 3.1575 | AT11: =W11*W$5 -> 2.2434 | AV11: =700/420*AVERAGE(AA11:AD11) -> 3.348916667 | AW11: =700/510*AVERAGE(AE11:AH11) -> 39.34223039 | AX11: =700/570*AVERAGE(AI11:AL11) -> 22.42035526 | AY11: =700/640*AVERAGE(AM11:AP11) -> 4.699570312 | AZ11: =AVERAGE(AQ11:AT11) -> 3.371625 | BB11: =B11 -> #366 JORDAN BLUE | BC11: =MAX(AV11-SUM(AW11:AZ11)/quo,0) -> 0 | BD11: =MAX(AW11-(AV11+SUM(AX11:AZ11))/quo,0) -> 22.42199677 | BE11: =MAX(AX11-(SUM(AV11:AW11)+SUM(AY11:AZ11))/quo,0) -> 0 | BF11: =MAX(AY11-(SUM(AV11:AX11)+AZ11)/quo,0) -> 0 | BG11: =MAX(AZ11-SUM(AV11:AY11)/quo,0) -> 0
A12: ROSCOLUX | B12: #368 WINKLER BLUE | C12: =CONCATENATE(A12," ",B12) -> ROSCOLUX #368 WINKLER BLUE | D12: 46.32 | E12: 46.32 | F12: 46.32 | G12: 56.56 | H12: 67.41 | I12: 68.34 | J12: 60.4 | K12: 46.65 | L12: 31.11 | M12: 16.85 | N12: 9.92 | O12: 4.49 | P12: 4.4 | Q12: 4.37 | R12: 5.65 | S12: 27.09 | T12: 61.57 | U12: 77.39 | V12: 77.39 | W12: 77.39 | X12: 0.16 | AA12: =D12*D$5 -> 0 | AB12: =E12*E$5 -> 0 | AC12: =F12*F$5 -> 0.9264 | AD12: =G12*G$5 -> 5.656 | AE12: =H12*H$5 -> 60.669 | AF12: =I12*I$5 -> 20.502 | AG12: =J12*J$5 -> 6.04 | AH12: =K12*K$5 -> 6.9975 | AI12: =L12*L$5 -> 12.444 | AJ12: =M12*M$5 -> 9.6045 | AK12: =N12*N$5 -> 5.7536 | AL12: =O12*O$5 -> 2.3348 | AM12: =P12*P$5 -> 2.112 | AN12: =Q12*Q$5 -> 1.6169 | AO12: =R12*R$5 -> 1.356 | AP12: =S12*S$5 -> 4.8762 | AQ12: =T12*T$5 -> 8.0041 | AR12: =U12*U$5 -> 6.1912 | AS12: =V12*V$5 -> 3.8695 | AT12: =W12*W$5 -> 2.3217 | AV12: =700/420*AVERAGE(AA12:AD12) -> 2.742666667 | AW12: =700/510*AVERAGE(AE12:AH12) -> 32.32644608 | AX12: =700/570*AVERAGE(AI12:AL12) -> 9.252557018 | AY12: =700/640*AVERAGE(AM12:AP12) -> 2.723738281 | AZ12: =AVERAGE(AQ12:AT12) -> 5.096625 | BB12: =B12 -> #368 WINKLER BLUE | BC12: =MAX(AV12-SUM(AW12:AZ12)/quo,0) -> 0 | BD12: =MAX(AW12-(AV12+SUM(AX12:AZ12))/quo,0) -> 22.4186526 | BE12: =MAX(AX12-(SUM(AV12:AW12)+SUM(AY12:AZ12))/quo,0) -> 0 | BF12: =MAX(AY12-(SUM(AV12:AX12)+AZ12)/quo,0) -> 0 | BG12: =MAX(AZ12-SUM(AV12:AY12)/quo,0) -> 0
A13: ROSCOLUX | B13: #367 SLATE BLUE | C13: =CONCATENATE(A13," ",B13) -> ROSCOLUX #367 SLATE BLUE | D13: 43.49 | E13: 47.45 | F13: 52.98 | G13: 61.92 | H13: 73.29 | I13: 75.92 | J13: 70.01 | K13: 58.46 | L13: 43.59 | M13: 26.8 | N13: 17.8 | O13: 8.54 | P13: 8.19 | Q13: 7.56 | R13: 7.63 | S13: 31.8 | T13: 68.42 | U13: 82.85 | V13: 86.46 | W13: 87.5 | X13: 0.2 | AA13: =D13*D$5 -> 0 | AB13: =E13*E$5 -> 0 | AC13: =F13*F$5 -> 1.0596 | AD13: =G13*G$5 -> 6.192 | AE13: =H13*H$5 -> 65.961 | AF13: =I13*I$5 -> 22.776 | AG13: =J13*J$5 -> 7.001 | AH13: =K13*K$5 -> 8.769 | AI13: =L13*L$5 -> 17.436 | AJ13: =M13*M$5 -> 15.276 | AK13: =N13*N$5 -> 10.324 | AL13: =O13*O$5 -> 4.4408 | AM13: =P13*P$5 -> 3.9312 | AN13: =Q13*Q$5 -> 2.7972 | AO13: =R13*R$5 -> 1.8312 | AP13: =S13*S$5 -> 5.724 | AQ13: =T13*T$5 -> 8.8946 | AR13: =U13*U$5 -> 6.628 | AS13: =V13*V$5 -> 4.323 | AT13: =W13*W$5 -> 2.625 | AV13: =700/420*AVERAGE(AA13:AD13) -> 3.0215 | AW13: =700/510*AVERAGE(AE13:AH13) -> 35.8602451 | AX13: =700/570*AVERAGE(AI13:AL13) -> 14.57621053 | AY13: =700/640*AVERAGE(AM13:AP13) -> 3.905671875 | AZ13: =AVERAGE(AQ13:AT13) -> 5.61765 | BB13: =B13 -> #367 SLATE BLUE | BC13: =MAX(AV13-SUM(AW13:AZ13)/quo,0) -> 0 | BD13: =MAX(AW13-(AV13+SUM(AX13:AZ13))/quo,0) -> 22.2997289 | BE13: =MAX(AX13-(SUM(AV13:AW13)+SUM(AY13:AZ13))/quo,0) -> 0 | BF13: =MAX(AY13-(SUM(AV13:AX13)+AZ13)/quo,0) -> 0 | BG13: =MAX(AZ13-SUM(AV13:AY13)/quo,0) -> 0
A14: ROSCOLUX | B14: #69 BRILLIANT BLUE | C14: =CONCATENATE(A14," ",B14) -> ROSCOLUX #69 BRILLIANT BLUE | D14: 8.87 | E14: 14.5 | F14: 28.1 | G14: 42.17 | H14: 57.18 | I14: 63.97 | J14: 62.1 | K14: 53.03 | L14: 37.15 | M14: 18.4 | N14: 8.45 | O14: 2.49 | P14: 1.59 | Q14: 1.14 | R14: 1.09 | S14: 5.31 | T14: 10 | U14: 21.49 | V14: 22.51 | W14: 34.72 | X14: 0.18 | AA14: =D14*D$5 -> 0 | AB14: =E14*E$5 -> 0 | AC14: =F14*F$5 -> 0.562 | AD14: =G14*G$5 -> 4.217 | AE14: =H14*H$5 -> 51.462 | AF14: =I14*I$5 -> 19.191 | AG14: =J14*J$5 -> 6.21 | AH14: =K14*K$5 -> 7.9545 | AI14: =L14*L$5 -> 14.86 | AJ14: =M14*M$5 -> 10.488 | AK14: =N14*N$5 -> 4.901 | AL14: =O14*O$5 -> 1.2948 | AM14: =P14*P$5 -> 0.7632 | AN14: =Q14*Q$5 -> 0.4218 | AO14: =R14*R$5 -> 0.2616 | AP14: =S14*S$5 -> 0.9558 | AQ14: =T14*T$5 -> 1.3 | AR14: =U14*U$5 -> 1.7192 | AS14: =V14*V$5 -> 1.1255 | AT14: =W14*W$5 -> 1.0416 | AV14: =700/420*AVERAGE(AA14:AD14) -> 1.99125 | AW14: =700/510*AVERAGE(AE14:AH14) -> 29.10404412 | AX14: =700/570*AVERAGE(AI14:AL14) -> 9.6845 | AY14: =700/640*AVERAGE(AM14:AP14) -> 0.65690625 | AZ14: =AVERAGE(AQ14:AT14) -> 1.296575 | BB14: =B14 -> #69 BRILLIANT BLUE | BC14: =MAX(AV14-SUM(AW14:AZ14)/quo,0) -> 0 | BD14: =MAX(AW14-(AV14+SUM(AX14:AZ14))/quo,0) -> 22.28942849 | BE14: =MAX(AX14-(SUM(AV14:AW14)+SUM(AY14:AZ14))/quo,0) -> 0 | BF14: =MAX(AY14-(SUM(AV14:AX14)+AZ14)/quo,0) -> 0 | BG14: =MAX(AZ14-SUM(AV14:AY14)/quo,0) -> 0
A15: ROSCOLUX | B15: #79 BRIGHT BLUE | C15: =CONCATENATE(A15," ",B15) -> ROSCOLUX #79 BRIGHT BLUE | D15: 13.75 | E15: 14.78 | F15: 18.91 | G15: 31.1 | H15: 54.07 | I15: 61.86 | J15: 49.75 | K15: 29.34 | L15: 12.5 | M15: 2.89 | N15: 0.82 | O15: 0.11 | P15: 0.08 | Q15: 0.07 | R15: 0.09 | S15: 5.36 | T15: 42.74 | U15: 74 | V15: 83.64 | W15: 86.1 | X15: 0.08 | AA15: =D15*D$5 -> 0 | AB15: =E15*E$5 -> 0 | AC15: =F15*F$5 -> 0.3782 | AD15: =G15*G$5 -> 3.11 | AE15: =H15*H$5 -> 48.663 | AF15: =I15*I$5 -> 18.558 | AG15: =J15*J$5 -> 4.975 | AH15: =K15*K$5 -> 4.401 | AI15: =L15*L$5 -> 5 | AJ15: =M15*M$5 -> 1.6473 | AK15: =N15*N$5 -> 0.4756 | AL15: =O15*O$5 -> 0.0572 | AM15: =P15*P$5 -> 0.0384 | AN15: =Q15*Q$5 -> 0.0259 | AO15: =R15*R$5 -> 0.0216 | AP15: =S15*S$5 -> 0.9648 | AQ15: =T15*T$5 -> 5.5562 | AR15: =U15*U$5 -> 5.92 | AS15: =V15*V$5 -> 4.182 | AT15: =W15*W$5 -> 2.583 | AV15: =700/420*AVERAGE(AA15:AD15) -> 1.453416667 | AW15: =700/510*AVERAGE(AE15:AH15) -> 26.28328431 | AX15: =700/570*AVERAGE(AI15:AL15) -> 2.204416667 | AY15: =700/640*AVERAGE(AM15:AP15) -> 0.2873007812 | AZ15: =AVERAGE(AQ15:AT15) -> 4.5603 | BB15: =B15 -> #79 BRIGHT BLUE | BC15: =MAX(AV15-SUM(AW15:AZ15)/quo,0) -> 0 | BD15: =MAX(AW15-(AV15+SUM(AX15:AZ15))/quo,0) -> 22.03056726 | BE15: =MAX(AX15-(SUM(AV15:AW15)+SUM(AY15:AZ15))/quo,0) -> 0 | BF15: =MAX(AY15-(SUM(AV15:AX15)+AZ15)/quo,0) -> 0 | BG15: =MAX(AZ15-SUM(AV15:AY15)/quo,0) -> 0
A16: ROSCOLUX | B16: #377 IRIS PURPLE | C16: =CONCATENATE(A16," ",B16) -> ROSCOLUX #377 IRIS PURPLE | D16: 28 | E16: 33.27 | F16: 40.22 | G16: 51.85 | H16: 62.56 | I16: 56.3 | J16: 39.03 | K16: 20.16 | L16: 9.19 | M16: 3.02 | N16: 1.88 | O16: 0.64 | P16: 1.4 | Q16: 1.95 | R16: 2.28 | S16: 21.11 | T16: 62.33 | U16: 80.43 | V16: 84.3 | W16: 85.1 | X16: 0.11 | AA16: =D16*D$5 -> 0 | AB16: =E16*E$5 -> 0 | AC16: =F16*F$5 -> 0.8044 | AD16: =G16*G$5 -> 5.185 | AE16: =H16*H$5 -> 56.304 | AF16: =I16*I$5 -> 16.89 | AG16: =J16*J$5 -> 3.903 | AH16: =K16*K$5 -> 3.024 | AI16: =L16*L$5 -> 3.676 | AJ16: =M16*M$5 -> 1.7214 | AK16: =N16*N$5 -> 1.0904 | AL16: =O16*O$5 -> 0.3328 | AM16: =P16*P$5 -> 0.672 | AN16: =Q16*Q$5 -> 0.7215 | AO16: =R16*R$5 -> 0.5472 | AP16: =S16*S$5 -> 3.7998 | AQ16: =T16*T$5 -> 8.1029 | AR16: =U16*U$5 -> 6.4344 | AS16: =V16*V$5 -> 4.215 | AT16: =W16*W$5 -> 2.553 | AV16: =700/420*AVERAGE(AA16:AD16) -> 2.495583333 | AW16: =700/510*AVERAGE(AE16:AH16) -> 27.4925 | AX16: =700/570*AVERAGE(AI16:AL16) -> 2.09404386 | AY16: =700/640*AVERAGE(AM16:AP16) -> 1.569667969 | AZ16: =AVERAGE(AQ16:AT16) -> 5.326325 | BB16: =B16 -> #377 IRIS PURPLE | BC16: =MAX(AV16-SUM(AW16:AZ16)/quo,0) -> 0 | BD16: =MAX(AW16-(AV16+SUM(AX16:AZ16))/quo,0) -> 21.74968992 | BE16: =MAX(AX16-(SUM(AV16:AW16)+SUM(AY16:AZ16))/quo,0) -> 0 | BF16: =MAX(AY16-(SUM(AV16:AX16)+AZ16)/quo,0) -> 0 | BG16: =MAX(AZ16-SUM(AV16:AY16)/quo,0) -> 0
A17: ROSCOLUX | B17: #65 DAYLT BLUE | C17: =CONCATENATE(A17," ",B17) -> ROSCOLUX #65 DAYLT BLUE | D17: 48.4 | E17: 50.24 | F17: 54.5 | G17: 63.48 | H17: 75.02 | I17: 78.49 | J17: 73.98 | K17: 63.46 | L17: 49.53 | M17: 32.42 | N17: 22.27 | O17: 11.23 | P17: 10.54 | Q17: 9.5 | R17: 9.17 | S17: 34.12 | T17: 70 | U17: 83.51 | V17: 86.71 | W17: 87.56 | X17: 0.35 | AA17: =D17*D$5 -> 0 | AB17: =E17*E$5 -> 0 | AC17: =F17*F$5 -> 1.09 | AD17: =G17*G$5 -> 6.348 | AE17: =H17*H$5 -> 67.518 | AF17: =I17*I$5 -> 23.547 | AG17: =J17*J$5 -> 7.398 | AH17: =K17*K$5 -> 9.519 | AI17: =L17*L$5 -> 19.812 | AJ17: =M17*M$5 -> 18.4794 | AK17: =N17*N$5 -> 12.9166 | AL17: =O17*O$5 -> 5.8396 | AM17: =P17*P$5 -> 5.0592 | AN17: =Q17*Q$5 -> 3.515 | AO17: =R17*R$5 -> 2.2008 | AP17: =S17*S$5 -> 6.1416 | AQ17: =T17*T$5 -> 9.1 | AR17: =U17*U$5 -> 6.6808 | AS17: =V17*V$5 -> 4.3355 | AT17: =W17*W$5 -> 2.6268 | AV17: =700/420*AVERAGE(AA17:AD17) -> 3.099166667 | AW17: =700/510*AVERAGE(AE17:AH17) -> 37.05264706 | AX17: =700/570*AVERAGE(AI17:AL17) -> 17.51461404 | AY17: =700/640*AVERAGE(AM17:AP17) -> 4.625632813 | AZ17: =AVERAGE(AQ17:AT17) -> 5.685775 | BB17: =B17 -> #65 DAYLT BLUE | BC17: =MAX(AV17-SUM(AW17:AZ17)/quo,0) -> 0 | BD17: =MAX(AW17-(AV17+SUM(AX17:AZ17))/quo,0) -> 21.5900528 | BE17: =MAX(AX17-(SUM(AV17:AW17)+SUM(AY17:AZ17))/quo,0) -> 0 | BF17: =MAX(AY17-(SUM(AV17:AX17)+AZ17)/quo,0) -> 0 | BG17: =MAX(AZ17-SUM(AV17:AY17)/quo,0) -> 0
A18: ROSCOLUX | B18: #81 URBAN BLUE | C18: =CONCATENATE(A18," ",B18) -> ROSCOLUX #81 URBAN BLUE | D18: 24.23 | E18: 29.97 | F18: 36.83 | G18: 46.46 | H18: 59.98 | I18: 61.99 | J18: 51.16 | K18: 34.92 | L18: 20.42 | M18: 9.49 | N18: 5.3 | O18: 2.05 | P18: 2.05 | Q18: 1.84 | R18: 1.9 | S18: 16.26 | T18: 53.1 | U18: 75.86 | V18: 84.21 | W18: 86.87 | X18: 0.1 | AA18: =D18*D$5 -> 0 | AB18: =E18*E$5 -> 0 | AC18: =F18*F$5 -> 0.7366 | AD18: =G18*G$5 -> 4.646 | AE18: =H18*H$5 -> 53.982 | AF18: =I18*I$5 -> 18.597 | AG18: =J18*J$5 -> 5.116 | AH18: =K18*K$5 -> 5.238 | AI18: =L18*L$5 -> 8.168 | AJ18: =M18*M$5 -> 5.4093 | AK18: =N18*N$5 -> 3.074 | AL18: =O18*O$5 -> 1.066 | AM18: =P18*P$5 -> 0.984 | AN18: =Q18*Q$5 -> 0.6808 | AO18: =R18*R$5 -> 0.456 | AP18: =S18*S$5 -> 2.9268 | AQ18: =T18*T$5 -> 6.903 | AR18: =U18*U$5 -> 6.0688 | AS18: =V18*V$5 -> 4.2105 | AT18: =W18*W$5 -> 2.6061 | AV18: =700/420*AVERAGE(AA18:AD18) -> 2.24275 | AW18: =700/510*AVERAGE(AE18:AH18) -> 28.45740196 | AX18: =700/570*AVERAGE(AI18:AL18) -> 5.43952193 | AY18: =700/640*AVERAGE(AM18:AP18) -> 1.380203125 | AZ18: =AVERAGE(AQ18:AT18) -> 4.9471 | BB18: =B18 -> #81 URBAN BLUE | BC18: =MAX(AV18-SUM(AW18:AZ18)/quo,0) -> 0 | BD18: =MAX(AW18-(AV18+SUM(AX18:AZ18))/quo,0) -> 21.45261443 | BE18: =MAX(AX18-(SUM(AV18:AW18)+SUM(AY18:AZ18))/quo,0) -> 0 | BF18: =MAX(AY18-(SUM(AV18:AX18)+AZ18)/quo,0) -> 0 | BG18: =MAX(AZ18-SUM(AV18:AY18)/quo,0) -> 0
A19: ROSCOLUX | B19: #2006 VS AZURE | C19: =CONCATENATE(A19," ",B19) -> ROSCOLUX #2006 VS AZURE | D19: 35.48 | E19: 48.14 | F19: 59.59 | G19: 62.57 | H19: 58.22 | I19: 51.48 | J19: 43.74 | K19: 30.69 | L19: 15.42 | M19: 5.05 | N19: 1.41 | O19: 0.29 | P19: 0.11 | Q19: 0.11 | R19: 0.09 | S19: 1.91 | T19: 28.57 | U19: 64.35 | V19: 77.43 | W19: 81.37 | X19: 0.09 | AA19: =D19*D$5 -> 0 | AB19: =E19*E$5 -> 0 | AC19: =F19*F$5 -> 1.1918 | AD19: =G19*G$5 -> 6.257 | AE19: =H19*H$5 -> 52.398 | AF19: =I19*I$5 -> 15.444 | AG19: =J19*J$5 -> 4.374 | AH19: =K19*K$5 -> 4.6035 | AI19: =L19*L$5 -> 6.168 | AJ19: =M19*M$5 -> 2.8785 | AK19: =N19*N$5 -> 0.8178 | AL19: =O19*O$5 -> 0.1508 | AM19: =P19*P$5 -> 0.0528 | AN19: =Q19*Q$5 -> 0.0407 | AO19: =R19*R$5 -> 0.0216 | AP19: =S19*S$5 -> 0.3438 | AQ19: =T19*T$5 -> 3.7141 | AR19: =U19*U$5 -> 5.148 | AS19: =V19*V$5 -> 3.8715 | AT19: =W19*W$5 -> 2.4411 | AV19: =700/420*AVERAGE(AA19:AD19) -> 3.103666667 | AW19: =700/510*AVERAGE(AE19:AH19) -> 26.35963235 | AX19: =700/570*AVERAGE(AI19:AL19) -> 3.074811404 | AY19: =700/640*AVERAGE(AM19:AP19) -> 0.1254804687 | AZ19: =AVERAGE(AQ19:AT19) -> 3.793675 | BB19: =B19 -> #2006 VS AZURE | BC19: =MAX(AV19-SUM(AW19:AZ19)/quo,0) -> 0 | BD19: =MAX(AW19-(AV19+SUM(AX19:AZ19))/quo,0) -> 21.31081558 | BE19: =MAX(AX19-(SUM(AV19:AW19)+SUM(AY19:AZ19))/quo,0) -> 0 | BF19: =MAX(AY19-(SUM(AV19:AX19)+AZ19)/quo,0) -> 0 | BG19: =MAX(AZ19-SUM(AV19:AY19)/quo,0) -> 0 | BJ19: 1) quo 1 colors
A20: ROSCOLUX | B20: #80 PRIMARY BLUE | C20: =CONCATENATE(A20," ",B20) -> ROSCOLUX #80 PRIMARY BLUE | D20: 35.48 | E20: 48.14 | F20: 59.59 | G20: 62.57 | H20: 58.22 | I20: 51.48 | J20: 43.74 | K20: 30.69 | L20: 15.42 | M20: 5.05 | N20: 1.41 | O20: 0.29 | P20: 0.11 | Q20: 0.11 | R20: 0.09 | S20: 1.91 | T20: 28.57 | U20: 64.35 | V20: 77.43 | W20: 81.37 | X20: 0.09 | AA20: =D20*D$5 -> 0 | AB20: =E20*E$5 -> 0 | AC20: =F20*F$5 -> 1.1918 | AD20: =G20*G$5 -> 6.257 | AE20: =H20*H$5 -> 52.398 | AF20: =I20*I$5 -> 15.444 | AG20: =J20*J$5 -> 4.374 | AH20: =K20*K$5 -> 4.6035 | AI20: =L20*L$5 -> 6.168 | AJ20: =M20*M$5 -> 2.8785 | AK20: =N20*N$5 -> 0.8178 | AL20: =O20*O$5 -> 0.1508 | AM20: =P20*P$5 -> 0.0528 | AN20: =Q20*Q$5 -> 0.0407 | AO20: =R20*R$5 -> 0.0216 | AP20: =S20*S$5 -> 0.3438 | AQ20: =T20*T$5 -> 3.7141 | AR20: =U20*U$5 -> 5.148 | AS20: =V20*V$5 -> 3.8715 | AT20: =W20*W$5 -> 2.4411 | AV20: =700/420*AVERAGE(AA20:AD20) -> 3.103666667 | AW20: =700/510*AVERAGE(AE20:AH20) -> 26.35963235 | AX20: =700/570*AVERAGE(AI20:AL20) -> 3.074811404 | AY20: =700/640*AVERAGE(AM20:AP20) -> 0.1254804687 | AZ20: =AVERAGE(AQ20:AT20) -> 3.793675 | BB20: =B20 -> #80 PRIMARY BLUE | BC20: =MAX(AV20-SUM(AW20:AZ20)/quo,0) -> 0 | BD20: =MAX(AW20-(AV20+SUM(AX20:AZ20))/quo,0) -> 21.31081558 | BE20: =MAX(AX20-(SUM(AV20:AW20)+SUM(AY20:AZ20))/quo,0) -> 0 | BF20: =MAX(AY20-(SUM(AV20:AX20)+AZ20)/quo,0) -> 0 | BG20: =MAX(AZ20-SUM(AV20:AY20)/quo,0) -> 0 | BJ20: 2) quo 1.5 colors
A21: ROSCOLUX | B21: #359 MED VIOLET | C21: =CONCATENATE(A21," ",B21) -> ROSCOLUX #359 MED VIOLET | D21: 23.64 | E21: 30.85 | F21: 39.05 | G21: 49.68 | H21: 58.85 | I21: 52.07 | J21: 35.04 | K21: 17.66 | L21: 7.87 | M21: 2.53 | N21: 1.73 | O21: 0.63 | P21: 1.49 | Q21: 2.34 | R21: 2.7 | S21: 19.09 | T21: 48.51 | U21: 71.33 | V21: 81.8 | W21: 85.71 | X21: 0.09 | AA21: =D21*D$5 -> 0 | AB21: =E21*E$5 -> 0 | AC21: =F21*F$5 -> 0.781 | AD21: =G21*G$5 -> 4.968 | AE21: =H21*H$5 -> 52.965 | AF21: =I21*I$5 -> 15.621 | AG21: =J21*J$5 -> 3.504 | AH21: =K21*K$5 -> 2.649 | AI21: =L21*L$5 -> 3.148 | AJ21: =M21*M$5 -> 1.4421 | AK21: =N21*N$5 -> 1.0034 | AL21: =O21*O$5 -> 0.3276 | AM21: =P21*P$5 -> 0.7152 | AN21: =Q21*Q$5 -> 0.8658 | AO21: =R21*R$5 -> 0.648 | AP21: =S21*S$5 -> 3.4362 | AQ21: =T21*T$5 -> 6.3063 | AR21: =U21*U$5 -> 5.7064 | AS21: =V21*V$5 -> 4.09 | AT21: =W21*W$5 -> 2.5713 | AV21: =700/420*AVERAGE(AA21:AD21) -> 2.395416667 | AW21: =700/510*AVERAGE(AE21:AH21) -> 25.64573529 | AX21: =700/570*AVERAGE(AI21:AL21) -> 1.817881579 | AY21: =700/640*AVERAGE(AM21:AP21) -> 1.549078125 | AZ21: =AVERAGE(AQ21:AT21) -> 4.6685 | BB21: =B21 -> #359 MED VIOLET | BC21: =MAX(AV21-SUM(AW21:AZ21)/quo,0) -> 0 | BD21: =MAX(AW21-(AV21+SUM(AX21:AZ21))/quo,0) -> 20.43029711 | BE21: =MAX(AX21-(SUM(AV21:AW21)+SUM(AY21:AZ21))/quo,0) -> 0 | BF21: =MAX(AY21-(SUM(AV21:AX21)+AZ21)/quo,0) -> 0 | BG21: =MAX(AZ21-SUM(AV21:AY21)/quo,0) -> 0
A22: ROSCOLUX | B22: #72 AZURE BLUE | C22: =CONCATENATE(A22," ",B22) -> ROSCOLUX #72 AZURE BLUE | D22: 18.13 | E22: 28.19 | F22: 47.08 | G22: 61.16 | H22: 72.23 | I22: 77.52 | J22: 77.05 | K22: 71.94 | L22: 61.93 | M22: 45.88 | N22: 30.89 | O22: 17.74 | P22: 13.13 | Q22: 10.5 | R22: 10.1 | S22: 16.11 | T22: 15.66 | U22: 29.41 | V22: 30.71 | W22: 43.05 | X22: 0.44 | AA22: =D22*D$5 -> 0 | AB22: =E22*E$5 -> 0 | AC22: =F22*F$5 -> 0.9416 | AD22: =G22*G$5 -> 6.116 | AE22: =H22*H$5 -> 65.007 | AF22: =I22*I$5 -> 23.256 | AG22: =J22*J$5 -> 7.705 | AH22: =K22*K$5 -> 10.791 | AI22: =L22*L$5 -> 24.772 | AJ22: =M22*M$5 -> 26.1516 | AK22: =N22*N$5 -> 17.9162 | AL22: =O22*O$5 -> 9.2248 | AM22: =P22*P$5 -> 6.3024 | AN22: =Q22*Q$5 -> 3.885 | AO22: =R22*R$5 -> 2.424 | AP22: =S22*S$5 -> 2.8998 | AQ22: =T22*T$5 -> 2.0358 | AR22: =U22*U$5 -> 2.3528 | AS22: =V22*V$5 -> 1.5355 | AT22: =W22*W$5 -> 1.2915 | AV22: =700/420*AVERAGE(AA22:AD22) -> 2.940666667 | AW22: =700/510*AVERAGE(AE22:AH22) -> 36.6329902 | AX22: =700/570*AVERAGE(AI22:AL22) -> 23.96720175 | AY22: =700/640*AVERAGE(AM22:AP22) -> 4.24134375 | AZ22: =AVERAGE(AQ22:AT22) -> 1.8039 | BB22: =B22 -> #72 AZURE BLUE | BC22: =MAX(AV22-SUM(AW22:AZ22)/quo,0) -> 0 | BD22: =MAX(AW22-(AV22+SUM(AX22:AZ22))/quo,0) -> 20.15643411 | BE22: =MAX(AX22-(SUM(AV22:AW22)+SUM(AY22:AZ22))/quo,0) -> 1.157751448 | BF22: =MAX(AY22-(SUM(AV22:AX22)+AZ22)/quo,0) -> 0 | BG22: =MAX(AZ22-SUM(AV22:AY22)/quo,0) -> 0
A23: ROSCOLUX | B23: #78 TRUDY BLUE | C23: =CONCATENATE(A23," ",B23) -> ROSCOLUX #78 TRUDY BLUE | D23: 34.1 | E23: 45.23 | F23: 54.51 | G23: 61.58 | H23: 67.71 | I23: 64.86 | J23: 55.56 | K23: 43.06 | L23: 29.92 | M23: 18.06 | N23: 12.1 | O23: 6.85 | P23: 7.77 | Q23: 8.6 | R23: 9.95 | S23: 35.56 | T23: 70.77 | U23: 84.17 | V23: 87.32 | W23: 88.11 | X23: 0.19 | AA23: =D23*D$5 -> 0 | AB23: =E23*E$5 -> 0 | AC23: =F23*F$5 -> 1.0902 | AD23: =G23*G$5 -> 6.158 | AE23: =H23*H$5 -> 60.939 | AF23: =I23*I$5 -> 19.458 | AG23: =J23*J$5 -> 5.556 | AH23: =K23*K$5 -> 6.459 | AI23: =L23*L$5 -> 11.968 | AJ23: =M23*M$5 -> 10.2942 | AK23: =N23*N$5 -> 7.018 | AL23: =O23*O$5 -> 3.562 | AM23: =P23*P$5 -> 3.7296 | AN23: =Q23*Q$5 -> 3.182 | AO23: =R23*R$5 -> 2.388 | AP23: =S23*S$5 -> 6.4008 | AQ23: =T23*T$5 -> 9.2001 | AR23: =U23*U$5 -> 6.7336 | AS23: =V23*V$5 -> 4.366 | AT23: =W23*W$5 -> 2.6433 | AV23: =700/420*AVERAGE(AA23:AD23) -> 3.020083333 | AW23: =700/510*AVERAGE(AE23:AH23) -> 31.71 | AX23: =700/570*AVERAGE(AI23:AL23) -> 10.08313158 | AY23: =700/640*AVERAGE(AM23:AP23) -> 4.293078125 | AZ23: =AVERAGE(AQ23:AT23) -> 5.73575 | BB23: =B23 -> #78 TRUDY BLUE | BC23: =MAX(AV23-SUM(AW23:AZ23)/quo,0) -> 0 | BD23: =MAX(AW23-(AV23+SUM(AX23:AZ23))/quo,0) -> 20.14397848 | BE23: =MAX(AX23-(SUM(AV23:AW23)+SUM(AY23:AZ23))/quo,0) -> 0 | BF23: =MAX(AY23-(SUM(AV23:AX23)+AZ23)/quo,0) -> 0 | BG23: =MAX(AZ23-SUM(AV23:AY23)/quo,0) -> 0
A24: ROSCOLUX | B24: #84 ZEPHYR BLUE | C24: =CONCATENATE(A24," ",B24) -> ROSCOLUX #84 ZEPHYR BLUE | D24: 10.2 | E24: 22.42 | F24: 40.57 | G24: 51.22 | H24: 56.68 | I24: 52.16 | J24: 41.65 | K24: 29.33 | L24: 17.76 | M24: 9.01 | N24: 4.88 | O24: 2.46 | P24: 2.66 | Q24: 3.18 | R24: 4.38 | S24: 14.82 | T24: 23.9 | U24: 41.12 | V24: 44.66 | W24: 57.03 | X24: 0.14 | AA24: =D24*D$5 -> 0 | AB24: =E24*E$5 -> 0 | AC24: =F24*F$5 -> 0.8114 | AD24: =G24*G$5 -> 5.122 | AE24: =H24*H$5 -> 51.012 | AF24: =I24*I$5 -> 15.648 | AG24: =J24*J$5 -> 4.165 | AH24: =K24*K$5 -> 4.3995 | AI24: =L24*L$5 -> 7.104 | AJ24: =M24*M$5 -> 5.1357 | AK24: =N24*N$5 -> 2.8304 | AL24: =O24*O$5 -> 1.2792 | AM24: =P24*P$5 -> 1.2768 | AN24: =Q24*Q$5 -> 1.1766 | AO24: =R24*R$5 -> 1.0512 | AP24: =S24*S$5 -> 2.6676 | AQ24: =T24*T$5 -> 3.107 | AR24: =U24*U$5 -> 3.2896 | AS24: =V24*V$5 -> 2.233 | AT24: =W24*W$5 -> 1.7109 | AV24: =700/420*AVERAGE(AA24:AD24) -> 2.47225 | AW24: =700/510*AVERAGE(AE24:AH24) -> 25.81232843 | AX24: =700/570*AVERAGE(AI24:AL24) -> 5.01952193 | AY24: =700/640*AVERAGE(AM24:AP24) -> 1.687710938 | AZ24: =AVERAGE(AQ24:AT24) -> 2.585125 | BB24: =B24 -> #84 ZEPHYR BLUE | BC24: =MAX(AV24-SUM(AW24:AZ24)/quo,0) -> 0 | BD24: =MAX(AW24-(AV24+SUM(AX24:AZ24))/quo,0) -> 19.9300245 | BE24: =MAX(AX24-(SUM(AV24:AW24)+SUM(AY24:AZ24))/quo,0) -> 0 | BF24: =MAX(AY24-(SUM(AV24:AX24)+AZ24)/quo,0) -> 0 | BG24: =MAX(AZ24-SUM(AV24:AY24)/quo,0) -> 0
A25: ROSCOLUX | B25: #64 LT STEEL BLUE | C25: =CONCATENATE(A25," ",B25) -> ROSCOLUX #64 LT STEEL BLUE | D25: 41.98 | E25: 46.79 | F25: 52.04 | G25: 59.35 | H25: 68.18 | I25: 69.2 | J25: 63.6 | K25: 53.42 | L25: 40.33 | M25: 25.74 | N25: 18.13 | O25: 9.65 | P25: 9.71 | Q25: 8.95 | R25: 8.79 | S25: 34.03 | T25: 70.67 | U25: 84.44 | V25: 87.6 | W25: 88.42 | X25: 0.26 | AA25: =D25*D$5 -> 0 | AB25: =E25*E$5 -> 0 | AC25: =F25*F$5 -> 1.0408 | AD25: =G25*G$5 -> 5.935 | AE25: =H25*H$5 -> 61.362 | AF25: =I25*I$5 -> 20.76 | AG25: =J25*J$5 -> 6.36 | AH25: =K25*K$5 -> 8.013 | AI25: =L25*L$5 -> 16.132 | AJ25: =M25*M$5 -> 14.6718 | AK25: =N25*N$5 -> 10.5154 | AL25: =O25*O$5 -> 5.018 | AM25: =P25*P$5 -> 4.6608 | AN25: =Q25*Q$5 -> 3.3115 | AO25: =R25*R$5 -> 2.1096 | AP25: =S25*S$5 -> 6.1254 | AQ25: =T25*T$5 -> 9.1871 | AR25: =U25*U$5 -> 6.7552 | AS25: =V25*V$5 -> 4.38 | AT25: =W25*W$5 -> 2.6526 | AV25: =700/420*AVERAGE(AA25:AD25) -> 2.906583333 | AW25: =700/510*AVERAGE(AE25:AH25) -> 33.11102941 | AX25: =700/570*AVERAGE(AI25:AL25) -> 14.22633333 | AY25: =700/640*AVERAGE(AM25:AP25) -> 4.431683594 | AZ25: =AVERAGE(AQ25:AT25) -> 5.743725 | BB25: =B25 -> #64 LT STEEL BLUE | BC25: =MAX(AV25-SUM(AW25:AZ25)/quo,0) -> 0 | BD25: =MAX(AW25-(AV25+SUM(AX25:AZ25))/quo,0) -> 19.45686678 | BE25: =MAX(AX25-(SUM(AV25:AW25)+SUM(AY25:AZ25))/quo,0) -> 0 | BF25: =MAX(AY25-(SUM(AV25:AX25)+AZ25)/quo,0) -> 0 | BG25: =MAX(AZ25-SUM(AV25:AY25)/quo,0) -> 0
A26: ROSCOLUX | B26: #74 NIGHT BLUE | C26: =CONCATENATE(A26," ",B26) -> ROSCOLUX #74 NIGHT BLUE | D26: 0.79 | E26: 1.15 | F26: 4.66 | G26: 14.42 | H26: 38.84 | I26: 51.43 | J26: 38.3 | K26: 17.4 | L26: 4.55 | M26: 0.45 | N26: 0.04 | O26: 0.02 | P26: 0.01 | Q26: 0.01 | R26: 0.02 | S26: 0.2 | T26: 2.43 | U26: 4.5 | V26: 5.09 | W26: 16.86 | X26: 0.04 | AA26: =D26*D$5 -> 0 | AB26: =E26*E$5 -> 0 | AC26: =F26*F$5 -> 0.0932 | AD26: =G26*G$5 -> 1.442 | AE26: =H26*H$5 -> 34.956 | AF26: =I26*I$5 -> 15.429 | AG26: =J26*J$5 -> 3.83 | AH26: =K26*K$5 -> 2.61 | AI26: =L26*L$5 -> 1.82 | AJ26: =M26*M$5 -> 0.2565 | AK26: =N26*N$5 -> 0.0232 | AL26: =O26*O$5 -> 0.0104 | AM26: =P26*P$5 -> 0.0048 | AN26: =Q26*Q$5 -> 0.0037 | AO26: =R26*R$5 -> 0.0048 | AP26: =S26*S$5 -> 0.036 | AQ26: =T26*T$5 -> 0.3159 | AR26: =U26*U$5 -> 0.36 | AS26: =V26*V$5 -> 0.2545 | AT26: =W26*W$5 -> 0.5058 | AV26: =700/420*AVERAGE(AA26:AD26) -> 0.6396666667 | AW26: =700/510*AVERAGE(AE26:AH26) -> 19.49877451 | AX26: =700/570*AVERAGE(AI26:AL26) -> 0.6478377193 | AY26: =700/640*AVERAGE(AM26:AP26) -> 0.01348046875 | AZ26: =AVERAGE(AQ26:AT26) -> 0.35905 | BB26: =B26 -> #74 NIGHT BLUE | BC26: =MAX(AV26-SUM(AW26:AZ26)/quo,0) -> 0 | BD26: =MAX(AW26-(AV26+SUM(AX26:AZ26))/quo,0) -> 18.66875708 | BE26: =MAX(AX26-(SUM(AV26:AW26)+SUM(AY26:AZ26))/quo,0) -> 0 | BF26: =MAX(AY26-(SUM(AV26:AX26)+AZ26)/quo,0) -> 0 | BG26: =MAX(AZ26-SUM(AV26:AY26)/quo,0) -> 0
A27: ROSCOLUX | B27: #361 HEMSLEY BLUE | C27: =CONCATENATE(A27," ",B27) -> ROSCOLUX #361 HEMSLEY BLUE | D27: 44.5 | E27: 44.5 | F27: 44.5 | G27: 50.92 | H27: 59.09 | I27: 59.9 | J27: 54.83 | K27: 44.7 | L27: 31.25 | M27: 16.64 | N27: 10.66 | O27: 4.42 | P27: 4.9 | Q27: 4.68 | R27: 4.99 | S27: 26.62 | T27: 63.57 | U27: 79.83 | V27: 79.83 | W27: 79.83 | X27: 0.18 | AA27: =D27*D$5 -> 0 | AB27: =E27*E$5 -> 0 | AC27: =F27*F$5 -> 0.89 | AD27: =G27*G$5 -> 5.092 | AE27: =H27*H$5 -> 53.181 | AF27: =I27*I$5 -> 17.97 | AG27: =J27*J$5 -> 5.483 | AH27: =K27*K$5 -> 6.705 | AI27: =L27*L$5 -> 12.5 | AJ27: =M27*M$5 -> 9.4848 | AK27: =N27*N$5 -> 6.1828 | AL27: =O27*O$5 -> 2.2984 | AM27: =P27*P$5 -> 2.352 | AN27: =Q27*Q$5 -> 1.7316 | AO27: =R27*R$5 -> 1.1976 | AP27: =S27*S$5 -> 4.7916 | AQ27: =T27*T$5 -> 8.2641 | AR27: =U27*U$5 -> 6.3864 | AS27: =V27*V$5 -> 3.9915 | AT27: =W27*W$5 -> 2.3949 | AV27: =700/420*AVERAGE(AA27:AD27) -> 2.4925 | AW27: =700/510*AVERAGE(AE27:AH27) -> 28.59671569 | AX27: =700/570*AVERAGE(AI27:AL27) -> 9.353596491 | AY27: =700/640*AVERAGE(AM27:AP27) -> 2.75428125 | AZ27: =AVERAGE(AQ27:AT27) -> 5.259225 | BB27: =B27 -> #361 HEMSLEY BLUE | BC27: =MAX(AV27-SUM(AW27:AZ27)/quo,0) -> 0 | BD27: =MAX(AW27-(AV27+SUM(AX27:AZ27))/quo,0) -> 18.66691432 | BE27: =MAX(AX27-(SUM(AV27:AW27)+SUM(AY27:AZ27))/quo,0) -> 0 | BF27: =MAX(AY27-(SUM(AV27:AX27)+AZ27)/quo,0) -> 0 | BG27: =MAX(AZ27-SUM(AV27:AY27)/quo,0) -> 0
A28: ROSCOLUX | B28: #357 ROYAL LAVENDER | C28: =CONCATENATE(A28," ",B28) -> ROSCOLUX #357 ROYAL LAVENDER | D28: 27.55 | E28: 35.88 | F28: 43.76 | G28: 52.59 | H28: 57.68 | I28: 48.03 | J28: 30.63 | K28: 14.5 | L28: 6.32 | M28: 2.07 | N28: 1.71 | O28: 0.77 | P28: 2.56 | Q28: 4.97 | R28: 5.74 | S28: 28.33 | T28: 65.99 | U28: 81.48 | V28: 85.59 | W28: 86.9 | X28: 0.05 | AA28: =D28*D$5 -> 0 | AB28: =E28*E$5 -> 0 | AC28: =F28*F$5 -> 0.8752 | AD28: =G28*G$5 -> 5.259 | AE28: =H28*H$5 -> 51.912 | AF28: =I28*I$5 -> 14.409 | AG28: =J28*J$5 -> 3.063 | AH28: =K28*K$5 -> 2.175 | AI28: =L28*L$5 -> 2.528 | AJ28: =M28*M$5 -> 1.1799 | AK28: =N28*N$5 -> 0.9918 | AL28: =O28*O$5 -> 0.4004 | AM28: =P28*P$5 -> 1.2288 | AN28: =Q28*Q$5 -> 1.8389 | AO28: =R28*R$5 -> 1.3776 | AP28: =S28*S$5 -> 5.0994 | AQ28: =T28*T$5 -> 8.5787 | AR28: =U28*U$5 -> 6.5184 | AS28: =V28*V$5 -> 4.2795 | AT28: =W28*W$5 -> 2.607 | AV28: =700/420*AVERAGE(AA28:AD28) -> 2.555916667 | AW28: =700/510*AVERAGE(AE28:AH28) -> 24.55455882 | AX28: =700/570*AVERAGE(AI28:AL28) -> 1.565820175 | AY28: =700/640*AVERAGE(AM28:AP28) -> 2.609878906 | AZ28: =AVERAGE(AQ28:AT28) -> 5.4959 | BB28: =B28 -> #357 ROYAL LAVENDER | BC28: =MAX(AV28-SUM(AW28:AZ28)/quo,0) -> 0 | BD28: =MAX(AW28-(AV28+SUM(AX28:AZ28))/quo,0) -> 18.44080095 | BE28: =MAX(AX28-(SUM(AV28:AW28)+SUM(AY28:AZ28))/quo,0) -> 0 | BF28: =MAX(AY28-(SUM(AV28:AX28)+AZ28)/quo,0) -> 0 | BG28: =MAX(AZ28-SUM(AV28:AY28)/quo,0) -> 0
A29: ROSCOLUX | B29: #58 DEEP LAVENDER | C29: =CONCATENATE(A29," ",B29) -> ROSCOLUX #58 DEEP LAVENDER | D29: 16.88 | E29: 33.72 | F29: 52.33 | G29: 59.84 | H29: 61.89 | I29: 51.1 | J29: 33.88 | K29: 18.98 | L29: 10.08 | M29: 5.75 | N29: 5.22 | O29: 5.25 | P29: 8.96 | Q29: 10.3 | R29: 10.76 | S29: 36.65 | T29: 71.24 | U29: 83.75 | V29: 86.58 | W29: 87.33 | X29: 0.1 | AA29: =D29*D$5 -> 0 | AB29: =E29*E$5 -> 0 | AC29: =F29*F$5 -> 1.0466 | AD29: =G29*G$5 -> 5.984 | AE29: =H29*H$5 -> 55.701 | AF29: =I29*I$5 -> 15.33 | AG29: =J29*J$5 -> 3.388 | AH29: =K29*K$5 -> 2.847 | AI29: =L29*L$5 -> 4.032 | AJ29: =M29*M$5 -> 3.2775 | AK29: =N29*N$5 -> 3.0276 | AL29: =O29*O$5 -> 2.73 | AM29: =P29*P$5 -> 4.3008 | AN29: =Q29*Q$5 -> 3.811 | AO29: =R29*R$5 -> 2.5824 | AP29: =S29*S$5 -> 6.597 | AQ29: =T29*T$5 -> 9.2612 | AR29: =U29*U$5 -> 6.7 | AS29: =V29*V$5 -> 4.329 | AT29: =W29*W$5 -> 2.6199 | AV29: =700/420*AVERAGE(AA29:AD29) -> 2.929416667 | AW29: =700/510*AVERAGE(AE29:AH29) -> 26.51284314 | AX29: =700/570*AVERAGE(AI29:AL29) -> 4.011828947 | AY29: =700/640*AVERAGE(AM29:AP29) -> 4.7280625 | AZ29: =AVERAGE(AQ29:AT29) -> 5.727525 | BB29: =B29 -> #58 DEEP LAVENDER | BC29: =MAX(AV29-SUM(AW29:AZ29)/quo,0) -> 0 | BD29: =MAX(AW29-(AV29+SUM(AX29:AZ29))/quo,0) -> 17.81442658 | BE29: =MAX(AX29-(SUM(AV29:AW29)+SUM(AY29:AZ29))/quo,0) -> 0 | BF29: =MAX(AY29-(SUM(AV29:AX29)+AZ29)/quo,0) -> 0 | BG29: =MAX(AZ29-SUM(AV29:AY29)/quo,0) -> 0
A30: ROSCOLUX | B30: #56 GYPSY LAVENDER | C30: =CONCATENATE(A30," ",B30) -> ROSCOLUX #56 GYPSY LAVENDER | D30: 23.43 | E30: 31.12 | F30: 38.39 | G30: 47.51 | H30: 54.12 | I30: 45.82 | J30: 29 | K30: 13.5 | L30: 5.61 | M30: 1.71 | N30: 1.29 | O30: 0.52 | P30: 1.6 | Q30: 2.94 | R30: 3.48 | S30: 23.33 | T30: 62.2 | U30: 79.51 | V30: 84.4 | W30: 86.21 | X30: 0.04 | AA30: =D30*D$5 -> 0 | AB30: =E30*E$5 -> 0 | AC30: =F30*F$5 -> 0.7678 | AD30: =G30*G$5 -> 4.751 | AE30: =H30*H$5 -> 48.708 | AF30: =I30*I$5 -> 13.746 | AG30: =J30*J$5 -> 2.9 | AH30: =K30*K$5 -> 2.025 | AI30: =L30*L$5 -> 2.244 | AJ30: =M30*M$5 -> 0.9747 | AK30: =N30*N$5 -> 0.7482 | AL30: =O30*O$5 -> 0.2704 | AM30: =P30*P$5 -> 0.768 | AN30: =Q30*Q$5 -> 1.0878 | AO30: =R30*R$5 -> 0.8352 | AP30: =S30*S$5 -> 4.1994 | AQ30: =T30*T$5 -> 8.086 | AR30: =U30*U$5 -> 6.3608 | AS30: =V30*V$5 -> 4.22 | AT30: =W30*W$5 -> 2.5863 | AV30: =700/420*AVERAGE(AA30:AD30) -> 2.2995 | AW30: =700/510*AVERAGE(AE30:AH30) -> 23.1202451 | AX30: =700/570*AVERAGE(AI30:AL30) -> 1.300925439 | AY30: =700/640*AVERAGE(AM30:AP30) -> 1.88409375 | AZ30: =AVERAGE(AQ30:AT30) -> 5.313275 | BB30: =B30 -> #56 GYPSY LAVENDER | BC30: =MAX(AV30-SUM(AW30:AZ30)/quo,0) -> 0 | BD30: =MAX(AW30-(AV30+SUM(AX30:AZ30))/quo,0) -> 17.721348 | BE30: =MAX(AX30-(SUM(AV30:AW30)+SUM(AY30:AZ30))/quo,0) -> 0 | BF30: =MAX(AY30-(SUM(AV30:AX30)+AZ30)/quo,0) -> 0 | BG30: =MAX(AZ30-SUM(AV30:AY30)/quo,0) -> 0
A31: ROSCOLUX | B31: #355 PALE VIOLET | C31: =CONCATENATE(A31," ",B31) -> ROSCOLUX #355 PALE VIOLET | D31: 33.05 | E31: 47.9 | F31: 58.81 | G31: 63.29 | H31: 65.97 | I31: 61.52 | J31: 52.33 | K31: 41.57 | L31: 29.85 | M31: 19.45 | N31: 14.4 | O31: 9.85 | P31: 11.81 | Q31: 13.98 | R31: 16.89 | S31: 43.78 | T31: 73.25 | U31: 83.5 | V31: 86.31 | W31: 87.44 | X31: 0.2 | AA31: =D31*D$5 -> 0 | AB31: =E31*E$5 -> 0 | AC31: =F31*F$5 -> 1.1762 | AD31: =G31*G$5 -> 6.329 | AE31: =H31*H$5 -> 59.373 | AF31: =I31*I$5 -> 18.456 | AG31: =J31*J$5 -> 5.233 | AH31: =K31*K$5 -> 6.2355 | AI31: =L31*L$5 -> 11.94 | AJ31: =M31*M$5 -> 11.0865 | AK31: =N31*N$5 -> 8.352 | AL31: =O31*O$5 -> 5.122 | AM31: =P31*P$5 -> 5.6688 | AN31: =Q31*Q$5 -> 5.1726 | AO31: =R31*R$5 -> 4.0536 | AP31: =S31*S$5 -> 7.8804 | AQ31: =T31*T$5 -> 9.5225 | AR31: =U31*U$5 -> 6.68 | AS31: =V31*V$5 -> 4.3155 | AT31: =W31*W$5 -> 2.6232 | AV31: =700/420*AVERAGE(AA31:AD31) -> 3.127166667 | AW31: =700/510*AVERAGE(AE31:AH31) -> 30.64129902 | AX31: =700/570*AVERAGE(AI31:AL31) -> 11.20629386 | AY31: =700/640*AVERAGE(AM31:AP31) -> 6.227648437 | AZ31: =AVERAGE(AQ31:AT31) -> 5.7853 | BB31: =B31 -> #355 PALE VIOLET | BC31: =MAX(AV31-SUM(AW31:AZ31)/quo,0) -> 0 | BD31: =MAX(AW31-(AV31+SUM(AX31:AZ31))/quo,0) -> 17.46809454 | BE31: =MAX(AX31-(SUM(AV31:AW31)+SUM(AY31:AZ31))/quo,0) -> 0 | BF31: =MAX(AY31-(SUM(AV31:AX31)+AZ31)/quo,0) -> 0 | BG31: =MAX(AZ31-SUM(AV31:AY31)/quo,0) -> 0
A32: ROSCOLUX | B32: #378 ALICE BLUE | C32: =CONCATENATE(A32," ",B32) -> ROSCOLUX #378 ALICE BLUE | D32: 47.14 | E32: 58.27 | F32: 66.75 | G32: 68.13 | H32: 60.96 | I32: 49.2 | J32: 36.36 | K32: 25.88 | L32: 15.81 | M32: 12.75 | N32: 8.44 | O32: 7.81 | P32: 7.54 | Q32: 7.72 | R32: 5.77 | S32: 15.27 | T32: 51.29 | U32: 74.64 | V32: 80.97 | W32: 82.99 | X32: 0.15 | AA32: =D32*D$5 -> 0 | AB32: =E32*E$5 -> 0 | AC32: =F32*F$5 -> 1.335 | AD32: =G32*G$5 -> 6.813 | AE32: =H32*H$5 -> 54.864 | AF32: =I32*I$5 -> 14.76 | AG32: =J32*J$5 -> 3.636 | AH32: =K32*K$5 -> 3.882 | AI32: =L32*L$5 -> 6.324 | AJ32: =M32*M$5 -> 7.2675 | AK32: =N32*N$5 -> 4.8952 | AL32: =O32*O$5 -> 4.0612 | AM32: =P32*P$5 -> 3.6192 | AN32: =Q32*Q$5 -> 2.8564 | AO32: =R32*R$5 -> 1.3848 | AP32: =S32*S$5 -> 2.7486 | AQ32: =T32*T$5 -> 6.6677 | AR32: =U32*U$5 -> 5.9712 | AS32: =V32*V$5 -> 4.0485 | AT32: =W32*W$5 -> 2.4897 | AV32: =700/420*AVERAGE(AA32:AD32) -> 3.395 | AW32: =700/510*AVERAGE(AE32:AH32) -> 26.47029412 | AX32: =700/570*AVERAGE(AI32:AL32) -> 6.922600877 | AY32: =700/640*AVERAGE(AM32:AP32) -> 2.900898437 | AZ32: =AVERAGE(AQ32:AT32) -> 4.794275 | BB32: =B32 -> #378 ALICE BLUE | BC32: =MAX(AV32-SUM(AW32:AZ32)/quo,0) -> 0 | BD32: =MAX(AW32-(AV32+SUM(AX32:AZ32))/quo,0) -> 17.46390696 | BE32: =MAX(AX32-(SUM(AV32:AW32)+SUM(AY32:AZ32))/quo,0) -> 0 | BF32: =MAX(AY32-(SUM(AV32:AX32)+AZ32)/quo,0) -> 0 | BG32: =MAX(AZ32-SUM(AV32:AY32)/quo,0) -> 0 | BJ32: 1) max spectral purity
A33: ROSCOLUX | B33: #364 BLUE BELL | C33: =CONCATENATE(A33," ",B33) -> ROSCOLUX #364 BLUE BELL | D33: 57.75 | E33: 67.52 | F33: 73 | G33: 74.14 | H33: 72.03 | I33: 67.19 | J33: 60.33 | K33: 51.5 | L33: 41.02 | M33: 31.07 | N33: 24.82 | O33: 18.27 | P33: 17.26 | Q33: 17.3 | R33: 15.98 | S33: 27.31 | T33: 55.92 | U33: 75.9 | V33: 82.69 | W33: 84.64 | X33: 0.32 | AA33: =D33*D$5 -> 0 | AB33: =E33*E$5 -> 0 | AC33: =F33*F$5 -> 1.46 | AD33: =G33*G$5 -> 7.414 | AE33: =H33*H$5 -> 64.827 | AF33: =I33*I$5 -> 20.157 | AG33: =J33*J$5 -> 6.033 | AH33: =K33*K$5 -> 7.725 | AI33: =L33*L$5 -> 16.408 | AJ33: =M33*M$5 -> 17.7099 | AK33: =N33*N$5 -> 14.3956 | AL33: =O33*O$5 -> 9.5004 | AM33: =P33*P$5 -> 8.2848 | AN33: =Q33*Q$5 -> 6.401 | AO33: =R33*R$5 -> 3.8352 | AP33: =S33*S$5 -> 4.9158 | AQ33: =T33*T$5 -> 7.2696 | AR33: =U33*U$5 -> 6.072 | AS33: =V33*V$5 -> 4.1345 | AT33: =W33*W$5 -> 2.5392 | AV33: =700/420*AVERAGE(AA33:AD33) -> 3.6975 | AW33: =700/510*AVERAGE(AE33:AH33) -> 33.88205882 | AX33: =700/570*AVERAGE(AI33:AL33) -> 17.81128509 | AY33: =700/640*AVERAGE(AM33:AP33) -> 6.4085 | AZ33: =AVERAGE(AQ33:AT33) -> 5.003825 | BB33: =B33 -> #364 BLUE BELL | BC33: =MAX(AV33-SUM(AW33:AZ33)/quo,0) -> 0 | BD33: =MAX(AW33-(AV33+SUM(AX33:AZ33))/quo,0) -> 17.42150378 | BE33: =MAX(AX33-(SUM(AV33:AW33)+SUM(AY33:AZ33))/quo,0) -> 0 | BF33: =MAX(AY33-(SUM(AV33:AX33)+AZ33)/quo,0) -> 0 | BG33: =MAX(AZ33-SUM(AV33:AY33)/quo,0) -> 0 | BJ33: 2) min and max
A34: ROSCOLUX | B34: #384 MIDNIGHT BLUE | C34: =CONCATENATE(A34," ",B34) -> ROSCOLUX #384 MIDNIGHT BLUE | D34: 6.46 | E34: 8.57 | F34: 13.02 | G34: 25.14 | H34: 43.71 | I34: 40.27 | J34: 21.93 | K34: 6.89 | L34: 1.5 | M34: 0.23 | N34: 0.05 | O34: 0.04 | P34: 0.02 | Q34: 0.03 | R34: 0.04 | S34: 0.53 | T34: 4.77 | U34: 14.1 | V34: 37.04 | W34: 66.54 | X34: 0.02 | AA34: =D34*D$5 -> 0 | AB34: =E34*E$5 -> 0 | AC34: =F34*F$5 -> 0.2604 | AD34: =G34*G$5 -> 2.514 | AE34: =H34*H$5 -> 39.339 | AF34: =I34*I$5 -> 12.081 | AG34: =J34*J$5 -> 2.193 | AH34: =K34*K$5 -> 1.0335 | AI34: =L34*L$5 -> 0.6 | AJ34: =M34*M$5 -> 0.1311 | AK34: =N34*N$5 -> 0.029 | AL34: =O34*O$5 -> 0.0208 | AM34: =P34*P$5 -> 0.0096 | AN34: =Q34*Q$5 -> 0.0111 | AO34: =R34*R$5 -> 0.0096 | AP34: =S34*S$5 -> 0.0954 | AQ34: =T34*T$5 -> 0.6201 | AR34: =U34*U$5 -> 1.128 | AS34: =V34*V$5 -> 1.852 | AT34: =W34*W$5 -> 1.9962 | AV34: =700/420*AVERAGE(AA34:AD34) -> 1.156 | AW34: =700/510*AVERAGE(AE34:AH34) -> 18.75125 | AX34: =700/570*AVERAGE(AI34:AL34) -> 0.23975 | AY34: =700/640*AVERAGE(AM34:AP34) -> 0.03437109375 | AZ34: =AVERAGE(AQ34:AT34) -> 1.399075 | BB34: =B34 -> #384 MIDNIGHT BLUE | BC34: =MAX(AV34-SUM(AW34:AZ34)/quo,0) -> 0 | BD34: =MAX(AW34-(AV34+SUM(AX34:AZ34))/quo,0) -> 17.33665195 | BE34: =MAX(AX34-(SUM(AV34:AW34)+SUM(AY34:AZ34))/quo,0) -> 0 | BF34: =MAX(AY34-(SUM(AV34:AX34)+AZ34)/quo,0) -> 0 | BG34: =MAX(AZ34-SUM(AV34:AY34)/quo,0) -> 0
A35: ROSCOLUX | B35: #2007 VS BLUE | C35: #2007 VS BLUE | D35: 22.99 | E35: 31.49 | F35: 39.61 | G35: 53.48 | H35: 53.2 | I35: 40.71 | J35: 26.9 | K35: 18.12 | L35: 10.7 | M35: 9.81 | N35: 6.37 | O35: 6.92 | P35: 5.05 | Q35: 2.98 | R35: 2.3 | S35: 1.75 | T35: 3.56 | U35: 15.36 | V35: 42.33 | W35: 66.62 | X35: 0.1 | AA35: =D35*D$5 -> 0 | AB35: =E35*E$5 -> 0 | AC35: =F35*F$5 -> 0.7922 | AD35: =G35*G$5 -> 5.348 | AE35: =H35*H$5 -> 47.88 | AF35: =I35*I$5 -> 12.213 | AG35: =J35*J$5 -> 2.69 | AH35: =K35*K$5 -> 2.718 | AI35: =L35*L$5 -> 4.28 | AJ35: =M35*M$5 -> 5.5917 | AK35: =N35*N$5 -> 3.6946 | AL35: =O35*O$5 -> 3.5984 | AM35: =P35*P$5 -> 2.424 | AN35: =Q35*Q$5 -> 1.1026 | AO35: =R35*R$5 -> 0.552 | AP35: =S35*S$5 -> 0.315 | AQ35: =T35*T$5 -> 0.4628 | AR35: =U35*U$5 -> 1.2288 | AS35: =V35*V$5 -> 2.1165 | AT35: =W35*W$5 -> 1.9986 | AV35: =700/420*AVERAGE(AA35:AD35) -> 2.558416667 | AW35: =700/510*AVERAGE(AE35:AH35) -> 22.47583333 | AX35: =700/570*AVERAGE(AI35:AL35) -> 5.269864035 | AY35: =700/640*AVERAGE(AM35:AP35) -> 1.201375 | AZ35: =AVERAGE(AQ35:AT35) -> 1.451675 | BB35: =B35 -> #2007 VS BLUE | BC35: =MAX(AV35-SUM(AW35:AZ35)/quo,0) -> 0 | BD35: =MAX(AW35-(AV35+SUM(AX35:AZ35))/quo,0) -> 17.23516798 | BE35: =MAX(AX35-(SUM(AV35:AW35)+SUM(AY35:AZ35))/quo,0) -> 0 | BF35: =MAX(AY35-(SUM(AV35:AX35)+AZ35)/quo,0) -> 0 | BG35: =MAX(AZ35-SUM(AV35:AY35)/quo,0) -> 0
A36: ROSCOLUX | B36: #3220 DOUBLE BLUE CTB | C36: #3220 DOUBLE BLUE CTB | D36: 22.99 | E36: 31.49 | F36: 39.61 | G36: 53.48 | H36: 53.2 | I36: 40.71 | J36: 26.9 | K36: 18.12 | L36: 10.7 | M36: 9.81 | N36: 6.37 | O36: 6.92 | P36: 5.05 | Q36: 2.98 | R36: 2.3 | S36: 1.75 | T36: 3.56 | U36: 15.36 | V36: 42.33 | W36: 66.62 | X36: 0.1 | AA36: =D36*D$5 -> 0 | AB36: =E36*E$5 -> 0 | AC36: =F36*F$5 -> 0.7922 | AD36: =G36*G$5 -> 5.348 | AE36: =H36*H$5 -> 47.88 | AF36: =I36*I$5 -> 12.213 | AG36: =J36*J$5 -> 2.69 | AH36: =K36*K$5 -> 2.718 | AI36: =L36*L$5 -> 4.28 | AJ36: =M36*M$5 -> 5.5917 | AK36: =N36*N$5 -> 3.6946 | AL36: =O36*O$5 -> 3.5984 | AM36: =P36*P$5 -> 2.424 | AN36: =Q36*Q$5 -> 1.1026 | AO36: =R36*R$5 -> 0.552 | AP36: =S36*S$5 -> 0.315 | AQ36: =T36*T$5 -> 0.4628 | AR36: =U36*U$5 -> 1.2288 | AS36: =V36*V$5 -> 2.1165 | AT36: =W36*W$5 -> 1.9986 | AV36: =700/420*AVERAGE(AA36:AD36) -> 2.558416667 | AW36: =700/510*AVERAGE(AE36:AH36) -> 22.47583333 | AX36: =700/570*AVERAGE(AI36:AL36) -> 5.269864035 | AY36: =700/640*AVERAGE(AM36:AP36) -> 1.201375 | AZ36: =AVERAGE(AQ36:AT36) -> 1.451675 | BB36: =B36 -> #3220 DOUBLE BLUE CTB | BC36: =MAX(AV36-SUM(AW36:AZ36)/quo,0) -> 0 | BD36: =MAX(AW36-(AV36+SUM(AX36:AZ36))/quo,0) -> 17.23516798 | BE36: =MAX(AX36-(SUM(AV36:AW36)+SUM(AY36:AZ36))/quo,0) -> 0 | BF36: =MAX(AY36-(SUM(AV36:AX36)+AZ36)/quo,0) -> 0 | BG36: =MAX(AZ36-SUM(AV36:AY36)/quo,0) -> 0
A37: ROSCOLUX | B37: #57 LAVENDER | C37: =CONCATENATE(A37," ",B37) -> ROSCOLUX #57 LAVENDER | D37: 31.68 | E37: 46.96 | F37: 60.5 | G37: 66.39 | H37: 69.14 | I37: 62.54 | J37: 49.37 | K37: 35.31 | L37: 24.39 | M37: 17.09 | N37: 15.69 | O37: 14.45 | P37: 19.33 | Q37: 20.7 | R37: 20.99 | S37: 47.69 | T37: 75.51 | U37: 84.35 | V37: 86.42 | W37: 87.23 | X37: 0.24 | AA37: =D37*D$5 -> 0 | AB37: =E37*E$5 -> 0 | AC37: =F37*F$5 -> 1.21 | AD37: =G37*G$5 -> 6.639 | AE37: =H37*H$5 -> 62.226 | AF37: =I37*I$5 -> 18.762 | AG37: =J37*J$5 -> 4.937 | AH37: =K37*K$5 -> 5.2965 | AI37: =L37*L$5 -> 9.756 | AJ37: =M37*M$5 -> 9.7413 | AK37: =N37*N$5 -> 9.1002 | AL37: =O37*O$5 -> 7.514 | AM37: =P37*P$5 -> 9.2784 | AN37: =Q37*Q$5 -> 7.659 | AO37: =R37*R$5 -> 5.0376 | AP37: =S37*S$5 -> 8.5842 | AQ37: =T37*T$5 -> 9.8163 | AR37: =U37*U$5 -> 6.748 | AS37: =V37*V$5 -> 4.321 | AT37: =W37*W$5 -> 2.6169 | AV37: =700/420*AVERAGE(AA37:AD37) -> 3.270416667 | AW37: =700/510*AVERAGE(AE37:AH37) -> 31.3014951 | AX37: =700/570*AVERAGE(AI37:AL37) -> 11.08686404 | AY37: =700/640*AVERAGE(AM37:AP37) -> 8.35603125 | AZ37: =AVERAGE(AQ37:AT37) -> 5.87555 | BB37: =B37 -> #57 LAVENDER | BC37: =MAX(AV37-SUM(AW37:AZ37)/quo,0) -> 0 | BD37: =MAX(AW37-(AV37+SUM(AX37:AZ37))/quo,0) -> 17.00706412 | BE37: =MAX(AX37-(SUM(AV37:AW37)+SUM(AY37:AZ37))/quo,0) -> 0 | BF37: =MAX(AY37-(SUM(AV37:AX37)+AZ37)/quo,0) -> 0 | BG37: =MAX(AZ37-SUM(AV37:AY37)/quo,0) -> 0
A38: ROSCOLUX | B38: #4290 CALCOLOR 90 BLUE | C38: #4290 CALCOLOR 90 BLUE | D38: 39.07 | E38: 51.85 | F38: 62.32 | G38: 63.4 | H38: 54.36 | I38: 40.09 | J38: 25.84 | K38: 15.87 | L38: 7.84 | M38: 5.88 | N38: 3.37 | O38: 3.24 | P38: 3.49 | Q38: 3.39 | R38: 2.53 | S38: 11.42 | T38: 48 | U38: 73.68 | V38: 81.05 | W38: 83.41 | X38: 0.15 | AA38: =D38*D$5 -> 0 | AB38: =E38*E$5 -> 0 | AC38: =F38*F$5 -> 1.2464 | AD38: =G38*G$5 -> 6.34 | AE38: =H38*H$5 -> 48.924 | AF38: =I38*I$5 -> 12.027 | AG38: =J38*J$5 -> 2.584 | AH38: =K38*K$5 -> 2.3805 | AI38: =L38*L$5 -> 3.136 | AJ38: =M38*M$5 -> 3.3516 | AK38: =N38*N$5 -> 1.9546 | AL38: =O38*O$5 -> 1.6848 | AM38: =P38*P$5 -> 1.6752 | AN38: =Q38*Q$5 -> 1.2543 | AO38: =R38*R$5 -> 0.6072 | AP38: =S38*S$5 -> 2.0556 | AQ38: =T38*T$5 -> 6.24 | AR38: =U38*U$5 -> 5.8944 | AS38: =V38*V$5 -> 4.0525 | AT38: =W38*W$5 -> 2.5023 | AV38: =700/420*AVERAGE(AA38:AD38) -> 3.161 | AW38: =700/510*AVERAGE(AE38:AH38) -> 22.61806373 | AX38: =700/570*AVERAGE(AI38:AL38) -> 3.109166667 | AY38: =700/640*AVERAGE(AM38:AP38) -> 1.529144531 | AZ38: =AVERAGE(AQ38:AT38) -> 4.6723 | BB38: =B38 -> #4290 CALCOLOR 90 BLUE | BC38: =MAX(AV38-SUM(AW38:AZ38)/quo,0) -> 0 | BD38: =MAX(AW38-(AV38+SUM(AX38:AZ38))/quo,0) -> 16.38225813 | BE38: =MAX(AX38-(SUM(AV38:AW38)+SUM(AY38:AZ38))/quo,0) -> 0 | BF38: =MAX(AY38-(SUM(AV38:AX38)+AZ38)/quo,0) -> 0 | BG38: =MAX(AZ38-SUM(AV38:AY38)/quo,0) -> 0 | BJ38: 4) best triplets
A39: ROSCOLUX | B39: #83 MED BLUE | C39: =CONCATENATE(A39," ",B39) -> ROSCOLUX #83 MED BLUE | D39: 5.28 | E39: 5.37 | F39: 7.19 | G39: 15.09 | H39: 37.32 | I39: 49.96 | J39: 37.54 | K39: 16.99 | L39: 4.57 | M39: 0.52 | N39: 0.09 | O39: 0.04 | P39: 0.03 | Q39: 0.03 | R39: 0.03 | S39: 1.13 | T39: 21.96 | U39: 58.55 | V39: 78.48 | W39: 85.11 | X39: 0.04 | AA39: =D39*D$5 -> 0 | AB39: =E39*E$5 -> 0 | AC39: =F39*F$5 -> 0.1438 | AD39: =G39*G$5 -> 1.509 | AE39: =H39*H$5 -> 33.588 | AF39: =I39*I$5 -> 14.988 | AG39: =J39*J$5 -> 3.754 | AH39: =K39*K$5 -> 2.5485 | AI39: =L39*L$5 -> 1.828 | AJ39: =M39*M$5 -> 0.2964 | AK39: =N39*N$5 -> 0.0522 | AL39: =O39*O$5 -> 0.0208 | AM39: =P39*P$5 -> 0.0144 | AN39: =Q39*Q$5 -> 0.0111 | AO39: =R39*R$5 -> 0.0072 | AP39: =S39*S$5 -> 0.2034 | AQ39: =T39*T$5 -> 2.8548 | AR39: =U39*U$5 -> 4.684 | AS39: =V39*V$5 -> 3.924 | AT39: =W39*W$5 -> 2.5533 | AV39: =700/420*AVERAGE(AA39:AD39) -> 0.6886666667 | AW39: =700/510*AVERAGE(AE39:AH39) -> 18.83085784 | AX39: =700/570*AVERAGE(AI39:AL39) -> 0.6746403509 | AY39: =700/640*AVERAGE(AM39:AP39) -> 0.06455859375 | AZ39: =AVERAGE(AQ39:AT39) -> 3.504025 | BB39: =B39 -> #83 MED BLUE | BC39: =MAX(AV39-SUM(AW39:AZ39)/quo,0) -> 0 | BD39: =MAX(AW39-(AV39+SUM(AX39:AZ39))/quo,0) -> 16.36491254 | BE39: =MAX(AX39-(SUM(AV39:AW39)+SUM(AY39:AZ39))/quo,0) -> 0 | BF39: =MAX(AY39-(SUM(AV39:AX39)+AZ39)/quo,0) -> 0 | BG39: =MAX(AZ39-SUM(AV39:AY39)/quo,0) -> 0
A40: ROSCOLUX | B40: #4260 CALCOLOR 60 BLUE | C40: #4260 CALCOLOR 60 BLUE | D40: 47.25 | E40: 58.21 | F40: 66 | G40: 67.07 | H40: 61.61 | I40: 51.71 | J40: 39.93 | K40: 30.07 | L40: 19.9 | M40: 16.9 | N40: 12.21 | O40: 12.24 | P40: 12.67 | Q40: 12.24 | R40: 11.07 | S40: 21.67 | T40: 50.74 | U40: 72.54 | V40: 80.05 | W40: 82.15 | X40: 0.24 | AA40: =D40*D$5 -> 0 | AB40: =E40*E$5 -> 0 | AC40: =F40*F$5 -> 1.32 | AD40: =G40*G$5 -> 6.707 | AE40: =H40*H$5 -> 55.449 | AF40: =I40*I$5 -> 15.513 | AG40: =J40*J$5 -> 3.993 | AH40: =K40*K$5 -> 4.5105 | AI40: =L40*L$5 -> 7.96 | AJ40: =M40*M$5 -> 9.633 | AK40: =N40*N$5 -> 7.0818 | AL40: =O40*O$5 -> 6.3648 | AM40: =P40*P$5 -> 6.0816 | AN40: =Q40*Q$5 -> 4.5288 | AO40: =R40*R$5 -> 2.6568 | AP40: =S40*S$5 -> 3.9006 | AQ40: =T40*T$5 -> 6.5962 | AR40: =U40*U$5 -> 5.8032 | AS40: =V40*V$5 -> 4.0025 | AT40: =W40*W$5 -> 2.4645 | AV40: =700/420*AVERAGE(AA40:AD40) -> 3.344583333 | AW40: =700/510*AVERAGE(AE40:AH40) -> 27.26757353 | AX40: =700/570*AVERAGE(AI40:AL40) -> 9.529701754 | AY40: =700/640*AVERAGE(AM40:AP40) -> 4.694320313 | AZ40: =AVERAGE(AQ40:AT40) -> 4.7166 | BB40: =B40 -> #4260 CALCOLOR 60 BLUE | BC40: =MAX(AV40-SUM(AW40:AZ40)/quo,0) -> 0 | BD40: =MAX(AW40-(AV40+SUM(AX40:AZ40))/quo,0) -> 16.12497083 | BE40: =MAX(AX40-(SUM(AV40:AW40)+SUM(AY40:AZ40))/quo,0) -> 0 | BF40: =MAX(AY40-(SUM(AV40:AX40)+AZ40)/quo,0) -> 0 | BG40: =MAX(AZ40-SUM(AV40:AY40)/quo,0) -> 0 | BJ40: 3) best pairs
A41: ROSCOLUX | B41: #371 THEATRE BOOSTER 1 | C41: =CONCATENATE(A41," ",B41) -> ROSCOLUX #371 THEATRE BOOSTER 1 | D41: 48.52 | E41: 55.7 | F41: 62.78 | G41: 68.98 | H41: 74.99 | I41: 74.65 | J41: 68.54 | K41: 59 | L41: 48.29 | M41: 36.9 | N41: 30.91 | O41: 22.79 | P41: 24.15 | Q41: 23.46 | R41: 23.03 | S41: 49.13 | T41: 75.48 | U41: 84.06 | V41: 86.44 | W41: 87.29 | X41: 0.35 | AA41: =D41*D$5 -> 0 | AB41: =E41*E$5 -> 0 | AC41: =F41*F$5 -> 1.2556 | AD41: =G41*G$5 -> 6.898 | AE41: =H41*H$5 -> 67.491 | AF41: =I41*I$5 -> 22.395 | AG41: =J41*J$5 -> 6.854 | AH41: =K41*K$5 -> 8.85 | AI41: =L41*L$5 -> 19.316 | AJ41: =M41*M$5 -> 21.033 | AK41: =N41*N$5 -> 17.9278 | AL41: =O41*O$5 -> 11.8508 | AM41: =P41*P$5 -> 11.592 | AN41: =Q41*Q$5 -> 8.6802 | AO41: =R41*R$5 -> 5.5272 | AP41: =S41*S$5 -> 8.8434 | AQ41: =T41*T$5 -> 9.8124 | AR41: =U41*U$5 -> 6.7248 | AS41: =V41*V$5 -> 4.322 | AT41: =W41*W$5 -> 2.6187 | AV41: =700/420*AVERAGE(AA41:AD41) -> 3.397333333 | AW41: =700/510*AVERAGE(AE41:AH41) -> 36.23186275 | AX41: =700/570*AVERAGE(AI41:AL41) -> 21.53040351 | AY41: =700/640*AVERAGE(AM41:AP41) -> 9.472640625 | AZ41: =AVERAGE(AQ41:AT41) -> 5.869475 | BB41: =B41 -> #371 THEATRE BOOSTER 1 | BC41: =MAX(AV41-SUM(AW41:AZ41)/quo,0) -> 0 | BD41: =MAX(AW41-(AV41+SUM(AX41:AZ41))/quo,0) -> 16.09693651 | BE41: =MAX(AX41-(SUM(AV41:AW41)+SUM(AY41:AZ41))/quo,0) -> 0 | BF41: =MAX(AY41-(SUM(AV41:AX41)+AZ41)/quo,0) -> 0 | BG41: =MAX(AZ41-SUM(AV41:AY41)/quo,0) -> 0
A42: ROSCOLUX | B42: #82 SURPRISE BLUE | C42: =CONCATENATE(A42," ",B42) -> ROSCOLUX #82 SURPRISE BLUE | D42: 14.47 | E42: 22.54 | F42: 30.21 | G42: 37.75 | H42: 45.93 | I42: 42.94 | J42: 33.06 | K42: 21.3 | L42: 10.54 | M42: 3.65 | N42: 1.59 | O42: 0.45 | P42: 0.51 | Q42: 0.57 | R42: 0.89 | S42: 13.98 | T42: 55.77 | U42: 79.51 | V42: 85.72 | W42: 87.21 | X42: 0.06 | AA42: =D42*D$5 -> 0 | AB42: =E42*E$5 -> 0 | AC42: =F42*F$5 -> 0.6042 | AD42: =G42*G$5 -> 3.775 | AE42: =H42*H$5 -> 41.337 | AF42: =I42*I$5 -> 12.882 | AG42: =J42*J$5 -> 3.306 | AH42: =K42*K$5 -> 3.195 | AI42: =L42*L$5 -> 4.216 | AJ42: =M42*M$5 -> 2.0805 | AK42: =N42*N$5 -> 0.9222 | AL42: =O42*O$5 -> 0.234 | AM42: =P42*P$5 -> 0.2448 | AN42: =Q42*Q$5 -> 0.2109 | AO42: =R42*R$5 -> 0.2136 | AP42: =S42*S$5 -> 2.5164 | AQ42: =T42*T$5 -> 7.2501 | AR42: =U42*U$5 -> 6.3608 | AS42: =V42*V$5 -> 4.286 | AT42: =W42*W$5 -> 2.6163 | AV42: =700/420*AVERAGE(AA42:AD42) -> 1.824666667 | AW42: =700/510*AVERAGE(AE42:AH42) -> 20.83529412 | AX42: =700/570*AVERAGE(AI42:AL42) -> 2.288109649 | AY42: =700/640*AVERAGE(AM42:AP42) -> 0.8710898437 | AZ42: =AVERAGE(AQ42:AT42) -> 5.1283 | BB42: =B42 -> #82 SURPRISE BLUE | BC42: =MAX(AV42-SUM(AW42:AZ42)/quo,0) -> 0 | BD42: =MAX(AW42-(AV42+SUM(AX42:AZ42))/quo,0) -> 15.77921104 | BE42: =MAX(AX42-(SUM(AV42:AW42)+SUM(AY42:AZ42))/quo,0) -> 0 | BF42: =MAX(AY42-(SUM(AV42:AX42)+AZ42)/quo,0) -> 0 | BG42: =MAX(AZ42-SUM(AV42:AY42)/quo,0) -> 0
A43: ROSCOLUX | B43: #353 LILLY LAVENDER | C43: =CONCATENATE(A43," ",B43) -> ROSCOLUX #353 LILLY LAVENDER | D43: 42.28 | E43: 58.25 | F43: 69.44 | G43: 72.66 | H43: 72.27 | I43: 66.54 | J43: 58.13 | K43: 47.84 | L43: 37.03 | M43: 27.44 | N43: 22.12 | O43: 18.22 | P43: 22.18 | Q43: 27.03 | R43: 32.37 | S43: 58.14 | T43: 79.24 | U43: 85.88 | V43: 88.11 | W43: 89.24 | X43: 0.29 | AA43: =D43*D$5 -> 0 | AB43: =E43*E$5 -> 0 | AC43: =F43*F$5 -> 1.3888 | AD43: =G43*G$5 -> 7.266 | AE43: =H43*H$5 -> 65.043 | AF43: =I43*I$5 -> 19.962 | AG43: =J43*J$5 -> 5.813 | AH43: =K43*K$5 -> 7.176 | AI43: =L43*L$5 -> 14.812 | AJ43: =M43*M$5 -> 15.6408 | AK43: =N43*N$5 -> 12.8296 | AL43: =O43*O$5 -> 9.4744 | AM43: =P43*P$5 -> 10.6464 | AN43: =Q43*Q$5 -> 10.0011 | AO43: =R43*R$5 -> 7.7688 | AP43: =S43*S$5 -> 10.4652 | AQ43: =T43*T$5 -> 10.3012 | AR43: =U43*U$5 -> 6.8704 | AS43: =V43*V$5 -> 4.4055 | AT43: =W43*W$5 -> 2.6772 | AV43: =700/420*AVERAGE(AA43:AD43) -> 3.606166667 | AW43: =700/510*AVERAGE(AE43:AH43) -> 33.62539216 | AX43: =700/570*AVERAGE(AI43:AL43) -> 16.19726316 | AY43: =700/640*AVERAGE(AM43:AP43) -> 10.63166016 | AZ43: =AVERAGE(AQ43:AT43) -> 6.063575 | BB43: =B43 -> #353 LILLY LAVENDER | BC43: =MAX(AV43-SUM(AW43:AZ43)/quo,0) -> 0 | BD43: =MAX(AW43-(AV43+SUM(AX43:AZ43))/quo,0) -> 15.37605967 | BE43: =MAX(AX43-(SUM(AV43:AW43)+SUM(AY43:AZ43))/quo,0) -> 0 | BF43: =MAX(AY43-(SUM(AV43:AX43)+AZ43)/quo,0) -> 0 | BG43: =MAX(AZ43-SUM(AV43:AY43)/quo,0) -> 0
A44: ROSCOLUX | B44: #75 TWILIGHT BLUE | C44: =CONCATENATE(A44," ",B44) -> ROSCOLUX #75 TWILIGHT BLUE | D44: 26.55 | E44: 25.07 | F44: 22.37 | G44: 23.87 | H44: 36.48 | I44: 47.12 | J44: 49.49 | K44: 42.41 | L44: 29.47 | M44: 13.89 | N44: 6.34 | O44: 1.61 | P44: 0.98 | Q44: 0.57 | R44: 0.29 | S44: 2.28 | T44: 5.2 | U44: 8.27 | V44: 19.58 | W44: 44.45 | X44: 0.11 | AA44: =D44*D$5 -> 0 | AB44: =E44*E$5 -> 0 | AC44: =F44*F$5 -> 0.4474 | AD44: =G44*G$5 -> 2.387 | AE44: =H44*H$5 -> 32.832 | AF44: =I44*I$5 -> 14.136 | AG44: =J44*J$5 -> 4.949 | AH44: =K44*K$5 -> 6.3615 | AI44: =L44*L$5 -> 11.788 | AJ44: =M44*M$5 -> 7.9173 | AK44: =N44*N$5 -> 3.6772 | AL44: =O44*O$5 -> 0.8372 | AM44: =P44*P$5 -> 0.4704 | AN44: =Q44*Q$5 -> 0.2109 | AO44: =R44*R$5 -> 0.0696 | AP44: =S44*S$5 -> 0.4104 | AQ44: =T44*T$5 -> 0.676 | AR44: =U44*U$5 -> 0.6616 | AS44: =V44*V$5 -> 0.979 | AT44: =W44*W$5 -> 1.3335 | AV44: =700/420*AVERAGE(AA44:AD44) -> 1.181 | AW44: =700/510*AVERAGE(AE44:AH44) -> 19.99752451 | AX44: =700/570*AVERAGE(AI44:AL44) -> 7.435872807 | AY44: =700/640*AVERAGE(AM44:AP44) -> 0.3175429687 | AZ44: =AVERAGE(AQ44:AT44) -> 0.912525 | BB44: =B44 -> #75 TWILIGHT BLUE | BC44: =MAX(AV44-SUM(AW44:AZ44)/quo,0) -> 0 | BD44: =MAX(AW44-(AV44+SUM(AX44:AZ44))/quo,0) -> 15.07405412 | BE44: =MAX(AX44-(SUM(AV44:AW44)+SUM(AY44:AZ44))/quo,0) -> 0 | BF44: =MAX(AY44-(SUM(AV44:AX44)+AZ44)/quo,0) -> 0 | BG44: =MAX(AZ44-SUM(AV44:AY44)/quo,0) -> 0
A45: ROSCOLUX | B45: #3202 FULL BLUE CTB | C45: #3202 FULL BLUE CTB | D45: 39.89 | E45: 48.75 | F45: 55.88 | G45: 65.54 | H45: 66.38 | I45: 59.37 | J45: 49.43 | K45: 41.41 | L45: 32.57 | M45: 31.51 | N45: 25.61 | O45: 26.79 | P45: 23 | Q45: 18.11 | R45: 15.91 | S45: 13.85 | T45: 19.43 | U45: 38.44 | V45: 61.97 | W45: 76.41 | X45: 0.36 | AA45: =D45*D$5 -> 0 | AB45: =E45*E$5 -> 0 | AC45: =F45*F$5 -> 1.1176 | AD45: =G45*G$5 -> 6.554 | AE45: =H45*H$5 -> 59.742 | AF45: =I45*I$5 -> 17.811 | AG45: =J45*J$5 -> 4.943 | AH45: =K45*K$5 -> 6.2115 | AI45: =L45*L$5 -> 13.028 | AJ45: =M45*M$5 -> 17.9607 | AK45: =N45*N$5 -> 14.8538 | AL45: =O45*O$5 -> 13.9308 | AM45: =P45*P$5 -> 11.04 | AN45: =Q45*Q$5 -> 6.7007 | AO45: =R45*R$5 -> 3.8184 | AP45: =S45*S$5 -> 2.493 | AQ45: =T45*T$5 -> 2.5259 | AR45: =U45*U$5 -> 3.0752 | AS45: =V45*V$5 -> 3.0985 | AT45: =W45*W$5 -> 2.2923 | AV45: =700/420*AVERAGE(AA45:AD45) -> 3.1965 | AW45: =700/510*AVERAGE(AE45:AH45) -> 30.43884804 | AX45: =700/570*AVERAGE(AI45:AL45) -> 18.35145175 | AY45: =700/640*AVERAGE(AM45:AP45) -> 6.576746094 | AZ45: =AVERAGE(AQ45:AT45) -> 2.747975 | BB45: =B45 -> #3202 FULL BLUE CTB | BC45: =MAX(AV45-SUM(AW45:AZ45)/quo,0) -> 0 | BD45: =MAX(AW45-(AV45+SUM(AX45:AZ45))/quo,0) -> 15.00251162 | BE45: =MAX(AX45-(SUM(AV45:AW45)+SUM(AY45:AZ45))/quo,0) -> 0 | BF45: =MAX(AY45-(SUM(AV45:AX45)+AZ45)/quo,0) -> 0 | BG45: =MAX(AZ45-SUM(AV45:AY45)/quo,0) -> 0
A46: ROSCOLUX | B46: #365 THARON DELFT BLUE | C46: =CONCATENATE(A46," ",B46) -> ROSCOLUX #365 THARON DELFT BLUE | D46: 39.89 | E46: 48.75 | F46: 55.88 | G46: 65.54 | H46: 66.38 | I46: 59.37 | J46: 49.43 | K46: 41.41 | L46: 32.57 | M46: 31.51 | N46: 25.61 | O46: 26.79 | P46: 23 | Q46: 18.11 | R46: 15.91 | S46: 13.85 | T46: 19.43 | U46: 38.44 | V46: 61.97 | W46: 76.41 | X46: 0.36 | AA46: =D46*D$5 -> 0 | AB46: =E46*E$5 -> 0 | AC46: =F46*F$5 -> 1.1176 | AD46: =G46*G$5 -> 6.554 | AE46: =H46*H$5 -> 59.742 | AF46: =I46*I$5 -> 17.811 | AG46: =J46*J$5 -> 4.943 | AH46: =K46*K$5 -> 6.2115 | AI46: =L46*L$5 -> 13.028 | AJ46: =M46*M$5 -> 17.9607 | AK46: =N46*N$5 -> 14.8538 | AL46: =O46*O$5 -> 13.9308 | AM46: =P46*P$5 -> 11.04 | AN46: =Q46*Q$5 -> 6.7007 | AO46: =R46*R$5 -> 3.8184 | AP46: =S46*S$5 -> 2.493 | AQ46: =T46*T$5 -> 2.5259 | AR46: =U46*U$5 -> 3.0752 | AS46: =V46*V$5 -> 3.0985 | AT46: =W46*W$5 -> 2.2923 | AV46: =700/420*AVERAGE(AA46:AD46) -> 3.1965 | AW46: =700/510*AVERAGE(AE46:AH46) -> 30.43884804 | AX46: =700/570*AVERAGE(AI46:AL46) -> 18.35145175 | AY46: =700/640*AVERAGE(AM46:AP46) -> 6.576746094 | AZ46: =AVERAGE(AQ46:AT46) -> 2.747975 | BB46: =B46 -> #365 THARON DELFT BLUE | BC46: =MAX(AV46-SUM(AW46:AZ46)/quo,0) -> 0 | BD46: =MAX(AW46-(AV46+SUM(AX46:AZ46))/quo,0) -> 15.00251162 | BE46: =MAX(AX46-(SUM(AV46:AW46)+SUM(AY46:AZ46))/quo,0) -> 0 | BF46: =MAX(AY46-(SUM(AV46:AX46)+AZ46)/quo,0) -> 0 | BG46: =MAX(AZ46-SUM(AV46:AY46)/quo,0) -> 0
A47: ROSCOLUX | B47: #71 SEA BLUE | C47: =CONCATENATE(A47," ",B47) -> ROSCOLUX #71 SEA BLUE | D47: 38.97 | E47: 36.38 | F47: 34.07 | G47: 37.37 | H47: 49.25 | I47: 62.88 | J47: 66.77 | K47: 60.26 | L47: 47.02 | M47: 30.7 | N47: 19.31 | O47: 9.86 | P47: 6.97 | Q47: 5.9 | R47: 5.46 | S47: 13.45 | T47: 33.31 | U47: 58.6 | V47: 76.93 | W47: 84.47 | X47: 0.3 | AA47: =D47*D$5 -> 0 | AB47: =E47*E$5 -> 0 | AC47: =F47*F$5 -> 0.6814 | AD47: =G47*G$5 -> 3.737 | AE47: =H47*H$5 -> 44.325 | AF47: =I47*I$5 -> 18.864 | AG47: =J47*J$5 -> 6.677 | AH47: =K47*K$5 -> 9.039 | AI47: =L47*L$5 -> 18.808 | AJ47: =M47*M$5 -> 17.499 | AK47: =N47*N$5 -> 11.1998 | AL47: =O47*O$5 -> 5.1272 | AM47: =P47*P$5 -> 3.3456 | AN47: =Q47*Q$5 -> 2.183 | AO47: =R47*R$5 -> 1.3104 | AP47: =S47*S$5 -> 2.421 | AQ47: =T47*T$5 -> 4.3303 | AR47: =U47*U$5 -> 4.688 | AS47: =V47*V$5 -> 3.8465 | AT47: =W47*W$5 -> 2.5341 | AV47: =700/420*AVERAGE(AA47:AD47) -> 1.841 | AW47: =700/510*AVERAGE(AE47:AH47) -> 27.0752451 | AX47: =700/570*AVERAGE(AI47:AL47) -> 16.1595614 | AY47: =700/640*AVERAGE(AM47:AP47) -> 2.53203125 | AZ47: =AVERAGE(AQ47:AT47) -> 3.849725 | BB47: =B47 -> #71 SEA BLUE | BC47: =MAX(AV47-SUM(AW47:AZ47)/quo,0) -> 0 | BD47: =MAX(AW47-(AV47+SUM(AX47:AZ47))/quo,0) -> 14.88408627 | BE47: =MAX(AX47-(SUM(AV47:AW47)+SUM(AY47:AZ47))/quo,0) -> 0 | BF47: =MAX(AY47-(SUM(AV47:AX47)+AZ47)/quo,0) -> 0 | BG47: =MAX(AZ47-SUM(AV47:AY47)/quo,0) -> 0
A48: ROSCOLUX | B48: #383 SAPPHIRE BLUE | C48: =CONCATENATE(A48," ",B48) -> ROSCOLUX #383 SAPPHIRE BLUE | D48: 5.26 | E48: 8.03 | F48: 12.24 | G48: 20.82 | H48: 37.59 | I48: 39.58 | J48: 26.37 | K48: 11.81 | L48: 3.42 | M48: 0.52 | N48: 0.11 | O48: 0.03 | P48: 0.02 | Q48: 0.01 | R48: 0.07 | S48: 2.37 | T48: 25.77 | U48: 51.62 | V48: 66.93 | W48: 77.89 | X48: 0.04 | AA48: =D48*D$5 -> 0 | AB48: =E48*E$5 -> 0 | AC48: =F48*F$5 -> 0.2448 | AD48: =G48*G$5 -> 2.082 | AE48: =H48*H$5 -> 33.831 | AF48: =I48*I$5 -> 11.874 | AG48: =J48*J$5 -> 2.637 | AH48: =K48*K$5 -> 1.7715 | AI48: =L48*L$5 -> 1.368 | AJ48: =M48*M$5 -> 0.2964 | AK48: =N48*N$5 -> 0.0638 | AL48: =O48*O$5 -> 0.0156 | AM48: =P48*P$5 -> 0.0096 | AN48: =Q48*Q$5 -> 0.0037 | AO48: =R48*R$5 -> 0.0168 | AP48: =S48*S$5 -> 0.4266 | AQ48: =T48*T$5 -> 3.3501 | AR48: =U48*U$5 -> 4.1296 | AS48: =V48*V$5 -> 3.3465 | AT48: =W48*W$5 -> 2.3367 | AV48: =700/420*AVERAGE(AA48:AD48) -> 0.9695 | AW48: =700/510*AVERAGE(AE48:AH48) -> 17.19580882 | AX48: =700/570*AVERAGE(AI48:AL48) -> 0.535377193 | AY48: =700/640*AVERAGE(AM48:AP48) -> 0.1248789063 | AZ48: =AVERAGE(AQ48:AT48) -> 3.290725 | BB48: =B48 -> #383 SAPPHIRE BLUE | BC48: =MAX(AV48-SUM(AW48:AZ48)/quo,0) -> 0 | BD48: =MAX(AW48-(AV48+SUM(AX48:AZ48))/quo,0) -> 14.73556827 | BE48: =MAX(AX48-(SUM(AV48:AW48)+SUM(AY48:AZ48))/quo,0) -> 0 | BF48: =MAX(AY48-(SUM(AV48:AX48)+AZ48)/quo,0) -> 0 | BG48: =MAX(AZ48-SUM(AV48:AY48)/quo,0) -> 0
A49: ROSCOLUX | B49: #362 TIPTON BLUE | C49: =CONCATENATE(A49," ",B49) -> ROSCOLUX #362 TIPTON BLUE | D49: 61.04 | E49: 69.3 | F49: 74.23 | G49: 76.07 | H49: 74.62 | I49: 70.98 | J49: 65.93 | K49: 58.64 | L49: 49.82 | M49: 41.06 | N49: 34.55 | O49: 27.65 | P49: 26.53 | Q49: 26.27 | R49: 24.59 | S49: 36.55 | T49: 61.99 | U49: 77.59 | V49: 82.41 | W49: 83.95 | X49: 0.32 | AA49: =D49*D$5 -> 0 | AB49: =E49*E$5 -> 0 | AC49: =F49*F$5 -> 1.4846 | AD49: =G49*G$5 -> 7.607 | AE49: =H49*H$5 -> 67.158 | AF49: =I49*I$5 -> 21.294 | AG49: =J49*J$5 -> 6.593 | AH49: =K49*K$5 -> 8.796 | AI49: =L49*L$5 -> 19.928 | AJ49: =M49*M$5 -> 23.4042 | AK49: =N49*N$5 -> 20.039 | AL49: =O49*O$5 -> 14.378 | AM49: =P49*P$5 -> 12.7344 | AN49: =Q49*Q$5 -> 9.7199 | AO49: =R49*R$5 -> 5.9016 | AP49: =S49*S$5 -> 6.579 | AQ49: =T49*T$5 -> 8.0587 | AR49: =U49*U$5 -> 6.2072 | AS49: =V49*V$5 -> 4.1205 | AT49: =W49*W$5 -> 2.5185 | AV49: =700/420*AVERAGE(AA49:AD49) -> 3.788166667 | AW49: =700/510*AVERAGE(AE49:AH49) -> 35.63171569 | AX49: =700/570*AVERAGE(AI49:AL49) -> 23.87036842 | AY49: =700/640*AVERAGE(AM49:AP49) -> 9.552511719 | AZ49: =AVERAGE(AQ49:AT49) -> 5.226225 | BB49: =B49 -> #362 TIPTON BLUE | BC49: =MAX(AV49-SUM(AW49:AZ49)/quo,0) -> 0 | BD49: =MAX(AW49-(AV49+SUM(AX49:AZ49))/quo,0) -> 14.41307978 | BE49: =MAX(AX49-(SUM(AV49:AW49)+SUM(AY49:AZ49))/quo,0) -> 0 | BF49: =MAX(AY49-(SUM(AV49:AX49)+AZ49)/quo,0) -> 0 | BG49: =MAX(AZ49-SUM(AV49:AY49)/quo,0) -> 0 | BJ49: 6) best pentuplets
A50: ROSCOLUX | B50: #358 ROSE INDIGO | C50: =CONCATENATE(A50," ",B50) -> ROSCOLUX #358 ROSE INDIGO | D50: 21.14 | E50: 30.99 | F50: 39.75 | G50: 47.27 | H50: 48.03 | I50: 34.94 | J50: 18.23 | K50: 6.44 | L50: 2.16 | M50: 0.55 | N50: 0.55 | O50: 0.28 | P50: 2.06 | Q50: 5.75 | R50: 7.37 | S50: 30.94 | T50: 64.63 | U50: 77.07 | V50: 80.38 | W50: 81.53 | X50: 0.05 | AA50: =D50*D$5 -> 0 | AB50: =E50*E$5 -> 0 | AC50: =F50*F$5 -> 0.795 | AD50: =G50*G$5 -> 4.727 | AE50: =H50*H$5 -> 43.227 | AF50: =I50*I$5 -> 10.482 | AG50: =J50*J$5 -> 1.823 | AH50: =K50*K$5 -> 0.966 | AI50: =L50*L$5 -> 0.864 | AJ50: =M50*M$5 -> 0.3135 | AK50: =N50*N$5 -> 0.319 | AL50: =O50*O$5 -> 0.1456 | AM50: =P50*P$5 -> 0.9888 | AN50: =Q50*Q$5 -> 2.1275 | AO50: =R50*R$5 -> 1.7688 | AP50: =S50*S$5 -> 5.5692 | AQ50: =T50*T$5 -> 8.4019 | AR50: =U50*U$5 -> 6.1656 | AS50: =V50*V$5 -> 4.019 | AT50: =W50*W$5 -> 2.4459 | AV50: =700/420*AVERAGE(AA50:AD50) -> 2.300833333 | AW50: =700/510*AVERAGE(AE50:AH50) -> 19.38656863 | AX50: =700/570*AVERAGE(AI50:AL50) -> 0.5041535088 | AY50: =700/640*AVERAGE(AM50:AP50) -> 2.858597656 | AZ50: =AVERAGE(AQ50:AT50) -> 5.2581 | BB50: =B50 -> #358 ROSE INDIGO | BC50: =MAX(AV50-SUM(AW50:AZ50)/quo,0) -> 0 | BD50: =MAX(AW50-(AV50+SUM(AX50:AZ50))/quo,0) -> 13.92572638 | BE50: =MAX(AX50-(SUM(AV50:AW50)+SUM(AY50:AZ50))/quo,0) -> 0 | BF50: =MAX(AY50-(SUM(AV50:AX50)+AZ50)/quo,0) -> 0 | BG50: =MAX(AZ50-SUM(AV50:AY50)/quo,0) -> 0
A51: ROSCOLUX | B51: #375 CERULEAN BLUE | C51: =CONCATENATE(A51," ",B51) -> ROSCOLUX #375 CERULEAN BLUE | D51: 47.86 | E51: 47.86 | F51: 47.86 | G51: 47.43 | H51: 44.98 | I51: 52.5 | J51: 65.89 | K51: 60.7 | L51: 50.47 | M51: 38.24 | N51: 24.17 | O51: 12.26 | P51: 4.88 | Q51: 1.41 | R51: 0.45 | S51: 0.23 | T51: 0.18 | U51: 0.41 | V51: 0.41 | W51: 0.41 | X51: 0.32 | AA51: =D51*D$5 -> 0 | AB51: =E51*E$5 -> 0 | AC51: =F51*F$5 -> 0.9572 | AD51: =G51*G$5 -> 4.743 | AE51: =H51*H$5 -> 40.482 | AF51: =I51*I$5 -> 15.75 | AG51: =J51*J$5 -> 6.589 | AH51: =K51*K$5 -> 9.105 | AI51: =L51*L$5 -> 20.188 | AJ51: =M51*M$5 -> 21.7968 | AK51: =N51*N$5 -> 14.0186 | AL51: =O51*O$5 -> 6.3752 | AM51: =P51*P$5 -> 2.3424 | AN51: =Q51*Q$5 -> 0.5217 | AO51: =R51*R$5 -> 0.108 | AP51: =S51*S$5 -> 0.0414 | AQ51: =T51*T$5 -> 0.0234 | AR51: =U51*U$5 -> 0.0328 | AS51: =V51*V$5 -> 0.0205 | AT51: =W51*W$5 -> 0.0123 | AV51: =700/420*AVERAGE(AA51:AD51) -> 2.375083333 | AW51: =700/510*AVERAGE(AE51:AH51) -> 24.6804902 | AX51: =700/570*AVERAGE(AI51:AL51) -> 19.15132456 | AY51: =700/640*AVERAGE(AM51:AP51) -> 0.8240039062 | AZ51: =AVERAGE(AQ51:AT51) -> 0.02225 | BB51: =B51 -> #375 CERULEAN BLUE | BC51: =MAX(AV51-SUM(AW51:AZ51)/quo,0) -> 0 | BD51: =MAX(AW51-(AV51+SUM(AX51:AZ51))/quo,0) -> 13.4941593 | BE51: =MAX(AX51-(SUM(AV51:AW51)+SUM(AY51:AZ51))/quo,0) -> 5.200410844 | BF51: =MAX(AY51-(SUM(AV51:AX51)+AZ51)/quo,0) -> 0 | BG51: =MAX(AZ51-SUM(AV51:AY51)/quo,0) -> 0
A52: ROSCOLUX | B52: #70 NILE BLUE | C52: =CONCATENATE(A52," ",B52) -> ROSCOLUX #70 NILE BLUE | D52: 52.9 | E52: 50.69 | F52: 48.51 | G52: 51.49 | H52: 61.35 | I52: 71.7 | J52: 74.53 | K52: 69.99 | L52: 59.83 | M52: 45.63 | N52: 33.98 | O52: 22.18 | P52: 17.88 | Q52: 16.08 | R52: 15.28 | S52: 26.7 | T52: 47.62 | U52: 68.6 | V52: 81.89 | W52: 86.98 | X52: 0.45 | AA52: =D52*D$5 -> 0 | AB52: =E52*E$5 -> 0 | AC52: =F52*F$5 -> 0.9702 | AD52: =G52*G$5 -> 5.149 | AE52: =H52*H$5 -> 55.215 | AF52: =I52*I$5 -> 21.51 | AG52: =J52*J$5 -> 7.453 | AH52: =K52*K$5 -> 10.4985 | AI52: =L52*L$5 -> 23.932 | AJ52: =M52*M$5 -> 26.0091 | AK52: =N52*N$5 -> 19.7084 | AL52: =O52*O$5 -> 11.5336 | AM52: =P52*P$5 -> 8.5824 | AN52: =Q52*Q$5 -> 5.9496 | AO52: =R52*R$5 -> 3.6672 | AP52: =S52*S$5 -> 4.806 | AQ52: =T52*T$5 -> 6.1906 | AR52: =U52*U$5 -> 5.488 | AS52: =V52*V$5 -> 4.0945 | AT52: =W52*W$5 -> 2.6094 | AV52: =700/420*AVERAGE(AA52:AD52) -> 2.549666667 | AW52: =700/510*AVERAGE(AE52:AH52) -> 32.48703431 | AX52: =700/570*AVERAGE(AI52:AL52) -> 24.92463596 | AY52: =700/640*AVERAGE(AM52:AP52) -> 6.290484375 | AZ52: =AVERAGE(AQ52:AT52) -> 4.595625 | BB52: =B52 -> #70 NILE BLUE | BC52: =MAX(AV52-SUM(AW52:AZ52)/quo,0) -> 0 | BD52: =MAX(AW52-(AV52+SUM(AX52:AZ52))/quo,0) -> 13.30682831 | BE52: =MAX(AX52-(SUM(AV52:AW52)+SUM(AY52:AZ52))/quo,0) -> 1.963230787 | BF52: =MAX(AY52-(SUM(AV52:AX52)+AZ52)/quo,0) -> 0 | BG52: =MAX(AZ52-SUM(AV52:AY52)/quo,0) -> 0
A53: ROSCOLUX | B53: #356 MIDDLE LAVENDER | C53: =CONCATENATE(A53," ",B53) -> ROSCOLUX #356 MIDDLE LAVENDER | D53: 36.02 | E53: 54.44 | F53: 66.94 | G53: 68.5 | H53: 66.6 | I53: 59.96 | J53: 50.88 | K53: 41.4 | L53: 31.4 | M53: 23.19 | N53: 19.42 | O53: 17.44 | P53: 22.26 | Q53: 29.21 | R53: 36.85 | S53: 60.24 | T53: 78.53 | U53: 84.4 | V53: 86.2 | W53: 87.16 | X53: 0.27 | AA53: =D53*D$5 -> 0 | AB53: =E53*E$5 -> 0 | AC53: =F53*F$5 -> 1.3388 | AD53: =G53*G$5 -> 6.85 | AE53: =H53*H$5 -> 59.94 | AF53: =I53*I$5 -> 17.988 | AG53: =J53*J$5 -> 5.088 | AH53: =K53*K$5 -> 6.21 | AI53: =L53*L$5 -> 12.56 | AJ53: =M53*M$5 -> 13.2183 | AK53: =N53*N$5 -> 11.2636 | AL53: =O53*O$5 -> 9.0688 | AM53: =P53*P$5 -> 10.6848 | AN53: =Q53*Q$5 -> 10.8077 | AO53: =R53*R$5 -> 8.844 | AP53: =S53*S$5 -> 10.8432 | AQ53: =T53*T$5 -> 10.2089 | AR53: =U53*U$5 -> 6.752 | AS53: =V53*V$5 -> 4.31 | AT53: =W53*W$5 -> 2.6148 | AV53: =700/420*AVERAGE(AA53:AD53) -> 3.412 | AW53: =700/510*AVERAGE(AE53:AH53) -> 30.61676471 | AX53: =700/570*AVERAGE(AI53:AL53) -> 14.15679386 | AY53: =700/640*AVERAGE(AM53:AP53) -> 11.26007422 | AZ53: =AVERAGE(AQ53:AT53) -> 5.971425 | BB53: =B53 -> #356 MIDDLE LAVENDER | BC53: =MAX(AV53-SUM(AW53:AZ53)/quo,0) -> 0 | BD53: =MAX(AW53-(AV53+SUM(AX53:AZ53))/quo,0) -> 13.21661817 | BE53: =MAX(AX53-(SUM(AV53:AW53)+SUM(AY53:AZ53))/quo,0) -> 0 | BF53: =MAX(AY53-(SUM(AV53:AX53)+AZ53)/quo,0) -> 0 | BG53: =MAX(AZ53-SUM(AV53:AY53)/quo,0) -> 0
A54: ROSCOLUX | B54: #55 LILAC | C54: =CONCATENATE(A54," ",B54) -> ROSCOLUX #55 LILAC | D54: 45.53 | E54: 57.32 | F54: 65.22 | G54: 68.6 | H54: 70.45 | I54: 67.6 | J54: 61.14 | K54: 53.19 | L54: 43.54 | M54: 33.67 | N54: 28.5 | O54: 23.18 | P54: 26.17 | Q54: 29.54 | R54: 33.14 | S54: 57.44 | T54: 77.81 | U54: 83.88 | V54: 85.35 | W54: 86.18 | X54: 0.37 | AA54: =D54*D$5 -> 0 | AB54: =E54*E$5 -> 0 | AC54: =F54*F$5 -> 1.3044 | AD54: =G54*G$5 -> 6.86 | AE54: =H54*H$5 -> 63.405 | AF54: =I54*I$5 -> 20.28 | AG54: =J54*J$5 -> 6.114 | AH54: =K54*K$5 -> 7.9785 | AI54: =L54*L$5 -> 17.416 | AJ54: =M54*M$5 -> 19.1919 | AK54: =N54*N$5 -> 16.53 | AL54: =O54*O$5 -> 12.0536 | AM54: =P54*P$5 -> 12.5616 | AN54: =Q54*Q$5 -> 10.9298 | AO54: =R54*R$5 -> 7.9536 | AP54: =S54*S$5 -> 10.3392 | AQ54: =T54*T$5 -> 10.1153 | AR54: =U54*U$5 -> 6.7104 | AS54: =V54*V$5 -> 4.2675 | AT54: =W54*W$5 -> 2.5854 | AV54: =700/420*AVERAGE(AA54:AD54) -> 3.401833333 | AW54: =700/510*AVERAGE(AE54:AH54) -> 33.55110294 | AX54: =700/570*AVERAGE(AI54:AL54) -> 20.01493421 | AY54: =700/640*AVERAGE(AM54:AP54) -> 11.42536719 | AZ54: =AVERAGE(AQ54:AT54) -> 5.91965 | BB54: =B54 -> #55 LILAC | BC54: =MAX(AV54-SUM(AW54:AZ54)/quo,0) -> 0 | BD54: =MAX(AW54-(AV54+SUM(AX54:AZ54))/quo,0) -> 13.17021058 | BE54: =MAX(AX54-(SUM(AV54:AW54)+SUM(AY54:AZ54))/quo,0) -> 0 | BF54: =MAX(AY54-(SUM(AV54:AX54)+AZ54)/quo,0) -> 0 | BG54: =MAX(AZ54-SUM(AV54:AY54)/quo,0) -> 0
A55: ROSCOLUX | B55: #370 ITALIAN BLUE | C55: =CONCATENATE(A55," ",B55) -> ROSCOLUX #370 ITALIAN BLUE | D55: 3.15 | E55: 7.04 | F55: 21.01 | G55: 31.22 | H55: 43.05 | I55: 54.81 | J55: 62.91 | K55: 66.71 | L55: 61.16 | M55: 43.43 | N55: 21.19 | O55: 8.65 | P55: 3.8 | Q55: 1.73 | R55: 1.47 | S55: 1.79 | T55: 1.33 | U55: 1.43 | V55: 2.2 | W55: 10.92 | X55: 0.31 | AA55: =D55*D$5 -> 0 | AB55: =E55*E$5 -> 0 | AC55: =F55*F$5 -> 0.4202 | AD55: =G55*G$5 -> 3.122 | AE55: =H55*H$5 -> 38.745 | AF55: =I55*I$5 -> 16.443 | AG55: =J55*J$5 -> 6.291 | AH55: =K55*K$5 -> 10.0065 | AI55: =L55*L$5 -> 24.464 | AJ55: =M55*M$5 -> 24.7551 | AK55: =N55*N$5 -> 12.2902 | AL55: =O55*O$5 -> 4.498 | AM55: =P55*P$5 -> 1.824 | AN55: =Q55*Q$5 -> 0.6401 | AO55: =R55*R$5 -> 0.3528 | AP55: =S55*S$5 -> 0.3222 | AQ55: =T55*T$5 -> 0.1729 | AR55: =U55*U$5 -> 0.1144 | AS55: =V55*V$5 -> 0.11 | AT55: =W55*W$5 -> 0.3276 | AV55: =700/420*AVERAGE(AA55:AD55) -> 1.475916667 | AW55: =700/510*AVERAGE(AE55:AH55) -> 24.52933824 | AX55: =700/570*AVERAGE(AI55:AL55) -> 20.26539912 | AY55: =700/640*AVERAGE(AM55:AP55) -> 0.8583476562 | AZ55: =AVERAGE(AQ55:AT55) -> 0.181225 | BB55: =B55 -> #370 ITALIAN BLUE | BC55: =MAX(AV55-SUM(AW55:AZ55)/quo,0) -> 0 | BD55: =MAX(AW55-(AV55+SUM(AX55:AZ55))/quo,0) -> 13.13889401 | BE55: =MAX(AX55-(SUM(AV55:AW55)+SUM(AY55:AZ55))/quo,0) -> 6.742985344 | BF55: =MAX(AY55-(SUM(AV55:AX55)+AZ55)/quo,0) -> 0 | BG55: =MAX(AZ55-SUM(AV55:AY55)/quo,0) -> 0
A56: ROSCOLUX | B56: #62 BOOSTER BLUE | C56: =CONCATENATE(A56," ",B56) -> ROSCOLUX #62 BOOSTER BLUE | D56: 48.44 | E56: 56.06 | F56: 62.89 | G56: 71.47 | H56: 72.92 | I56: 68.81 | J56: 62.6 | K56: 57.03 | L56: 49.9 | M56: 47.55 | N56: 40.42 | O56: 37.9 | P56: 31.79 | Q56: 26.32 | R56: 23.83 | S56: 21.72 | T56: 28.25 | U56: 47.59 | V56: 68.44 | W56: 80.01 | X56: 0.54 | AA56: =D56*D$5 -> 0 | AB56: =E56*E$5 -> 0 | AC56: =F56*F$5 -> 1.2578 | AD56: =G56*G$5 -> 7.147 | AE56: =H56*H$5 -> 65.628 | AF56: =I56*I$5 -> 20.643 | AG56: =J56*J$5 -> 6.26 | AH56: =K56*K$5 -> 8.5545 | AI56: =L56*L$5 -> 19.96 | AJ56: =M56*M$5 -> 27.1035 | AK56: =N56*N$5 -> 23.4436 | AL56: =O56*O$5 -> 19.708 | AM56: =P56*P$5 -> 15.2592 | AN56: =Q56*Q$5 -> 9.7384 | AO56: =R56*R$5 -> 5.7192 | AP56: =S56*S$5 -> 3.9096 | AQ56: =T56*T$5 -> 3.6725 | AR56: =U56*U$5 -> 3.8072 | AS56: =V56*V$5 -> 3.422 | AT56: =W56*W$5 -> 2.4003 | AV56: =700/420*AVERAGE(AA56:AD56) -> 3.502 | AW56: =700/510*AVERAGE(AE56:AH56) -> 34.68620098 | AX56: =700/570*AVERAGE(AI56:AL56) -> 27.69761842 | AY56: =700/640*AVERAGE(AM56:AP56) -> 9.46815625 | AZ56: =AVERAGE(AQ56:AT56) -> 3.3255 | BB56: =B56 -> #62 BOOSTER BLUE | BC56: =MAX(AV56-SUM(AW56:AZ56)/quo,0) -> 0 | BD56: =MAX(AW56-(AV56+SUM(AX56:AZ56))/quo,0) -> 12.68956364 | BE56: =MAX(AX56-(SUM(AV56:AW56)+SUM(AY56:AZ56))/quo,0) -> 2.206689806 | BF56: =MAX(AY56-(SUM(AV56:AX56)+AZ56)/quo,0) -> 0 | BG56: =MAX(AZ56-SUM(AV56:AY56)/quo,0) -> 0
A57: ROSCOLUX | B57: #4230 CALCOLOR 30 BLUE | C57: #4230 CALCOLOR 30 BLUE | D57: 57.02 | E57: 65.59 | F57: 71.51 | G57: 73.2 | H57: 70.74 | I57: 65.17 | J57: 57.45 | K57: 49.76 | L57: 40.24 | M57: 36.66 | N57: 30.57 | O57: 29.9 | P57: 29.92 | Q57: 29.18 | R57: 27.42 | S57: 39.41 | T57: 64.31 | U57: 78.98 | V57: 83.39 | W57: 84.69 | X57: 0.42 | AA57: =D57*D$5 -> 0 | AB57: =E57*E$5 -> 0 | AC57: =F57*F$5 -> 1.4302 | AD57: =G57*G$5 -> 7.32 | AE57: =H57*H$5 -> 63.666 | AF57: =I57*I$5 -> 19.551 | AG57: =J57*J$5 -> 5.745 | AH57: =K57*K$5 -> 7.464 | AI57: =L57*L$5 -> 16.096 | AJ57: =M57*M$5 -> 20.8962 | AK57: =N57*N$5 -> 17.7306 | AL57: =O57*O$5 -> 15.548 | AM57: =P57*P$5 -> 14.3616 | AN57: =Q57*Q$5 -> 10.7966 | AO57: =R57*R$5 -> 6.5808 | AP57: =S57*S$5 -> 7.0938 | AQ57: =T57*T$5 -> 8.3603 | AR57: =U57*U$5 -> 6.3184 | AS57: =V57*V$5 -> 4.1695 | AT57: =W57*W$5 -> 2.5407 | AV57: =700/420*AVERAGE(AA57:AD57) -> 3.645916667 | AW57: =700/510*AVERAGE(AE57:AH57) -> 33.08735294 | AX57: =700/570*AVERAGE(AI57:AL57) -> 21.57436842 | AY57: =700/640*AVERAGE(AM57:AP57) -> 10.61834375 | AZ57: =AVERAGE(AQ57:AT57) -> 5.347225 | BB57: =B57 -> #4230 CALCOLOR 30 BLUE | BC57: =MAX(AV57-SUM(AW57:AZ57)/quo,0) -> 0 | BD57: =MAX(AW57-(AV57+SUM(AX57:AZ57))/quo,0) -> 12.49442602 | BE57: =MAX(AX57-(SUM(AV57:AW57)+SUM(AY57:AZ57))/quo,0) -> 0 | BF57: =MAX(AY57-(SUM(AV57:AX57)+AZ57)/quo,0) -> 0 | BG57: =MAX(AZ57-SUM(AV57:AY57)/quo,0) -> 0 | BJ57: 3) quo 2 colors
A58: ROSCOLUX | B58: #4990 CALCOLOR 90 LAVENDER | C58: =B58 -> #4990 CALCOLOR 90 LAVENDER | D58: 37.08 | E58: 48.26 | F58: 57.45 | G58: 58.49 | H58: 49.37 | I58: 34.27 | J58: 19.84 | K58: 11.24 | L58: 5.39 | M58: 5.38 | N58: 3.97 | O58: 7.62 | P58: 11.57 | Q58: 11.77 | R58: 10.87 | S58: 20.66 | T58: 47.61 | U58: 69.3 | V58: 78.11 | W58: 81.05 | X58: 0.18 | AA58: =D58*D$5 -> 0 | AB58: =E58*E$5 -> 0 | AC58: =F58*F$5 -> 1.149 | AD58: =G58*G$5 -> 5.849 | AE58: =H58*H$5 -> 44.433 | AF58: =I58*I$5 -> 10.281 | AG58: =J58*J$5 -> 1.984 | AH58: =K58*K$5 -> 1.686 | AI58: =L58*L$5 -> 2.156 | AJ58: =M58*M$5 -> 3.0666 | AK58: =N58*N$5 -> 2.3026 | AL58: =O58*O$5 -> 3.9624 | AM58: =P58*P$5 -> 5.5536 | AN58: =Q58*Q$5 -> 4.3549 | AO58: =R58*R$5 -> 2.6088 | AP58: =S58*S$5 -> 3.7188 | AQ58: =T58*T$5 -> 6.1893 | AR58: =U58*U$5 -> 5.544 | AS58: =V58*V$5 -> 3.9055 | AT58: =W58*W$5 -> 2.4315 | AV58: =700/420*AVERAGE(AA58:AD58) -> 2.915833333 | AW58: =700/510*AVERAGE(AE58:AH58) -> 20.03372549 | AX58: =700/570*AVERAGE(AI58:AL58) -> 3.526894737 | AY58: =700/640*AVERAGE(AM58:AP58) -> 4.439558594 | AZ58: =AVERAGE(AQ58:AT58) -> 4.517575 | BB58: =B58 -> #4990 CALCOLOR 90 LAVENDER | BC58: =MAX(AV58-SUM(AW58:AZ58)/quo,0) -> 0 | BD58: =MAX(AW58-(AV58+SUM(AX58:AZ58))/quo,0) -> 12.33379466 | BE58: =MAX(AX58-(SUM(AV58:AW58)+SUM(AY58:AZ58))/quo,0) -> 0 | BF58: =MAX(AY58-(SUM(AV58:AX58)+AZ58)/quo,0) -> 0 | BG58: =MAX(AZ58-SUM(AV58:AY58)/quo,0) -> 0
A59: ROSCOLUX | B59: #3203 3/4 BLUE CTB | C59: #3203 3/4 BLUE CTB | D59: 45.74 | E59: 53.75 | F59: 60.04 | G59: 68.02 | H59: 68.97 | I59: 63.9 | J59: 56.19 | K59: 49.57 | L59: 41.65 | M59: 40.59 | N59: 34.75 | O59: 35.77 | P59: 31.53 | Q59: 26.3 | R59: 23.89 | S59: 21.62 | T59: 27.88 | U59: 47.1 | V59: 68.22 | W59: 79.88 | X59: 0.41 | AA59: =D59*D$5 -> 0 | AB59: =E59*E$5 -> 0 | AC59: =F59*F$5 -> 1.2008 | AD59: =G59*G$5 -> 6.802 | AE59: =H59*H$5 -> 62.073 | AF59: =I59*I$5 -> 19.17 | AG59: =J59*J$5 -> 5.619 | AH59: =K59*K$5 -> 7.4355 | AI59: =L59*L$5 -> 16.66 | AJ59: =M59*M$5 -> 23.1363 | AK59: =N59*N$5 -> 20.155 | AL59: =O59*O$5 -> 18.6004 | AM59: =P59*P$5 -> 15.1344 | AN59: =Q59*Q$5 -> 9.731 | AO59: =R59*R$5 -> 5.7336 | AP59: =S59*S$5 -> 3.8916 | AQ59: =T59*T$5 -> 3.6244 | AR59: =U59*U$5 -> 3.768 | AS59: =V59*V$5 -> 3.411 | AT59: =W59*W$5 -> 2.3964 | AV59: =700/420*AVERAGE(AA59:AD59) -> 3.3345 | AW59: =700/510*AVERAGE(AE59:AH59) -> 32.35698529 | AX59: =700/570*AVERAGE(AI59:AL59) -> 24.11675 | AY59: =700/640*AVERAGE(AM59:AP59) -> 9.431023438 | AZ59: =AVERAGE(AQ59:AT59) -> 3.29995 | BB59: =B59 -> #3203 3/4 BLUE CTB | BC59: =MAX(AV59-SUM(AW59:AZ59)/quo,0) -> 0 | BD59: =MAX(AW59-(AV59+SUM(AX59:AZ59))/quo,0) -> 12.26587358 | BE59: =MAX(AX59-(SUM(AV59:AW59)+SUM(AY59:AZ59))/quo,0) -> 0 | BF59: =MAX(AY59-(SUM(AV59:AX59)+AZ59)/quo,0) -> 0 | BG59: =MAX(AZ59-SUM(AV59:AY59)/quo,0) -> 0
A60: ROSCOLUX | B60: #4960 CALCOLOR 60 LAVENDER | C60: =B60 -> #4960 CALCOLOR 60 LAVENDER | D60: 50.39 | E60: 60.5 | F60: 67.35 | G60: 67.27 | H60: 58.82 | I60: 44.91 | J60: 30.33 | K60: 20.51 | L60: 12.28 | M60: 12.64 | N60: 10.4 | O60: 16.83 | P60: 23.54 | Q60: 24.09 | R60: 21.26 | S60: 37.6 | T60: 68.08 | U60: 80.01 | V60: 82.62 | W60: 83.35 | X60: 0.29 | AA60: =D60*D$5 -> 0 | AB60: =E60*E$5 -> 0 | AC60: =F60*F$5 -> 1.347 | AD60: =G60*G$5 -> 6.727 | AE60: =H60*H$5 -> 52.938 | AF60: =I60*I$5 -> 13.473 | AG60: =J60*J$5 -> 3.033 | AH60: =K60*K$5 -> 3.0765 | AI60: =L60*L$5 -> 4.912 | AJ60: =M60*M$5 -> 7.2048 | AK60: =N60*N$5 -> 6.032 | AL60: =O60*O$5 -> 8.7516 | AM60: =P60*P$5 -> 11.2992 | AN60: =Q60*Q$5 -> 8.9133 | AO60: =R60*R$5 -> 5.1024 | AP60: =S60*S$5 -> 6.768 | AQ60: =T60*T$5 -> 8.8504 | AR60: =U60*U$5 -> 6.4008 | AS60: =V60*V$5 -> 4.131 | AT60: =W60*W$5 -> 2.5005 | AV60: =700/420*AVERAGE(AA60:AD60) -> 3.364166667 | AW60: =700/510*AVERAGE(AE60:AH60) -> 24.88448529 | AX60: =700/570*AVERAGE(AI60:AL60) -> 8.258894737 | AY60: =700/640*AVERAGE(AM60:AP60) -> 8.772667969 | AZ60: =AVERAGE(AQ60:AT60) -> 5.470675 | BB60: =B60 -> #4960 CALCOLOR 60 LAVENDER | BC60: =MAX(AV60-SUM(AW60:AZ60)/quo,0) -> 0 | BD60: =MAX(AW60-(AV60+SUM(AX60:AZ60))/quo,0) -> 11.95128311 | BE60: =MAX(AX60-(SUM(AV60:AW60)+SUM(AY60:AZ60))/quo,0) -> 0 | BF60: =MAX(AY60-(SUM(AV60:AX60)+AZ60)/quo,0) -> 0 | BG60: =MAX(AZ60-SUM(AV60:AY60)/quo,0) -> 0 | BJ60: 5) best quadruplets
A61: ROSCOLUX | B61: #77 GREEN BLUE | C61: =CONCATENATE(A61," ",B61) -> ROSCOLUX #77 GREEN BLUE | D61: 36.48 | E61: 46.55 | F61: 49.15 | G61: 39.9 | H61: 31.48 | I61: 33.46 | J61: 42.2 | K61: 31.61 | L61: 16.52 | M61: 5.68 | N61: 1.68 | O61: 0.33 | P61: 0.14 | Q61: 0.14 | R61: 0.09 | S61: 2 | T61: 29.03 | U61: 64.7 | V61: 77.58 | W61: 81.45 | X61: 0.09 | AA61: =D61*D$5 -> 0 | AB61: =E61*E$5 -> 0 | AC61: =F61*F$5 -> 0.983 | AD61: =G61*G$5 -> 3.99 | AE61: =H61*H$5 -> 28.332 | AF61: =I61*I$5 -> 10.038 | AG61: =J61*J$5 -> 4.22 | AH61: =K61*K$5 -> 4.7415 | AI61: =L61*L$5 -> 6.608 | AJ61: =M61*M$5 -> 3.2376 | AK61: =N61*N$5 -> 0.9744 | AL61: =O61*O$5 -> 0.1716 | AM61: =P61*P$5 -> 0.0672 | AN61: =Q61*Q$5 -> 0.0518 | AO61: =R61*R$5 -> 0.0216 | AP61: =S61*S$5 -> 0.36 | AQ61: =T61*T$5 -> 3.7739 | AR61: =U61*U$5 -> 5.176 | AS61: =V61*V$5 -> 3.879 | AT61: =W61*W$5 -> 2.4435 | AV61: =700/420*AVERAGE(AA61:AD61) -> 2.072083333 | AW61: =700/510*AVERAGE(AE61:AH61) -> 16.24120098 | AX61: =700/570*AVERAGE(AI61:AL61) -> 3.374614035 | AY61: =700/640*AVERAGE(AM61:AP61) -> 0.1368828125 | AZ61: =AVERAGE(AQ61:AT61) -> 3.8181 | BB61: =B61 -> #77 GREEN BLUE | BC61: =MAX(AV61-SUM(AW61:AZ61)/quo,0) -> 0 | BD61: =MAX(AW61-(AV61+SUM(AX61:AZ61))/quo,0) -> 11.54036089 | BE61: =MAX(AX61-(SUM(AV61:AW61)+SUM(AY61:AZ61))/quo,0) -> 0 | BF61: =MAX(AY61-(SUM(AV61:AX61)+AZ61)/quo,0) -> 0 | BG61: =MAX(AZ61-SUM(AV61:AY61)/quo,0) -> 0
A62: ROSCOLUX | B62: #363 AQUAMARINE | C62: =CONCATENATE(A62," ",B62) -> ROSCOLUX #363 AQUAMARINE | D62: 8.49 | E62: 34.9 | F62: 66.65 | G62: 76.49 | H62: 81.69 | I62: 84.57 | J62: 85.17 | K62: 83.62 | L62: 79.57 | M62: 70.63 | N62: 56.17 | O62: 43.78 | P62: 37.67 | Q62: 36.82 | R62: 39.48 | S62: 42.51 | T62: 37.46 | U62: 52.41 | V62: 58.86 | W62: 65.98 | X62: 0.52 | AA62: =D62*D$5 -> 0 | AB62: =E62*E$5 -> 0 | AC62: =F62*F$5 -> 1.333 | AD62: =G62*G$5 -> 7.649 | AE62: =H62*H$5 -> 73.521 | AF62: =I62*I$5 -> 25.371 | AG62: =J62*J$5 -> 8.517 | AH62: =K62*K$5 -> 12.543 | AI62: =L62*L$5 -> 31.828 | AJ62: =M62*M$5 -> 40.2591 | AK62: =N62*N$5 -> 32.5786 | AL62: =O62*O$5 -> 22.7656 | AM62: =P62*P$5 -> 18.0816 | AN62: =Q62*Q$5 -> 13.6234 | AO62: =R62*R$5 -> 9.4752 | AP62: =S62*S$5 -> 7.6518 | AQ62: =T62*T$5 -> 4.8698 | AR62: =U62*U$5 -> 4.1928 | AS62: =V62*V$5 -> 2.943 | AT62: =W62*W$5 -> 1.9794 | AV62: =700/420*AVERAGE(AA62:AD62) -> 3.7425 | AW62: =700/510*AVERAGE(AE62:AH62) -> 41.16 | AX62: =700/570*AVERAGE(AI62:AL62) -> 39.12364474 | AY62: =700/640*AVERAGE(AM62:AP62) -> 13.3525 | AZ62: =AVERAGE(AQ62:AT62) -> 3.49625 | BB62: =B62 -> #363 AQUAMARINE | BC62: =MAX(AV62-SUM(AW62:AZ62)/quo,0) -> 0 | BD62: =MAX(AW62-(AV62+SUM(AX62:AZ62))/quo,0) -> 11.30255263 | BE62: =MAX(AX62-(SUM(AV62:AW62)+SUM(AY62:AZ62))/quo,0) -> 8.248019737 | BF62: =MAX(AY62-(SUM(AV62:AX62)+AZ62)/quo,0) -> 0 | BG62: =MAX(AZ62-SUM(AV62:AY62)/quo,0) -> 0
A63: ROSCOLUX | B63: #374 SEA GREEN | C63: =CONCATENATE(A63," ",B63) -> ROSCOLUX #374 SEA GREEN | D63: 14.12 | E63: 21.06 | F63: 26.19 | G63: 29.84 | H63: 40.77 | I63: 54.3 | J63: 62.75 | K63: 63.28 | L63: 56.04 | M63: 42 | N63: 26.6 | O63: 13.79 | P63: 6.95 | Q63: 3.95 | R63: 2.56 | S63: 2.16 | T63: 0.93 | U63: 5.45 | V63: 22.23 | W63: 49.28 | X63: 0.26 | AA63: =D63*D$5 -> 0 | AB63: =E63*E$5 -> 0 | AC63: =F63*F$5 -> 0.5238 | AD63: =G63*G$5 -> 2.984 | AE63: =H63*H$5 -> 36.693 | AF63: =I63*I$5 -> 16.29 | AG63: =J63*J$5 -> 6.275 | AH63: =K63*K$5 -> 9.492 | AI63: =L63*L$5 -> 22.416 | AJ63: =M63*M$5 -> 23.94 | AK63: =N63*N$5 -> 15.428 | AL63: =O63*O$5 -> 7.1708 | AM63: =P63*P$5 -> 3.336 | AN63: =Q63*Q$5 -> 1.4615 | AO63: =R63*R$5 -> 0.6144 | AP63: =S63*S$5 -> 0.3888 | AQ63: =T63*T$5 -> 0.1209 | AR63: =U63*U$5 -> 0.436 | AS63: =V63*V$5 -> 1.1115 | AT63: =W63*W$5 -> 1.4784 | AV63: =700/420*AVERAGE(AA63:AD63) -> 1.461583333 | AW63: =700/510*AVERAGE(AE63:AH63) -> 23.59068627 | AX63: =700/570*AVERAGE(AI63:AL63) -> 21.17033333 | AY63: =700/640*AVERAGE(AM63:AP63) -> 1.586128906 | AZ63: =AVERAGE(AQ63:AT63) -> 0.7867 | BB63: =B63 -> #374 SEA GREEN | BC63: =MAX(AV63-SUM(AW63:AZ63)/quo,0) -> 0 | BD63: =MAX(AW63-(AV63+SUM(AX63:AZ63))/quo,0) -> 11.08831349 | BE63: =MAX(AX63-(SUM(AV63:AW63)+SUM(AY63:AZ63))/quo,0) -> 7.457784076 | BF63: =MAX(AY63-(SUM(AV63:AX63)+AZ63)/quo,0) -> 0 | BG63: =MAX(AZ63-SUM(AV63:AY63)/quo,0) -> 0
A64: ROSCOLUX | B64: #85 DEEP BLUE | C64: =CONCATENATE(A64," ",B64) -> ROSCOLUX #85 DEEP BLUE | D64: 3.47 | E64: 3.05 | F64: 3.73 | G64: 8.41 | H64: 24.54 | I64: 36.51 | J64: 28.27 | K64: 12.16 | L64: 2.75 | M64: 0.23 | N64: 0.04 | O64: 0.03 | P64: 0.01 | Q64: 0.03 | R64: 0.03 | S64: 0.48 | T64: 14.2 | U64: 49.88 | V64: 76.09 | W64: 86.15 | X64: 0.03 | AA64: =D64*D$5 -> 0 | AB64: =E64*E$5 -> 0 | AC64: =F64*F$5 -> 0.0746 | AD64: =G64*G$5 -> 0.841 | AE64: =H64*H$5 -> 22.086 | AF64: =I64*I$5 -> 10.953 | AG64: =J64*J$5 -> 2.827 | AH64: =K64*K$5 -> 1.824 | AI64: =L64*L$5 -> 1.1 | AJ64: =M64*M$5 -> 0.1311 | AK64: =N64*N$5 -> 0.0232 | AL64: =O64*O$5 -> 0.0156 | AM64: =P64*P$5 -> 0.0048 | AN64: =Q64*Q$5 -> 0.0111 | AO64: =R64*R$5 -> 0.0072 | AP64: =S64*S$5 -> 0.0864 | AQ64: =T64*T$5 -> 1.846 | AR64: =U64*U$5 -> 3.9904 | AS64: =V64*V$5 -> 3.8045 | AT64: =W64*W$5 -> 2.5845 | AV64: =700/420*AVERAGE(AA64:AD64) -> 0.3815 | AW64: =700/510*AVERAGE(AE64:AH64) -> 12.93284314 | AX64: =700/570*AVERAGE(AI64:AL64) -> 0.3898815789 | AY64: =700/640*AVERAGE(AM64:AP64) -> 0.02994140625 | AZ64: =AVERAGE(AQ64:AT64) -> 3.05635 | BB64: =B64 -> #85 DEEP BLUE | BC64: =MAX(AV64-SUM(AW64:AZ64)/quo,0) -> 0 | BD64: =MAX(AW64-(AV64+SUM(AX64:AZ64))/quo,0) -> 11.00400664 | BE64: =MAX(AX64-(SUM(AV64:AW64)+SUM(AY64:AZ64))/quo,0) -> 0 | BF64: =MAX(AY64-(SUM(AV64:AX64)+AZ64)/quo,0) -> 0 | BG64: =MAX(AZ64-SUM(AV64:AY64)/quo,0) -> 0
A65: ROSCOLUX | B65: #52 LT LAVENDER | C65: =CONCATENATE(A65," ",B65) -> ROSCOLUX #52 LT LAVENDER | D65: 42.87 | E65: 60.84 | F65: 71.91 | G65: 72.6 | H65: 69.98 | I65: 63.66 | J65: 55.38 | K65: 46.78 | L65: 37.48 | M65: 29.69 | N65: 26.24 | O65: 25.22 | P65: 31.22 | Q65: 40.1 | R65: 49.28 | S65: 68.73 | T65: 81.95 | U65: 85.91 | V65: 87.01 | W65: 87.63 | X65: 0.26 | AA65: =D65*D$5 -> 0 | AB65: =E65*E$5 -> 0 | AC65: =F65*F$5 -> 1.4382 | AD65: =G65*G$5 -> 7.26 | AE65: =H65*H$5 -> 62.982 | AF65: =I65*I$5 -> 19.098 | AG65: =J65*J$5 -> 5.538 | AH65: =K65*K$5 -> 7.017 | AI65: =L65*L$5 -> 14.992 | AJ65: =M65*M$5 -> 16.9233 | AK65: =N65*N$5 -> 15.2192 | AL65: =O65*O$5 -> 13.1144 | AM65: =P65*P$5 -> 14.9856 | AN65: =Q65*Q$5 -> 14.837 | AO65: =R65*R$5 -> 11.8272 | AP65: =S65*S$5 -> 12.3714 | AQ65: =T65*T$5 -> 10.6535 | AR65: =U65*U$5 -> 6.8728 | AS65: =V65*V$5 -> 4.3505 | AT65: =W65*W$5 -> 2.6289 | AV65: =700/420*AVERAGE(AA65:AD65) -> 3.62425 | AW65: =700/510*AVERAGE(AE65:AH65) -> 32.47279412 | AX65: =700/570*AVERAGE(AI65:AL65) -> 18.4974693 | AY65: =700/640*AVERAGE(AM65:AP65) -> 14.77142187 | AZ65: =AVERAGE(AQ65:AT65) -> 6.126425 | BB65: =B65 -> #52 LT LAVENDER | BC65: =MAX(AV65-SUM(AW65:AZ65)/quo,0) -> 0 | BD65: =MAX(AW65-(AV65+SUM(AX65:AZ65))/quo,0) -> 10.96301103 | BE65: =MAX(AX65-(SUM(AV65:AW65)+SUM(AY65:AZ65))/quo,0) -> 0 | BF65: =MAX(AY65-(SUM(AV65:AX65)+AZ65)/quo,0) -> 0 | BG65: =MAX(AZ65-SUM(AV65:AY65)/quo,0) -> 0
A66: ROSCOLUX | B66: #385 ROYAL BLUE | C66: =CONCATENATE(A66," ",B66) -> ROSCOLUX #385 ROYAL BLUE | D66: 0.81 | E66: 0.64 | F66: 1.11 | G66: 5 | H66: 25.56 | I66: 36.42 | J66: 18.63 | K66: 3.89 | L66: 0.32 | M66: 0.03 | N66: 0.01 | O66: 0.02 | P66: 0.02 | Q66: 0.03 | R66: 0.02 | S66: 0.18 | T66: 14.14 | U66: 57.21 | V66: 79.45 | W66: 85.5 | X66: 0.04 | AA66: =D66*D$5 -> 0 | AB66: =E66*E$5 -> 0 | AC66: =F66*F$5 -> 0.0222 | AD66: =G66*G$5 -> 0.5 | AE66: =H66*H$5 -> 23.004 | AF66: =I66*I$5 -> 10.926 | AG66: =J66*J$5 -> 1.863 | AH66: =K66*K$5 -> 0.5835 | AI66: =L66*L$5 -> 0.128 | AJ66: =M66*M$5 -> 0.0171 | AK66: =N66*N$5 -> 0.0058 | AL66: =O66*O$5 -> 0.0104 | AM66: =P66*P$5 -> 0.0096 | AN66: =Q66*Q$5 -> 0.0111 | AO66: =R66*R$5 -> 0.0048 | AP66: =S66*S$5 -> 0.0324 | AQ66: =T66*T$5 -> 1.8382 | AR66: =U66*U$5 -> 4.5768 | AS66: =V66*V$5 -> 3.9725 | AT66: =W66*W$5 -> 2.565 | AV66: =700/420*AVERAGE(AA66:AD66) -> 0.2175833333 | AW66: =700/510*AVERAGE(AE66:AH66) -> 12.48213235 | AX66: =700/570*AVERAGE(AI66:AL66) -> 0.04952192982 | AY66: =700/640*AVERAGE(AM66:AP66) -> 0.01583203125 | AZ66: =AVERAGE(AQ66:AT66) -> 3.238125 | BB66: =B66 -> #385 ROYAL BLUE | BC66: =MAX(AV66-SUM(AW66:AZ66)/quo,0) -> 0 | BD66: =MAX(AW66-(AV66+SUM(AX66:AZ66))/quo,0) -> 10.72160121 | BE66: =MAX(AX66-(SUM(AV66:AW66)+SUM(AY66:AZ66))/quo,0) -> 0 | BF66: =MAX(AY66-(SUM(AV66:AX66)+AZ66)/quo,0) -> 0 | BG66: =MAX(AZ66-SUM(AV66:AY66)/quo,0) -> 0
A67: ROSCOLUX | B67: #348 PURPLE JAZZ | C67: =CONCATENATE(A67," ",B67) -> ROSCOLUX #348 PURPLE JAZZ | D67: 14.94 | E67: 42.27 | F67: 68.88 | G67: 65.99 | H67: 52.97 | I67: 37.22 | J67: 24.11 | K67: 14.19 | L67: 7.62 | M67: 4.27 | N67: 3.31 | O67: 4.01 | P67: 9.18 | Q67: 23.22 | R67: 45.51 | S67: 69.17 | T67: 83.14 | U67: 87.97 | V67: 89.52 | W67: 90.15 | X67: 0.14 | AA67: =D67*D$5 -> 0 | AB67: =E67*E$5 -> 0 | AC67: =F67*F$5 -> 1.3776 | AD67: =G67*G$5 -> 6.599 | AE67: =H67*H$5 -> 47.673 | AF67: =I67*I$5 -> 11.166 | AG67: =J67*J$5 -> 2.411 | AH67: =K67*K$5 -> 2.1285 | AI67: =L67*L$5 -> 3.048 | AJ67: =M67*M$5 -> 2.4339 | AK67: =N67*N$5 -> 1.9198 | AL67: =O67*O$5 -> 2.0852 | AM67: =P67*P$5 -> 4.4064 | AN67: =Q67*Q$5 -> 8.5914 | AO67: =R67*R$5 -> 10.9224 | AP67: =S67*S$5 -> 12.4506 | AQ67: =T67*T$5 -> 10.8082 | AR67: =U67*U$5 -> 7.0376 | AS67: =V67*V$5 -> 4.476 | AT67: =W67*W$5 -> 2.7045 | AV67: =700/420*AVERAGE(AA67:AD67) -> 3.323583333 | AW67: =700/510*AVERAGE(AE67:AH67) -> 21.74752451 | AX67: =700/570*AVERAGE(AI67:AL67) -> 2.912644737 | AY67: =700/640*AVERAGE(AM67:AP67) -> 9.945140625 | AZ67: =AVERAGE(AQ67:AT67) -> 6.256575 | BB67: =B67 -> #348 PURPLE JAZZ | BC67: =MAX(AV67-SUM(AW67:AZ67)/quo,0) -> 0 | BD67: =MAX(AW67-(AV67+SUM(AX67:AZ67))/quo,0) -> 10.52855266 | BE67: =MAX(AX67-(SUM(AV67:AW67)+SUM(AY67:AZ67))/quo,0) -> 0 | BF67: =MAX(AY67-(SUM(AV67:AX67)+AZ67)/quo,0) -> 0 | BG67: =MAX(AZ67-SUM(AV67:AY67)/quo,0) -> 0
A68: ROSCOLUX | B68: #73 PEACOCK BLUE | C68: =CONCATENATE(A68," ",B68) -> ROSCOLUX #73 PEACOCK BLUE | D68: 37.87 | E68: 32.96 | F68: 27.29 | G68: 27.85 | H68: 38.45 | I68: 56 | J68: 65.39 | K68: 63.11 | L68: 51.54 | M68: 36.34 | N68: 22.97 | O68: 13.4 | P68: 7.95 | Q68: 6.52 | R68: 6.01 | S68: 8.44 | T68: 20.76 | U68: 46.61 | V68: 71.5 | W68: 83.18 | X68: 0.28 | AA68: =D68*D$5 -> 0 | AB68: =E68*E$5 -> 0 | AC68: =F68*F$5 -> 0.5458 | AD68: =G68*G$5 -> 2.785 | AE68: =H68*H$5 -> 34.605 | AF68: =I68*I$5 -> 16.8 | AG68: =J68*J$5 -> 6.539 | AH68: =K68*K$5 -> 9.4665 | AI68: =L68*L$5 -> 20.616 | AJ68: =M68*M$5 -> 20.7138 | AK68: =N68*N$5 -> 13.3226 | AL68: =O68*O$5 -> 6.968 | AM68: =P68*P$5 -> 3.816 | AN68: =Q68*Q$5 -> 2.4124 | AO68: =R68*R$5 -> 1.4424 | AP68: =S68*S$5 -> 1.5192 | AQ68: =T68*T$5 -> 2.6988 | AR68: =U68*U$5 -> 3.7288 | AS68: =V68*V$5 -> 3.575 | AT68: =W68*W$5 -> 2.4954 | AV68: =700/420*AVERAGE(AA68:AD68) -> 1.387833333 | AW68: =700/510*AVERAGE(AE68:AH68) -> 23.13105392 | AX68: =700/570*AVERAGE(AI68:AL68) -> 18.91854386 | AY68: =700/640*AVERAGE(AM68:AP68) -> 2.512890625 | AZ68: =AVERAGE(AQ68:AT68) -> 3.1245 | BB68: =B68 -> #73 PEACOCK BLUE | BC68: =MAX(AV68-SUM(AW68:AZ68)/quo,0) -> 0 | BD68: =MAX(AW68-(AV68+SUM(AX68:AZ68))/quo,0) -> 10.15917001 | BE68: =MAX(AX68-(SUM(AV68:AW68)+SUM(AY68:AZ68))/quo,0) -> 3.84040492 | BF68: =MAX(AY68-(SUM(AV68:AX68)+AZ68)/quo,0) -> 0 | BG68: =MAX(AZ68-SUM(AV68:AY68)/quo,0) -> 0
A69: ROSCOLUX | B69: #63 PALE BLUE | C69: =CONCATENATE(A69," ",B69) -> ROSCOLUX #63 PALE BLUE | D69: 62.64 | E69: 66.36 | F69: 70.14 | G69: 74.81 | H69: 79.37 | I69: 80.69 | J69: 79.65 | K69: 75.31 | L69: 68.83 | M69: 59.09 | N69: 51.4 | O69: 40.03 | P69: 39.61 | Q69: 38.2 | R69: 37.45 | S69: 60.72 | T69: 80.6 | U69: 86.21 | V69: 87.58 | W69: 88.06 | X69: 0.56 | AA69: =D69*D$5 -> 0 | AB69: =E69*E$5 -> 0 | AC69: =F69*F$5 -> 1.4028 | AD69: =G69*G$5 -> 7.481 | AE69: =H69*H$5 -> 71.433 | AF69: =I69*I$5 -> 24.207 | AG69: =J69*J$5 -> 7.965 | AH69: =K69*K$5 -> 11.2965 | AI69: =L69*L$5 -> 27.532 | AJ69: =M69*M$5 -> 33.6813 | AK69: =N69*N$5 -> 29.812 | AL69: =O69*O$5 -> 20.8156 | AM69: =P69*P$5 -> 19.0128 | AN69: =Q69*Q$5 -> 14.134 | AO69: =R69*R$5 -> 8.988 | AP69: =S69*S$5 -> 10.9296 | AQ69: =T69*T$5 -> 10.478 | AR69: =U69*U$5 -> 6.8968 | AS69: =V69*V$5 -> 4.379 | AT69: =W69*W$5 -> 2.6418 | AV69: =700/420*AVERAGE(AA69:AD69) -> 3.701583333 | AW69: =700/510*AVERAGE(AE69:AH69) -> 39.42698529 | AX69: =700/570*AVERAGE(AI69:AL69) -> 34.33711842 | AY69: =700/640*AVERAGE(AM69:AP69) -> 14.50979687 | AZ69: =AVERAGE(AQ69:AT69) -> 6.0989 | BB69: =B69 -> #63 PALE BLUE | BC69: =MAX(AV69-SUM(AW69:AZ69)/quo,0) -> 0 | BD69: =MAX(AW69-(AV69+SUM(AX69:AZ69))/quo,0) -> 10.10328598 | BE69: =MAX(AX69-(SUM(AV69:AW69)+SUM(AY69:AZ69))/quo,0) -> 2.46848567 | BF69: =MAX(AY69-(SUM(AV69:AX69)+AZ69)/quo,0) -> 0 | BG69: =MAX(AZ69-SUM(AV69:AY69)/quo,0) -> 0
A70: ROSCOLUX | B70: #376 BERMUDA BLUE | C70: =CONCATENATE(A70," ",B70) -> ROSCOLUX #376 BERMUDA BLUE | D70: 45.86 | E70: 53.87 | F70: 53.33 | G70: 42.75 | H70: 34.81 | I70: 39.11 | J70: 51.92 | K70: 45.56 | L70: 32.88 | M70: 21.15 | N70: 12.15 | O70: 6.32 | P70: 4.38 | Q70: 3.96 | R70: 3.44 | S70: 10.24 | T70: 38.58 | U70: 67.38 | V70: 78.68 | W70: 81.92 | X70: 0.06 | AA70: =D70*D$5 -> 0 | AB70: =E70*E$5 -> 0 | AC70: =F70*F$5 -> 1.0666 | AD70: =G70*G$5 -> 4.275 | AE70: =H70*H$5 -> 31.329 | AF70: =I70*I$5 -> 11.733 | AG70: =J70*J$5 -> 5.192 | AH70: =K70*K$5 -> 6.834 | AI70: =L70*L$5 -> 13.152 | AJ70: =M70*M$5 -> 12.0555 | AK70: =N70*N$5 -> 7.047 | AL70: =O70*O$5 -> 3.2864 | AM70: =P70*P$5 -> 2.1024 | AN70: =Q70*Q$5 -> 1.4652 | AO70: =R70*R$5 -> 0.8256 | AP70: =S70*S$5 -> 1.8432 | AQ70: =T70*T$5 -> 5.0154 | AR70: =U70*U$5 -> 5.3904 | AS70: =V70*V$5 -> 3.934 | AT70: =W70*W$5 -> 2.4576 | AV70: =700/420*AVERAGE(AA70:AD70) -> 2.225666667 | AW70: =700/510*AVERAGE(AE70:AH70) -> 18.9027451 | AX70: =700/570*AVERAGE(AI70:AL70) -> 10.91167982 | AY70: =700/640*AVERAGE(AM70:AP70) -> 1.705265625 | AZ70: =AVERAGE(AQ70:AT70) -> 4.19935 | BB70: =B70 -> #376 BERMUDA BLUE | BC70: =MAX(AV70-SUM(AW70:AZ70)/quo,0) -> 0 | BD70: =MAX(AW70-(AV70+SUM(AX70:AZ70))/quo,0) -> 9.38176404 | BE70: =MAX(AX70-(SUM(AV70:AW70)+SUM(AY70:AZ70))/quo,0) -> 0 | BF70: =MAX(AY70-(SUM(AV70:AX70)+AZ70)/quo,0) -> 0 | BG70: =MAX(AZ70-SUM(AV70:AY70)/quo,0) -> 0
A71: ROSCOLUX | B71: #372 THEATRE BOOSTER 2 | C71: =CONCATENATE(A71," ",B71) -> ROSCOLUX #372 THEATRE BOOSTER 2 | D71: 38.78 | E71: 51.05 | F71: 66.61 | G71: 74.22 | H71: 77.24 | I71: 77.32 | J71: 74.71 | K71: 69.81 | L71: 64.34 | M71: 56.76 | N71: 52.17 | O71: 45.86 | P71: 45.59 | Q71: 47.12 | R71: 48.28 | S71: 45.82 | T71: 36.03 | U71: 51.54 | V71: 53.53 | W71: 63.13 | X71: 0.55 | AA71: =D71*D$5 -> 0 | AB71: =E71*E$5 -> 0 | AC71: =F71*F$5 -> 1.3322 | AD71: =G71*G$5 -> 7.422 | AE71: =H71*H$5 -> 69.516 | AF71: =I71*I$5 -> 23.196 | AG71: =J71*J$5 -> 7.471 | AH71: =K71*K$5 -> 10.4715 | AI71: =L71*L$5 -> 25.736 | AJ71: =M71*M$5 -> 32.3532 | AK71: =N71*N$5 -> 30.2586 | AL71: =O71*O$5 -> 23.8472 | AM71: =P71*P$5 -> 21.8832 | AN71: =Q71*Q$5 -> 17.4344 | AO71: =R71*R$5 -> 11.5872 | AP71: =S71*S$5 -> 8.2476 | AQ71: =T71*T$5 -> 4.6839 | AR71: =U71*U$5 -> 4.1232 | AS71: =V71*V$5 -> 2.6765 | AT71: =W71*W$5 -> 1.8939 | AV71: =700/420*AVERAGE(AA71:AD71) -> 3.647583333 | AW71: =700/510*AVERAGE(AE71:AH71) -> 37.96968137 | AX71: =700/570*AVERAGE(AI71:AL71) -> 34.44583333 | AY71: =700/640*AVERAGE(AM71:AP71) -> 16.17448437 | AZ71: =AVERAGE(AQ71:AT71) -> 3.344375 | BB71: =B71 -> #372 THEATRE BOOSTER 2 | BC71: =MAX(AV71-SUM(AW71:AZ71)/quo,0) -> 0 | BD71: =MAX(AW71-(AV71+SUM(AX71:AZ71))/quo,0) -> 9.163543352 | BE71: =MAX(AX71-(SUM(AV71:AW71)+SUM(AY71:AZ71))/quo,0) -> 3.877771293 | BF71: =MAX(AY71-(SUM(AV71:AX71)+AZ71)/quo,0) -> 0 | BG71: =MAX(AZ71-SUM(AV71:AY71)/quo,0) -> 0
A72: ROSCOLUX | B72: #60 NO COLOR BLUE | C72: =CONCATENATE(A72," ",B72) -> ROSCOLUX #60 NO COLOR BLUE | D72: 66.78 | E72: 72.14 | F72: 75.85 | G72: 77.6 | H72: 76.87 | I72: 74.57 | J72: 71.23 | K72: 66.87 | L72: 60.13 | M72: 55.03 | N72: 48.19 | O72: 43.06 | P72: 40.62 | Q72: 39.94 | R72: 36.45 | S72: 50.37 | T72: 74.57 | U72: 83.04 | V72: 84.67 | W72: 85.3 | X72: 0.62 | AA72: =D72*D$5 -> 0 | AB72: =E72*E$5 -> 0 | AC72: =F72*F$5 -> 1.517 | AD72: =G72*G$5 -> 7.76 | AE72: =H72*H$5 -> 69.183 | AF72: =I72*I$5 -> 22.371 | AG72: =J72*J$5 -> 7.123 | AH72: =K72*K$5 -> 10.0305 | AI72: =L72*L$5 -> 24.052 | AJ72: =M72*M$5 -> 31.3671 | AK72: =N72*N$5 -> 27.9502 | AL72: =O72*O$5 -> 22.3912 | AM72: =P72*P$5 -> 19.4976 | AN72: =Q72*Q$5 -> 14.7778 | AO72: =R72*R$5 -> 8.748 | AP72: =S72*S$5 -> 9.0666 | AQ72: =T72*T$5 -> 9.6941 | AR72: =U72*U$5 -> 6.6432 | AS72: =V72*V$5 -> 4.2335 | AT72: =W72*W$5 -> 2.559 | AV72: =700/420*AVERAGE(AA72:AD72) -> 3.865416667 | AW72: =700/510*AVERAGE(AE72:AH72) -> 37.30159314 | AX72: =700/570*AVERAGE(AI72:AL72) -> 32.47032895 | AY72: =700/640*AVERAGE(AM72:AP72) -> 14.24335937 | AZ72: =AVERAGE(AQ72:AT72) -> 5.78245 | BB72: =B72 -> #60 NO COLOR BLUE | BC72: =MAX(AV72-SUM(AW72:AZ72)/quo,0) -> 0 | BD72: =MAX(AW72-(AV72+SUM(AX72:AZ72))/quo,0) -> 9.120815643 | BE72: =MAX(AX72-(SUM(AV72:AW72)+SUM(AY72:AZ72))/quo,0) -> 1.873919358 | BF72: =MAX(AY72-(SUM(AV72:AX72)+AZ72)/quo,0) -> 0 | BG72: =MAX(AZ72-SUM(AV72:AY72)/quo,0) -> 0
A73: ROSCOLUX | B73: #4390 CALCOLOR 90 CYAN | C73: #4390 CALCOLOR 90 CYAN | D73: 31.33 | E73: 45.13 | F73: 52.81 | G73: 50.04 | H73: 47.38 | I73: 55.81 | J73: 71.68 | K73: 69.81 | L73: 63.59 | M73: 54.31 | N73: 40.97 | O73: 27.2 | P73: 15.5 | Q73: 7.24 | R73: 3.52 | S73: 2.16 | T73: 1.55 | U73: 2.75 | V73: 13.48 | W73: 41.01 | X73: 0.39 | AA73: =D73*D$5 -> 0 | AB73: =E73*E$5 -> 0 | AC73: =F73*F$5 -> 1.0562 | AD73: =G73*G$5 -> 5.004 | AE73: =H73*H$5 -> 42.642 | AF73: =I73*I$5 -> 16.743 | AG73: =J73*J$5 -> 7.168 | AH73: =K73*K$5 -> 10.4715 | AI73: =L73*L$5 -> 25.436 | AJ73: =M73*M$5 -> 30.9567 | AK73: =N73*N$5 -> 23.7626 | AL73: =O73*O$5 -> 14.144 | AM73: =P73*P$5 -> 7.44 | AN73: =Q73*Q$5 -> 2.6788 | AO73: =R73*R$5 -> 0.8448 | AP73: =S73*S$5 -> 0.3888 | AQ73: =T73*T$5 -> 0.2015 | AR73: =U73*U$5 -> 0.22 | AS73: =V73*V$5 -> 0.674 | AT73: =W73*W$5 -> 1.2303 | AV73: =700/420*AVERAGE(AA73:AD73) -> 2.525083333 | AW73: =700/510*AVERAGE(AE73:AH73) -> 26.42997549 | AX73: =700/570*AVERAGE(AI73:AL73) -> 28.95153947 | AY73: =700/640*AVERAGE(AM73:AP73) -> 3.104171875 | AZ73: =AVERAGE(AQ73:AT73) -> 0.58145 | BB73: =B73 -> #4390 CALCOLOR 90 CYAN | BC73: =MAX(AV73-SUM(AW73:AZ73)/quo,0) -> 0 | BD73: =MAX(AW73-(AV73+SUM(AX73:AZ73))/quo,0) -> 8.848853149 | BE73: =MAX(AX73-(SUM(AV73:AW73)+SUM(AY73:AZ73))/quo,0) -> 12.63119912 | BF73: =MAX(AY73-(SUM(AV73:AX73)+AZ73)/quo,0) -> 0 | BG73: =MAX(AZ73-SUM(AV73:AY73)/quo,0) -> 0
A74: ROSCOLUX | B74: #2008 VS INDIGO | C74: #2008 VS INDIGO | D74: 11.31 | E74: 18.07 | F74: 24.33 | G74: 32.69 | H74: 27.46 | I74: 16.17 | J74: 8.22 | K74: 3.61 | L74: 1.29 | M74: 1.34 | N74: 0.75 | O74: 1.63 | P74: 1.66 | Q74: 0.91 | R74: 0.65 | S74: 0.47 | T74: 1.16 | U74: 8.28 | V74: 32.12 | W74: 59.66 | X74: 0.04 | AA74: =D74*D$5 -> 0 | AB74: =E74*E$5 -> 0 | AC74: =F74*F$5 -> 0.4866 | AD74: =G74*G$5 -> 3.269 | AE74: =H74*H$5 -> 24.714 | AF74: =I74*I$5 -> 4.851 | AG74: =J74*J$5 -> 0.822 | AH74: =K74*K$5 -> 0.5415 | AI74: =L74*L$5 -> 0.516 | AJ74: =M74*M$5 -> 0.7638 | AK74: =N74*N$5 -> 0.435 | AL74: =O74*O$5 -> 0.8476 | AM74: =P74*P$5 -> 0.7968 | AN74: =Q74*Q$5 -> 0.3367 | AO74: =R74*R$5 -> 0.156 | AP74: =S74*S$5 -> 0.0846 | AQ74: =T74*T$5 -> 0.1508 | AR74: =U74*U$5 -> 0.6624 | AS74: =V74*V$5 -> 1.606 | AT74: =W74*W$5 -> 1.7898 | AV74: =700/420*AVERAGE(AA74:AD74) -> 1.564833333 | AW74: =700/510*AVERAGE(AE74:AH74) -> 10.61272059 | AX74: =700/570*AVERAGE(AI74:AL74) -> 0.7867017544 | AY74: =700/640*AVERAGE(AM74:AP74) -> 0.3757304687 | AZ74: =AVERAGE(AQ74:AT74) -> 1.05225 | BB74: =B74 -> #2008 VS INDIGO | BC74: =MAX(AV74-SUM(AW74:AZ74)/quo,0) -> 0 | BD74: =MAX(AW74-(AV74+SUM(AX74:AZ74))/quo,0) -> 8.72296281 | BE74: =MAX(AX74-(SUM(AV74:AW74)+SUM(AY74:AZ74))/quo,0) -> 0 | BF74: =MAX(AY74-(SUM(AV74:AX74)+AZ74)/quo,0) -> 0 | BG74: =MAX(AZ74-SUM(AV74:AY74)/quo,0) -> 0
A75: ROSCOLUX | B75: #3204 HALF BLUE CTB | C75: #3204 HALF BLUE CTB | D75: 52.11 | E75: 59.49 | F75: 64.69 | G75: 70.47 | H75: 71.23 | I75: 67.85 | J75: 62.42 | K75: 57.42 | L75: 50.96 | M75: 50.01 | N75: 44.96 | O75: 45.63 | P75: 42.24 | Q75: 37.89 | R75: 34.98 | S75: 33.99 | T75: 42.07 | U75: 58.54 | V75: 73.56 | W75: 81.19 | X75: 0.52 | AA75: =D75*D$5 -> 0 | AB75: =E75*E$5 -> 0 | AC75: =F75*F$5 -> 1.2938 | AD75: =G75*G$5 -> 7.047 | AE75: =H75*H$5 -> 64.107 | AF75: =I75*I$5 -> 20.355 | AG75: =J75*J$5 -> 6.242 | AH75: =K75*K$5 -> 8.613 | AI75: =L75*L$5 -> 20.384 | AJ75: =M75*M$5 -> 28.5057 | AK75: =N75*N$5 -> 26.0768 | AL75: =O75*O$5 -> 23.7276 | AM75: =P75*P$5 -> 20.2752 | AN75: =Q75*Q$5 -> 14.0193 | AO75: =R75*R$5 -> 8.3952 | AP75: =S75*S$5 -> 6.1182 | AQ75: =T75*T$5 -> 5.4691 | AR75: =U75*U$5 -> 4.6832 | AS75: =V75*V$5 -> 3.678 | AT75: =W75*W$5 -> 2.4357 | AV75: =700/420*AVERAGE(AA75:AD75) -> 3.475333333 | AW75: =700/510*AVERAGE(AE75:AH75) -> 34.07936275 | AX75: =700/570*AVERAGE(AI75:AL75) -> 30.30082018 | AY75: =700/640*AVERAGE(AM75:AP75) -> 13.34591016 | AZ75: =AVERAGE(AQ75:AT75) -> 4.0665 | BB75: =B75 -> #3204 HALF BLUE CTB | BC75: =MAX(AV75-SUM(AW75:AZ75)/quo,0) -> 0 | BD75: =MAX(AW75-(AV75+SUM(AX75:AZ75))/quo,0) -> 8.485080913 | BE75: =MAX(AX75-(SUM(AV75:AW75)+SUM(AY75:AZ75))/quo,0) -> 2.817267058 | BF75: =MAX(AY75-(SUM(AV75:AX75)+AZ75)/quo,0) -> 0 | BG75: =MAX(AZ75-SUM(AV75:AY75)/quo,0) -> 0
A76: ROSCOLUX | B76: #360 CLEARWATER | C76: =CONCATENATE(A76," ",B76) -> ROSCOLUX #360 CLEARWATER | D76: 52.11 | E76: 59.49 | F76: 64.69 | G76: 70.47 | H76: 71.23 | I76: 67.85 | J76: 62.42 | K76: 57.42 | L76: 50.96 | M76: 50.01 | N76: 44.96 | O76: 45.63 | P76: 42.24 | Q76: 37.89 | R76: 34.98 | S76: 33.99 | T76: 42.07 | U76: 58.54 | V76: 73.56 | W76: 81.19 | X76: 0.52 | AA76: =D76*D$5 -> 0 | AB76: =E76*E$5 -> 0 | AC76: =F76*F$5 -> 1.2938 | AD76: =G76*G$5 -> 7.047 | AE76: =H76*H$5 -> 64.107 | AF76: =I76*I$5 -> 20.355 | AG76: =J76*J$5 -> 6.242 | AH76: =K76*K$5 -> 8.613 | AI76: =L76*L$5 -> 20.384 | AJ76: =M76*M$5 -> 28.5057 | AK76: =N76*N$5 -> 26.0768 | AL76: =O76*O$5 -> 23.7276 | AM76: =P76*P$5 -> 20.2752 | AN76: =Q76*Q$5 -> 14.0193 | AO76: =R76*R$5 -> 8.3952 | AP76: =S76*S$5 -> 6.1182 | AQ76: =T76*T$5 -> 5.4691 | AR76: =U76*U$5 -> 4.6832 | AS76: =V76*V$5 -> 3.678 | AT76: =W76*W$5 -> 2.4357 | AV76: =700/420*AVERAGE(AA76:AD76) -> 3.475333333 | AW76: =700/510*AVERAGE(AE76:AH76) -> 34.07936275 | AX76: =700/570*AVERAGE(AI76:AL76) -> 30.30082018 | AY76: =700/640*AVERAGE(AM76:AP76) -> 13.34591016 | AZ76: =AVERAGE(AQ76:AT76) -> 4.0665 | BB76: =B76 -> #360 CLEARWATER | BC76: =MAX(AV76-SUM(AW76:AZ76)/quo,0) -> 0 | BD76: =MAX(AW76-(AV76+SUM(AX76:AZ76))/quo,0) -> 8.485080913 | BE76: =MAX(AX76-(SUM(AV76:AW76)+SUM(AY76:AZ76))/quo,0) -> 2.817267058 | BF76: =MAX(AY76-(SUM(AV76:AX76)+AZ76)/quo,0) -> 0 | BG76: =MAX(AZ76-SUM(AV76:AY76)/quo,0) -> 0
A77: ROSCOLUX | B77: #4930 CALCOLOR 30 LAVENDER | C77: =B77 -> #4930 CALCOLOR 30 LAVENDER | D77: 59.5 | E77: 67.08 | F77: 72 | G77: 72.88 | H77: 68.78 | I77: 60.63 | J77: 50.17 | K77: 41.57 | L77: 32.33 | M77: 32.77 | N77: 29.48 | O77: 36.95 | P77: 43.36 | Q77: 43.64 | R77: 40.79 | S77: 54.94 | T77: 75.63 | U77: 82.32 | V77: 83.47 | W77: 83.64 | X77: 0.47 | AA77: =D77*D$5 -> 0 | AB77: =E77*E$5 -> 0 | AC77: =F77*F$5 -> 1.44 | AD77: =G77*G$5 -> 7.288 | AE77: =H77*H$5 -> 61.902 | AF77: =I77*I$5 -> 18.189 | AG77: =J77*J$5 -> 5.017 | AH77: =K77*K$5 -> 6.2355 | AI77: =L77*L$5 -> 12.932 | AJ77: =M77*M$5 -> 18.6789 | AK77: =N77*N$5 -> 17.0984 | AL77: =O77*O$5 -> 19.214 | AM77: =P77*P$5 -> 20.8128 | AN77: =Q77*Q$5 -> 16.1468 | AO77: =R77*R$5 -> 9.7896 | AP77: =S77*S$5 -> 9.8892 | AQ77: =T77*T$5 -> 9.8319 | AR77: =U77*U$5 -> 6.5856 | AS77: =V77*V$5 -> 4.1735 | AT77: =W77*W$5 -> 2.5092 | AV77: =700/420*AVERAGE(AA77:AD77) -> 3.636666667 | AW77: =700/510*AVERAGE(AE77:AH77) -> 31.34335784 | AX77: =700/570*AVERAGE(AI77:AL77) -> 20.85364474 | AY77: =700/640*AVERAGE(AM77:AP77) -> 15.4870625 | AZ77: =AVERAGE(AQ77:AT77) -> 5.77505 | BB77: =B77 -> #4930 CALCOLOR 30 LAVENDER | BC77: =MAX(AV77-SUM(AW77:AZ77)/quo,0) -> 0 | BD77: =MAX(AW77-(AV77+SUM(AX77:AZ77))/quo,0) -> 8.467145891 | BE77: =MAX(AX77-(SUM(AV77:AW77)+SUM(AY77:AZ77))/quo,0) -> 0 | BF77: =MAX(AY77-(SUM(AV77:AX77)+AZ77)/quo,0) -> 0 | BG77: =MAX(AZ77-SUM(AV77:AY77)/quo,0) -> 0 | BJ77: 5) quo 4 colors
A78: ROSCOLUX | B78: #54 SPECIAL LAVENDER | C78: =CONCATENATE(A78," ",B78) -> ROSCOLUX #54 SPECIAL LAVENDER | D78: 54.43 | E78: 64.92 | F78: 72.69 | G78: 75.67 | H78: 77.08 | I78: 74.68 | J78: 68.37 | K78: 60.16 | L78: 52 | M78: 45.27 | N78: 44.23 | O78: 43.25 | P78: 48.41 | Q78: 49.97 | R78: 50.06 | S78: 68.54 | T78: 82.52 | U78: 86.35 | V78: 87.35 | W78: 87.85 | X78: 0.5 | AA78: =D78*D$5 -> 0 | AB78: =E78*E$5 -> 0 | AC78: =F78*F$5 -> 1.4538 | AD78: =G78*G$5 -> 7.567 | AE78: =H78*H$5 -> 69.372 | AF78: =I78*I$5 -> 22.404 | AG78: =J78*J$5 -> 6.837 | AH78: =K78*K$5 -> 9.024 | AI78: =L78*L$5 -> 20.8 | AJ78: =M78*M$5 -> 25.8039 | AK78: =N78*N$5 -> 25.6534 | AL78: =O78*O$5 -> 22.49 | AM78: =P78*P$5 -> 23.2368 | AN78: =Q78*Q$5 -> 18.4889 | AO78: =R78*R$5 -> 12.0144 | AP78: =S78*S$5 -> 12.3372 | AQ78: =T78*T$5 -> 10.7276 | AR78: =U78*U$5 -> 6.908 | AS78: =V78*V$5 -> 4.3675 | AT78: =W78*W$5 -> 2.6355 | AV78: =700/420*AVERAGE(AA78:AD78) -> 3.758666667 | AW78: =700/510*AVERAGE(AE78:AH78) -> 36.93426471 | AX78: =700/570*AVERAGE(AI78:AL78) -> 29.08908333 | AY78: =700/640*AVERAGE(AM78:AP78) -> 18.06801172 | AZ78: =AVERAGE(AQ78:AT78) -> 6.15965 | BB78: =B78 -> #54 SPECIAL LAVENDER | BC78: =MAX(AV78-SUM(AW78:AZ78)/quo,0) -> 0 | BD78: =MAX(AW78-(AV78+SUM(AX78:AZ78))/quo,0) -> 8.396558847 | BE78: =MAX(AX78-(SUM(AV78:AW78)+SUM(AY78:AZ78))/quo,0) -> 0 | BF78: =MAX(AY78-(SUM(AV78:AX78)+AZ78)/quo,0) -> 0 | BG78: =MAX(AZ78-SUM(AV78:AY78)/quo,0) -> 0
A79: ROSCOLUX | B79: #66 COOL BLUE | C79: =CONCATENATE(A79," ",B79) -> ROSCOLUX #66 COOL BLUE | D79: 43.9 | E79: 58.76 | F79: 69.84 | G79: 76.03 | H79: 80.55 | I79: 82.54 | J79: 82.65 | K79: 80.82 | L79: 77.22 | M79: 70.72 | N79: 62.79 | O79: 52.81 | P79: 46.27 | Q79: 42.22 | R79: 41.45 | S79: 40.92 | T79: 29.41 | U79: 63.86 | V79: 73.24 | W79: 77.72 | X79: 0.67 | AA79: =D79*D$5 -> 0 | AB79: =E79*E$5 -> 0 | AC79: =F79*F$5 -> 1.3968 | AD79: =G79*G$5 -> 7.603 | AE79: =H79*H$5 -> 72.495 | AF79: =I79*I$5 -> 24.762 | AG79: =J79*J$5 -> 8.265 | AH79: =K79*K$5 -> 12.123 | AI79: =L79*L$5 -> 30.888 | AJ79: =M79*M$5 -> 40.3104 | AK79: =N79*N$5 -> 36.4182 | AL79: =O79*O$5 -> 27.4612 | AM79: =P79*P$5 -> 22.2096 | AN79: =Q79*Q$5 -> 15.6214 | AO79: =R79*R$5 -> 9.948 | AP79: =S79*S$5 -> 7.3656 | AQ79: =T79*T$5 -> 3.8233 | AR79: =U79*U$5 -> 5.1088 | AS79: =V79*V$5 -> 3.662 | AT79: =W79*W$5 -> 2.3316 | AV79: =700/420*AVERAGE(AA79:AD79) -> 3.749916667 | AW79: =700/510*AVERAGE(AE79:AH79) -> 40.36838235 | AX79: =700/570*AVERAGE(AI79:AL79) -> 41.47125439 | AY79: =700/640*AVERAGE(AM79:AP79) -> 15.07860156 | AZ79: =AVERAGE(AQ79:AT79) -> 3.731425 | BB79: =B79 -> #66 COOL BLUE | BC79: =MAX(AV79-SUM(AW79:AZ79)/quo,0) -> 0 | BD79: =MAX(AW79-(AV79+SUM(AX79:AZ79))/quo,0) -> 8.352783545 | BE79: =MAX(AX79-(SUM(AV79:AW79)+SUM(AY79:AZ79))/quo,0) -> 10.00709159 | BF79: =MAX(AY79-(SUM(AV79:AX79)+AZ79)/quo,0) -> 0 | BG79: =MAX(AZ79-SUM(AV79:AY79)/quo,0) -> 0
A80: ROSCOLUX | B80: #76 LT GREEN BLUE | C80: =CONCATENATE(A80," ",B80) -> ROSCOLUX #76 LT GREEN BLUE | D80: 14.22 | E80: 10.5 | F80: 7.83 | G80: 9.13 | H80: 17.44 | I80: 31.35 | J80: 38.18 | K80: 32.38 | L80: 18.09 | M80: 6.14 | N80: 1.86 | O80: 0.38 | P80: 0.13 | Q80: 0.11 | R80: 0.11 | S80: 0.89 | T80: 8.17 | U80: 32.69 | V80: 64.01 | W80: 80.97 | X80: 0.09 | AA80: =D80*D$5 -> 0 | AB80: =E80*E$5 -> 0 | AC80: =F80*F$5 -> 0.1566 | AD80: =G80*G$5 -> 0.913 | AE80: =H80*H$5 -> 15.696 | AF80: =I80*I$5 -> 9.405 | AG80: =J80*J$5 -> 3.818 | AH80: =K80*K$5 -> 4.857 | AI80: =L80*L$5 -> 7.236 | AJ80: =M80*M$5 -> 3.4998 | AK80: =N80*N$5 -> 1.0788 | AL80: =O80*O$5 -> 0.1976 | AM80: =P80*P$5 -> 0.0624 | AN80: =Q80*Q$5 -> 0.0407 | AO80: =R80*R$5 -> 0.0264 | AP80: =S80*S$5 -> 0.1602 | AQ80: =T80*T$5 -> 1.0621 | AR80: =U80*U$5 -> 2.6152 | AS80: =V80*V$5 -> 3.2005 | AT80: =W80*W$5 -> 2.4291 | AV80: =700/420*AVERAGE(AA80:AD80) -> 0.4456666667 | AW80: =700/510*AVERAGE(AE80:AH80) -> 11.58980392 | AX80: =700/570*AVERAGE(AI80:AL80) -> 3.68795614 | AY80: =700/640*AVERAGE(AM80:AP80) -> 0.07921484375 | AZ80: =AVERAGE(AQ80:AT80) -> 2.326725 | BB80: =B80 -> #76 LT GREEN BLUE | BC80: =MAX(AV80-SUM(AW80:AZ80)/quo,0) -> 0 | BD80: =MAX(AW80-(AV80+SUM(AX80:AZ80))/quo,0) -> 8.320022596 | BE80: =MAX(AX80-(SUM(AV80:AW80)+SUM(AY80:AZ80))/quo,0) -> 0 | BF80: =MAX(AY80-(SUM(AV80:AX80)+AZ80)/quo,0) -> 0 | BG80: =MAX(AZ80-SUM(AV80:AY80)/quo,0) -> 0
A81: ROSCOLUX | B81: #382 CONGO BLUE | C81: =CONCATENATE(A81," ",B81) -> ROSCOLUX #382 CONGO BLUE | D81: 1.06 | E81: 1.26 | F81: 2.45 | G81: 7.36 | H81: 22.79 | I81: 24.37 | J81: 10.78 | K81: 2.19 | L81: 0.21 | M81: 0.02 | N81: 0.03 | O81: 0.03 | P81: 0.03 | Q81: 0.06 | R81: 0.03 | S81: 0.48 | T81: 20.3 | U81: 62.72 | V81: 81.24 | W81: 85.85 | X81: 0.0056 | AA81: =D81*D$5 -> 0 | AB81: =E81*E$5 -> 0 | AC81: =F81*F$5 -> 0.049 | AD81: =G81*G$5 -> 0.736 | AE81: =H81*H$5 -> 20.511 | AF81: =I81*I$5 -> 7.311 | AG81: =J81*J$5 -> 1.078 | AH81: =K81*K$5 -> 0.3285 | AI81: =L81*L$5 -> 0.084 | AJ81: =M81*M$5 -> 0.0114 | AK81: =N81*N$5 -> 0.0174 | AL81: =O81*O$5 -> 0.0156 | AM81: =P81*P$5 -> 0.0144 | AN81: =Q81*Q$5 -> 0.0222 | AO81: =R81*R$5 -> 0.0072 | AP81: =S81*S$5 -> 0.0864 | AQ81: =T81*T$5 -> 2.639 | AR81: =U81*U$5 -> 5.0176 | AS81: =V81*V$5 -> 4.062 | AT81: =W81*W$5 -> 2.5755 | AV81: =700/420*AVERAGE(AA81:AD81) -> 0.3270833333 | AW81: =700/510*AVERAGE(AE81:AH81) -> 10.02938725 | AX81: =700/570*AVERAGE(AI81:AL81) -> 0.03942105263 | AY81: =700/640*AVERAGE(AM81:AP81) -> 0.0356015625 | AZ81: =AVERAGE(AQ81:AT81) -> 3.573525 | BB81: =B81 -> #382 CONGO BLUE | BC81: =MAX(AV81-SUM(AW81:AZ81)/quo,0) -> 0 | BD81: =MAX(AW81-(AV81+SUM(AX81:AZ81))/quo,0) -> 8.041571781 | BE81: =MAX(AX81-(SUM(AV81:AW81)+SUM(AY81:AZ81))/quo,0) -> 0 | BF81: =MAX(AY81-(SUM(AV81:AX81)+AZ81)/quo,0) -> 0 | BG81: =MAX(AZ81-SUM(AV81:AY81)/quo,0) -> 0
A82: ROSCOLUX | B82: #4760 CALCOLOR 60 MAGENTA | C82: =B82 -> #4760 CALCOLOR 60 MAGENTA | D82: 51.05 | E82: 65.82 | F82: 69.97 | G82: 68.85 | H82: 60.79 | I82: 46.06 | J82: 30.85 | K82: 18.59 | L82: 11.71 | M82: 9.5 | N82: 11.83 | O82: 17.04 | P82: 41.32 | Q82: 56.25 | R82: 57.8 | S82: 65.15 | T82: 76.87 | U82: 82.94 | V82: 84.69 | W82: 85.25 | X82: 0.37 | AA82: =D82*D$5 -> 0 | AB82: =E82*E$5 -> 0 | AC82: =F82*F$5 -> 1.3994 | AD82: =G82*G$5 -> 6.885 | AE82: =H82*H$5 -> 54.711 | AF82: =I82*I$5 -> 13.818 | AG82: =J82*J$5 -> 3.085 | AH82: =K82*K$5 -> 2.7885 | AI82: =L82*L$5 -> 4.684 | AJ82: =M82*M$5 -> 5.415 | AK82: =N82*N$5 -> 6.8614 | AL82: =O82*O$5 -> 8.8608 | AM82: =P82*P$5 -> 19.8336 | AN82: =Q82*Q$5 -> 20.8125 | AO82: =R82*R$5 -> 13.872 | AP82: =S82*S$5 -> 11.727 | AQ82: =T82*T$5 -> 9.9931 | AR82: =U82*U$5 -> 6.6352 | AS82: =V82*V$5 -> 4.2345 | AT82: =W82*W$5 -> 2.5575 | AV82: =700/420*AVERAGE(AA82:AD82) -> 3.451833333 | AW82: =700/510*AVERAGE(AE82:AH82) -> 25.53026961 | AX82: =700/570*AVERAGE(AI82:AL82) -> 7.927561404 | AY82: =700/640*AVERAGE(AM82:AP82) -> 18.11389453 | AZ82: =AVERAGE(AQ82:AT82) -> 5.855075 | BB82: =B82 -> #4760 CALCOLOR 60 MAGENTA | BC82: =MAX(AV82-SUM(AW82:AZ82)/quo,0) -> 0 | BD82: =MAX(AW82-(AV82+SUM(AX82:AZ82))/quo,0) -> 7.856087474 | BE82: =MAX(AX82-(SUM(AV82:AW82)+SUM(AY82:AZ82))/quo,0) -> 0 | BF82: =MAX(AY82-(SUM(AV82:AX82)+AZ82)/quo,0) -> 0 | BG82: =MAX(AZ82-SUM(AV82:AY82)/quo,0) -> 0 | BJ82: 6) include some even greys
A83: ROSCOLUX | B83: #344 FOLLIES PINK | C83: =CONCATENATE(A83," ",B83) -> ROSCOLUX #344 FOLLIES PINK | D83: 49.01 | E83: 63.13 | F83: 69.53 | G83: 69.07 | H83: 61.92 | I83: 49.77 | J83: 36.11 | K83: 22.49 | L83: 14.11 | M83: 8.14 | N83: 10.41 | O83: 10.44 | P83: 32.42 | Q83: 71.54 | R83: 82.75 | S83: 86.05 | T83: 87.25 | U83: 87.6 | V83: 87.96 | W83: 88.48 | X83: 0.21 | AA83: =D83*D$5 -> 0 | AB83: =E83*E$5 -> 0 | AC83: =F83*F$5 -> 1.3906 | AD83: =G83*G$5 -> 6.907 | AE83: =H83*H$5 -> 55.728 | AF83: =I83*I$5 -> 14.931 | AG83: =J83*J$5 -> 3.611 | AH83: =K83*K$5 -> 3.3735 | AI83: =L83*L$5 -> 5.644 | AJ83: =M83*M$5 -> 4.6398 | AK83: =N83*N$5 -> 6.0378 | AL83: =O83*O$5 -> 5.4288 | AM83: =P83*P$5 -> 15.5616 | AN83: =Q83*Q$5 -> 26.4698 | AO83: =R83*R$5 -> 19.86 | AP83: =S83*S$5 -> 15.489 | AQ83: =T83*T$5 -> 11.3425 | AR83: =U83*U$5 -> 7.008 | AS83: =V83*V$5 -> 4.398 | AT83: =W83*W$5 -> 2.6544 | AV83: =700/420*AVERAGE(AA83:AD83) -> 3.457333333 | AW83: =700/510*AVERAGE(AE83:AH83) -> 26.64237745 | AX83: =700/570*AVERAGE(AI83:AL83) -> 6.677754386 | AY83: =700/640*AVERAGE(AM83:AP83) -> 21.15870313 | AZ83: =AVERAGE(AQ83:AT83) -> 6.350725 | BB83: =B83 -> #344 FOLLIES PINK | BC83: =MAX(AV83-SUM(AW83:AZ83)/quo,0) -> 0 | BD83: =MAX(AW83-(AV83+SUM(AX83:AZ83))/quo,0) -> 7.820119529 | BE83: =MAX(AX83-(SUM(AV83:AW83)+SUM(AY83:AZ83))/quo,0) -> 0 | BF83: =MAX(AY83-(SUM(AV83:AX83)+AZ83)/quo,0) -> 0 | BG83: =MAX(AZ83-SUM(AV83:AY83)/quo,0) -> 0
A84: ROSCOLUX | B84: #346 TROPICAL MAGENTA | C84: =CONCATENATE(A84," ",B84) -> ROSCOLUX #346 TROPICAL MAGENTA | D84: 13.55 | E84: 28.65 | F84: 45.8 | G84: 55.05 | H84: 52.95 | I84: 38.22 | J84: 18.48 | K84: 5.25 | L84: 1.56 | M84: 0.68 | N84: 0.26 | O84: 3.36 | P84: 24.54 | Q84: 54.76 | R84: 73.2 | S84: 78.53 | T84: 79.87 | U84: 80.15 | V84: 80.5 | W84: 80.91 | X84: 0.22 | AA84: =D84*D$5 -> 0 | AB84: =E84*E$5 -> 0 | AC84: =F84*F$5 -> 0.916 | AD84: =G84*G$5 -> 5.505 | AE84: =H84*H$5 -> 47.655 | AF84: =I84*I$5 -> 11.466 | AG84: =J84*J$5 -> 1.848 | AH84: =K84*K$5 -> 0.7875 | AI84: =L84*L$5 -> 0.624 | AJ84: =M84*M$5 -> 0.3876 | AK84: =N84*N$5 -> 0.1508 | AL84: =O84*O$5 -> 1.7472 | AM84: =P84*P$5 -> 11.7792 | AN84: =Q84*Q$5 -> 20.2612 | AO84: =R84*R$5 -> 17.568 | AP84: =S84*S$5 -> 14.1354 | AQ84: =T84*T$5 -> 10.3831 | AR84: =U84*U$5 -> 6.412 | AS84: =V84*V$5 -> 4.025 | AT84: =W84*W$5 -> 2.4273 | AV84: =700/420*AVERAGE(AA84:AD84) -> 2.675416667 | AW84: =700/510*AVERAGE(AE84:AH84) -> 21.19095588 | AX84: =700/570*AVERAGE(AI84:AL84) -> 0.8932982456 | AY84: =700/640*AVERAGE(AM84:AP84) -> 17.42994531 | AZ84: =AVERAGE(AQ84:AT84) -> 5.81185 | BB84: =B84 -> #346 TROPICAL MAGENTA | BC84: =MAX(AV84-SUM(AW84:AZ84)/quo,0) -> 0 | BD84: =MAX(AW84-(AV84+SUM(AX84:AZ84))/quo,0) -> 7.78570077 | BE84: =MAX(AX84-(SUM(AV84:AW84)+SUM(AY84:AZ84))/quo,0) -> 0 | BF84: =MAX(AY84-(SUM(AV84:AX84)+AZ84)/quo,0) -> 2.144184915 | BG84: =MAX(AZ84-SUM(AV84:AY84)/quo,0) -> 0
A85: ROSCOLUX | B85: #48 ROSE PURPLE | C85: =CONCATENATE(A85," ",B85) -> ROSCOLUX #48 ROSE PURPLE | D85: 19.74 | E85: 45.31 | F85: 64.99 | G85: 62.15 | H85: 51.22 | I85: 38.13 | J85: 27.01 | K85: 18.66 | L85: 12.14 | M85: 8.51 | N85: 7.42 | O85: 9.39 | P85: 16.69 | Q85: 32.65 | R85: 54.68 | S85: 72.65 | T85: 81.9 | U85: 85.38 | V85: 86.67 | W85: 87.46 | X85: 0.16 | AA85: =D85*D$5 -> 0 | AB85: =E85*E$5 -> 0 | AC85: =F85*F$5 -> 1.2998 | AD85: =G85*G$5 -> 6.215 | AE85: =H85*H$5 -> 46.098 | AF85: =I85*I$5 -> 11.439 | AG85: =J85*J$5 -> 2.701 | AH85: =K85*K$5 -> 2.799 | AI85: =L85*L$5 -> 4.856 | AJ85: =M85*M$5 -> 4.8507 | AK85: =N85*N$5 -> 4.3036 | AL85: =O85*O$5 -> 4.8828 | AM85: =P85*P$5 -> 8.0112 | AN85: =Q85*Q$5 -> 12.0805 | AO85: =R85*R$5 -> 13.1232 | AP85: =S85*S$5 -> 13.077 | AQ85: =T85*T$5 -> 10.647 | AR85: =U85*U$5 -> 6.8304 | AS85: =V85*V$5 -> 4.3335 | AT85: =W85*W$5 -> 2.6238 | AV85: =700/420*AVERAGE(AA85:AD85) -> 3.131166667 | AW85: =700/510*AVERAGE(AE85:AH85) -> 21.63034314 | AX85: =700/570*AVERAGE(AI85:AL85) -> 5.800513158 | AY85: =700/640*AVERAGE(AM85:AP85) -> 12.65794141 | AZ85: =AVERAGE(AQ85:AT85) -> 6.108675 | BB85: =B85 -> #48 ROSE PURPLE | BC85: =MAX(AV85-SUM(AW85:AZ85)/quo,0) -> 0 | BD85: =MAX(AW85-(AV85+SUM(AX85:AZ85))/quo,0) -> 7.781195022 | BE85: =MAX(AX85-(SUM(AV85:AW85)+SUM(AY85:AZ85))/quo,0) -> 0 | BF85: =MAX(AY85-(SUM(AV85:AX85)+AZ85)/quo,0) -> 0 | BG85: =MAX(AZ85-SUM(AV85:AY85)/quo,0) -> 0
A86: ROSCOLUX | B86: #392 PACIFIC GREEN | C86: =CONCATENATE(A86," ",B86) -> ROSCOLUX #392 PACIFIC GREEN | D86: 11.24 | E86: 16.64 | F86: 19.5 | G86: 20.07 | H86: 29.88 | I86: 44.5 | J86: 54.03 | K86: 56.82 | L86: 51.38 | M86: 37.87 | N86: 22.59 | O86: 11.7 | P86: 6.11 | Q86: 3.52 | R86: 2.55 | S86: 2.6 | T86: 2.35 | U86: 6.6 | V86: 13.83 | W86: 31.21 | X86: 0.2 | AA86: =D86*D$5 -> 0 | AB86: =E86*E$5 -> 0 | AC86: =F86*F$5 -> 0.39 | AD86: =G86*G$5 -> 2.007 | AE86: =H86*H$5 -> 26.892 | AF86: =I86*I$5 -> 13.35 | AG86: =J86*J$5 -> 5.403 | AH86: =K86*K$5 -> 8.523 | AI86: =L86*L$5 -> 20.552 | AJ86: =M86*M$5 -> 21.5859 | AK86: =N86*N$5 -> 13.1022 | AL86: =O86*O$5 -> 6.084 | AM86: =P86*P$5 -> 2.9328 | AN86: =Q86*Q$5 -> 1.3024 | AO86: =R86*R$5 -> 0.612 | AP86: =S86*S$5 -> 0.468 | AQ86: =T86*T$5 -> 0.3055 | AR86: =U86*U$5 -> 0.528 | AS86: =V86*V$5 -> 0.6915 | AT86: =W86*W$5 -> 0.9363 | AV86: =700/420*AVERAGE(AA86:AD86) -> 0.99875 | AW86: =700/510*AVERAGE(AE86:AH86) -> 18.58705882 | AX86: =700/570*AVERAGE(AI86:AL86) -> 18.82757456 | AY86: =700/640*AVERAGE(AM86:AP86) -> 1.453375 | AZ86: =AVERAGE(AQ86:AT86) -> 0.615325 | BB86: =B86 -> #392 PACIFIC GREEN | BC86: =MAX(AV86-SUM(AW86:AZ86)/quo,0) -> 0 | BD86: =MAX(AW86-(AV86+SUM(AX86:AZ86))/quo,0) -> 7.639546543 | BE86: =MAX(AX86-(SUM(AV86:AW86)+SUM(AY86:AZ86))/quo,0) -> 8.00032015 | BF86: =MAX(AY86-(SUM(AV86:AX86)+AZ86)/quo,0) -> 0 | BG86: =MAX(AZ86-SUM(AV86:AY86)/quo,0) -> 0
A87: ROSCOLUX | B87: #4790 CALCOLOR 90 MAGENTA | C87: =B87 -> #4790 CALCOLOR 90 MAGENTA | D87: 45.89 | E87: 62.4 | F87: 67.18 | G87: 65.66 | H87: 55.75 | I87: 39.26 | J87: 23.81 | K87: 12.43 | L87: 6.99 | M87: 5.36 | N87: 7.09 | O87: 11.4 | P87: 34.76 | Q87: 51.39 | R87: 53.26 | S87: 61.41 | T87: 75.03 | U87: 82.12 | V87: 84.27 | W87: 84.94 | X87: 0.28 | AA87: =D87*D$5 -> 0 | AB87: =E87*E$5 -> 0 | AC87: =F87*F$5 -> 1.3436 | AD87: =G87*G$5 -> 6.566 | AE87: =H87*H$5 -> 50.175 | AF87: =I87*I$5 -> 11.778 | AG87: =J87*J$5 -> 2.381 | AH87: =K87*K$5 -> 1.8645 | AI87: =L87*L$5 -> 2.796 | AJ87: =M87*M$5 -> 3.0552 | AK87: =N87*N$5 -> 4.1122 | AL87: =O87*O$5 -> 5.928 | AM87: =P87*P$5 -> 16.6848 | AN87: =Q87*Q$5 -> 19.0143 | AO87: =R87*R$5 -> 12.7824 | AP87: =S87*S$5 -> 11.0538 | AQ87: =T87*T$5 -> 9.7539 | AR87: =U87*U$5 -> 6.5696 | AS87: =V87*V$5 -> 4.2135 | AT87: =W87*W$5 -> 2.5482 | AV87: =700/420*AVERAGE(AA87:AD87) -> 3.295666667 | AW87: =700/510*AVERAGE(AE87:AH87) -> 22.71517157 | AX87: =700/570*AVERAGE(AI87:AL87) -> 4.878938596 | AY87: =700/640*AVERAGE(AM87:AP87) -> 16.27918359 | AZ87: =AVERAGE(AQ87:AT87) -> 5.7713 | BB87: =B87 -> #4790 CALCOLOR 90 MAGENTA | BC87: =MAX(AV87-SUM(AW87:AZ87)/quo,0) -> 0 | BD87: =MAX(AW87-(AV87+SUM(AX87:AZ87))/quo,0) -> 7.60262714 | BE87: =MAX(AX87-(SUM(AV87:AW87)+SUM(AY87:AZ87))/quo,0) -> 0 | BF87: =MAX(AY87-(SUM(AV87:AX87)+AZ87)/quo,0) -> 0 | BG87: =MAX(AZ87-SUM(AV87:AY87)/quo,0) -> 0
A88: SUPERGEL/LUX | B88: #349 FISHER FUCHSIA | C88: =CONCATENATE(A88," ",B88) -> SUPERGEL/LUX #349 FISHER FUCHSIA | D88: 1.49 | E88: 14.25 | F88: 61.9 | G88: 65.12 | H88: 48.74 | I88: 27.86 | J88: 12.1 | K88: 4.2 | L88: 1.37 | M88: 0.72 | N88: 0.77 | O88: 2.8 | P88: 11.05 | Q88: 29.67 | R88: 53.64 | S88: 72.83 | T88: 83.44 | U88: 87.83 | V88: 89.49 | W88: 90.12 | X88: 0.11 | AA88: =D88*D$5 -> 0 | AB88: =E88*E$5 -> 0 | AC88: =F88*F$5 -> 1.238 | AD88: =G88*G$5 -> 6.512 | AE88: =H88*H$5 -> 43.866 | AF88: =I88*I$5 -> 8.358 | AG88: =J88*J$5 -> 1.21 | AH88: =K88*K$5 -> 0.63 | AI88: =L88*L$5 -> 0.548 | AJ88: =M88*M$5 -> 0.4104 | AK88: =N88*N$5 -> 0.4466 | AL88: =O88*O$5 -> 1.456 | AM88: =P88*P$5 -> 5.304 | AN88: =Q88*Q$5 -> 10.9779 | AO88: =R88*R$5 -> 12.8736 | AP88: =S88*S$5 -> 13.1094 | AQ88: =T88*T$5 -> 10.8472 | AR88: =U88*U$5 -> 7.0264 | AS88: =V88*V$5 -> 4.4745 | AT88: =W88*W$5 -> 2.7036 | AV88: =700/420*AVERAGE(AA88:AD88) -> 3.229166667 | AW88: =700/510*AVERAGE(AE88:AH88) -> 18.55137255 | AX88: =700/570*AVERAGE(AI88:AL88) -> 0.878377193 | AY88: =700/640*AVERAGE(AM88:AP88) -> 11.55680859 | AZ88: =AVERAGE(AQ88:AT88) -> 6.262925 | BB88: =B88 -> #349 FISHER FUCHSIA | BC88: =MAX(AV88-SUM(AW88:AZ88)/quo,0) -> 0 | BD88: =MAX(AW88-(AV88+SUM(AX88:AZ88))/quo,0) -> 7.587733822 | BE88: =MAX(AX88-(SUM(AV88:AW88)+SUM(AY88:AZ88))/quo,0) -> 0 | BF88: =MAX(AY88-(SUM(AV88:AX88)+AZ88)/quo,0) -> 0 | BG88: =MAX(AZ88-SUM(AV88:AY88)/quo,0) -> 0
A89: ROSCOLUX | B89: #349 FISHER FUCHSIA | C89: =CONCATENATE(A89," ",B89) -> ROSCOLUX #349 FISHER FUCHSIA | D89: 1.49 | E89: 14.25 | F89: 61.9 | G89: 65.12 | H89: 48.74 | I89: 27.86 | J89: 12.1 | K89: 4.2 | L89: 1.37 | M89: 0.72 | N89: 0.77 | O89: 2.8 | P89: 11.05 | Q89: 29.67 | R89: 53.64 | S89: 72.83 | T89: 83.44 | U89: 87.83 | V89: 89.49 | W89: 90.12 | X89: 0.11 | AA89: =D89*D$5 -> 0 | AB89: =E89*E$5 -> 0 | AC89: =F89*F$5 -> 1.238 | AD89: =G89*G$5 -> 6.512 | AE89: =H89*H$5 -> 43.866 | AF89: =I89*I$5 -> 8.358 | AG89: =J89*J$5 -> 1.21 | AH89: =K89*K$5 -> 0.63 | AI89: =L89*L$5 -> 0.548 | AJ89: =M89*M$5 -> 0.4104 | AK89: =N89*N$5 -> 0.4466 | AL89: =O89*O$5 -> 1.456 | AM89: =P89*P$5 -> 5.304 | AN89: =Q89*Q$5 -> 10.9779 | AO89: =R89*R$5 -> 12.8736 | AP89: =S89*S$5 -> 13.1094 | AQ89: =T89*T$5 -> 10.8472 | AR89: =U89*U$5 -> 7.0264 | AS89: =V89*V$5 -> 4.4745 | AT89: =W89*W$5 -> 2.7036 | AV89: =700/420*AVERAGE(AA89:AD89) -> 3.229166667 | AW89: =700/510*AVERAGE(AE89:AH89) -> 18.55137255 | AX89: =700/570*AVERAGE(AI89:AL89) -> 0.878377193 | AY89: =700/640*AVERAGE(AM89:AP89) -> 11.55680859 | AZ89: =AVERAGE(AQ89:AT89) -> 6.262925 | BB89: =B89 -> #349 FISHER FUCHSIA | BC89: =MAX(AV89-SUM(AW89:AZ89)/quo,0) -> 0 | BD89: =MAX(AW89-(AV89+SUM(AX89:AZ89))/quo,0) -> 7.587733822 | BE89: =MAX(AX89-(SUM(AV89:AW89)+SUM(AY89:AZ89))/quo,0) -> 0 | BF89: =MAX(AY89-(SUM(AV89:AX89)+AZ89)/quo,0) -> 0 | BG89: =MAX(AZ89-SUM(AV89:AY89)/quo,0) -> 0
A90: ROSCOLUX | B90: #4360 CALCOLOR 60 CYAN | C90: #4360 CALCOLOR 60 CYAN | D90: 42.8 | E90: 54.7 | F90: 60.97 | G90: 59.46 | H90: 57.77 | I90: 64.26 | J90: 76.18 | K90: 75.29 | L90: 71.44 | M90: 65.16 | N90: 54.64 | O90: 42.46 | P90: 29.97 | Q90: 18.62 | R90: 11.82 | S90: 8.62 | T90: 6.85 | U90: 9.88 | V90: 27.1 | W90: 55.34 | X90: 0.5 | AA90: =D90*D$5 -> 0 | AB90: =E90*E$5 -> 0 | AC90: =F90*F$5 -> 1.2194 | AD90: =G90*G$5 -> 5.946 | AE90: =H90*H$5 -> 51.993 | AF90: =I90*I$5 -> 19.278 | AG90: =J90*J$5 -> 7.618 | AH90: =K90*K$5 -> 11.2935 | AI90: =L90*L$5 -> 28.576 | AJ90: =M90*M$5 -> 37.1412 | AK90: =N90*N$5 -> 31.6912 | AL90: =O90*O$5 -> 22.0792 | AM90: =P90*P$5 -> 14.3856 | AN90: =Q90*Q$5 -> 6.8894 | AO90: =R90*R$5 -> 2.8368 | AP90: =S90*S$5 -> 1.5516 | AQ90: =T90*T$5 -> 0.8905 | AR90: =U90*U$5 -> 0.7904 | AS90: =V90*V$5 -> 1.355 | AT90: =W90*W$5 -> 1.6602 | AV90: =700/420*AVERAGE(AA90:AD90) -> 2.985583333 | AW90: =700/510*AVERAGE(AE90:AH90) -> 30.94497549 | AX90: =700/570*AVERAGE(AI90:AL90) -> 36.68478947 | AY90: =700/640*AVERAGE(AM90:AP90) -> 7.017335937 | AZ90: =AVERAGE(AQ90:AT90) -> 1.174025 | BB90: =B90 -> #4360 CALCOLOR 60 CYAN | BC90: =MAX(AV90-SUM(AW90:AZ90)/quo,0) -> 0 | BD90: =MAX(AW90-(AV90+SUM(AX90:AZ90))/quo,0) -> 7.014108618 | BE90: =MAX(AX90-(SUM(AV90:AW90)+SUM(AY90:AZ90))/quo,0) -> 15.62382959 | BF90: =MAX(AY90-(SUM(AV90:AX90)+AZ90)/quo,0) -> 0 | BG90: =MAX(AZ90-SUM(AV90:AY90)/quo,0) -> 0
A91: ROSCOLUX | B91: #61 MIST BLUE | C91: =CONCATENATE(A91," ",B91) -> ROSCOLUX #61 MIST BLUE | D91: 71.58 | E91: 73.56 | F91: 75.74 | G91: 79.22 | H91: 83.09 | I91: 84.31 | J91: 83.26 | K91: 80.37 | L91: 75.52 | M91: 67.81 | N91: 61.89 | O91: 51.87 | P91: 51.3 | Q91: 49.86 | R91: 49.1 | S91: 68.34 | T91: 83.09 | U91: 87.12 | V91: 87.99 | W91: 88.35 | X91: 0.66 | AA91: =D91*D$5 -> 0 | AB91: =E91*E$5 -> 0 | AC91: =F91*F$5 -> 1.5148 | AD91: =G91*G$5 -> 7.922 | AE91: =H91*H$5 -> 74.781 | AF91: =I91*I$5 -> 25.293 | AG91: =J91*J$5 -> 8.326 | AH91: =K91*K$5 -> 12.0555 | AI91: =L91*L$5 -> 30.208 | AJ91: =M91*M$5 -> 38.6517 | AK91: =N91*N$5 -> 35.8962 | AL91: =O91*O$5 -> 26.9724 | AM91: =P91*P$5 -> 24.624 | AN91: =Q91*Q$5 -> 18.4482 | AO91: =R91*R$5 -> 11.784 | AP91: =S91*S$5 -> 12.3012 | AQ91: =T91*T$5 -> 10.8017 | AR91: =U91*U$5 -> 6.9696 | AS91: =V91*V$5 -> 4.3995 | AT91: =W91*W$5 -> 2.6505 | AV91: =700/420*AVERAGE(AA91:AD91) -> 3.932 | AW91: =700/510*AVERAGE(AE91:AH91) -> 41.33276961 | AX91: =700/570*AVERAGE(AI91:AL91) -> 40.44289912 | AY91: =700/640*AVERAGE(AM91:AP91) -> 18.36335156 | AZ91: =AVERAGE(AQ91:AT91) -> 6.205325 | BB91: =B91 -> #61 MIST BLUE | BC91: =MAX(AV91-SUM(AW91:AZ91)/quo,0) -> 0 | BD91: =MAX(AW91-(AV91+SUM(AX91:AZ91))/quo,0) -> 6.860981765 | BE91: =MAX(AX91-(SUM(AV91:AW91)+SUM(AY91:AZ91))/quo,0) -> 5.526176038 | BF91: =MAX(AY91-(SUM(AV91:AX91)+AZ91)/quo,0) -> 0 | BG91: =MAX(AZ91-SUM(AV91:AY91)/quo,0) -> 0
A92: ROSCOLUX | B92: #3206 THIRD BLUE CTB | C92: #3206 THIRD BLUE CTB | D92: 53.94 | E92: 61.36 | F92: 67.09 | G92: 72.46 | H92: 73.2 | I92: 70.07 | J92: 64.99 | K92: 60.69 | L92: 54.97 | M92: 54.62 | N92: 50.55 | O92: 52.25 | P92: 49.4 | Q92: 44.91 | R92: 42.56 | S92: 40.42 | T92: 46.58 | U92: 62.09 | V92: 75.85 | W92: 82.47 | X92: 0.64 | AA92: =D92*D$5 -> 0 | AB92: =E92*E$5 -> 0 | AC92: =F92*F$5 -> 1.3418 | AD92: =G92*G$5 -> 7.246 | AE92: =H92*H$5 -> 65.88 | AF92: =I92*I$5 -> 21.021 | AG92: =J92*J$5 -> 6.499 | AH92: =K92*K$5 -> 9.1035 | AI92: =L92*L$5 -> 21.988 | AJ92: =M92*M$5 -> 31.1334 | AK92: =N92*N$5 -> 29.319 | AL92: =O92*O$5 -> 27.17 | AM92: =P92*P$5 -> 23.712 | AN92: =Q92*Q$5 -> 16.6167 | AO92: =R92*R$5 -> 10.2144 | AP92: =S92*S$5 -> 7.2756 | AQ92: =T92*T$5 -> 6.0554 | AR92: =U92*U$5 -> 4.9672 | AS92: =V92*V$5 -> 3.7925 | AT92: =W92*W$5 -> 2.4741 | AV92: =700/420*AVERAGE(AA92:AD92) -> 3.57825 | AW92: =700/510*AVERAGE(AE92:AH92) -> 35.17276961 | AX92: =700/570*AVERAGE(AI92:AL92) -> 33.65231579 | AY92: =700/640*AVERAGE(AM92:AP92) -> 15.80980078 | AZ92: =AVERAGE(AQ92:AT92) -> 4.3223 | BB92: =B92 -> #3206 THIRD BLUE CTB | BC92: =MAX(AV92-SUM(AW92:AZ92)/quo,0) -> 0 | BD92: =MAX(AW92-(AV92+SUM(AX92:AZ92))/quo,0) -> 6.491436322 | BE92: =MAX(AX92-(SUM(AV92:AW92)+SUM(AY92:AZ92))/quo,0) -> 4.210755595 | BF92: =MAX(AY92-(SUM(AV92:AX92)+AZ92)/quo,0) -> 0 | BG92: =MAX(AZ92-SUM(AV92:AY92)/quo,0) -> 0
A93: ROSCOLUX | B93: #2005 VS CYAN | C93: =CONCATENATE(A93," ",B93) -> ROSCOLUX #2005 VS CYAN | D93: 19.55 | E93: 24.56 | F93: 25.07 | G93: 26.18 | H93: 24.32 | I93: 30.48 | J93: 47.39 | K93: 45.29 | L93: 37.23 | M93: 27.16 | N93: 15.56 | O93: 7.66 | P93: 2.98 | Q93: 1.46 | R93: 1.11 | S93: 0.83 | T93: 2.02 | U93: 11.37 | V93: 36.84 | W93: 62.47 | X93: 0.18 | AA93: =D93*D$5 -> 0 | AB93: =E93*E$5 -> 0 | AC93: =F93*F$5 -> 0.5014 | AD93: =G93*G$5 -> 2.618 | AE93: =H93*H$5 -> 21.888 | AF93: =I93*I$5 -> 9.144 | AG93: =J93*J$5 -> 4.739 | AH93: =K93*K$5 -> 6.7935 | AI93: =L93*L$5 -> 14.892 | AJ93: =M93*M$5 -> 15.4812 | AK93: =N93*N$5 -> 9.0248 | AL93: =O93*O$5 -> 3.9832 | AM93: =P93*P$5 -> 1.4304 | AN93: =Q93*Q$5 -> 0.5402 | AO93: =R93*R$5 -> 0.2664 | AP93: =S93*S$5 -> 0.1494 | AQ93: =T93*T$5 -> 0.2626 | AR93: =U93*U$5 -> 0.9096 | AS93: =V93*V$5 -> 1.842 | AT93: =W93*W$5 -> 1.8741 | AV93: =700/420*AVERAGE(AA93:AD93) -> 1.29975 | AW93: =700/510*AVERAGE(AE93:AH93) -> 14.60546569 | AX93: =700/570*AVERAGE(AI93:AL93) -> 13.31878947 | AY93: =700/640*AVERAGE(AM93:AP93) -> 0.65253125 | AZ93: =AVERAGE(AQ93:AT93) -> 1.222075 | BB93: =B93 -> #2005 VS CYAN | BC93: =MAX(AV93-SUM(AW93:AZ93)/quo,0) -> 0 | BD93: =MAX(AW93-(AV93+SUM(AX93:AZ93))/quo,0) -> 6.358892824 | BE93: =MAX(AX93-(SUM(AV93:AW93)+SUM(AY93:AZ93))/quo,0) -> 4.428878506 | BF93: =MAX(AY93-(SUM(AV93:AX93)+AZ93)/quo,0) -> 0 | BG93: =MAX(AZ93-SUM(AV93:AY93)/quo,0) -> 0
A94: ROSCOLUX | B94: #4215 CALCOLOR 15 BLUE | C94: #4215 CALCOLOR 15 BLUE | D94: 62.49 | E94: 69.23 | F94: 73.67 | G94: 75.46 | H94: 74.73 | I94: 71.95 | J94: 67.67 | K94: 62.96 | L94: 56.48 | M94: 54.07 | N94: 49.09 | O94: 48.69 | P94: 48.74 | Q94: 47.97 | R94: 46.37 | S94: 56.25 | T94: 73.17 | U94: 81.67 | V94: 84.14 | W94: 84.92 | X94: 0.57 | AA94: =D94*D$5 -> 0 | AB94: =E94*E$5 -> 0 | AC94: =F94*F$5 -> 1.4734 | AD94: =G94*G$5 -> 7.546 | AE94: =H94*H$5 -> 67.257 | AF94: =I94*I$5 -> 21.585 | AG94: =J94*J$5 -> 6.767 | AH94: =K94*K$5 -> 9.444 | AI94: =L94*L$5 -> 22.592 | AJ94: =M94*M$5 -> 30.8199 | AK94: =N94*N$5 -> 28.4722 | AL94: =O94*O$5 -> 25.3188 | AM94: =P94*P$5 -> 23.3952 | AN94: =Q94*Q$5 -> 17.7489 | AO94: =R94*R$5 -> 11.1288 | AP94: =S94*S$5 -> 10.125 | AQ94: =T94*T$5 -> 9.5121 | AR94: =U94*U$5 -> 6.5336 | AS94: =V94*V$5 -> 4.207 | AT94: =W94*W$5 -> 2.5476 | AV94: =700/420*AVERAGE(AA94:AD94) -> 3.758083333 | AW94: =700/510*AVERAGE(AE94:AH94) -> 36.04759804 | AX94: =700/570*AVERAGE(AI94:AL94) -> 32.91317105 | AY94: =700/640*AVERAGE(AM94:AP94) -> 17.06192578 | AZ94: =AVERAGE(AQ94:AT94) -> 5.700075 | BB94: =B94 -> #4215 CALCOLOR 15 BLUE | BC94: =MAX(AV94-SUM(AW94:AZ94)/quo,0) -> 0 | BD94: =MAX(AW94-(AV94+SUM(AX94:AZ94))/quo,0) -> 6.330970456 | BE94: =MAX(AX94-(SUM(AV94:AW94)+SUM(AY94:AZ94))/quo,0) -> 1.629329976 | BF94: =MAX(AY94-(SUM(AV94:AX94)+AZ94)/quo,0) -> 0 | BG94: =MAX(AZ94-SUM(AV94:AY94)/quo,0) -> 0
A95: ROSCOLUX | B95: #59 INDIGO | C95: =CONCATENATE(A95," ",B95) -> ROSCOLUX #59 INDIGO | D95: 15.63 | E95: 29.91 | F95: 40.56 | G95: 34.32 | H95: 22.82 | I95: 14.63 | J95: 9.47 | K95: 3.32 | L95: 0.99 | M95: 0.3 | N95: 0.18 | O95: 0.09 | P95: 0.19 | Q95: 0.33 | R95: 0.22 | S95: 3.35 | T95: 32.74 | U95: 64.3 | V95: 75.65 | W95: 79.65 | X95: 0.02 | AA95: =D95*D$5 -> 0 | AB95: =E95*E$5 -> 0 | AC95: =F95*F$5 -> 0.8112 | AD95: =G95*G$5 -> 3.432 | AE95: =H95*H$5 -> 20.538 | AF95: =I95*I$5 -> 4.389 | AG95: =J95*J$5 -> 0.947 | AH95: =K95*K$5 -> 0.498 | AI95: =L95*L$5 -> 0.396 | AJ95: =M95*M$5 -> 0.171 | AK95: =N95*N$5 -> 0.1044 | AL95: =O95*O$5 -> 0.0468 | AM95: =P95*P$5 -> 0.0912 | AN95: =Q95*Q$5 -> 0.1221 | AO95: =R95*R$5 -> 0.0528 | AP95: =S95*S$5 -> 0.603 | AQ95: =T95*T$5 -> 4.2562 | AR95: =U95*U$5 -> 5.144 | AS95: =V95*V$5 -> 3.7825 | AT95: =W95*W$5 -> 2.3895 | AV95: =700/420*AVERAGE(AA95:AD95) -> 1.768 | AW95: =700/510*AVERAGE(AE95:AH95) -> 9.049215686 | AX95: =700/570*AVERAGE(AI95:AL95) -> 0.2205 | AY95: =700/640*AVERAGE(AM95:AP95) -> 0.2376445312 | AZ95: =AVERAGE(AQ95:AT95) -> 3.89305 | BB95: =B95 -> #59 INDIGO | BC95: =MAX(AV95-SUM(AW95:AZ95)/quo,0) -> 0 | BD95: =MAX(AW95-(AV95+SUM(AX95:AZ95))/quo,0) -> 5.989618421 | BE95: =MAX(AX95-(SUM(AV95:AW95)+SUM(AY95:AZ95))/quo,0) -> 0 | BF95: =MAX(AY95-(SUM(AV95:AX95)+AZ95)/quo,0) -> 0 | BG95: =MAX(AZ95-SUM(AV95:AY95)/quo,0) -> 0
A96: ROSCOLUX | B96: #51 SURPRISE PINK | C96: =CONCATENATE(A96," ",B96) -> ROSCOLUX #51 SURPRISE PINK | D96: 68.44 | E96: 74.75 | F96: 77.53 | G96: 78.44 | H96: 76.72 | I96: 72.46 | J96: 66.55 | K96: 59.27 | L96: 52.61 | M96: 48.45 | N96: 48.31 | O96: 48.25 | P96: 56.06 | Q96: 59.45 | R96: 57.64 | S96: 66.76 | T96: 79.74 | U96: 83.94 | V96: 84.89 | W96: 85.47 | X96: 0.54 | AA96: =D96*D$5 -> 0 | AB96: =E96*E$5 -> 0 | AC96: =F96*F$5 -> 1.5506 | AD96: =G96*G$5 -> 7.844 | AE96: =H96*H$5 -> 69.048 | AF96: =I96*I$5 -> 21.738 | AG96: =J96*J$5 -> 6.655 | AH96: =K96*K$5 -> 8.8905 | AI96: =L96*L$5 -> 21.044 | AJ96: =M96*M$5 -> 27.6165 | AK96: =N96*N$5 -> 28.0198 | AL96: =O96*O$5 -> 25.09 | AM96: =P96*P$5 -> 26.9088 | AN96: =Q96*Q$5 -> 21.9965 | AO96: =R96*R$5 -> 13.8336 | AP96: =S96*S$5 -> 12.0168 | AQ96: =T96*T$5 -> 10.3662 | AR96: =U96*U$5 -> 6.7152 | AS96: =V96*V$5 -> 4.2445 | AT96: =W96*W$5 -> 2.5641 | AV96: =700/420*AVERAGE(AA96:AD96) -> 3.914416667 | AW96: =700/510*AVERAGE(AE96:AH96) -> 36.48629902 | AX96: =700/570*AVERAGE(AI96:AL96) -> 31.24526754 | AY96: =700/640*AVERAGE(AM96:AP96) -> 20.44101172 | AZ96: =AVERAGE(AQ96:AT96) -> 5.9725 | BB96: =B96 -> #51 SURPRISE PINK | BC96: =MAX(AV96-SUM(AW96:AZ96)/quo,0) -> 0 | BD96: =MAX(AW96-(AV96+SUM(AX96:AZ96))/quo,0) -> 5.699701055 | BE96: =MAX(AX96-(SUM(AV96:AW96)+SUM(AY96:AZ96))/quo,0) -> 0 | BF96: =MAX(AY96-(SUM(AV96:AX96)+AZ96)/quo,0) -> 0 | BG96: =MAX(AZ96-SUM(AV96:AY96)/quo,0) -> 0
A97: ROSCOLUX | B97: #47 LT ROSE PURPLE | C97: =CONCATENATE(A97," ",B97) -> ROSCOLUX #47 LT ROSE PURPLE | D97: 28.67 | E97: 44.91 | F97: 46.06 | G97: 35.13 | H97: 24.82 | I97: 20.78 | J97: 19.28 | K97: 10.09 | L97: 5.29 | M97: 3.75 | N97: 4.57 | O97: 6.35 | P97: 16.04 | Q97: 16.56 | R97: 11.41 | S97: 8.61 | T97: 6.92 | U97: 9.44 | V97: 25.78 | W97: 54.71 | X97: 0.16 | AA97: =D97*D$5 -> 0 | AB97: =E97*E$5 -> 0 | AC97: =F97*F$5 -> 0.9212 | AD97: =G97*G$5 -> 3.513 | AE97: =H97*H$5 -> 22.338 | AF97: =I97*I$5 -> 6.234 | AG97: =J97*J$5 -> 1.928 | AH97: =K97*K$5 -> 1.5135 | AI97: =L97*L$5 -> 2.116 | AJ97: =M97*M$5 -> 2.1375 | AK97: =N97*N$5 -> 2.6506 | AL97: =O97*O$5 -> 3.302 | AM97: =P97*P$5 -> 7.6992 | AN97: =Q97*Q$5 -> 6.1272 | AO97: =R97*R$5 -> 2.7384 | AP97: =S97*S$5 -> 1.5498 | AQ97: =T97*T$5 -> 0.8996 | AR97: =U97*U$5 -> 0.7552 | AS97: =V97*V$5 -> 1.289 | AT97: =W97*W$5 -> 1.6413 | AV97: =700/420*AVERAGE(AA97:AD97) -> 1.847583333 | AW97: =700/510*AVERAGE(AE97:AH97) -> 10.98502451 | AX97: =700/570*AVERAGE(AI97:AL97) -> 3.133451754 | AY97: =700/640*AVERAGE(AM97:AP97) -> 4.953210937 | AZ97: =AVERAGE(AQ97:AT97) -> 1.146275 | BB97: =B97 -> #47 LT ROSE PURPLE | BC97: =MAX(AV97-SUM(AW97:AZ97)/quo,0) -> 0 | BD97: =MAX(AW97-(AV97+SUM(AX97:AZ97))/quo,0) -> 5.444763997 | BE97: =MAX(AX97-(SUM(AV97:AW97)+SUM(AY97:AZ97))/quo,0) -> 0 | BF97: =MAX(AY97-(SUM(AV97:AX97)+AZ97)/quo,0) -> 0 | BG97: =MAX(AZ97-SUM(AV97:AY97)/quo,0) -> 0
A98: ROSCOLUX | B98: #4730 CALCOLOR 30 MAGENTA | C98: =B98 -> #4730 CALCOLOR 30 MAGENTA | D98: 61.68 | E98: 71.51 | F98: 74.73 | G98: 75.03 | H98: 71.45 | I98: 63.19 | J98: 52.85 | K98: 41.96 | L98: 34.08 | M98: 31.1 | N98: 34.38 | O98: 40.26 | P98: 60.69 | Q98: 70.11 | R98: 71 | S98: 75.45 | T98: 81.86 | U98: 84.92 | V98: 85.8 | W98: 86.08 | X98: 0.52 | AA98: =D98*D$5 -> 0 | AB98: =E98*E$5 -> 0 | AC98: =F98*F$5 -> 1.4946 | AD98: =G98*G$5 -> 7.503 | AE98: =H98*H$5 -> 64.305 | AF98: =I98*I$5 -> 18.957 | AG98: =J98*J$5 -> 5.285 | AH98: =K98*K$5 -> 6.294 | AI98: =L98*L$5 -> 13.632 | AJ98: =M98*M$5 -> 17.727 | AK98: =N98*N$5 -> 19.9404 | AL98: =O98*O$5 -> 20.9352 | AM98: =P98*P$5 -> 29.1312 | AN98: =Q98*Q$5 -> 25.9407 | AO98: =R98*R$5 -> 17.04 | AP98: =S98*S$5 -> 13.581 | AQ98: =T98*T$5 -> 10.6418 | AR98: =U98*U$5 -> 6.7936 | AS98: =V98*V$5 -> 4.29 | AT98: =W98*W$5 -> 2.5824 | AV98: =700/420*AVERAGE(AA98:AD98) -> 3.749 | AW98: =700/510*AVERAGE(AE98:AH98) -> 32.54348039 | AX98: =700/570*AVERAGE(AI98:AL98) -> 22.17728947 | AY98: =700/640*AVERAGE(AM98:AP98) -> 23.43165234 | AZ98: =AVERAGE(AQ98:AT98) -> 6.07695 | BB98: =B98 -> #4730 CALCOLOR 30 MAGENTA | BC98: =MAX(AV98-SUM(AW98:AZ98)/quo,0) -> 0 | BD98: =MAX(AW98-(AV98+SUM(AX98:AZ98))/quo,0) -> 4.826034483 | BE98: =MAX(AX98-(SUM(AV98:AW98)+SUM(AY98:AZ98))/quo,0) -> 0 | BF98: =MAX(AY98-(SUM(AV98:AX98)+AZ98)/quo,0) -> 0 | BG98: =MAX(AZ98-SUM(AV98:AY98)/quo,0) -> 0
A99: ROSCOLUX | B99: #4915 CALCOLOR 15 LAVENDER | C99: =B99 -> #4915 CALCOLOR 15 LAVENDER | D99: 63.76 | E99: 69.84 | F99: 73.91 | G99: 75.48 | H99: 73.63 | I99: 69.07 | J99: 62.58 | K99: 56.45 | L99: 49.17 | M99: 49.38 | N99: 46.06 | O99: 51.33 | P99: 55.62 | Q99: 55.68 | R99: 53.22 | S99: 64.1 | T99: 78.82 | U99: 83.18 | V99: 84.09 | W99: 84.41 | X99: 0.61 | AA99: =D99*D$5 -> 0 | AB99: =E99*E$5 -> 0 | AC99: =F99*F$5 -> 1.4782 | AD99: =G99*G$5 -> 7.548 | AE99: =H99*H$5 -> 66.267 | AF99: =I99*I$5 -> 20.721 | AG99: =J99*J$5 -> 6.258 | AH99: =K99*K$5 -> 8.4675 | AI99: =L99*L$5 -> 19.668 | AJ99: =M99*M$5 -> 28.1466 | AK99: =N99*N$5 -> 26.7148 | AL99: =O99*O$5 -> 26.6916 | AM99: =P99*P$5 -> 26.6976 | AN99: =Q99*Q$5 -> 20.6016 | AO99: =R99*R$5 -> 12.7728 | AP99: =S99*S$5 -> 11.538 | AQ99: =T99*T$5 -> 10.2466 | AR99: =U99*U$5 -> 6.6544 | AS99: =V99*V$5 -> 4.2045 | AT99: =W99*W$5 -> 2.5323 | AV99: =700/420*AVERAGE(AA99:AD99) -> 3.760916667 | AW99: =700/510*AVERAGE(AE99:AH99) -> 34.90169118 | AX99: =700/570*AVERAGE(AI99:AL99) -> 31.07662281 | AY99: =700/640*AVERAGE(AM99:AP99) -> 19.58085937 | AZ99: =AVERAGE(AQ99:AT99) -> 5.90945 | BB99: =B99 -> #4915 CALCOLOR 15 LAVENDER | BC99: =MAX(AV99-SUM(AW99:AZ99)/quo,0) -> 0 | BD99: =MAX(AW99-(AV99+SUM(AX99:AZ99))/quo,0) -> 4.737766752 | BE99: =MAX(AX99-(SUM(AV99:AW99)+SUM(AY99:AZ99))/quo,0) -> 0 | BF99: =MAX(AY99-(SUM(AV99:AX99)+AZ99)/quo,0) -> 0 | BG99: =MAX(AZ99-SUM(AV99:AY99)/quo,0) -> 0
A100: ROSCOLUX | B100: #53 PALE LAVENDER | C100: =CONCATENATE(A100," ",B100) -> ROSCOLUX #53 PALE LAVENDER | D100: 65.16 | E100: 72.66 | F100: 76.74 | G100: 78.15 | H100: 79 | I100: 77.85 | J100: 74.92 | K100: 71.44 | L100: 66.44 | M100: 60.5 | N100: 57.41 | O100: 53.71 | P100: 56.27 | Q100: 59.27 | R100: 61.98 | S100: 74.97 | T100: 83.38 | U100: 85.82 | V100: 86.55 | W100: 87.13 | X100: 0.64 | AA100: =D100*D$5 -> 0 | AB100: =E100*E$5 -> 0 | AC100: =F100*F$5 -> 1.5348 | AD100: =G100*G$5 -> 7.815 | AE100: =H100*H$5 -> 71.1 | AF100: =I100*I$5 -> 23.355 | AG100: =J100*J$5 -> 7.492 | AH100: =K100*K$5 -> 10.716 | AI100: =L100*L$5 -> 26.576 | AJ100: =M100*M$5 -> 34.485 | AK100: =N100*N$5 -> 33.2978 | AL100: =O100*O$5 -> 27.9292 | AM100: =P100*P$5 -> 27.0096 | AN100: =Q100*Q$5 -> 21.9299 | AO100: =R100*R$5 -> 14.8752 | AP100: =S100*S$5 -> 13.4946 | AQ100: =T100*T$5 -> 10.8394 | AR100: =U100*U$5 -> 6.8656 | AS100: =V100*V$5 -> 4.3275 | AT100: =W100*W$5 -> 2.6139 | AV100: =700/420*AVERAGE(AA100:AD100) -> 3.89575 | AW100: =700/510*AVERAGE(AE100:AH100) -> 38.65887255 | AX100: =700/570*AVERAGE(AI100:AL100) -> 37.5445614 | AY100: =700/640*AVERAGE(AM100:AP100) -> 21.13926172 | AZ100: =AVERAGE(AQ100:AT100) -> 6.1616 | BB100: =B100 -> #53 PALE LAVENDER | BC100: =MAX(AV100-SUM(AW100:AZ100)/quo,0) -> 0 | BD100: =MAX(AW100-(AV100+SUM(AX100:AZ100))/quo,0) -> 4.288285988 | BE100: =MAX(AX100-(SUM(AV100:AW100)+SUM(AY100:AZ100))/quo,0) -> 2.61681927 | BF100: =MAX(AY100-(SUM(AV100:AX100)+AZ100)/quo,0) -> 0 | BG100: =MAX(AZ100-SUM(AV100:AY100)/quo,0) -> 0
A101: ROSCOLUX | B101: #44 MIDDLE ROSE | C101: =CONCATENATE(A101," ",B101) -> ROSCOLUX #44 MIDDLE ROSE | D101: 53.16 | E101: 67.71 | F101: 71.49 | G101: 70.33 | H101: 61.82 | I101: 46.4 | J101: 30.56 | K101: 18.12 | L101: 11.49 | M101: 9.63 | N101: 12.95 | O101: 20.71 | P101: 55.51 | Q101: 78.5 | R101: 82.42 | S101: 83.54 | T101: 84.33 | U101: 84.67 | V101: 85.11 | W101: 85.47 | X101: 0.26 | AA101: =D101*D$5 -> 0 | AB101: =E101*E$5 -> 0 | AC101: =F101*F$5 -> 1.4298 | AD101: =G101*G$5 -> 7.033 | AE101: =H101*H$5 -> 55.638 | AF101: =I101*I$5 -> 13.92 | AG101: =J101*J$5 -> 3.056 | AH101: =K101*K$5 -> 2.718 | AI101: =L101*L$5 -> 4.596 | AJ101: =M101*M$5 -> 5.4891 | AK101: =N101*N$5 -> 7.511 | AL101: =O101*O$5 -> 10.7692 | AM101: =P101*P$5 -> 26.6448 | AN101: =Q101*Q$5 -> 29.045 | AO101: =R101*R$5 -> 19.7808 | AP101: =S101*S$5 -> 15.0372 | AQ101: =T101*T$5 -> 10.9629 | AR101: =U101*U$5 -> 6.7736 | AS101: =V101*V$5 -> 4.2555 | AT101: =W101*W$5 -> 2.5641 | AV101: =700/420*AVERAGE(AA101:AD101) -> 3.526166667 | AW101: =700/510*AVERAGE(AE101:AH101) -> 25.84921569 | AX101: =700/570*AVERAGE(AI101:AL101) -> 8.708644737 | AY101: =700/640*AVERAGE(AM101:AP101) -> 24.74822656 | AZ101: =AVERAGE(AQ101:AT101) -> 6.139025 | BB101: =B101 -> #44 MIDDLE ROSE | BC101: =MAX(AV101-SUM(AW101:AZ101)/quo,0) -> 0 | BD101: =MAX(AW101-(AV101+SUM(AX101:AZ101))/quo,0) -> 4.288184203 | BE101: =MAX(AX101-(SUM(AV101:AW101)+SUM(AY101:AZ101))/quo,0) -> 0 | BF101: =MAX(AY101-(SUM(AV101:AX101)+AZ101)/quo,0) -> 2.636700518 | BG101: =MAX(AZ101-SUM(AV101:AY101)/quo,0) -> 0
A102: ROSCOLUX | B102: #4330 CALCOLOR 30 CYAN | C102: #4330 CALCOLOR 30 CYAN | D102: 57.07 | E102: 66.17 | F102: 71.59 | G102: 73.12 | H102: 73.69 | I102: 76.65 | J102: 81.12 | K102: 80.73 | L102: 79.13 | M102: 76.19 | N102: 70.17 | O102: 62.52 | P102: 53.31 | Q102: 42.66 | R102: 34.64 | S102: 29.84 | T102: 26.6 | U102: 31.46 | V102: 50.64 | W102: 71.2 | X102: 0.63 | AA102: =D102*D$5 -> 0 | AB102: =E102*E$5 -> 0 | AC102: =F102*F$5 -> 1.4318 | AD102: =G102*G$5 -> 7.312 | AE102: =H102*H$5 -> 66.321 | AF102: =I102*I$5 -> 22.995 | AG102: =J102*J$5 -> 8.112 | AH102: =K102*K$5 -> 12.1095 | AI102: =L102*L$5 -> 31.652 | AJ102: =M102*M$5 -> 43.4283 | AK102: =N102*N$5 -> 40.6986 | AL102: =O102*O$5 -> 32.5104 | AM102: =P102*P$5 -> 25.5888 | AN102: =Q102*Q$5 -> 15.7842 | AO102: =R102*R$5 -> 8.3136 | AP102: =S102*S$5 -> 5.3712 | AQ102: =T102*T$5 -> 3.458 | AR102: =U102*U$5 -> 2.5168 | AS102: =V102*V$5 -> 2.532 | AT102: =W102*W$5 -> 2.136 | AV102: =700/420*AVERAGE(AA102:AD102) -> 3.64325 | AW102: =700/510*AVERAGE(AE102:AH102) -> 37.58639706 | AX102: =700/570*AVERAGE(AI102:AL102) -> 45.52741667 | AY102: =700/640*AVERAGE(AM102:AP102) -> 15.05486719 | AZ102: =AVERAGE(AQ102:AT102) -> 2.6607 | BB102: =B102 -> #4330 CALCOLOR 30 CYAN | BC102: =MAX(AV102-SUM(AW102:AZ102)/quo,0) -> 0 | BD102: =MAX(AW102-(AV102+SUM(AX102:AZ102))/quo,0) -> 4.143280132 | BE102: =MAX(AX102-(SUM(AV102:AW102)+SUM(AY102:AZ102))/quo,0) -> 16.05480954 | BF102: =MAX(AY102-(SUM(AV102:AX102)+AZ102)/quo,0) -> 0 | BG102: =MAX(AZ102-SUM(AV102:AY102)/quo,0) -> 0
A103: ROSCOLUX | B103: #95 MED BLUE GREEN | C103: =CONCATENATE(A103," ",B103) -> ROSCOLUX #95 MED BLUE GREEN | D103: 17.73 | E103: 10.87 | F103: 5.97 | G103: 5.37 | H103: 10.18 | I103: 23.11 | J103: 35.93 | K103: 39.33 | L103: 28.25 | M103: 14.16 | N103: 5.37 | O103: 1.81 | P103: 0.54 | Q103: 0.36 | R103: 0.32 | S103: 0.53 | T103: 3.69 | U103: 21.69 | V103: 55.2 | W103: 77.18 | X103: 0.15 | AA103: =D103*D$5 -> 0 | AB103: =E103*E$5 -> 0 | AC103: =F103*F$5 -> 0.1194 | AD103: =G103*G$5 -> 0.537 | AE103: =H103*H$5 -> 9.162 | AF103: =I103*I$5 -> 6.933 | AG103: =J103*J$5 -> 3.593 | AH103: =K103*K$5 -> 5.8995 | AI103: =L103*L$5 -> 11.3 | AJ103: =M103*M$5 -> 8.0712 | AK103: =N103*N$5 -> 3.1146 | AL103: =O103*O$5 -> 0.9412 | AM103: =P103*P$5 -> 0.2592 | AN103: =Q103*Q$5 -> 0.1332 | AO103: =R103*R$5 -> 0.0768 | AP103: =S103*S$5 -> 0.0954 | AQ103: =T103*T$5 -> 0.4797 | AR103: =U103*U$5 -> 1.7352 | AS103: =V103*V$5 -> 2.76 | AT103: =W103*W$5 -> 2.3154 | AV103: =700/420*AVERAGE(AA103:AD103) -> 0.2735 | AW103: =700/510*AVERAGE(AE103:AH103) -> 8.78002451 | AX103: =700/570*AVERAGE(AI103:AL103) -> 7.1925 | AY103: =700/640*AVERAGE(AM103:AP103) -> 0.1543828125 | AZ103: =AVERAGE(AQ103:AT103) -> 1.822575 | BB103: =B103 -> #95 MED BLUE GREEN | BC103: =MAX(AV103-SUM(AW103:AZ103)/quo,0) -> 0 | BD103: =MAX(AW103-(AV103+SUM(AX103:AZ103))/quo,0) -> 4.058545604 | BE103: =MAX(AX103-(SUM(AV103:AW103)+SUM(AY103:AZ103))/quo,0) -> 1.677258839 | BF103: =MAX(AY103-(SUM(AV103:AX103)+AZ103)/quo,0) -> 0 | BG103: =MAX(AZ103-SUM(AV103:AY103)/quo,0) -> 0
A104: ROSCOLUX | B104: #347 BELLADONNA ROSE | C104: =CONCATENATE(A104," ",B104) -> ROSCOLUX #347 BELLADONNA ROSE | D104: 2.68 | E104: 19.2 | F104: 45.75 | G104: 38.94 | H104: 24.05 | I104: 11.29 | J104: 4.48 | K104: 1.51 | L104: 0.39 | M104: 0.17 | N104: 0.08 | O104: 0.9 | P104: 0.47 | Q104: 3.21 | R104: 14.29 | S104: 35.11 | T104: 50.31 | U104: 58.39 | V104: 68.75 | W104: 79.84 | X104: 0.06 | AA104: =D104*D$5 -> 0 | AB104: =E104*E$5 -> 0 | AC104: =F104*F$5 -> 0.915 | AD104: =G104*G$5 -> 3.894 | AE104: =H104*H$5 -> 21.645 | AF104: =I104*I$5 -> 3.387 | AG104: =J104*J$5 -> 0.448 | AH104: =K104*K$5 -> 0.2265 | AI104: =L104*L$5 -> 0.156 | AJ104: =M104*M$5 -> 0.0969 | AK104: =N104*N$5 -> 0.0464 | AL104: =O104*O$5 -> 0.468 | AM104: =P104*P$5 -> 0.2256 | AN104: =Q104*Q$5 -> 1.1877 | AO104: =R104*R$5 -> 3.4296 | AP104: =S104*S$5 -> 6.3198 | AQ104: =T104*T$5 -> 6.5403 | AR104: =U104*U$5 -> 4.6712 | AS104: =V104*V$5 -> 3.4375 | AT104: =W104*W$5 -> 2.3952 | AV104: =700/420*AVERAGE(AA104:AD104) -> 2.00375 | AW104: =700/510*AVERAGE(AE104:AH104) -> 8.820857843 | AX104: =700/570*AVERAGE(AI104:AL104) -> 0.2355745614 | AY104: =700/640*AVERAGE(AM104:AP104) -> 3.052300781 | AZ104: =AVERAGE(AQ104:AT104) -> 4.26105 | BB104: =B104 -> #347 BELLADONNA ROSE | BC104: =MAX(AV104-SUM(AW104:AZ104)/quo,0) -> 0 | BD104: =MAX(AW104-(AV104+SUM(AX104:AZ104))/quo,0) -> 4.044520172 | BE104: =MAX(AX104-(SUM(AV104:AW104)+SUM(AY104:AZ104))/quo,0) -> 0 | BF104: =MAX(AY104-(SUM(AV104:AX104)+AZ104)/quo,0) -> 0 | BG104: =MAX(AZ104-SUM(AV104:AY104)/quo,0) -> 0
A105: ROSCOLUX | B105: #49 MED PURPLE | C105: =CONCATENATE(A105," ",B105) -> ROSCOLUX #49 MED PURPLE | D105: 4.87 | E105: 24.78 | F105: 49.44 | G105: 44.04 | H105: 28.77 | I105: 15.16 | J105: 7.23 | K105: 3.28 | L105: 1.33 | M105: 0.62 | N105: 0.47 | O105: 0.76 | P105: 2.63 | Q105: 11.08 | R105: 32.48 | S105: 58.84 | T105: 75.92 | U105: 82.65 | V105: 85.15 | W105: 86.32 | X105: 0.04 | AA105: =D105*D$5 -> 0 | AB105: =E105*E$5 -> 0 | AC105: =F105*F$5 -> 0.9888 | AD105: =G105*G$5 -> 4.404 | AE105: =H105*H$5 -> 25.893 | AF105: =I105*I$5 -> 4.548 | AG105: =J105*J$5 -> 0.723 | AH105: =K105*K$5 -> 0.492 | AI105: =L105*L$5 -> 0.532 | AJ105: =M105*M$5 -> 0.3534 | AK105: =N105*N$5 -> 0.2726 | AL105: =O105*O$5 -> 0.3952 | AM105: =P105*P$5 -> 1.2624 | AN105: =Q105*Q$5 -> 4.0996 | AO105: =R105*R$5 -> 7.7952 | AP105: =S105*S$5 -> 10.5912 | AQ105: =T105*T$5 -> 9.8696 | AR105: =U105*U$5 -> 6.612 | AS105: =V105*V$5 -> 4.2575 | AT105: =W105*W$5 -> 2.5896 | AV105: =700/420*AVERAGE(AA105:AD105) -> 2.247 | AW105: =700/510*AVERAGE(AE105:AH105) -> 10.86235294 | AX105: =700/570*AVERAGE(AI105:AL105) -> 0.4768596491 | AY105: =700/640*AVERAGE(AM105:AP105) -> 6.493703125 | AZ105: =AVERAGE(AQ105:AT105) -> 5.832175 | BB105: =B105 -> #49 MED PURPLE | BC105: =MAX(AV105-SUM(AW105:AZ105)/quo,0) -> 0 | BD105: =MAX(AW105-(AV105+SUM(AX105:AZ105))/quo,0) -> 3.337484054 | BE105: =MAX(AX105-(SUM(AV105:AW105)+SUM(AY105:AZ105))/quo,0) -> 0 | BF105: =MAX(AY105-(SUM(AV105:AX105)+AZ105)/quo,0) -> 0 | BG105: =MAX(AZ105-SUM(AV105:AY105)/quo,0) -> 0
A106: ROSCOLUX | B106: #3208 QUARTER BLUE CTB | C106: #3208 QUARTER BLUE CTB | D106: 58.17 | E106: 64.41 | F106: 68.45 | G106: 72.23 | H106: 73.07 | I106: 71.29 | J106: 68.1 | K106: 65 | L106: 60.57 | M106: 60.42 | N106: 57.34 | O106: 59.12 | P106: 57.25 | Q106: 53.57 | R106: 51.54 | S106: 49.67 | T106: 54.38 | U106: 66.06 | V106: 76.29 | W106: 81.49 | X106: 0.74 | AA106: =D106*D$5 -> 0 | AB106: =E106*E$5 -> 0 | AC106: =F106*F$5 -> 1.369 | AD106: =G106*G$5 -> 7.223 | AE106: =H106*H$5 -> 65.763 | AF106: =I106*I$5 -> 21.387 | AG106: =J106*J$5 -> 6.81 | AH106: =K106*K$5 -> 9.75 | AI106: =L106*L$5 -> 24.228 | AJ106: =M106*M$5 -> 34.4394 | AK106: =N106*N$5 -> 33.2572 | AL106: =O106*O$5 -> 30.7424 | AM106: =P106*P$5 -> 27.48 | AN106: =Q106*Q$5 -> 19.8209 | AO106: =R106*R$5 -> 12.3696 | AP106: =S106*S$5 -> 8.9406 | AQ106: =T106*T$5 -> 7.0694 | AR106: =U106*U$5 -> 5.2848 | AS106: =V106*V$5 -> 3.8145 | AT106: =W106*W$5 -> 2.4447 | AV106: =700/420*AVERAGE(AA106:AD106) -> 3.58 | AW106: =700/510*AVERAGE(AE106:AH106) -> 35.58676471 | AX106: =700/570*AVERAGE(AI106:AL106) -> 37.66092105 | AY106: =700/640*AVERAGE(AM106:AP106) -> 18.76084766 | AZ106: =AVERAGE(AQ106:AT106) -> 4.65335 | BB106: =B106 -> #3208 QUARTER BLUE CTB | BC106: =MAX(AV106-SUM(AW106:AZ106)/quo,0) -> 0 | BD106: =MAX(AW106-(AV106+SUM(AX106:AZ106))/quo,0) -> 3.259205351 | BE106: =MAX(AX106-(SUM(AV106:AW106)+SUM(AY106:AZ106))/quo,0) -> 6.370439872 | BF106: =MAX(AY106-(SUM(AV106:AX106)+AZ106)/quo,0) -> 0 | BG106: =MAX(AZ106-SUM(AV106:AY106)/quo,0) -> 0
A107: ROSCOLUX | B107: #393 EMERALD GREEN | C107: =CONCATENATE(A107," ",B107) -> ROSCOLUX #393 EMERALD GREEN | D107: 12.81 | E107: 13.69 | F107: 9.92 | G107: 7.58 | H107: 13.11 | I107: 22.7 | J107: 32.8 | K107: 39.96 | L107: 38.58 | M107: 25.13 | N107: 12.28 | O107: 3.63 | P107: 1.24 | Q107: 0.24 | R107: 0.12 | S107: 0.12 | T107: 0.07 | U107: 0.19 | V107: 1.84 | W107: 14.75 | X107: 0.14 | AA107: =D107*D$5 -> 0 | AB107: =E107*E$5 -> 0 | AC107: =F107*F$5 -> 0.1984 | AD107: =G107*G$5 -> 0.758 | AE107: =H107*H$5 -> 11.799 | AF107: =I107*I$5 -> 6.81 | AG107: =J107*J$5 -> 3.28 | AH107: =K107*K$5 -> 5.994 | AI107: =L107*L$5 -> 15.432 | AJ107: =M107*M$5 -> 14.3241 | AK107: =N107*N$5 -> 7.1224 | AL107: =O107*O$5 -> 1.8876 | AM107: =P107*P$5 -> 0.5952 | AN107: =Q107*Q$5 -> 0.0888 | AO107: =R107*R$5 -> 0.0288 | AP107: =S107*S$5 -> 0.0216 | AQ107: =T107*T$5 -> 0.0091 | AR107: =U107*U$5 -> 0.0152 | AS107: =V107*V$5 -> 0.092 | AT107: =W107*W$5 -> 0.4425 | AV107: =700/420*AVERAGE(AA107:AD107) -> 0.3985 | AW107: =700/510*AVERAGE(AE107:AH107) -> 9.567696078 | AX107: =700/570*AVERAGE(AI107:AL107) -> 11.90187281 | AY107: =700/640*AVERAGE(AM107:AP107) -> 0.2008125 | AZ107: =AVERAGE(AQ107:AT107) -> 0.1397 | BB107: =B107 -> #393 EMERALD GREEN | BC107: =MAX(AV107-SUM(AW107:AZ107)/quo,0) -> 0 | BD107: =MAX(AW107-(AV107+SUM(AX107:AZ107))/quo,0) -> 3.247253425 | BE107: =MAX(AX107-(SUM(AV107:AW107)+SUM(AY107:AZ107))/quo,0) -> 6.748518518 | BF107: =MAX(AY107-(SUM(AV107:AX107)+AZ107)/quo,0) -> 0 | BG107: =MAX(AZ107-SUM(AV107:AY107)/quo,0) -> 0
A108: ROSCOLUX | B108: #351 LAVENDER MIST | C108: =CONCATENATE(A108," ",B108) -> ROSCOLUX #351 LAVENDER MIST | D108: 68.29 | E108: 74.08 | F108: 76.95 | G108: 78.41 | H108: 78.56 | I108: 76.06 | J108: 71.48 | K108: 66.51 | L108: 60.73 | M108: 57.34 | N108: 56.19 | O108: 57.17 | P108: 63.34 | Q108: 64.24 | R108: 64.06 | S108: 76.32 | T108: 84.56 | U108: 86.72 | V108: 87.36 | W108: 87.93 | X108: 0.61 | AA108: =D108*D$5 -> 0 | AB108: =E108*E$5 -> 0 | AC108: =F108*F$5 -> 1.539 | AD108: =G108*G$5 -> 7.841 | AE108: =H108*H$5 -> 70.704 | AF108: =I108*I$5 -> 22.818 | AG108: =J108*J$5 -> 7.148 | AH108: =K108*K$5 -> 9.9765 | AI108: =L108*L$5 -> 24.292 | AJ108: =M108*M$5 -> 32.6838 | AK108: =N108*N$5 -> 32.5902 | AL108: =O108*O$5 -> 29.7284 | AM108: =P108*P$5 -> 30.4032 | AN108: =Q108*Q$5 -> 23.7688 | AO108: =R108*R$5 -> 15.3744 | AP108: =S108*S$5 -> 13.7376 | AQ108: =T108*T$5 -> 10.9928 | AR108: =U108*U$5 -> 6.9376 | AS108: =V108*V$5 -> 4.368 | AT108: =W108*W$5 -> 2.6379 | AV108: =700/420*AVERAGE(AA108:AD108) -> 3.908333333 | AW108: =700/510*AVERAGE(AE108:AH108) -> 37.96693627 | AX108: =700/570*AVERAGE(AI108:AL108) -> 36.62547368 | AY108: =700/640*AVERAGE(AM108:AP108) -> 22.77296875 | AZ108: =AVERAGE(AQ108:AT108) -> 6.234075 | BB108: =B108 -> #351 LAVENDER MIST | BC108: =MAX(AV108-SUM(AW108:AZ108)/quo,0) -> 0 | BD108: =MAX(AW108-(AV108+SUM(AX108:AZ108))/quo,0) -> 3.196510891 | BE108: =MAX(AX108-(SUM(AV108:AW108)+SUM(AY108:AZ108))/quo,0) -> 1.184317005 | BF108: =MAX(AY108-(SUM(AV108:AX108)+AZ108)/quo,0) -> 0 | BG108: =MAX(AZ108-SUM(AV108:AY108)/quo,0) -> 0
A109: ROSCOLUX | B109: #395 TEAL GREEN | C109: =CONCATENATE(A109," ",B109) -> ROSCOLUX #395 TEAL GREEN | D109: 18.69 | E109: 14.86 | F109: 8.01 | G109: 5.65 | H109: 10.64 | I109: 22.27 | J109: 34.3 | K109: 41.13 | L109: 37.24 | M109: 23.92 | N109: 11.26 | O109: 4.02 | P109: 1.29 | Q109: 0.42 | R109: 0.19 | S109: 0.19 | T109: 0.22 | U109: 0.64 | V109: 4.14 | W109: 21.18 | X109: 0.13 | AA109: =D109*D$5 -> 0 | AB109: =E109*E$5 -> 0 | AC109: =F109*F$5 -> 0.1602 | AD109: =G109*G$5 -> 0.565 | AE109: =H109*H$5 -> 9.576 | AF109: =I109*I$5 -> 6.681 | AG109: =J109*J$5 -> 3.43 | AH109: =K109*K$5 -> 6.1695 | AI109: =L109*L$5 -> 14.896 | AJ109: =M109*M$5 -> 13.6344 | AK109: =N109*N$5 -> 6.5308 | AL109: =O109*O$5 -> 2.0904 | AM109: =P109*P$5 -> 0.6192 | AN109: =Q109*Q$5 -> 0.1554 | AO109: =R109*R$5 -> 0.0456 | AP109: =S109*S$5 -> 0.0342 | AQ109: =T109*T$5 -> 0.0286 | AR109: =U109*U$5 -> 0.0512 | AS109: =V109*V$5 -> 0.207 | AT109: =W109*W$5 -> 0.6354 | AV109: =700/420*AVERAGE(AA109:AD109) -> 0.3021666667 | AW109: =700/510*AVERAGE(AE109:AH109) -> 8.872328431 | AX109: =700/570*AVERAGE(AI109:AL109) -> 11.40619298 | AY109: =700/640*AVERAGE(AM109:AP109) -> 0.233625 | AZ109: =AVERAGE(AQ109:AT109) -> 0.23055 | BB109: =B109 -> #395 TEAL GREEN | BC109: =MAX(AV109-SUM(AW109:AZ109)/quo,0) -> 0 | BD109: =MAX(AW109-(AV109+SUM(AX109:AZ109))/quo,0) -> 2.786061107 | BE109: =MAX(AX109-(SUM(AV109:AW109)+SUM(AY109:AZ109))/quo,0) -> 6.586857933 | BF109: =MAX(AY109-(SUM(AV109:AX109)+AZ109)/quo,0) -> 0 | BG109: =MAX(AZ109-SUM(AV109:AY109)/quo,0) -> 0
A110: ROSCOLUX | B110: #2009 VS VIOLET | C110: #2009 VS VIOLET | D110: 28.75 | E110: 43.57 | F110: 39.83 | G110: 25.59 | H110: 14.88 | I110: 10.92 | J110: 9.52 | K110: 3.68 | L110: 1.32 | M110: 0.68 | N110: 0.68 | O110: 0.76 | P110: 3.24 | Q110: 5.68 | R110: 4.84 | S110: 14.02 | T110: 47.69 | U110: 72.74 | V110: 80.91 | W110: 83.38 | X110: 0.03 | AA110: =D110*D$5 -> 0 | AB110: =E110*E$5 -> 0 | AC110: =F110*F$5 -> 0.7966 | AD110: =G110*G$5 -> 2.559 | AE110: =H110*H$5 -> 13.392 | AF110: =I110*I$5 -> 3.276 | AG110: =J110*J$5 -> 0.952 | AH110: =K110*K$5 -> 0.552 | AI110: =L110*L$5 -> 0.528 | AJ110: =M110*M$5 -> 0.3876 | AK110: =N110*N$5 -> 0.3944 | AL110: =O110*O$5 -> 0.3952 | AM110: =P110*P$5 -> 1.5552 | AN110: =Q110*Q$5 -> 2.1016 | AO110: =R110*R$5 -> 1.1616 | AP110: =S110*S$5 -> 2.5236 | AQ110: =T110*T$5 -> 6.1997 | AR110: =U110*U$5 -> 5.8192 | AS110: =V110*V$5 -> 4.0455 | AT110: =W110*W$5 -> 2.5014 | AV110: =700/420*AVERAGE(AA110:AD110) -> 1.398166667 | AW110: =700/510*AVERAGE(AE110:AH110) -> 6.235490196 | AX110: =700/570*AVERAGE(AI110:AL110) -> 0.5235263158 | AY110: =700/640*AVERAGE(AM110:AP110) -> 2.007578125 | AZ110: =AVERAGE(AQ110:AT110) -> 4.64145 | BB110: =B110 -> #2009 VS VIOLET | BC110: =MAX(AV110-SUM(AW110:AZ110)/quo,0) -> 0 | BD110: =MAX(AW110-(AV110+SUM(AX110:AZ110))/quo,0) -> 1.950129642 | BE110: =MAX(AX110-(SUM(AV110:AW110)+SUM(AY110:AZ110))/quo,0) -> 0 | BF110: =MAX(AY110-(SUM(AV110:AX110)+AZ110)/quo,0) -> 0 | BG110: =MAX(AZ110-SUM(AV110:AY110)/quo,0) -> 0
A111: ROSCOLUX | B111: #336 BILLINGTON PINK | C111: =CONCATENATE(A111," ",B111) -> ROSCOLUX #336 BILLINGTON PINK | D111: 45.99 | E111: 59.24 | F111: 67.2 | G111: 68.59 | H111: 63.79 | I111: 55.72 | J111: 45.77 | K111: 36.26 | L111: 29 | M111: 26.88 | N111: 30.03 | O111: 40.44 | P111: 62.77 | Q111: 76.76 | R111: 79.49 | S111: 80.14 | T111: 80.38 | U111: 80.49 | V111: 80.65 | W111: 80.71 | X111: 0.48 | AA111: =D111*D$5 -> 0 | AB111: =E111*E$5 -> 0 | AC111: =F111*F$5 -> 1.344 | AD111: =G111*G$5 -> 6.859 | AE111: =H111*H$5 -> 57.411 | AF111: =I111*I$5 -> 16.716 | AG111: =J111*J$5 -> 4.577 | AH111: =K111*K$5 -> 5.439 | AI111: =L111*L$5 -> 11.6 | AJ111: =M111*M$5 -> 15.3216 | AK111: =N111*N$5 -> 17.4174 | AL111: =O111*O$5 -> 21.0288 | AM111: =P111*P$5 -> 30.1296 | AN111: =Q111*Q$5 -> 28.4012 | AO111: =R111*R$5 -> 19.0776 | AP111: =S111*S$5 -> 14.4252 | AQ111: =T111*T$5 -> 10.4494 | AR111: =U111*U$5 -> 6.4392 | AS111: =V111*V$5 -> 4.0325 | AT111: =W111*W$5 -> 2.4213 | AV111: =700/420*AVERAGE(AA111:AD111) -> 3.417916667 | AW111: =700/510*AVERAGE(AE111:AH111) -> 28.87259804 | AX111: =700/570*AVERAGE(AI111:AL111) -> 20.0690614 | AY111: =700/640*AVERAGE(AM111:AP111) -> 25.1654375 | AZ111: =AVERAGE(AQ111:AT111) -> 5.8356 | BB111: =B111 -> #336 BILLINGTON PINK | BC111: =MAX(AV111-SUM(AW111:AZ111)/quo,0) -> 0 | BD111: =MAX(AW111-(AV111+SUM(AX111:AZ111))/quo,0) -> 1.628590254 | BE111: =MAX(AX111-(SUM(AV111:AW111)+SUM(AY111:AZ111))/quo,0) -> 0 | BF111: =MAX(AY111-(SUM(AV111:AX111)+AZ111)/quo,0) -> 0 | BG111: =MAX(AZ111-SUM(AV111:AY111)/quo,0) -> 0
A112: ROSCOLUX | B112: #373 THEATRE BOOSTER 3 | C112: =CONCATENATE(A112," ",B112) -> ROSCOLUX #373 THEATRE BOOSTER 3 | D112: 71.66 | E112: 76.07 | F112: 79.19 | G112: 81.58 | H112: 83.53 | I112: 83.83 | J112: 82.94 | K112: 80.73 | L112: 77.98 | M112: 74.34 | N112: 71.61 | O112: 67.24 | P112: 67.89 | Q112: 67.42 | R112: 67.03 | S112: 77.67 | T112: 84.98 | U112: 86.96 | V112: 87.53 | W112: 87.96 | X112: 0.72 | AA112: =D112*D$5 -> 0 | AB112: =E112*E$5 -> 0 | AC112: =F112*F$5 -> 1.5838 | AD112: =G112*G$5 -> 8.158 | AE112: =H112*H$5 -> 75.177 | AF112: =I112*I$5 -> 25.149 | AG112: =J112*J$5 -> 8.294 | AH112: =K112*K$5 -> 12.1095 | AI112: =L112*L$5 -> 31.192 | AJ112: =M112*M$5 -> 42.3738 | AK112: =N112*N$5 -> 41.5338 | AL112: =O112*O$5 -> 34.9648 | AM112: =P112*P$5 -> 32.5872 | AN112: =Q112*Q$5 -> 24.9454 | AO112: =R112*R$5 -> 16.0872 | AP112: =S112*S$5 -> 13.9806 | AQ112: =T112*T$5 -> 11.0474 | AR112: =U112*U$5 -> 6.9568 | AS112: =V112*V$5 -> 4.3765 | AT112: =W112*W$5 -> 2.6388 | AV112: =700/420*AVERAGE(AA112:AD112) -> 4.059083333 | AW112: =700/510*AVERAGE(AE112:AH112) -> 41.42678922 | AX112: =700/570*AVERAGE(AI112:AL112) -> 46.07240351 | AY112: =700/640*AVERAGE(AM112:AP112) -> 23.95323437 | AZ112: =AVERAGE(AQ112:AT112) -> 6.254875 | BB112: =B112 -> #373 THEATRE BOOSTER 3 | BC112: =MAX(AV112-SUM(AW112:AZ112)/quo,0) -> 0 | BD112: =MAX(AW112-(AV112+SUM(AX112:AZ112))/quo,0) -> 1.256991107 | BE112: =MAX(AX112-(SUM(AV112:AW112)+SUM(AY112:AZ112))/quo,0) -> 8.225412547 | BF112: =MAX(AY112-(SUM(AV112:AX112)+AZ112)/quo,0) -> 0 | BG112: =MAX(AZ112-SUM(AV112:AY112)/quo,0) -> 0
A113: ROSCOLUX | B113: #92 TURQUOISE | C113: =CONCATENATE(A113," ",B113) -> ROSCOLUX #92 TURQUOISE | D113: 39.76 | E113: 50.67 | F113: 51.97 | G113: 42.49 | H113: 36.6 | I113: 46.76 | J113: 72.23 | K113: 73.57 | L113: 69.04 | M113: 61.65 | N113: 50.11 | O113: 37.1 | P113: 24.58 | Q113: 13.93 | R113: 8.12 | S113: 5.61 | T113: 4.25 | U113: 6.44 | V113: 21.45 | W113: 50.96 | X113: 0.59 | AA113: =D113*D$5 -> 0 | AB113: =E113*E$5 -> 0 | AC113: =F113*F$5 -> 1.0394 | AD113: =G113*G$5 -> 4.249 | AE113: =H113*H$5 -> 32.94 | AF113: =I113*I$5 -> 14.028 | AG113: =J113*J$5 -> 7.223 | AH113: =K113*K$5 -> 11.0355 | AI113: =L113*L$5 -> 27.616 | AJ113: =M113*M$5 -> 35.1405 | AK113: =N113*N$5 -> 29.0638 | AL113: =O113*O$5 -> 19.292 | AM113: =P113*P$5 -> 11.7984 | AN113: =Q113*Q$5 -> 5.1541 | AO113: =R113*R$5 -> 1.9488 | AP113: =S113*S$5 -> 1.0098 | AQ113: =T113*T$5 -> 0.5525 | AR113: =U113*U$5 -> 0.5152 | AS113: =V113*V$5 -> 1.0725 | AT113: =W113*W$5 -> 1.5288 | AV113: =700/420*AVERAGE(AA113:AD113) -> 2.2035 | AW113: =700/510*AVERAGE(AE113:AH113) -> 22.38164216 | AX113: =700/570*AVERAGE(AI113:AL113) -> 34.11342544 | AY113: =700/640*AVERAGE(AM113:AP113) -> 5.444441406 | AZ113: =AVERAGE(AQ113:AT113) -> 0.91725 | BB113: =B113 -> #92 TURQUOISE | BC113: =MAX(AV113-SUM(AW113:AZ113)/quo,0) -> 0 | BD113: =MAX(AW113-(AV113+SUM(AX113:AZ113))/quo,0) -> 1.042333734 | BE113: =MAX(AX113-(SUM(AV113:AW113)+SUM(AY113:AZ113))/quo,0) -> 18.64000866 | BF113: =MAX(AY113-(SUM(AV113:AX113)+AZ113)/quo,0) -> 0 | BG113: =MAX(AZ113-SUM(AV113:AY113)/quo,0) -> 0
A114: ROSCOLUX | B114: #4715 CALCOLOR 15 MAGENTA | C114: =B114 -> #4715 CALCOLOR 15 MAGENTA | D114: 65.88 | E114: 72.76 | F114: 75.92 | G114: 77.51 | H114: 76.4 | I114: 72.49 | J114: 66.99 | K114: 60.06 | L114: 54.59 | M114: 52.45 | N114: 54.59 | O114: 58.58 | P114: 71.13 | Q114: 76.08 | R114: 76.5 | S114: 79.36 | T114: 83.48 | U114: 85.41 | V114: 86.01 | W114: 86.29 | X114: 0.65 | AA114: =D114*D$5 -> 0 | AB114: =E114*E$5 -> 0 | AC114: =F114*F$5 -> 1.5184 | AD114: =G114*G$5 -> 7.751 | AE114: =H114*H$5 -> 68.76 | AF114: =I114*I$5 -> 21.747 | AG114: =J114*J$5 -> 6.699 | AH114: =K114*K$5 -> 9.009 | AI114: =L114*L$5 -> 21.836 | AJ114: =M114*M$5 -> 29.8965 | AK114: =N114*N$5 -> 31.6622 | AL114: =O114*O$5 -> 30.4616 | AM114: =P114*P$5 -> 34.1424 | AN114: =Q114*Q$5 -> 28.1496 | AO114: =R114*R$5 -> 18.36 | AP114: =S114*S$5 -> 14.2848 | AQ114: =T114*T$5 -> 10.8524 | AR114: =U114*U$5 -> 6.8328 | AS114: =V114*V$5 -> 4.3005 | AT114: =W114*W$5 -> 2.5887 | AV114: =700/420*AVERAGE(AA114:AD114) -> 3.86225 | AW114: =700/510*AVERAGE(AE114:AH114) -> 36.44632353 | AX114: =700/570*AVERAGE(AI114:AL114) -> 34.95588158 | AY114: =700/640*AVERAGE(AM114:AP114) -> 25.95928125 | AZ114: =AVERAGE(AQ114:AT114) -> 6.1436 | BB114: =B114 -> #4715 CALCOLOR 15 MAGENTA | BC114: =MAX(AV114-SUM(AW114:AZ114)/quo,0) -> 0 | BD114: =MAX(AW114-(AV114+SUM(AX114:AZ114))/quo,0) -> 0.9858171149 | BE114: =MAX(AX114-(SUM(AV114:AW114)+SUM(AY114:AZ114))/quo,0) -> 0 | BF114: =MAX(AY114-(SUM(AV114:AX114)+AZ114)/quo,0) -> 0 | BG114: =MAX(AZ114-SUM(AV114:AY114)/quo,0) -> 0
A115: ROSCOLUX | B115: #3308 TOUGH MINUSGREEN | C115: =CONCATENATE(A115," ",B115) -> ROSCOLUX #3308 TOUGH MINUSGREEN | D115: 62.57 | E115: 70.57 | F115: 73.71 | G115: 74.34 | H115: 72.06 | I115: 67.12 | J115: 60.3 | K115: 51.93 | L115: 45.27 | M115: 43.12 | N115: 46.51 | O115: 52.85 | P115: 70.57 | Q115: 78.46 | R115: 79.15 | S115: 81.26 | T115: 84.25 | U115: 85.16 | V115: 85.62 | W115: 85.9 | X115: 0.55 | AA115: =D115*D$5 -> 0 | AB115: =E115*E$5 -> 0 | AC115: =F115*F$5 -> 1.4742 | AD115: =G115*G$5 -> 7.434 | AE115: =H115*H$5 -> 64.854 | AF115: =I115*I$5 -> 20.136 | AG115: =J115*J$5 -> 6.03 | AH115: =K115*K$5 -> 7.7895 | AI115: =L115*L$5 -> 18.108 | AJ115: =M115*M$5 -> 24.5784 | AK115: =N115*N$5 -> 26.9758 | AL115: =O115*O$5 -> 27.482 | AM115: =P115*P$5 -> 33.8736 | AN115: =Q115*Q$5 -> 29.0302 | AO115: =R115*R$5 -> 18.996 | AP115: =S115*S$5 -> 14.6268 | AQ115: =T115*T$5 -> 10.9525 | AR115: =U115*U$5 -> 6.8128 | AS115: =V115*V$5 -> 4.281 | AT115: =W115*W$5 -> 2.577 | AV115: =700/420*AVERAGE(AA115:AD115) -> 3.71175 | AW115: =700/510*AVERAGE(AE115:AH115) -> 33.90522059 | AX115: =700/570*AVERAGE(AI115:AL115) -> 29.82497368 | AY115: =700/640*AVERAGE(AM115:AP115) -> 26.39399219 | AZ115: =AVERAGE(AQ115:AT115) -> 6.155825 | BB115: =B115 -> #3308 TOUGH MINUSGREEN | BC115: =MAX(AV115-SUM(AW115:AZ115)/quo,0) -> 0 | BD115: =MAX(AW115-(AV115+SUM(AX115:AZ115))/quo,0) -> 0.8619501524 | BE115: =MAX(AX115-(SUM(AV115:AW115)+SUM(AY115:AZ115))/quo,0) -> 0 | BF115: =MAX(AY115-(SUM(AV115:AX115)+AZ115)/quo,0) -> 0 | BG115: =MAX(AZ115-SUM(AV115:AY115)/quo,0) -> 0
A116: ROSCOLUX | B116: #37 PALE ROSE PINK | C116: =CONCATENATE(A116," ",B116) -> ROSCOLUX #37 PALE ROSE PINK | D116: 62.27 | E116: 70.43 | F116: 73.45 | G116: 73.9 | H116: 71.68 | I116: 66.71 | J116: 59.95 | K116: 51.66 | L116: 45.03 | M116: 42.87 | N116: 46.35 | O116: 52.7 | P116: 70.38 | Q116: 78.13 | R116: 78.77 | S116: 81.02 | T116: 83.71 | U116: 84.71 | V116: 85.09 | W116: 85.49 | X116: 0.56 | AA116: =D116*D$5 -> 0 | AB116: =E116*E$5 -> 0 | AC116: =F116*F$5 -> 1.469 | AD116: =G116*G$5 -> 7.39 | AE116: =H116*H$5 -> 64.512 | AF116: =I116*I$5 -> 20.013 | AG116: =J116*J$5 -> 5.995 | AH116: =K116*K$5 -> 7.749 | AI116: =L116*L$5 -> 18.012 | AJ116: =M116*M$5 -> 24.4359 | AK116: =N116*N$5 -> 26.883 | AL116: =O116*O$5 -> 27.404 | AM116: =P116*P$5 -> 33.7824 | AN116: =Q116*Q$5 -> 28.9081 | AO116: =R116*R$5 -> 18.9048 | AP116: =S116*S$5 -> 14.5836 | AQ116: =T116*T$5 -> 10.8823 | AR116: =U116*U$5 -> 6.7768 | AS116: =V116*V$5 -> 4.2545 | AT116: =W116*W$5 -> 2.5647 | AV116: =700/420*AVERAGE(AA116:AD116) -> 3.69125 | AW116: =700/510*AVERAGE(AE116:AH116) -> 33.7197549 | AX116: =700/570*AVERAGE(AI116:AL116) -> 29.6993114 | AY116: =700/640*AVERAGE(AM116:AP116) -> 26.29891797 | AZ116: =AVERAGE(AQ116:AT116) -> 6.119575 | BB116: =B116 -> #37 PALE ROSE PINK | BC116: =MAX(AV116-SUM(AW116:AZ116)/quo,0) -> 0 | BD116: =MAX(AW116-(AV116+SUM(AX116:AZ116))/quo,0) -> 0.8152277158 | BE116: =MAX(AX116-(SUM(AV116:AW116)+SUM(AY116:AZ116))/quo,0) -> 0 | BF116: =MAX(AY116-(SUM(AV116:AX116)+AZ116)/quo,0) -> 0 | BG116: =MAX(AZ116-SUM(AV116:AY116)/quo,0) -> 0
A117: ROSCOLUX | B117: #337 TRUE PINK | C117: =CONCATENATE(A117," ",B117) -> ROSCOLUX #337 TRUE PINK | D117: 76.36 | E117: 79.61 | F117: 80.07 | G117: 78.86 | H117: 74.2 | I117: 66.53 | J117: 57.59 | K117: 49 | L117: 41.94 | M117: 40.72 | N117: 44.06 | O117: 56.28 | P117: 75.74 | Q117: 85.2 | R117: 87.01 | S117: 87.71 | T117: 87.83 | U117: 88.01 | V117: 88.09 | W117: 88.28 | X117: 0.55 | AA117: =D117*D$5 -> 0 | AB117: =E117*E$5 -> 0 | AC117: =F117*F$5 -> 1.6014 | AD117: =G117*G$5 -> 7.886 | AE117: =H117*H$5 -> 66.78 | AF117: =I117*I$5 -> 19.959 | AG117: =J117*J$5 -> 5.759 | AH117: =K117*K$5 -> 7.35 | AI117: =L117*L$5 -> 16.776 | AJ117: =M117*M$5 -> 23.2104 | AK117: =N117*N$5 -> 25.5548 | AL117: =O117*O$5 -> 29.2656 | AM117: =P117*P$5 -> 36.3552 | AN117: =Q117*Q$5 -> 31.524 | AO117: =R117*R$5 -> 20.8824 | AP117: =S117*S$5 -> 15.7878 | AQ117: =T117*T$5 -> 11.4179 | AR117: =U117*U$5 -> 7.0408 | AS117: =V117*V$5 -> 4.4045 | AT117: =W117*W$5 -> 2.6484 | AV117: =700/420*AVERAGE(AA117:AD117) -> 3.953083333 | AW117: =700/510*AVERAGE(AE117:AH117) -> 34.26156863 | AX117: =700/570*AVERAGE(AI117:AL117) -> 29.10735088 | AY117: =700/640*AVERAGE(AM117:AP117) -> 28.58772656 | AZ117: =AVERAGE(AQ117:AT117) -> 6.3779 | BB117: =B117 -> #337 TRUE PINK | BC117: =MAX(AV117-SUM(AW117:AZ117)/quo,0) -> 0 | BD117: =MAX(AW117-(AV117+SUM(AX117:AZ117))/quo,0) -> 0.2485382409 | BE117: =MAX(AX117-(SUM(AV117:AW117)+SUM(AY117:AZ117))/quo,0) -> 0 | BF117: =MAX(AY117-(SUM(AV117:AX117)+AZ117)/quo,0) -> 0 | BG117: =MAX(AZ117-SUM(AV117:AY117)/quo,0) -> 0 | BJ117: 4) quo 3 colors
A118: ROSCOLUX | B118: #10 MED YELLOW | C118: =CONCATENATE(A118," ",B118) -> ROSCOLUX #10 MED YELLOW | D118: 34.34 | E118: 6.35 | F118: 0.38 | G118: 0.2 | H118: 0.18 | I118: 0.38 | J118: 16.69 | K118: 74.19 | L118: 85.75 | M118: 86.61 | N118: 87.19 | O118: 87.36 | P118: 87.56 | Q118: 87.6 | R118: 87.86 | S118: 87.85 | T118: 87.66 | U118: 87.75 | V118: 87.67 | W118: 87.76 | X118: 0.92 | AA118: =D118*D$5 -> 0 | AB118: =E118*E$5 -> 0 | AC118: =F118*F$5 -> 0.0076 | AD118: =G118*G$5 -> 0.02 | AE118: =H118*H$5 -> 0.162 | AF118: =I118*I$5 -> 0.114 | AG118: =J118*J$5 -> 1.669 | AH118: =K118*K$5 -> 11.1285 | AI118: =L118*L$5 -> 34.3 | AJ118: =M118*M$5 -> 49.3677 | AK118: =N118*N$5 -> 50.5702 | AL118: =O118*O$5 -> 45.4272 | AM118: =P118*P$5 -> 42.0288 | AN118: =Q118*Q$5 -> 32.412 | AO118: =R118*R$5 -> 21.0864 | AP118: =S118*S$5 -> 15.813 | AQ118: =T118*T$5 -> 11.3958 | AR118: =U118*U$5 -> 7.02 | AS118: =V118*V$5 -> 4.3835 | AT118: =W118*W$5 -> 2.6328 | AV118: =700/420*AVERAGE(AA118:AD118) -> 0.0115 | AW118: =700/510*AVERAGE(AE118:AH118) -> 4.486004902 | AX118: =700/570*AVERAGE(AI118:AL118) -> 55.16033772 | AY118: =700/640*AVERAGE(AM118:AP118) -> 30.44458594 | AZ118: =AVERAGE(AQ118:AT118) -> 6.358025 | BB118: =B118 -> #10 MED YELLOW | BC118: =MAX(AV118-SUM(AW118:AZ118)/quo,0) -> 0 | BD118: =MAX(AW118-(AV118+SUM(AX118:AZ118))/quo,0) -> 0 | BE118: =MAX(AX118-(SUM(AV118:AW118)+SUM(AY118:AZ118))/quo,0) -> 34.5102798 | BF118: =MAX(AY118-(SUM(AV118:AX118)+AZ118)/quo,0) -> 0 | BG118: =MAX(AZ118-SUM(AV118:AY118)/quo,0) -> 0
A119: ROSCOLUX | B119: #12 STRAW | C119: =CONCATENATE(A119," ",B119) -> ROSCOLUX #12 STRAW | D119: 32.67 | E119: 15.74 | F119: 1.45 | G119: 0.23 | H119: 0.18 | I119: 1.15 | J119: 27.94 | K119: 62.12 | L119: 76.67 | M119: 82.63 | N119: 84.17 | O119: 84.98 | P119: 85.5 | Q119: 85.56 | R119: 85.6 | S119: 85.74 | T119: 85.71 | U119: 85.89 | V119: 85.93 | W119: 86.1 | X119: 0.88 | AA119: =D119*D$5 -> 0 | AB119: =E119*E$5 -> 0 | AC119: =F119*F$5 -> 0.029 | AD119: =G119*G$5 -> 0.023 | AE119: =H119*H$5 -> 0.162 | AF119: =I119*I$5 -> 0.345 | AG119: =J119*J$5 -> 2.794 | AH119: =K119*K$5 -> 9.318 | AI119: =L119*L$5 -> 30.668 | AJ119: =M119*M$5 -> 47.0991 | AK119: =N119*N$5 -> 48.8186 | AL119: =O119*O$5 -> 44.1896 | AM119: =P119*P$5 -> 41.04 | AN119: =Q119*Q$5 -> 31.6572 | AO119: =R119*R$5 -> 20.544 | AP119: =S119*S$5 -> 15.4332 | AQ119: =T119*T$5 -> 11.1423 | AR119: =U119*U$5 -> 6.8712 | AS119: =V119*V$5 -> 4.2965 | AT119: =W119*W$5 -> 2.583 | AV119: =700/420*AVERAGE(AA119:AD119) -> 0.02166666667 | AW119: =700/510*AVERAGE(AE119:AH119) -> 4.33004902 | AX119: =700/570*AVERAGE(AI119:AL119) -> 52.43101316 | AY119: =700/640*AVERAGE(AM119:AP119) -> 29.71565625 | AZ119: =AVERAGE(AQ119:AT119) -> 6.22325 | BB119: =B119 -> #12 STRAW | BC119: =MAX(AV119-SUM(AW119:AZ119)/quo,0) -> 0 | BD119: =MAX(AW119-(AV119+SUM(AX119:AZ119))/quo,0) -> 0 | BE119: =MAX(AX119-(SUM(AV119:AW119)+SUM(AY119:AZ119))/quo,0) -> 32.28570219 | BF119: =MAX(AY119-(SUM(AV119:AX119)+AZ119)/quo,0) -> 0 | BG119: =MAX(AZ119-SUM(AV119:AY119)/quo,0) -> 0
A120: ROSCOLUX | B120: #4590 CALCOLOR 90 YELLOW | C120: =B120 -> #4590 CALCOLOR 90 YELLOW | D120: 36.11 | E120: 19.9 | F120: 2.62 | G120: 0.28 | H120: 0.21 | I120: 1.87 | J120: 33.7 | K120: 65.42 | L120: 77.63 | M120: 82.37 | N120: 83.59 | O120: 84.25 | P120: 84.77 | Q120: 84.77 | R120: 84.96 | S120: 85.04 | T120: 85.07 | U120: 85.36 | V120: 85.46 | W120: 85.55 | X120: 0.66 | AA120: =D120*D$5 -> 0 | AB120: =E120*E$5 -> 0 | AC120: =F120*F$5 -> 0.0524 | AD120: =G120*G$5 -> 0.028 | AE120: =H120*H$5 -> 0.189 | AF120: =I120*I$5 -> 0.561 | AG120: =J120*J$5 -> 3.37 | AH120: =K120*K$5 -> 9.813 | AI120: =L120*L$5 -> 31.052 | AJ120: =M120*M$5 -> 46.9509 | AK120: =N120*N$5 -> 48.4822 | AL120: =O120*O$5 -> 43.81 | AM120: =P120*P$5 -> 40.6896 | AN120: =Q120*Q$5 -> 31.3649 | AO120: =R120*R$5 -> 20.3904 | AP120: =S120*S$5 -> 15.3072 | AQ120: =T120*T$5 -> 11.0591 | AR120: =U120*U$5 -> 6.8288 | AS120: =V120*V$5 -> 4.273 | AT120: =W120*W$5 -> 2.5665 | AV120: =700/420*AVERAGE(AA120:AD120) -> 0.0335 | AW120: =700/510*AVERAGE(AE120:AH120) -> 4.780931373 | AX120: =700/570*AVERAGE(AI120:AL120) -> 52.28358333 | AY120: =700/640*AVERAGE(AM120:AP120) -> 29.46346484 | AZ120: =AVERAGE(AQ120:AT120) -> 6.18185 | BB120: =B120 -> #4590 CALCOLOR 90 YELLOW | BC120: =MAX(AV120-SUM(AW120:AZ120)/quo,0) -> 0 | BD120: =MAX(AW120-(AV120+SUM(AX120:AZ120))/quo,0) -> 0 | BE120: =MAX(AX120-(SUM(AV120:AW120)+SUM(AY120:AZ120))/quo,0) -> 32.05371023 | BF120: =MAX(AY120-(SUM(AV120:AX120)+AZ120)/quo,0) -> 0 | BG120: =MAX(AZ120-SUM(AV120:AY120)/quo,0) -> 0
A121: ROSCOLUX | B121: #4560 CALCOLOR 60 YELLOW | C121: =B121 -> #4560 CALCOLOR 60 YELLOW | D121: 55.16 | E121: 44.8 | F121: 18.93 | G121: 4.34 | H121: 1.76 | I121: 10.35 | J121: 57.78 | K121: 76.5 | L121: 82.05 | M121: 84.53 | N121: 84.69 | O121: 85.14 | P121: 85.64 | Q121: 85.65 | R121: 85.81 | S121: 85.88 | T121: 86.04 | U121: 86.24 | V121: 86.32 | W121: 86.42 | X121: 0.7 | AA121: =D121*D$5 -> 0 | AB121: =E121*E$5 -> 0 | AC121: =F121*F$5 -> 0.3786 | AD121: =G121*G$5 -> 0.434 | AE121: =H121*H$5 -> 1.584 | AF121: =I121*I$5 -> 3.105 | AG121: =J121*J$5 -> 5.778 | AH121: =K121*K$5 -> 11.475 | AI121: =L121*L$5 -> 32.82 | AJ121: =M121*M$5 -> 48.1821 | AK121: =N121*N$5 -> 49.1202 | AL121: =O121*O$5 -> 44.2728 | AM121: =P121*P$5 -> 41.1072 | AN121: =Q121*Q$5 -> 31.6905 | AO121: =R121*R$5 -> 20.5944 | AP121: =S121*S$5 -> 15.4584 | AQ121: =T121*T$5 -> 11.1852 | AR121: =U121*U$5 -> 6.8992 | AS121: =V121*V$5 -> 4.316 | AT121: =W121*W$5 -> 2.5926 | AV121: =700/420*AVERAGE(AA121:AD121) -> 0.3385833333 | AW121: =700/510*AVERAGE(AE121:AH121) -> 7.529117647 | AX121: =700/570*AVERAGE(AI121:AL121) -> 53.54235526 | AY121: =700/640*AVERAGE(AM121:AP121) -> 29.76380859 | AZ121: =AVERAGE(AQ121:AT121) -> 6.24825 | BB121: =B121 -> #4560 CALCOLOR 60 YELLOW | BC121: =MAX(AV121-SUM(AW121:AZ121)/quo,0) -> 0 | BD121: =MAX(AW121-(AV121+SUM(AX121:AZ121))/quo,0) -> 0 | BE121: =MAX(AX121-(SUM(AV121:AW121)+SUM(AY121:AZ121))/quo,0) -> 31.60247548 | BF121: =MAX(AY121-(SUM(AV121:AX121)+AZ121)/quo,0) -> 0 | BG121: =MAX(AZ121-SUM(AV121:AY121)/quo,0) -> 0
A122: ROSCOLUX | B122: #312 CANARY | C122: =CONCATENATE(A122," ",B122) -> ROSCOLUX #312 CANARY | D122: 3.01 | E122: 0.73 | F122: 0.31 | G122: 0.19 | H122: 0.31 | I122: 1.08 | J122: 6.43 | K122: 30.2 | L122: 63.64 | M122: 79.34 | N122: 85.05 | O122: 86.62 | P122: 87.15 | Q122: 87.33 | R122: 87.55 | S122: 87.61 | T122: 87.48 | U122: 87.49 | V122: 87.37 | W122: 87.32 | X122: 0.85 | AA122: =D122*D$5 -> 0 | AB122: =E122*E$5 -> 0 | AC122: =F122*F$5 -> 0.0062 | AD122: =G122*G$5 -> 0.019 | AE122: =H122*H$5 -> 0.279 | AF122: =I122*I$5 -> 0.324 | AG122: =J122*J$5 -> 0.643 | AH122: =K122*K$5 -> 4.53 | AI122: =L122*L$5 -> 25.456 | AJ122: =M122*M$5 -> 45.2238 | AK122: =N122*N$5 -> 49.329 | AL122: =O122*O$5 -> 45.0424 | AM122: =P122*P$5 -> 41.832 | AN122: =Q122*Q$5 -> 32.3121 | AO122: =R122*R$5 -> 21.012 | AP122: =S122*S$5 -> 15.7698 | AQ122: =T122*T$5 -> 11.3724 | AR122: =U122*U$5 -> 6.9992 | AS122: =V122*V$5 -> 4.3685 | AT122: =W122*W$5 -> 2.6196 | AV122: =700/420*AVERAGE(AA122:AD122) -> 0.0105 | AW122: =700/510*AVERAGE(AE122:AH122) -> 1.981960784 | AX122: =700/570*AVERAGE(AI122:AL122) -> 50.67361404 | AY122: =700/640*AVERAGE(AM122:AP122) -> 30.33130078 | AZ122: =AVERAGE(AQ122:AT122) -> 6.339925 | BB122: =B122 -> #312 CANARY | BC122: =MAX(AV122-SUM(AW122:AZ122)/quo,0) -> 0 | BD122: =MAX(AW122-(AV122+SUM(AX122:AZ122))/quo,0) -> 0 | BE122: =MAX(AX122-(SUM(AV122:AW122)+SUM(AY122:AZ122))/quo,0) -> 31.34177075 | BF122: =MAX(AY122-(SUM(AV122:AX122)+AZ122)/quo,0) -> 0.8283008715 | BG122: =MAX(AZ122-SUM(AV122:AY122)/quo,0) -> 0
A123: ROSCOLUX | B123: #388 GASLT GREEN | C123: =CONCATENATE(A123," ",B123) -> ROSCOLUX #388 GASLT GREEN | D123: 12.99 | E123: 4.81 | F123: 2.23 | G123: 3.25 | H123: 11.86 | I123: 32.69 | J123: 57.65 | K123: 73.94 | L123: 79.91 | M123: 79.34 | N123: 74.49 | O123: 68.16 | P123: 61.64 | Q123: 53 | R123: 46.93 | S123: 44.8 | T123: 41.55 | U123: 43.54 | V123: 55.15 | W123: 70.46 | X123: 0.76 | AA123: =D123*D$5 -> 0 | AB123: =E123*E$5 -> 0 | AC123: =F123*F$5 -> 0.0446 | AD123: =G123*G$5 -> 0.325 | AE123: =H123*H$5 -> 10.674 | AF123: =I123*I$5 -> 9.807 | AG123: =J123*J$5 -> 5.765 | AH123: =K123*K$5 -> 11.091 | AI123: =L123*L$5 -> 31.964 | AJ123: =M123*M$5 -> 45.2238 | AK123: =N123*N$5 -> 43.2042 | AL123: =O123*O$5 -> 35.4432 | AM123: =P123*P$5 -> 29.5872 | AN123: =Q123*Q$5 -> 19.61 | AO123: =R123*R$5 -> 11.2632 | AP123: =S123*S$5 -> 8.064 | AQ123: =T123*T$5 -> 5.4015 | AR123: =U123*U$5 -> 3.4832 | AS123: =V123*V$5 -> 2.7575 | AT123: =W123*W$5 -> 2.1138 | AV123: =700/420*AVERAGE(AA123:AD123) -> 0.154 | AW123: =700/510*AVERAGE(AE123:AH123) -> 12.81171569 | AX123: =700/570*AVERAGE(AI123:AL123) -> 47.84414035 | AY123: =700/640*AVERAGE(AM123:AP123) -> 18.73714062 | AZ123: =AVERAGE(AQ123:AT123) -> 3.439 | BB123: =B123 -> #388 GASLT GREEN | BC123: =MAX(AV123-SUM(AW123:AZ123)/quo,0) -> 0 | BD123: =MAX(AW123-(AV123+SUM(AX123:AZ123))/quo,0) -> 0 | BE123: =MAX(AX123-(SUM(AV123:AW123)+SUM(AY123:AZ123))/quo,0) -> 30.2732122 | BF123: =MAX(AY123-(SUM(AV123:AX123)+AZ123)/quo,0) -> 0 | BG123: =MAX(AZ123-SUM(AV123:AY123)/quo,0) -> 0
A124: ROSCOLUX | B124: #310 DAFFODIL | C124: =CONCATENATE(A124," ",B124) -> ROSCOLUX #310 DAFFODIL | D124: 63.92 | E124: 56.31 | F124: 31.88 | G124: 11.79 | H124: 6.2 | I124: 17.34 | J124: 60.13 | K124: 73.42 | L124: 78.59 | M124: 82.76 | N124: 84.86 | O124: 85.32 | P124: 85.46 | Q124: 85.66 | R124: 85.87 | S124: 86.03 | T124: 85.96 | U124: 86.08 | V124: 86.17 | W124: 86.39 | X124: 0.82 | AA124: =D124*D$5 -> 0 | AB124: =E124*E$5 -> 0 | AC124: =F124*F$5 -> 0.6376 | AD124: =G124*G$5 -> 1.179 | AE124: =H124*H$5 -> 5.58 | AF124: =I124*I$5 -> 5.202 | AG124: =J124*J$5 -> 6.013 | AH124: =K124*K$5 -> 11.013 | AI124: =L124*L$5 -> 31.436 | AJ124: =M124*M$5 -> 47.1732 | AK124: =N124*N$5 -> 49.2188 | AL124: =O124*O$5 -> 44.3664 | AM124: =P124*P$5 -> 41.0208 | AN124: =Q124*Q$5 -> 31.6942 | AO124: =R124*R$5 -> 20.6088 | AP124: =S124*S$5 -> 15.4854 | AQ124: =T124*T$5 -> 11.1748 | AR124: =U124*U$5 -> 6.8864 | AS124: =V124*V$5 -> 4.3085 | AT124: =W124*W$5 -> 2.5917 | AV124: =700/420*AVERAGE(AA124:AD124) -> 0.7569166667 | AW124: =700/510*AVERAGE(AE124:AH124) -> 9.541960784 | AX124: =700/570*AVERAGE(AI124:AL124) -> 52.86670175 | AY124: =700/640*AVERAGE(AM124:AP124) -> 29.75251562 | AZ124: =AVERAGE(AQ124:AT124) -> 6.24035 | BB124: =B124 -> #310 DAFFODIL | BC124: =MAX(AV124-SUM(AW124:AZ124)/quo,0) -> 0 | BD124: =MAX(AW124-(AV124+SUM(AX124:AZ124))/quo,0) -> 0 | BE124: =MAX(AX124-(SUM(AV124:AW124)+SUM(AY124:AZ124))/quo,0) -> 29.72083022 | BF124: =MAX(AY124-(SUM(AV124:AX124)+AZ124)/quo,0) -> 0 | BG124: =MAX(AZ124-SUM(AV124:AY124)/quo,0) -> 0
A125: ROSCOLUX | B125: #96 LIME | C125: =CONCATENATE(A125," ",B125) -> ROSCOLUX #96 LIME | D125: 73.8 | E125: 64.41 | F125: 45.57 | G125: 27.87 | H125: 20.57 | I125: 28.3 | J125: 61.95 | K125: 85.02 | L125: 87.15 | M125: 86.9 | N125: 86.8 | O125: 86.06 | P125: 85.18 | Q125: 83.85 | R125: 82.87 | S125: 82.43 | T125: 81.59 | U125: 82.11 | V125: 84.19 | W125: 86.53 | X125: 0.98 | AA125: =D125*D$5 -> 0 | AB125: =E125*E$5 -> 0 | AC125: =F125*F$5 -> 0.9114 | AD125: =G125*G$5 -> 2.787 | AE125: =H125*H$5 -> 18.513 | AF125: =I125*I$5 -> 8.49 | AG125: =J125*J$5 -> 6.195 | AH125: =K125*K$5 -> 12.753 | AI125: =L125*L$5 -> 34.86 | AJ125: =M125*M$5 -> 49.533 | AK125: =N125*N$5 -> 50.344 | AL125: =O125*O$5 -> 44.7512 | AM125: =P125*P$5 -> 40.8864 | AN125: =Q125*Q$5 -> 31.0245 | AO125: =R125*R$5 -> 19.8888 | AP125: =S125*S$5 -> 14.8374 | AQ125: =T125*T$5 -> 10.6067 | AR125: =U125*U$5 -> 6.5688 | AS125: =V125*V$5 -> 4.2095 | AT125: =W125*W$5 -> 2.5959 | AV125: =700/420*AVERAGE(AA125:AD125) -> 1.541 | AW125: =700/510*AVERAGE(AE125:AH125) -> 15.7675 | AX125: =700/570*AVERAGE(AI125:AL125) -> 55.10602632 | AY125: =700/640*AVERAGE(AM125:AP125) -> 29.15858203 | AZ125: =AVERAGE(AQ125:AT125) -> 5.995225 | BB125: =B125 -> #96 LIME | BC125: =MAX(AV125-SUM(AW125:AZ125)/quo,0) -> 0 | BD125: =MAX(AW125-(AV125+SUM(AX125:AZ125))/quo,0) -> 0 | BE125: =MAX(AX125-(SUM(AV125:AW125)+SUM(AY125:AZ125))/quo,0) -> 28.8748728 | BF125: =MAX(AY125-(SUM(AV125:AX125)+AZ125)/quo,0) -> 0 | BG125: =MAX(AZ125-SUM(AV125:AY125)/quo,0) -> 0
A126: ROSCOLUX | B126: #86 PEA GREEN | C126: =CONCATENATE(A126," ",B126) -> ROSCOLUX #86 PEA GREEN | D126: 38.4 | E126: 32.3 | F126: 17.8 | G126: 9.87 | H126: 7.55 | I126: 8.39 | J126: 15.86 | K126: 38.05 | L126: 59.8 | M126: 64.07 | N126: 56.59 | O126: 44 | P126: 32.88 | Q126: 21.55 | R126: 15.2 | S126: 13.3 | T126: 10.81 | U126: 12.42 | V126: 24.32 | W126: 48.04 | X126: 0.56 | AA126: =D126*D$5 -> 0 | AB126: =E126*E$5 -> 0 | AC126: =F126*F$5 -> 0.356 | AD126: =G126*G$5 -> 0.987 | AE126: =H126*H$5 -> 6.795 | AF126: =I126*I$5 -> 2.517 | AG126: =J126*J$5 -> 1.586 | AH126: =K126*K$5 -> 5.7075 | AI126: =L126*L$5 -> 23.92 | AJ126: =M126*M$5 -> 36.5199 | AK126: =N126*N$5 -> 32.8222 | AL126: =O126*O$5 -> 22.88 | AM126: =P126*P$5 -> 15.7824 | AN126: =Q126*Q$5 -> 7.9735 | AO126: =R126*R$5 -> 3.648 | AP126: =S126*S$5 -> 2.394 | AQ126: =T126*T$5 -> 1.4053 | AR126: =U126*U$5 -> 0.9936 | AS126: =V126*V$5 -> 1.216 | AT126: =W126*W$5 -> 1.4412 | AV126: =700/420*AVERAGE(AA126:AD126) -> 0.5595833333 | AW126: =700/510*AVERAGE(AE126:AH126) -> 5.697965686 | AX126: =700/570*AVERAGE(AI126:AL126) -> 35.65766228 | AY126: =700/640*AVERAGE(AM126:AP126) -> 8.147863281 | AZ126: =AVERAGE(AQ126:AT126) -> 1.264025 | BB126: =B126 -> #86 PEA GREEN | BC126: =MAX(AV126-SUM(AW126:AZ126)/quo,0) -> 0 | BD126: =MAX(AW126-(AV126+SUM(AX126:AZ126))/quo,0) -> 0 | BE126: =MAX(AX126-(SUM(AV126:AW126)+SUM(AY126:AZ126))/quo,0) -> 27.82294363 | BF126: =MAX(AY126-(SUM(AV126:AX126)+AZ126)/quo,0) -> 0 | BG126: =MAX(AZ126-SUM(AV126:AY126)/quo,0) -> 0
A127: ROSCOLUX | B127: #4430 CALCOLOR 30 GREEN | C127: #4430 CALCOLOR 30 GREEN | D127: 49.54 | E127: 51.66 | F127: 39.01 | G127: 21.35 | H127: 14.35 | I127: 26.01 | J127: 62.81 | K127: 70.7 | L127: 72.51 | M127: 71.95 | N127: 67.62 | O127: 60.62 | P127: 51.56 | Q127: 41.02 | R127: 33.09 | S127: 28.31 | T127: 25.15 | U127: 29.73 | V127: 48.51 | W127: 69.1 | X127: 0.52 | AA127: =D127*D$5 -> 0 | AB127: =E127*E$5 -> 0 | AC127: =F127*F$5 -> 0.7802 | AD127: =G127*G$5 -> 2.135 | AE127: =H127*H$5 -> 12.915 | AF127: =I127*I$5 -> 7.803 | AG127: =J127*J$5 -> 6.281 | AH127: =K127*K$5 -> 10.605 | AI127: =L127*L$5 -> 29.004 | AJ127: =M127*M$5 -> 41.0115 | AK127: =N127*N$5 -> 39.2196 | AL127: =O127*O$5 -> 31.5224 | AM127: =P127*P$5 -> 24.7488 | AN127: =Q127*Q$5 -> 15.1774 | AO127: =R127*R$5 -> 7.9416 | AP127: =S127*S$5 -> 5.0958 | AQ127: =T127*T$5 -> 3.2695 | AR127: =U127*U$5 -> 2.3784 | AS127: =V127*V$5 -> 2.4255 | AT127: =W127*W$5 -> 2.073 | AV127: =700/420*AVERAGE(AA127:AD127) -> 1.214666667 | AW127: =700/510*AVERAGE(AE127:AH127) -> 12.90333333 | AX127: =700/570*AVERAGE(AI127:AL127) -> 43.21502193 | AY127: =700/640*AVERAGE(AM127:AP127) -> 14.48223437 | AZ127: =AVERAGE(AQ127:AT127) -> 2.5366 | BB127: =B127 -> #4430 CALCOLOR 30 GREEN | BC127: =MAX(AV127-SUM(AW127:AZ127)/quo,0) -> 0 | BD127: =MAX(AW127-(AV127+SUM(AX127:AZ127))/quo,0) -> 0 | BE127: =MAX(AX127-(SUM(AV127:AW127)+SUM(AY127:AZ127))/quo,0) -> 27.64660474 | BF127: =MAX(AY127-(SUM(AV127:AX127)+AZ127)/quo,0) -> 0 | BG127: =MAX(AZ127-SUM(AV127:AY127)/quo,0) -> 0
A128: ROSCOLUX | B128: #386 LEAF GREEN | C128: =CONCATENATE(A128," ",B128) -> ROSCOLUX #386 LEAF GREEN | D128: 30.46 | E128: 28.71 | F128: 12.11 | G128: 2.34 | H128: 0.83 | I128: 5.96 | J128: 39.46 | K128: 54.83 | L128: 59.02 | M128: 58.54 | N128: 52.28 | O128: 41.63 | P128: 29.6 | Q128: 18.33 | R128: 11.53 | S128: 8.36 | T128: 6.57 | U128: 9.19 | V128: 25.05 | W128: 52.86 | X128: 0.32 | AA128: =D128*D$5 -> 0 | AB128: =E128*E$5 -> 0 | AC128: =F128*F$5 -> 0.2422 | AD128: =G128*G$5 -> 0.234 | AE128: =H128*H$5 -> 0.747 | AF128: =I128*I$5 -> 1.788 | AG128: =J128*J$5 -> 3.946 | AH128: =K128*K$5 -> 8.2245 | AI128: =L128*L$5 -> 23.608 | AJ128: =M128*M$5 -> 33.3678 | AK128: =N128*N$5 -> 30.3224 | AL128: =O128*O$5 -> 21.6476 | AM128: =P128*P$5 -> 14.208 | AN128: =Q128*Q$5 -> 6.7821 | AO128: =R128*R$5 -> 2.7672 | AP128: =S128*S$5 -> 1.5048 | AQ128: =T128*T$5 -> 0.8541 | AR128: =U128*U$5 -> 0.7352 | AS128: =V128*V$5 -> 1.2525 | AT128: =W128*W$5 -> 1.5858 | AV128: =700/420*AVERAGE(AA128:AD128) -> 0.1984166667 | AW128: =700/510*AVERAGE(AE128:AH128) -> 5.046004902 | AX128: =700/570*AVERAGE(AI128:AL128) -> 33.44827193 | AY128: =700/640*AVERAGE(AM128:AP128) -> 6.907605469 | AZ128: =AVERAGE(AQ128:AT128) -> 1.1069 | BB128: =B128 -> #386 LEAF GREEN | BC128: =MAX(AV128-SUM(AW128:AZ128)/quo,0) -> 0 | BD128: =MAX(AW128-(AV128+SUM(AX128:AZ128))/quo,0) -> 0 | BE128: =MAX(AX128-(SUM(AV128:AW128)+SUM(AY128:AZ128))/quo,0) -> 26.81880841 | BF128: =MAX(AY128-(SUM(AV128:AX128)+AZ128)/quo,0) -> 0 | BG128: =MAX(AZ128-SUM(AV128:AY128)/quo,0) -> 0
A129: ROSCOLUX | B129: #4460 CALCOLOR 60 GREEN | C129: #4460 CALCOLOR 60 GREEN | D129: 30.46 | E129: 28.71 | F129: 12.11 | G129: 2.34 | H129: 0.83 | I129: 5.96 | J129: 39.46 | K129: 54.83 | L129: 59.02 | M129: 58.54 | N129: 52.28 | O129: 41.63 | P129: 29.6 | Q129: 18.33 | R129: 11.53 | S129: 8.36 | T129: 6.57 | U129: 9.19 | V129: 25.05 | W129: 52.86 | X129: 0.32 | AA129: =D129*D$5 -> 0 | AB129: =E129*E$5 -> 0 | AC129: =F129*F$5 -> 0.2422 | AD129: =G129*G$5 -> 0.234 | AE129: =H129*H$5 -> 0.747 | AF129: =I129*I$5 -> 1.788 | AG129: =J129*J$5 -> 3.946 | AH129: =K129*K$5 -> 8.2245 | AI129: =L129*L$5 -> 23.608 | AJ129: =M129*M$5 -> 33.3678 | AK129: =N129*N$5 -> 30.3224 | AL129: =O129*O$5 -> 21.6476 | AM129: =P129*P$5 -> 14.208 | AN129: =Q129*Q$5 -> 6.7821 | AO129: =R129*R$5 -> 2.7672 | AP129: =S129*S$5 -> 1.5048 | AQ129: =T129*T$5 -> 0.8541 | AR129: =U129*U$5 -> 0.7352 | AS129: =V129*V$5 -> 1.2525 | AT129: =W129*W$5 -> 1.5858 | AV129: =700/420*AVERAGE(AA129:AD129) -> 0.1984166667 | AW129: =700/510*AVERAGE(AE129:AH129) -> 5.046004902 | AX129: =700/570*AVERAGE(AI129:AL129) -> 33.44827193 | AY129: =700/640*AVERAGE(AM129:AP129) -> 6.907605469 | AZ129: =AVERAGE(AQ129:AT129) -> 1.1069 | BB129: =B129 -> #4460 CALCOLOR 60 GREEN | BC129: =MAX(AV129-SUM(AW129:AZ129)/quo,0) -> 0 | BD129: =MAX(AW129-(AV129+SUM(AX129:AZ129))/quo,0) -> 0 | BE129: =MAX(AX129-(SUM(AV129:AW129)+SUM(AY129:AZ129))/quo,0) -> 26.81880841 | BF129: =MAX(AY129-(SUM(AV129:AX129)+AZ129)/quo,0) -> 0 | BG129: =MAX(AZ129-SUM(AV129:AY129)/quo,0) -> 0
A130: ROSCOLUX | B130: #313 LIGHT RELIEF YELLOW | C130: ROSCOLUX #313 LIGHT RELIEF YELLOW | D130: 13.97 | E130: 4.84 | F130: 2.03 | G130: 2.08 | H130: 5.04 | I130: 11.99 | J130: 22.3 | K130: 36.62 | L130: 55.21 | M130: 71.04 | N130: 82.42 | O130: 86.94 | P130: 87.88 | Q130: 88.31 | R130: 88.3 | S130: 88.35 | T130: 88.52 | U130: 88.34 | V130: 88.46 | W130: 88.72 | X130: 0.76 | AA130: =D130*D$5 -> 0 | AB130: =E130*E$5 -> 0 | AC130: =F130*F$5 -> 0.0406 | AD130: =G130*G$5 -> 0.208 | AE130: =H130*H$5 -> 4.536 | AF130: =I130*I$5 -> 3.597 | AG130: =J130*J$5 -> 2.23 | AH130: =K130*K$5 -> 5.493 | AI130: =L130*L$5 -> 22.084 | AJ130: =M130*M$5 -> 40.4928 | AK130: =N130*N$5 -> 47.8036 | AL130: =O130*O$5 -> 45.2088 | AM130: =P130*P$5 -> 42.1824 | AN130: =Q130*Q$5 -> 32.6747 | AO130: =R130*R$5 -> 21.192 | AP130: =S130*S$5 -> 15.903 | AQ130: =T130*T$5 -> 11.5076 | AR130: =U130*U$5 -> 7.0672 | AS130: =V130*V$5 -> 4.423 | AT130: =W130*W$5 -> 2.6616 | AV130: =700/420*AVERAGE(AA130:AD130) -> 0.1035833333 | AW130: =700/510*AVERAGE(AE130:AH130) -> 5.440784314 | AX130: =700/570*AVERAGE(AI130:AL130) -> 47.76861404 | AY130: =700/640*AVERAGE(AM130:AP130) -> 30.61190234 | AZ130: =AVERAGE(AQ130:AT130) -> 6.41485 | BB130: =B130 -> #313 LIGHT RELIEF YELLOW | BC130: =MAX(AV130-SUM(AW130:AZ130)/quo,0) -> 0 | BD130: =MAX(AW130-(AV130+SUM(AX130:AZ130))/quo,0) -> 0 | BE130: =MAX(AX130-(SUM(AV130:AW130)+SUM(AY130:AZ130))/quo,0) -> 26.48305404 | BF130: =MAX(AY130-(SUM(AV130:AX130)+AZ130)/quo,0) -> 0.7479865027 | BG130: =MAX(AZ130-SUM(AV130:AY130)/quo,0) -> 0
A131: ROSCOLUX | B131: #4530 CALCOLOR 30 YELLOW | C131: =B131 -> #4530 CALCOLOR 30 YELLOW | D131: 65.7 | E131: 63.75 | F131: 48.83 | G131: 29.73 | H131: 21.84 | I131: 35.08 | J131: 73.75 | K131: 81.32 | L131: 83.6 | M131: 84.92 | N131: 84.84 | O131: 85.23 | P131: 85.71 | Q131: 85.72 | R131: 85.93 | S131: 86.04 | T131: 86.22 | U131: 86.43 | V131: 86.48 | W131: 86.59 | X131: 0.75 | AA131: =D131*D$5 -> 0 | AB131: =E131*E$5 -> 0 | AC131: =F131*F$5 -> 0.9766 | AD131: =G131*G$5 -> 2.973 | AE131: =H131*H$5 -> 19.656 | AF131: =I131*I$5 -> 10.524 | AG131: =J131*J$5 -> 7.375 | AH131: =K131*K$5 -> 12.198 | AI131: =L131*L$5 -> 33.44 | AJ131: =M131*M$5 -> 48.4044 | AK131: =N131*N$5 -> 49.2072 | AL131: =O131*O$5 -> 44.3196 | AM131: =P131*P$5 -> 41.1408 | AN131: =Q131*Q$5 -> 31.7164 | AO131: =R131*R$5 -> 20.6232 | AP131: =S131*S$5 -> 15.4872 | AQ131: =T131*T$5 -> 11.2086 | AR131: =U131*U$5 -> 6.9144 | AS131: =V131*V$5 -> 4.324 | AT131: =W131*W$5 -> 2.5977 | AV131: =700/420*AVERAGE(AA131:AD131) -> 1.645666667 | AW131: =700/510*AVERAGE(AE131:AH131) -> 17.07210784 | AX131: =700/570*AVERAGE(AI131:AL131) -> 53.84203509 | AY131: =700/640*AVERAGE(AM131:AP131) -> 29.79582812 | AZ131: =AVERAGE(AQ131:AT131) -> 6.261175 | BB131: =B131 -> #4530 CALCOLOR 30 YELLOW | BC131: =MAX(AV131-SUM(AW131:AZ131)/quo,0) -> 0 | BD131: =MAX(AW131-(AV131+SUM(AX131:AZ131))/quo,0) -> 0 | BE131: =MAX(AX131-(SUM(AV131:AW131)+SUM(AY131:AZ131))/quo,0) -> 26.45464627 | BF131: =MAX(AY131-(SUM(AV131:AX131)+AZ131)/quo,0) -> 0 | BG131: =MAX(AZ131-SUM(AV131:AY131)/quo,0) -> 0
A132: ROSCOLUX | B132: #88 LT GREEN | C132: =CONCATENATE(A132," ",B132) -> ROSCOLUX #88 LT GREEN | D132: 54.03 | E132: 56.69 | F132: 46.52 | G132: 30.36 | H132: 22.83 | I132: 34.7 | J132: 70.48 | K132: 77 | L132: 77.73 | M132: 77.02 | N132: 73.91 | O132: 69.84 | P132: 64.29 | Q132: 57.57 | R132: 52.07 | S132: 48.29 | T132: 46.15 | U132: 51.18 | V132: 65.46 | W132: 78.15 | X132: 0.82 | AA132: =D132*D$5 -> 0 | AB132: =E132*E$5 -> 0 | AC132: =F132*F$5 -> 0.9304 | AD132: =G132*G$5 -> 3.036 | AE132: =H132*H$5 -> 20.547 | AF132: =I132*I$5 -> 10.41 | AG132: =J132*J$5 -> 7.048 | AH132: =K132*K$5 -> 11.55 | AI132: =L132*L$5 -> 31.092 | AJ132: =M132*M$5 -> 43.9014 | AK132: =N132*N$5 -> 42.8678 | AL132: =O132*O$5 -> 36.3168 | AM132: =P132*P$5 -> 30.8592 | AN132: =Q132*Q$5 -> 21.3009 | AO132: =R132*R$5 -> 12.4968 | AP132: =S132*S$5 -> 8.6922 | AQ132: =T132*T$5 -> 5.9995 | AR132: =U132*U$5 -> 4.0944 | AS132: =V132*V$5 -> 3.273 | AT132: =W132*W$5 -> 2.3445 | AV132: =700/420*AVERAGE(AA132:AD132) -> 1.652666667 | AW132: =700/510*AVERAGE(AE132:AH132) -> 17.00416667 | AX132: =700/570*AVERAGE(AI132:AL132) -> 47.33535088 | AY132: =700/640*AVERAGE(AM132:AP132) -> 20.05639453 | AZ132: =AVERAGE(AQ132:AT132) -> 3.92785 | BB132: =B132 -> #88 LT GREEN | BC132: =MAX(AV132-SUM(AW132:AZ132)/quo,0) -> 0 | BD132: =MAX(AW132-(AV132+SUM(AX132:AZ132))/quo,0) -> 0 | BE132: =MAX(AX132-(SUM(AV132:AW132)+SUM(AY132:AZ132))/quo,0) -> 26.01481194 | BF132: =MAX(AY132-(SUM(AV132:AX132)+AZ132)/quo,0) -> 0 | BG132: =MAX(AZ132-SUM(AV132:AY132)/quo,0) -> 0
A133: ROSCOLUX | B133: #3304 TOUGH PLUSGREEN | C133: #3304 TOUGH PLUSGREEN | D133: 54.08 | E133: 56.46 | F133: 46.15 | G133: 29.77 | H133: 22.45 | I133: 34.43 | J133: 69.93 | K133: 76.69 | L133: 77.48 | M133: 76.44 | N133: 73.74 | O133: 69.6 | P133: 64 | Q133: 57.28 | R133: 51.75 | S133: 47.91 | T133: 45.82 | U133: 50.83 | V133: 65.24 | W133: 77.79 | X133: 0.76 | AA133: =D133*D$5 -> 0 | AB133: =E133*E$5 -> 0 | AC133: =F133*F$5 -> 0.923 | AD133: =G133*G$5 -> 2.977 | AE133: =H133*H$5 -> 20.205 | AF133: =I133*I$5 -> 10.329 | AG133: =J133*J$5 -> 6.993 | AH133: =K133*K$5 -> 11.5035 | AI133: =L133*L$5 -> 30.992 | AJ133: =M133*M$5 -> 43.5708 | AK133: =N133*N$5 -> 42.7692 | AL133: =O133*O$5 -> 36.192 | AM133: =P133*P$5 -> 30.72 | AN133: =Q133*Q$5 -> 21.1936 | AO133: =R133*R$5 -> 12.42 | AP133: =S133*S$5 -> 8.6238 | AQ133: =T133*T$5 -> 5.9566 | AR133: =U133*U$5 -> 4.0664 | AS133: =V133*V$5 -> 3.262 | AT133: =W133*W$5 -> 2.3337 | AV133: =700/420*AVERAGE(AA133:AD133) -> 1.625 | AW133: =700/510*AVERAGE(AE133:AH133) -> 16.82419118 | AX133: =700/570*AVERAGE(AI133:AL133) -> 47.1345614 | AY133: =700/640*AVERAGE(AM133:AP133) -> 19.94928906 | AZ133: =AVERAGE(AQ133:AT133) -> 3.904675 | BB133: =B133 -> #3304 TOUGH PLUSGREEN | BC133: =MAX(AV133-SUM(AW133:AZ133)/quo,0) -> 0 | BD133: =MAX(AW133-(AV133+SUM(AX133:AZ133))/quo,0) -> 0 | BE133: =MAX(AX133-(SUM(AV133:AW133)+SUM(AY133:AZ133))/quo,0) -> 25.98298378 | BF133: =MAX(AY133-(SUM(AV133:AX133)+AZ133)/quo,0) -> 0 | BG133: =MAX(AZ133-SUM(AV133:AY133)/quo,0) -> 0
A134: ROSCOLUX | B134: #11 LT STRAW | C134: =CONCATENATE(A134," ",B134) -> ROSCOLUX #11 LT STRAW | D134: 54.98 | E134: 48.72 | F134: 33.37 | G134: 22.28 | H134: 15.35 | I134: 13.93 | J134: 21.43 | K134: 43.14 | L134: 64.14 | M134: 74.86 | N134: 80.4 | O134: 84.85 | P134: 87.17 | Q134: 87.78 | R134: 88.08 | S134: 88.14 | T134: 88.01 | U134: 88.15 | V134: 88.18 | W134: 88.36 | X134: 0.82 | AA134: =D134*D$5 -> 0 | AB134: =E134*E$5 -> 0 | AC134: =F134*F$5 -> 0.6674 | AD134: =G134*G$5 -> 2.228 | AE134: =H134*H$5 -> 13.815 | AF134: =I134*I$5 -> 4.179 | AG134: =J134*J$5 -> 2.143 | AH134: =K134*K$5 -> 6.471 | AI134: =L134*L$5 -> 25.656 | AJ134: =M134*M$5 -> 42.6702 | AK134: =N134*N$5 -> 46.632 | AL134: =O134*O$5 -> 44.122 | AM134: =P134*P$5 -> 41.8416 | AN134: =Q134*Q$5 -> 32.4786 | AO134: =R134*R$5 -> 21.1392 | AP134: =S134*S$5 -> 15.8652 | AQ134: =T134*T$5 -> 11.4413 | AR134: =U134*U$5 -> 7.052 | AS134: =V134*V$5 -> 4.409 | AT134: =W134*W$5 -> 2.6508 | AV134: =700/420*AVERAGE(AA134:AD134) -> 1.206416667 | AW134: =700/510*AVERAGE(AE134:AH134) -> 9.130196078 | AX134: =700/570*AVERAGE(AI134:AL134) -> 48.84041228 | AY134: =700/640*AVERAGE(AM134:AP134) -> 30.44032031 | AZ134: =AVERAGE(AQ134:AT134) -> 6.388275 | BB134: =B134 -> #11 LT STRAW | BC134: =MAX(AV134-SUM(AW134:AZ134)/quo,0) -> 0 | BD134: =MAX(AW134-(AV134+SUM(AX134:AZ134))/quo,0) -> 0 | BE134: =MAX(AX134-(SUM(AV134:AW134)+SUM(AY134:AZ134))/quo,0) -> 25.25780825 | BF134: =MAX(AY134-(SUM(AV134:AX134)+AZ134)/quo,0) -> 0 | BG134: =MAX(AZ134-SUM(AV134:AY134)/quo,0) -> 0
A135: ROSCOLUX | B135: #2003 VS YELLOW | C135: =CONCATENATE(A135," ",B135) -> ROSCOLUX #2003 VS YELLOW | D135: 47.44 | E135: 43.79 | F135: 20.06 | G135: 4.9 | H135: 1.43 | I135: 2.65 | J135: 9.42 | K135: 15.75 | L135: 27.59 | M135: 62.44 | N135: 82.15 | O135: 84.75 | P135: 85.36 | Q135: 85.58 | R135: 85.57 | S135: 85.68 | T135: 85.98 | U135: 85.97 | V135: 86.18 | W135: 86.36 | X135: 0.64 | AA135: =D135*D$5 -> 0 | AB135: =E135*E$5 -> 0 | AC135: =F135*F$5 -> 0.4012 | AD135: =G135*G$5 -> 0.49 | AE135: =H135*H$5 -> 1.287 | AF135: =I135*I$5 -> 0.795 | AG135: =J135*J$5 -> 0.942 | AH135: =K135*K$5 -> 2.3625 | AI135: =L135*L$5 -> 11.036 | AJ135: =M135*M$5 -> 35.5908 | AK135: =N135*N$5 -> 47.647 | AL135: =O135*O$5 -> 44.07 | AM135: =P135*P$5 -> 40.9728 | AN135: =Q135*Q$5 -> 31.6646 | AO135: =R135*R$5 -> 20.5368 | AP135: =S135*S$5 -> 15.4224 | AQ135: =T135*T$5 -> 11.1774 | AR135: =U135*U$5 -> 6.8776 | AS135: =V135*V$5 -> 4.309 | AT135: =W135*W$5 -> 2.5908 | AV135: =700/420*AVERAGE(AA135:AD135) -> 0.3713333333 | AW135: =700/510*AVERAGE(AE135:AH135) -> 1.848308824 | AX135: =700/570*AVERAGE(AI135:AL135) -> 42.47397368 | AY135: =700/640*AVERAGE(AM135:AP135) -> 29.69438281 | AZ135: =AVERAGE(AQ135:AT135) -> 6.2387 | BB135: =B135 -> #2003 VS YELLOW | BC135: =MAX(AV135-SUM(AW135:AZ135)/quo,0) -> 0 | BD135: =MAX(AW135-(AV135+SUM(AX135:AZ135))/quo,0) -> 0 | BE135: =MAX(AX135-(SUM(AV135:AW135)+SUM(AY135:AZ135))/quo,0) -> 23.3976112 | BF135: =MAX(AY135-(SUM(AV135:AX135)+AZ135)/quo,0) -> 4.228224892 | BG135: =MAX(AZ135-SUM(AV135:AY135)/quo,0) -> 0
A136: ROSCOLUX | B136: #4415 CALCOLOR 15 GREEN | C136: #4415 CALCOLOR 15 GREEN | D136: 61.14 | E136: 64.72 | F136: 58.93 | G136: 46.6 | H136: 40.1 | I136: 49.89 | J136: 74.72 | K136: 78.88 | L136: 79.87 | M136: 79.52 | N136: 77.4 | O136: 73.71 | P136: 68.58 | Q136: 61.9 | R136: 56.3 | S136: 52.36 | T136: 49.61 | U136: 53.57 | V136: 67.07 | W136: 78.95 | X136: 0.67 | AA136: =D136*D$5 -> 0 | AB136: =E136*E$5 -> 0 | AC136: =F136*F$5 -> 1.1786 | AD136: =G136*G$5 -> 4.66 | AE136: =H136*H$5 -> 36.09 | AF136: =I136*I$5 -> 14.967 | AG136: =J136*J$5 -> 7.472 | AH136: =K136*K$5 -> 11.832 | AI136: =L136*L$5 -> 31.948 | AJ136: =M136*M$5 -> 45.3264 | AK136: =N136*N$5 -> 44.892 | AL136: =O136*O$5 -> 38.3292 | AM136: =P136*P$5 -> 32.9184 | AN136: =Q136*Q$5 -> 22.903 | AO136: =R136*R$5 -> 13.512 | AP136: =S136*S$5 -> 9.4248 | AQ136: =T136*T$5 -> 6.4493 | AR136: =U136*U$5 -> 4.2856 | AS136: =V136*V$5 -> 3.3535 | AT136: =W136*W$5 -> 2.3685 | AV136: =700/420*AVERAGE(AA136:AD136) -> 2.43275 | AW136: =700/510*AVERAGE(AE136:AH136) -> 24.14348039 | AX136: =700/570*AVERAGE(AI136:AL136) -> 49.27496491 | AY136: =700/640*AVERAGE(AM136:AP136) -> 21.53544531 | AZ136: =AVERAGE(AQ136:AT136) -> 4.114225 | BB136: =B136 -> #4415 CALCOLOR 15 GREEN | BC136: =MAX(AV136-SUM(AW136:AZ136)/quo,0) -> 0 | BD136: =MAX(AW136-(AV136+SUM(AX136:AZ136))/quo,0) -> 0 | BE136: =MAX(AX136-(SUM(AV136:AW136)+SUM(AY136:AZ136))/quo,0) -> 23.16201456 | BF136: =MAX(AY136-(SUM(AV136:AX136)+AZ136)/quo,0) -> 0 | BG136: =MAX(AZ136-SUM(AV136:AY136)/quo,0) -> 0
A137: ROSCOLUX | B137: #389 CHROMA GREEN | C137: =CONCATENATE(A137," ",B137) -> ROSCOLUX #389 CHROMA GREEN | D137: 3.71 | E137: 4.26 | F137: 2.97 | G137: 0.47 | H137: 0.17 | I137: 2.73 | J137: 44.69 | K137: 76.95 | L137: 72.2 | M137: 54.89 | N137: 32.06 | O137: 18.26 | P137: 10.57 | Q137: 6.93 | R137: 6.53 | S137: 6.9 | T137: 4.75 | U137: 7.25 | V137: 6.22 | W137: 13.91 | X137: 0.4 | AA137: =D137*D$5 -> 0 | AB137: =E137*E$5 -> 0 | AC137: =F137*F$5 -> 0.0594 | AD137: =G137*G$5 -> 0.047 | AE137: =H137*H$5 -> 0.153 | AF137: =I137*I$5 -> 0.819 | AG137: =J137*J$5 -> 4.469 | AH137: =K137*K$5 -> 11.5425 | AI137: =L137*L$5 -> 28.88 | AJ137: =M137*M$5 -> 31.2873 | AK137: =N137*N$5 -> 18.5948 | AL137: =O137*O$5 -> 9.4952 | AM137: =P137*P$5 -> 5.0736 | AN137: =Q137*Q$5 -> 2.5641 | AO137: =R137*R$5 -> 1.5672 | AP137: =S137*S$5 -> 1.242 | AQ137: =T137*T$5 -> 0.6175 | AR137: =U137*U$5 -> 0.58 | AS137: =V137*V$5 -> 0.311 | AT137: =W137*W$5 -> 0.4173 | AV137: =700/420*AVERAGE(AA137:AD137) -> 0.04433333333 | AW137: =700/510*AVERAGE(AE137:AH137) -> 5.827671569 | AX137: =700/570*AVERAGE(AI137:AL137) -> 27.09653947 | AY137: =700/640*AVERAGE(AM137:AP137) -> 2.856574219 | AZ137: =AVERAGE(AQ137:AT137) -> 0.48145 | BB137: =B137 -> #389 CHROMA GREEN | BC137: =MAX(AV137-SUM(AW137:AZ137)/quo,0) -> 0 | BD137: =MAX(AW137-(AV137+SUM(AX137:AZ137))/quo,0) -> 0 | BE137: =MAX(AX137-(SUM(AV137:AW137)+SUM(AY137:AZ137))/quo,0) -> 22.49152491 | BF137: =MAX(AY137-(SUM(AV137:AX137)+AZ137)/quo,0) -> 0 | BG137: =MAX(AZ137-SUM(AV137:AY137)/quo,0) -> 0
A138: ROSCOLUX | B138: #4515 CALCOLOR 15 YELLOW | C138: =B138 -> #4515 CALCOLOR 15 YELLOW | D138: 67.96 | E138: 70.26 | F138: 64.01 | G138: 52.09 | H138: 45.73 | I138: 55.96 | J138: 81.97 | K138: 85.96 | L138: 87.41 | M138: 88.41 | N138: 88.29 | O138: 88.59 | P138: 89.03 | Q138: 89 | R138: 89.16 | S138: 89.33 | T138: 89.56 | U138: 89.82 | V138: 90.11 | W138: 90.69 | X138: 0.8 | AA138: =D138*D$5 -> 0 | AB138: =E138*E$5 -> 0 | AC138: =F138*F$5 -> 1.2802 | AD138: =G138*G$5 -> 5.209 | AE138: =H138*H$5 -> 41.157 | AF138: =I138*I$5 -> 16.788 | AG138: =J138*J$5 -> 8.197 | AH138: =K138*K$5 -> 12.894 | AI138: =L138*L$5 -> 34.964 | AJ138: =M138*M$5 -> 50.3937 | AK138: =N138*N$5 -> 51.2082 | AL138: =O138*O$5 -> 46.0668 | AM138: =P138*P$5 -> 42.7344 | AN138: =Q138*Q$5 -> 32.93 | AO138: =R138*R$5 -> 21.3984 | AP138: =S138*S$5 -> 16.0794 | AQ138: =T138*T$5 -> 11.6428 | AR138: =U138*U$5 -> 7.1856 | AS138: =V138*V$5 -> 4.5055 | AT138: =W138*W$5 -> 2.7207 | AV138: =700/420*AVERAGE(AA138:AD138) -> 2.703833333 | AW138: =700/510*AVERAGE(AE138:AH138) -> 27.12019608 | AX138: =700/570*AVERAGE(AI138:AL138) -> 56.07144298 | AY138: =700/640*AVERAGE(AM138:AP138) -> 30.93732031 | AZ138: =AVERAGE(AQ138:AT138) -> 6.51365 | BB138: =B138 -> #4515 CALCOLOR 15 YELLOW | BC138: =MAX(AV138-SUM(AW138:AZ138)/quo,0) -> 0 | BD138: =MAX(AW138-(AV138+SUM(AX138:AZ138))/quo,0) -> 0 | BE138: =MAX(AX138-(SUM(AV138:AW138)+SUM(AY138:AZ138))/quo,0) -> 22.43394312 | BF138: =MAX(AY138-(SUM(AV138:AX138)+AZ138)/quo,0) -> 0 | BG138: =MAX(AZ138-SUM(AV138:AY138)/quo,0) -> 0
A139: ROSCOLUX | B139: #89 MOSS GREEN | C139: =CONCATENATE(A139," ",B139) -> ROSCOLUX #89 MOSS GREEN | D139: 31.09 | E139: 25.26 | F139: 12.44 | G139: 6.3 | H139: 6.06 | I139: 8.18 | J139: 16.07 | K139: 35.88 | L139: 53.17 | M139: 51.64 | N139: 38.78 | O139: 23.25 | P139: 13.02 | Q139: 5.58 | R139: 2.74 | S139: 2.08 | T139: 1.37 | U139: 1.85 | V139: 7.31 | W139: 27.61 | X139: 0.45 | AA139: =D139*D$5 -> 0 | AB139: =E139*E$5 -> 0 | AC139: =F139*F$5 -> 0.2488 | AD139: =G139*G$5 -> 0.63 | AE139: =H139*H$5 -> 5.454 | AF139: =I139*I$5 -> 2.454 | AG139: =J139*J$5 -> 1.607 | AH139: =K139*K$5 -> 5.382 | AI139: =L139*L$5 -> 21.268 | AJ139: =M139*M$5 -> 29.4348 | AK139: =N139*N$5 -> 22.4924 | AL139: =O139*O$5 -> 12.09 | AM139: =P139*P$5 -> 6.2496 | AN139: =Q139*Q$5 -> 2.0646 | AO139: =R139*R$5 -> 0.6576 | AP139: =S139*S$5 -> 0.3744 | AQ139: =T139*T$5 -> 0.1781 | AR139: =U139*U$5 -> 0.148 | AS139: =V139*V$5 -> 0.3655 | AT139: =W139*W$5 -> 0.8283 | AV139: =700/420*AVERAGE(AA139:AD139) -> 0.3661666667 | AW139: =700/510*AVERAGE(AE139:AH139) -> 5.111715686 | AX139: =700/570*AVERAGE(AI139:AL139) -> 26.18405263 | AY139: =700/640*AVERAGE(AM139:AP139) -> 2.555601562 | AZ139: =AVERAGE(AQ139:AT139) -> 0.379975 | BB139: =B139 -> #89 MOSS GREEN | BC139: =MAX(AV139-SUM(AW139:AZ139)/quo,0) -> 0 | BD139: =MAX(AW139-(AV139+SUM(AX139:AZ139))/quo,0) -> 0 | BE139: =MAX(AX139-(SUM(AV139:AW139)+SUM(AY139:AZ139))/quo,0) -> 21.97732317 | BF139: =MAX(AY139-(SUM(AV139:AX139)+AZ139)/quo,0) -> 0 | BG139: =MAX(AZ139-SUM(AV139:AY139)/quo,0) -> 0
A140: ROSCOLUX | B140: #14 MED STRAW | C140: =CONCATENATE(A140," ",B140) -> ROSCOLUX #14 MED STRAW | D140: 39.78 | E140: 35.59 | F140: 21.64 | G140: 12.29 | H140: 7.08 | I140: 5.91 | J140: 10.5 | K140: 27.37 | L140: 47.97 | M140: 61.75 | N140: 70.41 | O140: 79.65 | P140: 84.97 | Q140: 86.36 | R140: 86.82 | S140: 86.95 | T140: 86.8 | U140: 86.94 | V140: 86.92 | W140: 87.09 | X140: 0.68 | AA140: =D140*D$5 -> 0 | AB140: =E140*E$5 -> 0 | AC140: =F140*F$5 -> 0.4328 | AD140: =G140*G$5 -> 1.229 | AE140: =H140*H$5 -> 6.372 | AF140: =I140*I$5 -> 1.773 | AG140: =J140*J$5 -> 1.05 | AH140: =K140*K$5 -> 4.1055 | AI140: =L140*L$5 -> 19.188 | AJ140: =M140*M$5 -> 35.1975 | AK140: =N140*N$5 -> 40.8378 | AL140: =O140*O$5 -> 41.418 | AM140: =P140*P$5 -> 40.7856 | AN140: =Q140*Q$5 -> 31.9532 | AO140: =R140*R$5 -> 20.8368 | AP140: =S140*S$5 -> 15.651 | AQ140: =T140*T$5 -> 11.284 | AR140: =U140*U$5 -> 6.9552 | AS140: =V140*V$5 -> 4.346 | AT140: =W140*W$5 -> 2.6127 | AV140: =700/420*AVERAGE(AA140:AD140) -> 0.6924166667 | AW140: =700/510*AVERAGE(AE140:AH140) -> 4.563897059 | AX140: =700/570*AVERAGE(AI140:AL140) -> 41.95127632 | AY140: =700/640*AVERAGE(AM140:AP140) -> 29.86664844 | AZ140: =AVERAGE(AQ140:AT140) -> 6.299475 | BB140: =B140 -> #14 MED STRAW | BC140: =MAX(AV140-SUM(AW140:AZ140)/quo,0) -> 0 | BD140: =MAX(AW140-(AV140+SUM(AX140:AZ140))/quo,0) -> 0 | BE140: =MAX(AX140-(SUM(AV140:AW140)+SUM(AY140:AZ140))/quo,0) -> 21.24005773 | BF140: =MAX(AY140-(SUM(AV140:AX140)+AZ140)/quo,0) -> 3.113115917 | BG140: =MAX(AZ140-SUM(AV140:AY140)/quo,0) -> 0
A141: ROSCOLUX | B141: #07 PALE YELLOW | C141: =CONCATENATE(A141," ",B141) -> ROSCOLUX #07 PALE YELLOW | D141: 52.26 | E141: 42.78 | F141: 36.66 | G141: 39.6 | H141: 51.82 | I141: 64.53 | J141: 73.61 | K141: 79.99 | L141: 83.37 | M141: 86.02 | N141: 87.44 | O141: 87.71 | P141: 87.88 | Q141: 87.93 | R141: 88.11 | S141: 88.14 | T141: 88.01 | U141: 88.05 | V141: 88.02 | W141: 88.09 | X141: 0.96 | AA141: =D141*D$5 -> 0 | AB141: =E141*E$5 -> 0 | AC141: =F141*F$5 -> 0.7332 | AD141: =G141*G$5 -> 3.96 | AE141: =H141*H$5 -> 46.638 | AF141: =I141*I$5 -> 19.359 | AG141: =J141*J$5 -> 7.361 | AH141: =K141*K$5 -> 11.9985 | AI141: =L141*L$5 -> 33.348 | AJ141: =M141*M$5 -> 49.0314 | AK141: =N141*N$5 -> 50.7152 | AL141: =O141*O$5 -> 45.6092 | AM141: =P141*P$5 -> 42.1824 | AN141: =Q141*Q$5 -> 32.5341 | AO141: =R141*R$5 -> 21.1464 | AP141: =S141*S$5 -> 15.8652 | AQ141: =T141*T$5 -> 11.4413 | AR141: =U141*U$5 -> 7.044 | AS141: =V141*V$5 -> 4.401 | AT141: =W141*W$5 -> 2.6427 | AV141: =700/420*AVERAGE(AA141:AD141) -> 1.9555 | AW141: =700/510*AVERAGE(AE141:AH141) -> 29.2889951 | AX141: =700/570*AVERAGE(AI141:AL141) -> 54.86520175 | AY141: =700/640*AVERAGE(AM141:AP141) -> 30.55065234 | AZ141: =AVERAGE(AQ141:AT141) -> 6.38225 | BB141: =B141 -> #07 PALE YELLOW | BC141: =MAX(AV141-SUM(AW141:AZ141)/quo,0) -> 0 | BD141: =MAX(AW141-(AV141+SUM(AX141:AZ141))/quo,0) -> 0 | BE141: =MAX(AX141-(SUM(AV141:AW141)+SUM(AY141:AZ141))/quo,0) -> 20.77650303 | BF141: =MAX(AY141-(SUM(AV141:AX141)+AZ141)/quo,0) -> 0 | BG141: =MAX(AZ141-SUM(AV141:AY141)/quo,0) -> 0
A142: ROSCOLUX | B142: #3315 TOUGH 1/2 PLUSGREEN | C142: #3315 TOUGH 1/2 PLUSGREEN | D142: 60.26 | E142: 64.4 | F142: 60.35 | G142: 50.7 | H142: 45.48 | I142: 53.95 | J142: 75.55 | K142: 78.92 | L142: 79.31 | M142: 78.77 | N142: 77.31 | O142: 74.9 | P142: 71.44 | Q142: 67.27 | R142: 63.83 | S142: 61.24 | T142: 60.24 | U142: 64.59 | V142: 74.13 | W142: 81.39 | X142: 0.9 | AA142: =D142*D$5 -> 0 | AB142: =E142*E$5 -> 0 | AC142: =F142*F$5 -> 1.207 | AD142: =G142*G$5 -> 5.07 | AE142: =H142*H$5 -> 40.932 | AF142: =I142*I$5 -> 16.185 | AG142: =J142*J$5 -> 7.555 | AH142: =K142*K$5 -> 11.838 | AI142: =L142*L$5 -> 31.724 | AJ142: =M142*M$5 -> 44.8989 | AK142: =N142*N$5 -> 44.8398 | AL142: =O142*O$5 -> 38.948 | AM142: =P142*P$5 -> 34.2912 | AN142: =Q142*Q$5 -> 24.8899 | AO142: =R142*R$5 -> 15.3192 | AP142: =S142*S$5 -> 11.0232 | AQ142: =T142*T$5 -> 7.8312 | AR142: =U142*U$5 -> 5.1672 | AS142: =V142*V$5 -> 3.7065 | AT142: =W142*W$5 -> 2.4417 | AV142: =700/420*AVERAGE(AA142:AD142) -> 2.615416667 | AW142: =700/510*AVERAGE(AE142:AH142) -> 26.25343137 | AX142: =700/570*AVERAGE(AI142:AL142) -> 49.24889912 | AY142: =700/640*AVERAGE(AM142:AP142) -> 23.38533203 | AZ142: =AVERAGE(AQ142:AT142) -> 4.78665 | BB142: =B142 -> #3315 TOUGH 1/2 PLUSGREEN | BC142: =MAX(AV142-SUM(AW142:AZ142)/quo,0) -> 0 | BD142: =MAX(AW142-(AV142+SUM(AX142:AZ142))/quo,0) -> 0 | BE142: =MAX(AX142-(SUM(AV142:AW142)+SUM(AY142:AZ142))/quo,0) -> 20.72848409 | BF142: =MAX(AY142-(SUM(AV142:AX142)+AZ142)/quo,0) -> 0 | BG142: =MAX(AZ142-SUM(AV142:AY142)/quo,0) -> 0
A143: ROSCOLUX | B143: #87 PALE YELLOW GREEN | C143: =CONCATENATE(A143," ",B143) -> ROSCOLUX #87 PALE YELLOW GREEN | D143: 58.54 | E143: 63.02 | F143: 59.51 | G143: 50.46 | H143: 45.23 | I143: 53.39 | J143: 74.88 | K143: 78.28 | L143: 78.58 | M143: 78.19 | N143: 76.64 | O143: 74.4 | P143: 70.98 | Q143: 66.81 | R143: 63.43 | S143: 60.9 | T143: 59.87 | U143: 64.17 | V143: 73.71 | W143: 81.38 | X143: 0.85 | AA143: =D143*D$5 -> 0 | AB143: =E143*E$5 -> 0 | AC143: =F143*F$5 -> 1.1902 | AD143: =G143*G$5 -> 5.046 | AE143: =H143*H$5 -> 40.707 | AF143: =I143*I$5 -> 16.017 | AG143: =J143*J$5 -> 7.488 | AH143: =K143*K$5 -> 11.742 | AI143: =L143*L$5 -> 31.432 | AJ143: =M143*M$5 -> 44.5683 | AK143: =N143*N$5 -> 44.4512 | AL143: =O143*O$5 -> 38.688 | AM143: =P143*P$5 -> 34.0704 | AN143: =Q143*Q$5 -> 24.7197 | AO143: =R143*R$5 -> 15.2232 | AP143: =S143*S$5 -> 10.962 | AQ143: =T143*T$5 -> 7.7831 | AR143: =U143*U$5 -> 5.1336 | AS143: =V143*V$5 -> 3.6855 | AT143: =W143*W$5 -> 2.4414 | AV143: =700/420*AVERAGE(AA143:AD143) -> 2.598416667 | AW143: =700/510*AVERAGE(AE143:AH143) -> 26.06264706 | AX143: =700/570*AVERAGE(AI143:AL143) -> 48.85861842 | AY143: =700/640*AVERAGE(AM143:AP143) -> 23.23543359 | AZ143: =AVERAGE(AQ143:AT143) -> 4.7609 | BB143: =B143 -> #87 PALE YELLOW GREEN | BC143: =MAX(AV143-SUM(AW143:AZ143)/quo,0) -> 0 | BD143: =MAX(AW143-(AV143+SUM(AX143:AZ143))/quo,0) -> 0 | BE143: =MAX(AX143-(SUM(AV143:AW143)+SUM(AY143:AZ143))/quo,0) -> 20.52991976 | BF143: =MAX(AY143-(SUM(AV143:AX143)+AZ143)/quo,0) -> 0 | BG143: =MAX(AZ143-SUM(AV143:AY143)/quo,0) -> 0
A144: ROSCOLUX | B144: #15 DEEP STRAW | C144: =CONCATENATE(A144," ",B144) -> ROSCOLUX #15 DEEP STRAW | D144: 9.53 | E144: 3.41 | F144: 1.05 | G144: 0.59 | H144: 0.82 | I144: 1.68 | J144: 3.78 | K144: 10.07 | L144: 26.93 | M144: 51.02 | N144: 74.8 | O144: 85.89 | P144: 88.51 | Q144: 89.07 | R144: 89.42 | S144: 89.43 | T144: 89.26 | U144: 89.32 | V144: 89.19 | W144: 89.09 | X144: 0.65 | AA144: =D144*D$5 -> 0 | AB144: =E144*E$5 -> 0 | AC144: =F144*F$5 -> 0.021 | AD144: =G144*G$5 -> 0.059 | AE144: =H144*H$5 -> 0.738 | AF144: =I144*I$5 -> 0.504 | AG144: =J144*J$5 -> 0.378 | AH144: =K144*K$5 -> 1.5105 | AI144: =L144*L$5 -> 10.772 | AJ144: =M144*M$5 -> 29.0814 | AK144: =N144*N$5 -> 43.384 | AL144: =O144*O$5 -> 44.6628 | AM144: =P144*P$5 -> 42.4848 | AN144: =Q144*Q$5 -> 32.9559 | AO144: =R144*R$5 -> 21.4608 | AP144: =S144*S$5 -> 16.0974 | AQ144: =T144*T$5 -> 11.6038 | AR144: =U144*U$5 -> 7.1456 | AS144: =V144*V$5 -> 4.4595 | AT144: =W144*W$5 -> 2.6727 | AV144: =700/420*AVERAGE(AA144:AD144) -> 0.03333333333 | AW144: =700/510*AVERAGE(AE144:AH144) -> 1.074191176 | AX144: =700/570*AVERAGE(AI144:AL144) -> 39.26760526 | AY144: =700/640*AVERAGE(AM144:AP144) -> 30.89813672 | AZ144: =AVERAGE(AQ144:AT144) -> 6.4704 | BB144: =B144 -> #15 DEEP STRAW | BC144: =MAX(AV144-SUM(AW144:AZ144)/quo,0) -> 0 | BD144: =MAX(AW144-(AV144+SUM(AX144:AZ144))/quo,0) -> 0 | BE144: =MAX(AX144-(SUM(AV144:AW144)+SUM(AY144:AZ144))/quo,0) -> 20.02957465 | BF144: =MAX(AY144-(SUM(AV144:AX144)+AZ144)/quo,0) -> 7.475371832 | BG144: =MAX(AZ144-SUM(AV144:AY144)/quo,0) -> 0
A145: ROSCOLUX | B145: #4490 CALCOLOR 90 GREEN | C145: #4490 CALCOLOR 90 GREEN | D145: 12.08 | E145: 8.53 | F145: 1.16 | G145: 0.06 | H145: 0.06 | I145: 0.65 | J145: 14.74 | K145: 32.22 | L145: 40.43 | M145: 42.02 | N145: 35.04 | O145: 23.44 | P145: 12.73 | Q145: 5.41 | R145: 2.35 | S145: 1.28 | T145: 0.87 | U145: 1.54 | V145: 9.1 | W145: 34.23 | X145: 0.18 | AA145: =D145*D$5 -> 0 | AB145: =E145*E$5 -> 0 | AC145: =F145*F$5 -> 0.0232 | AD145: =G145*G$5 -> 0.006 | AE145: =H145*H$5 -> 0.054 | AF145: =I145*I$5 -> 0.195 | AG145: =J145*J$5 -> 1.474 | AH145: =K145*K$5 -> 4.833 | AI145: =L145*L$5 -> 16.172 | AJ145: =M145*M$5 -> 23.9514 | AK145: =N145*N$5 -> 20.3232 | AL145: =O145*O$5 -> 12.1888 | AM145: =P145*P$5 -> 6.1104 | AN145: =Q145*Q$5 -> 2.0017 | AO145: =R145*R$5 -> 0.564 | AP145: =S145*S$5 -> 0.2304 | AQ145: =T145*T$5 -> 0.1131 | AR145: =U145*U$5 -> 0.1232 | AS145: =V145*V$5 -> 0.455 | AT145: =W145*W$5 -> 1.0269 | AV145: =700/420*AVERAGE(AA145:AD145) -> 0.01216666667 | AW145: =700/510*AVERAGE(AE145:AH145) -> 2.249607843 | AX145: =700/570*AVERAGE(AI145:AL145) -> 22.30034211 | AY145: =700/640*AVERAGE(AM145:AP145) -> 2.435371094 | AZ145: =AVERAGE(AQ145:AT145) -> 0.42955 | BB145: =B145 -> #4490 CALCOLOR 90 GREEN | BC145: =MAX(AV145-SUM(AW145:AZ145)/quo,0) -> 0 | BD145: =MAX(AW145-(AV145+SUM(AX145:AZ145))/quo,0) -> 0 | BE145: =MAX(AX145-(SUM(AV145:AW145)+SUM(AY145:AZ145))/quo,0) -> 19.7369943 | BF145: =MAX(AY145-(SUM(AV145:AX145)+AZ145)/quo,0) -> 0 | BG145: =MAX(AZ145-SUM(AV145:AY145)/quo,0) -> 0
A146: ROSCOLUX | B146: #13 STRAW TINT | C146: =CONCATENATE(A146," ",B146) -> ROSCOLUX #13 STRAW TINT | D146: 59.49 | E146: 59.09 | F146: 49.24 | G146: 39.59 | H146: 31.52 | I146: 28.56 | J146: 34.12 | K146: 48.51 | L146: 61.19 | M146: 69.94 | N146: 76.22 | O146: 83.6 | P146: 87.75 | Q146: 88.62 | R146: 88.99 | S146: 89.02 | T146: 88.87 | U146: 88.94 | V146: 88.93 | W146: 89.08 | X146: 0.78 | AA146: =D146*D$5 -> 0 | AB146: =E146*E$5 -> 0 | AC146: =F146*F$5 -> 0.9848 | AD146: =G146*G$5 -> 3.959 | AE146: =H146*H$5 -> 28.368 | AF146: =I146*I$5 -> 8.568 | AG146: =J146*J$5 -> 3.412 | AH146: =K146*K$5 -> 7.2765 | AI146: =L146*L$5 -> 24.476 | AJ146: =M146*M$5 -> 39.8658 | AK146: =N146*N$5 -> 44.2076 | AL146: =O146*O$5 -> 43.472 | AM146: =P146*P$5 -> 42.12 | AN146: =Q146*Q$5 -> 32.7894 | AO146: =R146*R$5 -> 21.3576 | AP146: =S146*S$5 -> 16.0236 | AQ146: =T146*T$5 -> 11.5531 | AR146: =U146*U$5 -> 7.1152 | AS146: =V146*V$5 -> 4.4465 | AT146: =W146*W$5 -> 2.6724 | AV146: =700/420*AVERAGE(AA146:AD146) -> 2.059916667 | AW146: =700/510*AVERAGE(AE146:AH146) -> 16.3417402 | AX146: =700/570*AVERAGE(AI146:AL146) -> 46.67323684 | AY146: =700/640*AVERAGE(AM146:AP146) -> 30.70446094 | AZ146: =AVERAGE(AQ146:AT146) -> 6.4468 | BB146: =B146 -> #13 STRAW TINT | BC146: =MAX(AV146-SUM(AW146:AZ146)/quo,0) -> 0 | BD146: =MAX(AW146-(AV146+SUM(AX146:AZ146))/quo,0) -> 0 | BE146: =MAX(AX146-(SUM(AV146:AW146)+SUM(AY146:AZ146))/quo,0) -> 18.89677794 | BF146: =MAX(AY146-(SUM(AV146:AX146)+AZ146)/quo,0) -> 0 | BG146: =MAX(AZ146-SUM(AV146:AY146)/quo,0) -> 0
A147: ROSCOLUX | B147: #3316 TOUGH 1/4 PLUSGREEN | C147: #3316 TOUGH 1/4 PLUSGREEN | D147: 65.71 | E147: 69.42 | F147: 68.81 | G147: 64.64 | H147: 62.22 | I147: 67.38 | J147: 78.95 | K147: 80.68 | L147: 81.37 | M147: 81.59 | N147: 81.05 | O147: 80.28 | P147: 78.98 | Q147: 76.96 | R147: 75.11 | S147: 73.75 | T147: 72.78 | U147: 74.48 | V147: 79.49 | W147: 83.41 | X147: 0.92 | AA147: =D147*D$5 -> 0 | AB147: =E147*E$5 -> 0 | AC147: =F147*F$5 -> 1.3762 | AD147: =G147*G$5 -> 6.464 | AE147: =H147*H$5 -> 55.998 | AF147: =I147*I$5 -> 20.214 | AG147: =J147*J$5 -> 7.895 | AH147: =K147*K$5 -> 12.102 | AI147: =L147*L$5 -> 32.548 | AJ147: =M147*M$5 -> 46.5063 | AK147: =N147*N$5 -> 47.009 | AL147: =O147*O$5 -> 41.7456 | AM147: =P147*P$5 -> 37.9104 | AN147: =Q147*Q$5 -> 28.4752 | AO147: =R147*R$5 -> 18.0264 | AP147: =S147*S$5 -> 13.275 | AQ147: =T147*T$5 -> 9.4614 | AR147: =U147*U$5 -> 5.9584 | AS147: =V147*V$5 -> 3.9745 | AT147: =W147*W$5 -> 2.5023 | AV147: =700/420*AVERAGE(AA147:AD147) -> 3.26675 | AW147: =700/510*AVERAGE(AE147:AH147) -> 33.01289216 | AX147: =700/570*AVERAGE(AI147:AL147) -> 51.52027632 | AY147: =700/640*AVERAGE(AM147:AP147) -> 26.71128906 | AZ147: =AVERAGE(AQ147:AT147) -> 5.47415 | BB147: =B147 -> #3316 TOUGH 1/4 PLUSGREEN | BC147: =MAX(AV147-SUM(AW147:AZ147)/quo,0) -> 0 | BD147: =MAX(AW147-(AV147+SUM(AX147:AZ147))/quo,0) -> 0 | BE147: =MAX(AX147-(SUM(AV147:AW147)+SUM(AY147:AZ147))/quo,0) -> 17.28773571 | BF147: =MAX(AY147-(SUM(AV147:AX147)+AZ147)/quo,0) -> 0 | BG147: =MAX(AZ147-SUM(AV147:AY147)/quo,0) -> 0
A148: ROSCOLUX | B148: #06 NO COLOR STRAW | C148: =CONCATENATE(A148," ",B148) -> ROSCOLUX #06 NO COLOR STRAW | D148: 66.86 | E148: 65.6 | F148: 63.65 | G148: 65.45 | H148: 71.61 | I148: 77.09 | J148: 80.91 | K148: 83.79 | L148: 85.4 | M148: 86.89 | N148: 87.7 | O148: 87.9 | P148: 88.08 | Q148: 88.13 | R148: 88.33 | S148: 88.38 | T148: 88.26 | U148: 88.39 | V148: 88.38 | W148: 88.39 | X148: 0.92 | AA148: =D148*D$5 -> 0 | AB148: =E148*E$5 -> 0 | AC148: =F148*F$5 -> 1.273 | AD148: =G148*G$5 -> 6.545 | AE148: =H148*H$5 -> 64.449 | AF148: =I148*I$5 -> 23.127 | AG148: =J148*J$5 -> 8.091 | AH148: =K148*K$5 -> 12.5685 | AI148: =L148*L$5 -> 34.16 | AJ148: =M148*M$5 -> 49.5273 | AK148: =N148*N$5 -> 50.866 | AL148: =O148*O$5 -> 45.708 | AM148: =P148*P$5 -> 42.2784 | AN148: =Q148*Q$5 -> 32.6081 | AO148: =R148*R$5 -> 21.1992 | AP148: =S148*S$5 -> 15.9084 | AQ148: =T148*T$5 -> 11.4738 | AR148: =U148*U$5 -> 7.0712 | AS148: =V148*V$5 -> 4.419 | AT148: =W148*W$5 -> 2.6517 | AV148: =700/420*AVERAGE(AA148:AD148) -> 3.2575 | AW148: =700/510*AVERAGE(AE148:AH148) -> 37.13963235 | AX148: =700/570*AVERAGE(AI148:AL148) -> 55.34338158 | AY148: =700/640*AVERAGE(AM148:AP148) -> 30.62338672 | AZ148: =AVERAGE(AQ148:AT148) -> 6.403925 | BB148: =B148 -> #06 NO COLOR STRAW | BC148: =MAX(AV148-SUM(AW148:AZ148)/quo,0) -> 0 | BD148: =MAX(AW148-(AV148+SUM(AX148:AZ148))/quo,0) -> 0 | BE148: =MAX(AX148-(SUM(AV148:AW148)+SUM(AY148:AZ148))/quo,0) -> 16.63115954 | BF148: =MAX(AY148-(SUM(AV148:AX148)+AZ148)/quo,0) -> 0 | BG148: =MAX(AZ148-SUM(AV148:AY148)/quo,0) -> 0
A149: ROSCOLUX | B149: #3317 TOUGH 1/8 PLUSGREEN | C149: #3317 TOUGH 1/8 PLUSGREEN | D149: 67.21 | E149: 71.86 | F149: 72.4 | G149: 69.88 | H149: 68.4 | I149: 72.17 | J149: 80.55 | K149: 81.92 | L149: 82.55 | M149: 82.86 | N149: 82.69 | O149: 82.44 | P149: 82.13 | Q149: 82.05 | R149: 81.71 | S149: 82.1 | T149: 83.04 | U149: 83.76 | V149: 84.66 | W149: 85.37 | X149: 0.93 | AA149: =D149*D$5 -> 0 | AB149: =E149*E$5 -> 0 | AC149: =F149*F$5 -> 1.448 | AD149: =G149*G$5 -> 6.988 | AE149: =H149*H$5 -> 61.56 | AF149: =I149*I$5 -> 21.651 | AG149: =J149*J$5 -> 8.055 | AH149: =K149*K$5 -> 12.288 | AI149: =L149*L$5 -> 33.02 | AJ149: =M149*M$5 -> 47.2302 | AK149: =N149*N$5 -> 47.9602 | AL149: =O149*O$5 -> 42.8688 | AM149: =P149*P$5 -> 39.4224 | AN149: =Q149*Q$5 -> 30.3585 | AO149: =R149*R$5 -> 19.6104 | AP149: =S149*S$5 -> 14.778 | AQ149: =T149*T$5 -> 10.7952 | AR149: =U149*U$5 -> 6.7008 | AS149: =V149*V$5 -> 4.233 | AT149: =W149*W$5 -> 2.5611 | AV149: =700/420*AVERAGE(AA149:AD149) -> 3.515 | AW149: =700/510*AVERAGE(AE149:AH149) -> 35.53323529 | AX149: =700/570*AVERAGE(AI149:AL149) -> 52.52431579 | AY149: =700/640*AVERAGE(AM149:AP149) -> 28.48379297 | AZ149: =AVERAGE(AQ149:AT149) -> 6.072525 | BB149: =B149 -> #3317 TOUGH 1/8 PLUSGREEN | BC149: =MAX(AV149-SUM(AW149:AZ149)/quo,0) -> 0 | BD149: =MAX(AW149-(AV149+SUM(AX149:AZ149))/quo,0) -> 0 | BE149: =MAX(AX149-(SUM(AV149:AW149)+SUM(AY149:AZ149))/quo,0) -> 15.72203916 | BF149: =MAX(AY149-(SUM(AV149:AX149)+AZ149)/quo,0) -> 0 | BG149: =MAX(AZ149-SUM(AV149:AY149)/quo,0) -> 0
A150: ROSCOLUX | B150: #08 PALE GOLD | C150: =CONCATENATE(A150," ",B150) -> ROSCOLUX #08 PALE GOLD | D150: 69.26 | E150: 69.99 | F150: 62.72 | G150: 49.43 | H150: 41.82 | I150: 49.56 | J150: 71.33 | K150: 72.29 | L150: 70.06 | M150: 72.56 | N150: 72.48 | O150: 79.54 | P150: 84.42 | Q150: 85.2 | R150: 85.31 | S150: 85.57 | T150: 85.78 | U150: 86.04 | V150: 86.18 | W150: 86.43 | X150: 0.86 | AA150: =D150*D$5 -> 0 | AB150: =E150*E$5 -> 0 | AC150: =F150*F$5 -> 1.2544 | AD150: =G150*G$5 -> 4.943 | AE150: =H150*H$5 -> 37.638 | AF150: =I150*I$5 -> 14.868 | AG150: =J150*J$5 -> 7.133 | AH150: =K150*K$5 -> 10.8435 | AI150: =L150*L$5 -> 28.024 | AJ150: =M150*M$5 -> 41.3592 | AK150: =N150*N$5 -> 42.0384 | AL150: =O150*O$5 -> 41.3608 | AM150: =P150*P$5 -> 40.5216 | AN150: =Q150*Q$5 -> 31.524 | AO150: =R150*R$5 -> 20.4744 | AP150: =S150*S$5 -> 15.4026 | AQ150: =T150*T$5 -> 11.1514 | AR150: =U150*U$5 -> 6.8832 | AS150: =V150*V$5 -> 4.309 | AT150: =W150*W$5 -> 2.5929 | AV150: =700/420*AVERAGE(AA150:AD150) -> 2.58225 | AW150: =700/510*AVERAGE(AE150:AH150) -> 24.18517157 | AX150: =700/570*AVERAGE(AI150:AL150) -> 46.90687719 | AY150: =700/640*AVERAGE(AM150:AP150) -> 29.51008594 | AZ150: =AVERAGE(AQ150:AT150) -> 6.234125 | BB150: =B150 -> #08 PALE GOLD | BC150: =MAX(AV150-SUM(AW150:AZ150)/quo,0) -> 0 | BD150: =MAX(AW150-(AV150+SUM(AX150:AZ150))/quo,0) -> 0 | BE150: =MAX(AX150-(SUM(AV150:AW150)+SUM(AY150:AZ150))/quo,0) -> 15.65106094 | BF150: =MAX(AY150-(SUM(AV150:AX150)+AZ150)/quo,0) -> 0 | BG150: =MAX(AZ150-SUM(AV150:AY150)/quo,0) -> 0
A151: ROSCOLUX | B151: #3443 QUARTER STRAW | C151: =CONCATENATE(A151," ",B151) -> ROSCOLUX #3443 QUARTER STRAW | D151: 64.8 | E151: 68.2 | F151: 65.37 | G151: 57.1 | H151: 51.93 | I151: 58.08 | J151: 74.25 | K151: 75.31 | L151: 74.31 | M151: 76.01 | N151: 76.29 | O151: 80.82 | P151: 84.03 | Q151: 84.58 | R151: 84.74 | S151: 84.88 | T151: 85.13 | U151: 85.42 | V151: 85.87 | W151: 86.26 | X151: 0.81 | AA151: =D151*D$5 -> 0 | AB151: =E151*E$5 -> 0 | AC151: =F151*F$5 -> 1.3074 | AD151: =G151*G$5 -> 5.71 | AE151: =H151*H$5 -> 46.737 | AF151: =I151*I$5 -> 17.424 | AG151: =J151*J$5 -> 7.425 | AH151: =K151*K$5 -> 11.2965 | AI151: =L151*L$5 -> 29.724 | AJ151: =M151*M$5 -> 43.3257 | AK151: =N151*N$5 -> 44.2482 | AL151: =O151*O$5 -> 42.0264 | AM151: =P151*P$5 -> 40.3344 | AN151: =Q151*Q$5 -> 31.2946 | AO151: =R151*R$5 -> 20.3376 | AP151: =S151*S$5 -> 15.2784 | AQ151: =T151*T$5 -> 11.0669 | AR151: =U151*U$5 -> 6.8336 | AS151: =V151*V$5 -> 4.2935 | AT151: =W151*W$5 -> 2.5878 | AV151: =700/420*AVERAGE(AA151:AD151) -> 2.923916667 | AW151: =700/510*AVERAGE(AE151:AH151) -> 28.44007353 | AX151: =700/570*AVERAGE(AI151:AL151) -> 48.91535526 | AY151: =700/640*AVERAGE(AM151:AP151) -> 29.32480469 | AZ151: =AVERAGE(AQ151:AT151) -> 6.19545 | BB151: =B151 -> #3443 QUARTER STRAW | BC151: =MAX(AV151-SUM(AW151:AZ151)/quo,0) -> 0 | BD151: =MAX(AW151-(AV151+SUM(AX151:AZ151))/quo,0) -> 0 | BE151: =MAX(AX151-(SUM(AV151:AW151)+SUM(AY151:AZ151))/quo,0) -> 15.47323282 | BF151: =MAX(AY151-(SUM(AV151:AX151)+AZ151)/quo,0) -> 0 | BG151: =MAX(AZ151-SUM(AV151:AY151)/quo,0) -> 0
A152: ROSCOLUX | B152: #4315 CALCOLOR 15 CYAN | C152: #4315 CALCOLOR 15 CYAN | D152: 61.11 | E152: 67.66 | F152: 71.38 | G152: 72.98 | H152: 73.83 | I152: 75.99 | J152: 79.27 | K152: 79.35 | L152: 79.04 | M152: 78.07 | N152: 74.82 | O152: 70.83 | P152: 65.64 | Q152: 58.77 | R152: 53.15 | S152: 49.31 | T152: 46.57 | U152: 50.75 | V152: 64.37 | W152: 76.3 | X152: 0.72 | AA152: =D152*D$5 -> 0 | AB152: =E152*E$5 -> 0 | AC152: =F152*F$5 -> 1.4276 | AD152: =G152*G$5 -> 7.298 | AE152: =H152*H$5 -> 66.447 | AF152: =I152*I$5 -> 22.797 | AG152: =J152*J$5 -> 7.927 | AH152: =K152*K$5 -> 11.9025 | AI152: =L152*L$5 -> 31.616 | AJ152: =M152*M$5 -> 44.4999 | AK152: =N152*N$5 -> 43.3956 | AL152: =O152*O$5 -> 36.8316 | AM152: =P152*P$5 -> 31.5072 | AN152: =Q152*Q$5 -> 21.7449 | AO152: =R152*R$5 -> 12.756 | AP152: =S152*S$5 -> 8.8758 | AQ152: =T152*T$5 -> 6.0541 | AR152: =U152*U$5 -> 4.06 | AS152: =V152*V$5 -> 3.2185 | AT152: =W152*W$5 -> 2.289 | AV152: =700/420*AVERAGE(AA152:AD152) -> 3.635666667 | AW152: =700/510*AVERAGE(AE152:AH152) -> 37.42718137 | AX152: =700/570*AVERAGE(AI152:AL152) -> 48.00007456 | AY152: =700/640*AVERAGE(AM152:AP152) -> 20.47606641 | AZ152: =AVERAGE(AQ152:AT152) -> 3.9054 | BB152: =B152 -> #4315 CALCOLOR 15 CYAN | BC152: =MAX(AV152-SUM(AW152:AZ152)/quo,0) -> 0 | BD152: =MAX(AW152-(AV152+SUM(AX152:AZ152))/quo,0) -> 0 | BE152: =MAX(AX152-(SUM(AV152:AW152)+SUM(AY152:AZ152))/quo,0) -> 15.27791734 | BF152: =MAX(AY152-(SUM(AV152:AX152)+AZ152)/quo,0) -> 0 | BG152: =MAX(AZ152-SUM(AV152:AY152)/quo,0) -> 0
A153: ROSCOLUX | B153: #00 CLEAR | C153: =CONCATENATE(A153," ",B153) -> ROSCOLUX #00 CLEAR | D153: 93 | E153: 93 | F153: 93 | G153: 93 | H153: 94 | I153: 94 | J153: 94 | K153: 94 | L153: 96 | M153: 96 | N153: 96 | O153: 96 | P153: 96 | Q153: 96 | R153: 96 | S153: 96 | T153: 96 | U153: 95 | V153: 95 | W153: 95 | X153: 0.96 | AA153: =D153*D$5 -> 0 | AB153: =E153*E$5 -> 0 | AC153: =F153*F$5 -> 1.86 | AD153: =G153*G$5 -> 9.3 | AE153: =H153*H$5 -> 84.6 | AF153: =I153*I$5 -> 28.2 | AG153: =J153*J$5 -> 9.4 | AH153: =K153*K$5 -> 14.1 | AI153: =L153*L$5 -> 38.4 | AJ153: =M153*M$5 -> 54.72 | AK153: =N153*N$5 -> 55.68 | AL153: =O153*O$5 -> 49.92 | AM153: =P153*P$5 -> 46.08 | AN153: =Q153*Q$5 -> 35.52 | AO153: =R153*R$5 -> 23.04 | AP153: =S153*S$5 -> 17.28 | AQ153: =T153*T$5 -> 12.48 | AR153: =U153*U$5 -> 7.6 | AS153: =V153*V$5 -> 4.75 | AT153: =W153*W$5 -> 2.85 | AV153: =700/420*AVERAGE(AA153:AD153) -> 4.65 | AW153: =700/510*AVERAGE(AE153:AH153) -> 46.76960784 | AX153: =700/570*AVERAGE(AI153:AL153) -> 61.01052632 | AY153: =700/640*AVERAGE(AM153:AP153) -> 33.3375 | AZ153: =AVERAGE(AQ153:AT153) -> 6.92 | BB153: =B153 -> #00 CLEAR | BC153: =MAX(AV153-SUM(AW153:AZ153)/quo,0) -> 0 | BD153: =MAX(AW153-(AV153+SUM(AX153:AZ153))/quo,0) -> 0 | BE153: =MAX(AX153-(SUM(AV153:AW153)+SUM(AY153:AZ153))/quo,0) -> 15.17197239 | BF153: =MAX(AY153-(SUM(AV153:AX153)+AZ153)/quo,0) -> 0 | BG153: =MAX(AZ153-SUM(AV153:AY153)/quo,0) -> 0
A154: ROSCOLUX | B154: #09 PALE AMBER GOLD | C154: =CONCATENATE(A154," ",B154) -> ROSCOLUX #09 PALE AMBER GOLD | D154: 58.43 | E154: 61.12 | F154: 54.85 | G154: 46.98 | H154: 38.83 | I154: 34.73 | J154: 37.79 | K154: 47.52 | L154: 56.76 | M154: 65.13 | N154: 72.08 | O154: 81.38 | P154: 86.81 | Q154: 88.03 | R154: 88.4 | S154: 88.38 | T154: 88.27 | U154: 88.34 | V154: 88.34 | W154: 88.49 | X154: 0.74 | AA154: =D154*D$5 -> 0 | AB154: =E154*E$5 -> 0 | AC154: =F154*F$5 -> 1.097 | AD154: =G154*G$5 -> 4.698 | AE154: =H154*H$5 -> 34.947 | AF154: =I154*I$5 -> 10.419 | AG154: =J154*J$5 -> 3.779 | AH154: =K154*K$5 -> 7.128 | AI154: =L154*L$5 -> 22.704 | AJ154: =M154*M$5 -> 37.1241 | AK154: =N154*N$5 -> 41.8064 | AL154: =O154*O$5 -> 42.3176 | AM154: =P154*P$5 -> 41.6688 | AN154: =Q154*Q$5 -> 32.5711 | AO154: =R154*R$5 -> 21.216 | AP154: =S154*S$5 -> 15.9084 | AQ154: =T154*T$5 -> 11.4751 | AR154: =U154*U$5 -> 7.0672 | AS154: =V154*V$5 -> 4.417 | AT154: =W154*W$5 -> 2.6547 | AV154: =700/420*AVERAGE(AA154:AD154) -> 2.414583333 | AW154: =700/510*AVERAGE(AE154:AH154) -> 19.30936275 | AX154: =700/570*AVERAGE(AI154:AL154) -> 44.19582018 | AY154: =700/640*AVERAGE(AM154:AP154) -> 30.45117578 | AZ154: =AVERAGE(AQ154:AT154) -> 6.4035 | BB154: =B154 -> #09 PALE AMBER GOLD | BC154: =MAX(AV154-SUM(AW154:AZ154)/quo,0) -> 0 | BD154: =MAX(AW154-(AV154+SUM(AX154:AZ154))/quo,0) -> 0 | BE154: =MAX(AX154-(SUM(AV154:AW154)+SUM(AY154:AZ154))/quo,0) -> 14.90650925 | BF154: =MAX(AY154-(SUM(AV154:AX154)+AZ154)/quo,0) -> 0 | BG154: =MAX(AZ154-SUM(AV154:AY154)/quo,0) -> 0
A155: ROSCOLUX | B155: #4307 CALCOLOR 7.5 CYAN | C155: =B155 -> #4307 CALCOLOR 7.5 CYAN | D155: 66.86 | E155: 72.21 | F155: 75.95 | G155: 78.16 | H155: 79.24 | I155: 80.96 | J155: 82.98 | K155: 82.88 | L155: 82.89 | M155: 82.82 | N155: 80.41 | O155: 78.15 | P155: 74.98 | Q155: 70.55 | R155: 66.52 | S155: 63.79 | T155: 61.92 | U155: 64.83 | V155: 74.44 | W155: 82.47 | X155: 0.79 | AA155: =D155*D$5 -> 0 | AB155: =E155*E$5 -> 0 | AC155: =F155*F$5 -> 1.519 | AD155: =G155*G$5 -> 7.816 | AE155: =H155*H$5 -> 71.316 | AF155: =I155*I$5 -> 24.288 | AG155: =J155*J$5 -> 8.298 | AH155: =K155*K$5 -> 12.432 | AI155: =L155*L$5 -> 33.156 | AJ155: =M155*M$5 -> 47.2074 | AK155: =N155*N$5 -> 46.6378 | AL155: =O155*O$5 -> 40.638 | AM155: =P155*P$5 -> 35.9904 | AN155: =Q155*Q$5 -> 26.1035 | AO155: =R155*R$5 -> 15.9648 | AP155: =S155*S$5 -> 11.4822 | AQ155: =T155*T$5 -> 8.0496 | AR155: =U155*U$5 -> 5.1864 | AS155: =V155*V$5 -> 3.722 | AT155: =W155*W$5 -> 2.4741 | AV155: =700/420*AVERAGE(AA155:AD155) -> 3.889583333 | AW155: =700/510*AVERAGE(AE155:AH155) -> 39.91852941 | AX155: =700/570*AVERAGE(AI155:AL155) -> 51.46817544 | AY155: =700/640*AVERAGE(AM155:AP155) -> 24.48383984 | AZ155: =AVERAGE(AQ155:AT155) -> 4.858025 | BB155: =B155 -> #4307 CALCOLOR 7.5 CYAN | BC155: =MAX(AV155-SUM(AW155:AZ155)/quo,0) -> 0 | BD155: =MAX(AW155-(AV155+SUM(AX155:AZ155))/quo,0) -> 0 | BE155: =MAX(AX155-(SUM(AV155:AW155)+SUM(AY155:AZ155))/quo,0) -> 14.89318664 | BF155: =MAX(AY155-(SUM(AV155:AX155)+AZ155)/quo,0) -> 0 | BG155: =MAX(AZ155-SUM(AV155:AY155)/quo,0) -> 0
A156: ROSCOLUX | B156: #3444 EIGHTH STRAW | C156: =CONCATENATE(A156," ",B156) -> ROSCOLUX #3444 EIGHTH STRAW | D156: 68.41 | E156: 72.11 | F156: 71.41 | G156: 67.56 | H156: 65.13 | I156: 68.84 | J156: 77.96 | K156: 78.85 | L156: 78.48 | M156: 79.62 | N156: 79.97 | O156: 82.46 | P156: 84.22 | Q156: 84.58 | R156: 84.82 | S156: 84.95 | T156: 85.11 | U156: 85.33 | V156: 85.59 | W156: 85.85 | X156: 0.92 | AA156: =D156*D$5 -> 0 | AB156: =E156*E$5 -> 0 | AC156: =F156*F$5 -> 1.4282 | AD156: =G156*G$5 -> 6.756 | AE156: =H156*H$5 -> 58.617 | AF156: =I156*I$5 -> 20.652 | AG156: =J156*J$5 -> 7.796 | AH156: =K156*K$5 -> 11.8275 | AI156: =L156*L$5 -> 31.392 | AJ156: =M156*M$5 -> 45.3834 | AK156: =N156*N$5 -> 46.3826 | AL156: =O156*O$5 -> 42.8792 | AM156: =P156*P$5 -> 40.4256 | AN156: =Q156*Q$5 -> 31.2946 | AO156: =R156*R$5 -> 20.3568 | AP156: =S156*S$5 -> 15.291 | AQ156: =T156*T$5 -> 11.0643 | AR156: =U156*U$5 -> 6.8264 | AS156: =V156*V$5 -> 4.2795 | AT156: =W156*W$5 -> 2.5755 | AV156: =700/420*AVERAGE(AA156:AD156) -> 3.410083333 | AW156: =700/510*AVERAGE(AE156:AH156) -> 33.93370098 | AX156: =700/570*AVERAGE(AI156:AL156) -> 50.97633333 | AY156: =700/640*AVERAGE(AM156:AP156) -> 29.3584375 | AZ156: =AVERAGE(AQ156:AT156) -> 6.186425 | BB156: =B156 -> #3444 EIGHTH STRAW | BC156: =MAX(AV156-SUM(AW156:AZ156)/quo,0) -> 0 | BD156: =MAX(AW156-(AV156+SUM(AX156:AZ156))/quo,0) -> 0 | BE156: =MAX(AX156-(SUM(AV156:AW156)+SUM(AY156:AZ156))/quo,0) -> 14.53200993 | BF156: =MAX(AY156-(SUM(AV156:AX156)+AZ156)/quo,0) -> 0 | BG156: =MAX(AZ156-SUM(AV156:AY156)/quo,0) -> 0
A157: ROSCOLUX | B157: #3442 HALF STRAW | C157: =CONCATENATE(A157," ",B157) -> ROSCOLUX #3442 HALF STRAW | D157: 61.76 | E157: 62.43 | F157: 51.12 | G157: 33.95 | H157: 25.51 | I157: 34.56 | J157: 61.46 | K157: 62.91 | L157: 59.38 | M157: 62.71 | N157: 63.2 | O157: 74.42 | P157: 82.47 | Q157: 83.79 | R157: 84.16 | S157: 84.35 | T157: 84.57 | U157: 84.81 | V157: 85.05 | W157: 85.24 | X157: 0.73 | AA157: =D157*D$5 -> 0 | AB157: =E157*E$5 -> 0 | AC157: =F157*F$5 -> 1.0224 | AD157: =G157*G$5 -> 3.395 | AE157: =H157*H$5 -> 22.959 | AF157: =I157*I$5 -> 10.368 | AG157: =J157*J$5 -> 6.146 | AH157: =K157*K$5 -> 9.4365 | AI157: =L157*L$5 -> 23.752 | AJ157: =M157*M$5 -> 35.7447 | AK157: =N157*N$5 -> 36.656 | AL157: =O157*O$5 -> 38.6984 | AM157: =P157*P$5 -> 39.5856 | AN157: =Q157*Q$5 -> 31.0023 | AO157: =R157*R$5 -> 20.1984 | AP157: =S157*S$5 -> 15.183 | AQ157: =T157*T$5 -> 10.9941 | AR157: =U157*U$5 -> 6.7848 | AS157: =V157*V$5 -> 4.2525 | AT157: =W157*W$5 -> 2.5572 | AV157: =700/420*AVERAGE(AA157:AD157) -> 1.840583333 | AW157: =700/510*AVERAGE(AE157:AH157) -> 16.78267157 | AX157: =700/570*AVERAGE(AI157:AL157) -> 41.40165351 | AY157: =700/640*AVERAGE(AM157:AP157) -> 28.97598047 | AZ157: =AVERAGE(AQ157:AT157) -> 6.14715 | BB157: =B157 -> #3442 HALF STRAW | BC157: =MAX(AV157-SUM(AW157:AZ157)/quo,0) -> 0 | BD157: =MAX(AW157-(AV157+SUM(AX157:AZ157))/quo,0) -> 0 | BE157: =MAX(AX157-(SUM(AV157:AW157)+SUM(AY157:AZ157))/quo,0) -> 14.52846082 | BF157: =MAX(AY157-(SUM(AV157:AX157)+AZ157)/quo,0) -> 0 | BG157: =MAX(AZ157-SUM(AV157:AY157)/quo,0) -> 0
A158: ROSCOLUX | B158: #16 LT AMBER | C158: =CONCATENATE(A158," ",B158) -> ROSCOLUX #16 LT AMBER | D158: 59.52 | E158: 66.63 | F158: 60.32 | G158: 46.44 | H158: 29.95 | I158: 18.99 | J158: 15.45 | K158: 19.09 | L158: 28.79 | M158: 58.39 | N158: 73.88 | O158: 80.77 | P158: 84.59 | Q158: 85.23 | R158: 85.37 | S158: 85.54 | T158: 85.45 | U158: 85.62 | V158: 85.75 | W158: 85.95 | X158: 0.68 | AA158: =D158*D$5 -> 0 | AB158: =E158*E$5 -> 0 | AC158: =F158*F$5 -> 1.2064 | AD158: =G158*G$5 -> 4.644 | AE158: =H158*H$5 -> 26.955 | AF158: =I158*I$5 -> 5.697 | AG158: =J158*J$5 -> 1.545 | AH158: =K158*K$5 -> 2.8635 | AI158: =L158*L$5 -> 11.516 | AJ158: =M158*M$5 -> 33.2823 | AK158: =N158*N$5 -> 42.8504 | AL158: =O158*O$5 -> 42.0004 | AM158: =P158*P$5 -> 40.6032 | AN158: =Q158*Q$5 -> 31.5351 | AO158: =R158*R$5 -> 20.4888 | AP158: =S158*S$5 -> 15.3972 | AQ158: =T158*T$5 -> 11.1085 | AR158: =U158*U$5 -> 6.8496 | AS158: =V158*V$5 -> 4.2875 | AT158: =W158*W$5 -> 2.5785 | AV158: =700/420*AVERAGE(AA158:AD158) -> 2.437666667 | AW158: =700/510*AVERAGE(AE158:AH158) -> 12.71683824 | AX158: =700/570*AVERAGE(AI158:AL158) -> 39.80454825 | AY158: =700/640*AVERAGE(AM158:AP158) -> 29.53789453 | AZ158: =AVERAGE(AQ158:AT158) -> 6.206025 | BB158: =B158 -> #16 LT AMBER | BC158: =MAX(AV158-SUM(AW158:AZ158)/quo,0) -> 0 | BD158: =MAX(AW158-(AV158+SUM(AX158:AZ158))/quo,0) -> 0 | BE158: =MAX(AX158-(SUM(AV158:AW158)+SUM(AY158:AZ158))/quo,0) -> 14.35533603 | BF158: =MAX(AY158-(SUM(AV158:AX158)+AZ158)/quo,0) -> 0 | BG158: =MAX(AZ158-SUM(AV158:AY158)/quo,0) -> 0
A159: ROSCOLUX | B159: #3410 SUN 1/8 CTO | C159: =CONCATENATE(A159," ",B159) -> ROSCOLUX #3410 SUN 1/8 CTO | D159: 69.37 | E159: 72.28 | F159: 71.45 | G159: 67.41 | H159: 64.69 | I159: 68.35 | J159: 76.47 | K159: 76.98 | L159: 76.1 | M159: 77.51 | N159: 77.98 | O159: 81.7 | P159: 84.18 | Q159: 84.8 | R159: 85.05 | S159: 85.21 | T159: 85.39 | U159: 85.54 | V159: 85.79 | W159: 86.03 | X159: 0.92 | AA159: =D159*D$5 -> 0 | AB159: =E159*E$5 -> 0 | AC159: =F159*F$5 -> 1.429 | AD159: =G159*G$5 -> 6.741 | AE159: =H159*H$5 -> 58.221 | AF159: =I159*I$5 -> 20.505 | AG159: =J159*J$5 -> 7.647 | AH159: =K159*K$5 -> 11.547 | AI159: =L159*L$5 -> 30.44 | AJ159: =M159*M$5 -> 44.1807 | AK159: =N159*N$5 -> 45.2284 | AL159: =O159*O$5 -> 42.484 | AM159: =P159*P$5 -> 40.4064 | AN159: =Q159*Q$5 -> 31.376 | AO159: =R159*R$5 -> 20.412 | AP159: =S159*S$5 -> 15.3378 | AQ159: =T159*T$5 -> 11.1007 | AR159: =U159*U$5 -> 6.8432 | AS159: =V159*V$5 -> 4.2895 | AT159: =W159*W$5 -> 2.5809 | AV159: =700/420*AVERAGE(AA159:AD159) -> 3.404166667 | AW159: =700/510*AVERAGE(AE159:AH159) -> 33.6 | AX159: =700/570*AVERAGE(AI159:AL159) -> 49.83910965 | AY159: =700/640*AVERAGE(AM159:AP159) -> 29.40333594 | AZ159: =AVERAGE(AQ159:AT159) -> 6.203575 | BB159: =B159 -> #3410 SUN 1/8 CTO | BC159: =MAX(AV159-SUM(AW159:AZ159)/quo,0) -> 0 | BD159: =MAX(AW159-(AV159+SUM(AX159:AZ159))/quo,0) -> 0 | BE159: =MAX(AX159-(SUM(AV159:AW159)+SUM(AY159:AZ159))/quo,0) -> 13.53357085 | BF159: =MAX(AY159-(SUM(AV159:AX159)+AZ159)/quo,0) -> 0 | BG159: =MAX(AZ159-SUM(AV159:AY159)/quo,0) -> 0
A160: ROSCOLUX | B160: #3409 SUN 1/4 CTO | C160: =CONCATENATE(A160," ",B160) -> ROSCOLUX #3409 SUN 1/4 CTO | D160: 65.88 | E160: 68.76 | F160: 65.65 | G160: 57.26 | H160: 51.77 | I160: 57.26 | J160: 71.78 | K160: 71.75 | L160: 69.47 | M160: 71.94 | N160: 72.06 | O160: 79.19 | P160: 83.95 | Q160: 84.86 | R160: 85.01 | S160: 85.19 | T160: 85.65 | U160: 85.85 | V160: 86.25 | W160: 86.58 | X160: 0.81 | AA160: =D160*D$5 -> 0 | AB160: =E160*E$5 -> 0 | AC160: =F160*F$5 -> 1.313 | AD160: =G160*G$5 -> 5.726 | AE160: =H160*H$5 -> 46.593 | AF160: =I160*I$5 -> 17.178 | AG160: =J160*J$5 -> 7.178 | AH160: =K160*K$5 -> 10.7625 | AI160: =L160*L$5 -> 27.788 | AJ160: =M160*M$5 -> 41.0058 | AK160: =N160*N$5 -> 41.7948 | AL160: =O160*O$5 -> 41.1788 | AM160: =P160*P$5 -> 40.296 | AN160: =Q160*Q$5 -> 31.3982 | AO160: =R160*R$5 -> 20.4024 | AP160: =S160*S$5 -> 15.3342 | AQ160: =T160*T$5 -> 11.1345 | AR160: =U160*U$5 -> 6.868 | AS160: =V160*V$5 -> 4.3125 | AT160: =W160*W$5 -> 2.5974 | AV160: =700/420*AVERAGE(AA160:AD160) -> 2.932916667 | AW160: =700/510*AVERAGE(AE160:AH160) -> 28.0382598 | AX160: =700/570*AVERAGE(AI160:AL160) -> 46.59525439 | AY160: =700/640*AVERAGE(AM160:AP160) -> 29.37560937 | AZ160: =AVERAGE(AQ160:AT160) -> 6.2281 | BB160: =B160 -> #3409 SUN 1/4 CTO | BC160: =MAX(AV160-SUM(AW160:AZ160)/quo,0) -> 0 | BD160: =MAX(AW160-(AV160+SUM(AX160:AZ160))/quo,0) -> 0 | BE160: =MAX(AX160-(SUM(AV160:AW160)+SUM(AY160:AZ160))/quo,0) -> 13.30781146 | BF160: =MAX(AY160-(SUM(AV160:AX160)+AZ160)/quo,0) -> 0 | BG160: =MAX(AZ160-SUM(AV160:AY160)/quo,0) -> 0
A161: ROSCOLUX | B161: #302 PALE BASTARD AMBER | C161: =CONCATENATE(A161," ",B161) -> ROSCOLUX #302 PALE BASTARD AMBER | D161: 77.51 | E161: 77.51 | F161: 77.51 | G161: 73.54 | H161: 69.44 | I161: 68.66 | J161: 71.83 | K161: 72.73 | L161: 73.91 | M161: 78.43 | N161: 80.11 | O161: 83.41 | P161: 85.5 | Q161: 85.81 | R161: 86 | S161: 86.12 | T161: 86.13 | U161: 86.26 | V161: 86.26 | W161: 86.26 | X161: 0.88 | AA161: =D161*D$5 -> 0 | AB161: =E161*E$5 -> 0 | AC161: =F161*F$5 -> 1.5502 | AD161: =G161*G$5 -> 7.354 | AE161: =H161*H$5 -> 62.496 | AF161: =I161*I$5 -> 20.598 | AG161: =J161*J$5 -> 7.183 | AH161: =K161*K$5 -> 10.9095 | AI161: =L161*L$5 -> 29.564 | AJ161: =M161*M$5 -> 44.7051 | AK161: =N161*N$5 -> 46.4638 | AL161: =O161*O$5 -> 43.3732 | AM161: =P161*P$5 -> 41.04 | AN161: =Q161*Q$5 -> 31.7497 | AO161: =R161*R$5 -> 20.64 | AP161: =S161*S$5 -> 15.5016 | AQ161: =T161*T$5 -> 11.1969 | AR161: =U161*U$5 -> 6.9008 | AS161: =V161*V$5 -> 4.313 | AT161: =W161*W$5 -> 2.5878 | AV161: =700/420*AVERAGE(AA161:AD161) -> 3.710083333 | AW161: =700/510*AVERAGE(AE161:AH161) -> 34.72085784 | AX161: =700/570*AVERAGE(AI161:AL161) -> 50.38345175 | AY161: =700/640*AVERAGE(AM161:AP161) -> 29.78590234 | AZ161: =AVERAGE(AQ161:AT161) -> 6.249625 | BB161: =B161 -> #302 PALE BASTARD AMBER | BC161: =MAX(AV161-SUM(AW161:AZ161)/quo,0) -> 0 | BD161: =MAX(AW161-(AV161+SUM(AX161:AZ161))/quo,0) -> 0 | BE161: =MAX(AX161-(SUM(AV161:AW161)+SUM(AY161:AZ161))/quo,0) -> 13.15021749 | BF161: =MAX(AY161-(SUM(AV161:AX161)+AZ161)/quo,0) -> 0 | BG161: =MAX(AZ161-SUM(AV161:AY161)/quo,0) -> 0
A162: ROSCOLUX | B162: #3408 SUN 1/2 CTO | C162: =CONCATENATE(A162," ",B162) -> ROSCOLUX #3408 SUN 1/2 CTO | D162: 52.55 | E162: 55.84 | F162: 49.76 | G162: 34.31 | H162: 26.01 | I162: 34.49 | J162: 58.79 | K162: 58.86 | L162: 54.35 | M162: 58.4 | N162: 58.63 | O162: 72.38 | P162: 82.53 | Q162: 84.42 | R162: 84.75 | S162: 85.03 | T162: 85.48 | U162: 85.62 | V162: 85.93 | W162: 86.19 | X162: 0.73 | AA162: =D162*D$5 -> 0 | AB162: =E162*E$5 -> 0 | AC162: =F162*F$5 -> 0.9952 | AD162: =G162*G$5 -> 3.431 | AE162: =H162*H$5 -> 23.409 | AF162: =I162*I$5 -> 10.347 | AG162: =J162*J$5 -> 5.879 | AH162: =K162*K$5 -> 8.829 | AI162: =L162*L$5 -> 21.74 | AJ162: =M162*M$5 -> 33.288 | AK162: =N162*N$5 -> 34.0054 | AL162: =O162*O$5 -> 37.6376 | AM162: =P162*P$5 -> 39.6144 | AN162: =Q162*Q$5 -> 31.2354 | AO162: =R162*R$5 -> 20.34 | AP162: =S162*S$5 -> 15.3054 | AQ162: =T162*T$5 -> 11.1124 | AR162: =U162*U$5 -> 6.8496 | AS162: =V162*V$5 -> 4.2965 | AT162: =W162*W$5 -> 2.5857 | AV162: =700/420*AVERAGE(AA162:AD162) -> 1.84425 | AW162: =700/510*AVERAGE(AE162:AH162) -> 16.62980392 | AX162: =700/570*AVERAGE(AI162:AL162) -> 38.8902193 | AY162: =700/640*AVERAGE(AM162:AP162) -> 29.11978125 | AZ162: =AVERAGE(AQ162:AT162) -> 6.21105 | BB162: =B162 -> #3408 SUN 1/2 CTO | BC162: =MAX(AV162-SUM(AW162:AZ162)/quo,0) -> 0 | BD162: =MAX(AW162-(AV162+SUM(AX162:AZ162))/quo,0) -> 0 | BE162: =MAX(AX162-(SUM(AV162:AW162)+SUM(AY162:AZ162))/quo,0) -> 11.98777671 | BF162: =MAX(AY162-(SUM(AV162:AX162)+AZ162)/quo,0) -> 0 | BG162: =MAX(AZ162-SUM(AV162:AY162)/quo,0) -> 0
A163: ROSCOLUX | B163: #94 KELLY GREEN | C163: =CONCATENATE(A163," ",B163) -> ROSCOLUX #94 KELLY GREEN | D163: 20.52 | E163: 17.37 | F163: 8.41 | G163: 4.58 | H163: 7.86 | I163: 15.34 | J163: 25.98 | K163: 38.39 | L163: 43.83 | M163: 33.91 | N163: 18.13 | O163: 6.57 | P163: 2.15 | Q163: 0.46 | R163: 0.13 | S163: 0.1 | T163: 0.08 | U163: 0.19 | V163: 0.99 | W163: 10.13 | X163: 0.25 | AA163: =D163*D$5 -> 0 | AB163: =E163*E$5 -> 0 | AC163: =F163*F$5 -> 0.1682 | AD163: =G163*G$5 -> 0.458 | AE163: =H163*H$5 -> 7.074 | AF163: =I163*I$5 -> 4.602 | AG163: =J163*J$5 -> 2.598 | AH163: =K163*K$5 -> 5.7585 | AI163: =L163*L$5 -> 17.532 | AJ163: =M163*M$5 -> 19.3287 | AK163: =N163*N$5 -> 10.5154 | AL163: =O163*O$5 -> 3.4164 | AM163: =P163*P$5 -> 1.032 | AN163: =Q163*Q$5 -> 0.1702 | AO163: =R163*R$5 -> 0.0312 | AP163: =S163*S$5 -> 0.018 | AQ163: =T163*T$5 -> 0.0104 | AR163: =U163*U$5 -> 0.0152 | AS163: =V163*V$5 -> 0.0495 | AT163: =W163*W$5 -> 0.3039 | AV163: =700/420*AVERAGE(AA163:AD163) -> 0.2609166667 | AW163: =700/510*AVERAGE(AE163:AH163) -> 6.873897059 | AX163: =700/570*AVERAGE(AI163:AL163) -> 15.5941886 | AY163: =700/640*AVERAGE(AM163:AP163) -> 0.3421796875 | AZ163: =AVERAGE(AQ163:AT163) -> 0.09475 | BB163: =B163 -> #94 KELLY GREEN | BC163: =MAX(AV163-SUM(AW163:AZ163)/quo,0) -> 0 | BD163: =MAX(AW163-(AV163+SUM(AX163:AZ163))/quo,0) -> 0 | BE163: =MAX(AX163-(SUM(AV163:AW163)+SUM(AY163:AZ163))/quo,0) -> 11.80831689 | BF163: =MAX(AY163-(SUM(AV163:AX163)+AZ163)/quo,0) -> 0 | BG163: =MAX(AZ163-SUM(AV163:AY163)/quo,0) -> 0
A164: ROSCOLUX | B164: #02 BASTARD AMBER | C164: =CONCATENATE(A164," ",B164) -> ROSCOLUX #02 BASTARD AMBER | D164: 69.2 | E164: 73.47 | F164: 71.33 | G164: 64.69 | H164: 55.58 | I164: 48.7 | J164: 46.71 | K164: 48.94 | L164: 53.94 | M164: 68.05 | N164: 73.52 | O164: 80.18 | P164: 84.41 | Q164: 85.17 | R164: 85.32 | S164: 85.59 | T164: 85.78 | U164: 85.91 | V164: 86.12 | W164: 86.31 | X164: 0.78 | AA164: =D164*D$5 -> 0 | AB164: =E164*E$5 -> 0 | AC164: =F164*F$5 -> 1.4266 | AD164: =G164*G$5 -> 6.469 | AE164: =H164*H$5 -> 50.022 | AF164: =I164*I$5 -> 14.61 | AG164: =J164*J$5 -> 4.671 | AH164: =K164*K$5 -> 7.341 | AI164: =L164*L$5 -> 21.576 | AJ164: =M164*M$5 -> 38.7885 | AK164: =N164*N$5 -> 42.6416 | AL164: =O164*O$5 -> 41.6936 | AM164: =P164*P$5 -> 40.5168 | AN164: =Q164*Q$5 -> 31.5129 | AO164: =R164*R$5 -> 20.4768 | AP164: =S164*S$5 -> 15.4062 | AQ164: =T164*T$5 -> 11.1514 | AR164: =U164*U$5 -> 6.8728 | AS164: =V164*V$5 -> 4.306 | AT164: =W164*W$5 -> 2.5893 | AV164: =700/420*AVERAGE(AA164:AD164) -> 3.289833333 | AW164: =700/510*AVERAGE(AE164:AH164) -> 26.29941176 | AX164: =700/570*AVERAGE(AI164:AL164) -> 44.42534649 | AY164: =700/640*AVERAGE(AM164:AP164) -> 29.50737891 | AZ164: =AVERAGE(AQ164:AT164) -> 6.229875 | BB164: =B164 -> #02 BASTARD AMBER | BC164: =MAX(AV164-SUM(AW164:AZ164)/quo,0) -> 0 | BD164: =MAX(AW164-(AV164+SUM(AX164:AZ164))/quo,0) -> 0 | BE164: =MAX(AX164-(SUM(AV164:AW164)+SUM(AY164:AZ164))/quo,0) -> 11.76209699 | BF164: =MAX(AY164-(SUM(AV164:AX164)+AZ164)/quo,0) -> 0 | BG164: =MAX(AZ164-SUM(AV164:AY164)/quo,0) -> 0
A165: ROSCOLUX | B165: #3318 TOUGH 1/8 MINUSGREEN | C165: #3318 TOUGH 1/8 MINUSGREEN | D165: 63.12 | E165: 68.41 | F165: 71.73 | G165: 73.96 | H165: 75.1 | I165: 75.39 | J165: 74.97 | K165: 74.23 | L165: 73.17 | M165: 74.31 | N165: 74.63 | O165: 77.92 | P165: 80.58 | Q165: 81.4 | R165: 81.52 | S165: 82.32 | T165: 83.35 | U165: 83.76 | V165: 84.05 | W165: 84.4 | X165: 0.89 | AA165: =D165*D$5 -> 0 | AB165: =E165*E$5 -> 0 | AC165: =F165*F$5 -> 1.4346 | AD165: =G165*G$5 -> 7.396 | AE165: =H165*H$5 -> 67.59 | AF165: =I165*I$5 -> 22.617 | AG165: =J165*J$5 -> 7.497 | AH165: =K165*K$5 -> 11.1345 | AI165: =L165*L$5 -> 29.268 | AJ165: =M165*M$5 -> 42.3567 | AK165: =N165*N$5 -> 43.2854 | AL165: =O165*O$5 -> 40.5184 | AM165: =P165*P$5 -> 38.6784 | AN165: =Q165*Q$5 -> 30.118 | AO165: =R165*R$5 -> 19.5648 | AP165: =S165*S$5 -> 14.8176 | AQ165: =T165*T$5 -> 10.8355 | AR165: =U165*U$5 -> 6.7008 | AS165: =V165*V$5 -> 4.2025 | AT165: =W165*W$5 -> 2.532 | AV165: =700/420*AVERAGE(AA165:AD165) -> 3.679416667 | AW165: =700/510*AVERAGE(AE165:AH165) -> 37.34654412 | AX165: =700/570*AVERAGE(AI165:AL165) -> 47.71927632 | AY165: =700/640*AVERAGE(AM165:AP165) -> 28.21295312 | AZ165: =AVERAGE(AQ165:AT165) -> 6.0677 | BB165: =B165 -> #3318 TOUGH 1/8 MINUSGREEN | BC165: =MAX(AV165-SUM(AW165:AZ165)/quo,0) -> 0 | BD165: =MAX(AW165-(AV165+SUM(AX165:AZ165))/quo,0) -> 0 | BE165: =MAX(AX165-(SUM(AV165:AW165)+SUM(AY165:AZ165))/quo,0) -> 10.06596936 | BF165: =MAX(AY165-(SUM(AV165:AX165)+AZ165)/quo,0) -> 0 | BG165: =MAX(AZ165-SUM(AV165:AY165)/quo,0) -> 0
A166: ROSCOLUX | B166: #3216 EIGHTH BLUE CTB | C166: #3216 EIGHTH BLUE CTB | D166: 65.08 | E166: 70.4 | F166: 73.65 | G166: 76.39 | H166: 77.38 | I166: 77.05 | J166: 75.99 | K166: 74.54 | L166: 72.36 | M166: 72.62 | N166: 70.84 | O166: 72.02 | P166: 70.99 | Q166: 68.8 | R166: 67.53 | S166: 66.35 | T166: 69.29 | U166: 76.07 | V166: 81.75 | W166: 84.56 | X166: 0.81 | AA166: =D166*D$5 -> 0 | AB166: =E166*E$5 -> 0 | AC166: =F166*F$5 -> 1.473 | AD166: =G166*G$5 -> 7.639 | AE166: =H166*H$5 -> 69.642 | AF166: =I166*I$5 -> 23.115 | AG166: =J166*J$5 -> 7.599 | AH166: =K166*K$5 -> 11.181 | AI166: =L166*L$5 -> 28.944 | AJ166: =M166*M$5 -> 41.3934 | AK166: =N166*N$5 -> 41.0872 | AL166: =O166*O$5 -> 37.4504 | AM166: =P166*P$5 -> 34.0752 | AN166: =Q166*Q$5 -> 25.456 | AO166: =R166*R$5 -> 16.2072 | AP166: =S166*S$5 -> 11.943 | AQ166: =T166*T$5 -> 9.0077 | AR166: =U166*U$5 -> 6.0856 | AS166: =V166*V$5 -> 4.0875 | AT166: =W166*W$5 -> 2.5368 | AV166: =700/420*AVERAGE(AA166:AD166) -> 3.796666667 | AW166: =700/510*AVERAGE(AE166:AH166) -> 38.2725 | AX166: =700/570*AVERAGE(AI166:AL166) -> 45.70723684 | AY166: =700/640*AVERAGE(AM166:AP166) -> 23.97538281 | AZ166: =AVERAGE(AQ166:AT166) -> 5.4294 | BB166: =B166 -> #3216 EIGHTH BLUE CTB | BC166: =MAX(AV166-SUM(AW166:AZ166)/quo,0) -> 0 | BD166: =MAX(AW166-(AV166+SUM(AX166:AZ166))/quo,0) -> 0 | BE166: =MAX(AX166-(SUM(AV166:AW166)+SUM(AY166:AZ166))/quo,0) -> 9.970262103 | BF166: =MAX(AY166-(SUM(AV166:AX166)+AZ166)/quo,0) -> 0 | BG166: =MAX(AZ166-SUM(AV166:AY166)/quo,0) -> 0
A167: ROSCOLUX | B167: #397 PALE GREY | C167: =CONCATENATE(A167," ",B167) -> ROSCOLUX #397 PALE GREY | D167: 30.53 | E167: 41.06 | F167: 57.11 | G167: 57.95 | H167: 54.49 | I167: 57.67 | J167: 66.12 | K167: 64.23 | L167: 59.79 | M167: 60.97 | N167: 59.16 | O167: 64.49 | P167: 65.32 | Q167: 62.17 | R167: 59.92 | S167: 57.82 | T167: 60.21 | U167: 68.22 | V167: 77.37 | W167: 82.91 | X167: 0.7 | AA167: =D167*D$5 -> 0 | AB167: =E167*E$5 -> 0 | AC167: =F167*F$5 -> 1.1422 | AD167: =G167*G$5 -> 5.795 | AE167: =H167*H$5 -> 49.041 | AF167: =I167*I$5 -> 17.301 | AG167: =J167*J$5 -> 6.612 | AH167: =K167*K$5 -> 9.6345 | AI167: =L167*L$5 -> 23.916 | AJ167: =M167*M$5 -> 34.7529 | AK167: =N167*N$5 -> 34.3128 | AL167: =O167*O$5 -> 33.5348 | AM167: =P167*P$5 -> 31.3536 | AN167: =Q167*Q$5 -> 23.0029 | AO167: =R167*R$5 -> 14.3808 | AP167: =S167*S$5 -> 10.4076 | AQ167: =T167*T$5 -> 7.8273 | AR167: =U167*U$5 -> 5.4576 | AS167: =V167*V$5 -> 3.8685 | AT167: =W167*W$5 -> 2.4873 | AV167: =700/420*AVERAGE(AA167:AD167) -> 2.8905 | AW167: =700/510*AVERAGE(AE167:AH167) -> 28.33919118 | AX167: =700/570*AVERAGE(AI167:AL167) -> 38.84278509 | AY167: =700/640*AVERAGE(AM167:AP167) -> 21.64118359 | AZ167: =AVERAGE(AQ167:AT167) -> 4.910175 | BB167: =B167 -> #397 PALE GREY | BC167: =MAX(AV167-SUM(AW167:AZ167)/quo,0) -> 0 | BD167: =MAX(AW167-(AV167+SUM(AX167:AZ167))/quo,0) -> 0 | BE167: =MAX(AX167-(SUM(AV167:AW167)+SUM(AY167:AZ167))/quo,0) -> 9.952260203 | BF167: =MAX(AY167-(SUM(AV167:AX167)+AZ167)/quo,0) -> 0 | BG167: =MAX(AZ167-SUM(AV167:AY167)/quo,0) -> 0
A168: ROSCOLUX | B168: #3441 FULL STRAW | C168: =CONCATENATE(A168," ",B168) -> ROSCOLUX #3441 FULL STRAW | D168: 55.11 | E168: 52.13 | F168: 32.73 | G168: 13.54 | H168: 7.21 | I168: 15.38 | J168: 44.44 | K168: 46.25 | L168: 40.45 | M168: 45.5 | N168: 46 | O168: 65.99 | P168: 82.13 | Q168: 84.88 | R168: 85.37 | S168: 85.5 | T168: 85.74 | U168: 85.9 | V168: 86.12 | W168: 86.29 | X168: 0.5 | AA168: =D168*D$5 -> 0 | AB168: =E168*E$5 -> 0 | AC168: =F168*F$5 -> 0.6546 | AD168: =G168*G$5 -> 1.354 | AE168: =H168*H$5 -> 6.489 | AF168: =I168*I$5 -> 4.614 | AG168: =J168*J$5 -> 4.444 | AH168: =K168*K$5 -> 6.9375 | AI168: =L168*L$5 -> 16.18 | AJ168: =M168*M$5 -> 25.935 | AK168: =N168*N$5 -> 26.68 | AL168: =O168*O$5 -> 34.3148 | AM168: =P168*P$5 -> 39.4224 | AN168: =Q168*Q$5 -> 31.4056 | AO168: =R168*R$5 -> 20.4888 | AP168: =S168*S$5 -> 15.39 | AQ168: =T168*T$5 -> 11.1462 | AR168: =U168*U$5 -> 6.872 | AS168: =V168*V$5 -> 4.306 | AT168: =W168*W$5 -> 2.5887 | AV168: =700/420*AVERAGE(AA168:AD168) -> 0.8369166667 | AW168: =700/510*AVERAGE(AE168:AH168) -> 7.715269608 | AX168: =700/570*AVERAGE(AI168:AL168) -> 31.65651754 | AY168: =700/640*AVERAGE(AM168:AP168) -> 29.17764062 | AZ168: =AVERAGE(AQ168:AT168) -> 6.228225 | BB168: =B168 -> #3441 FULL STRAW | BC168: =MAX(AV168-SUM(AW168:AZ168)/quo,0) -> 0 | BD168: =MAX(AW168-(AV168+SUM(AX168:AZ168))/quo,0) -> 0 | BE168: =MAX(AX168-(SUM(AV168:AW168)+SUM(AY168:AZ168))/quo,0) -> 9.677491594 | BF168: =MAX(AY168-(SUM(AV168:AX168)+AZ168)/quo,0) -> 5.959176216 | BG168: =MAX(AZ168-SUM(AV168:AY168)/quo,0) -> 0
A169: ROSCOLUX | B169: #20 MED AMBER | C169: =CONCATENATE(A169," ",B169) -> ROSCOLUX #20 MED AMBER | D169: 27.64 | E169: 26.85 | F169: 15.61 | G169: 8.01 | H169: 3.79 | I169: 2.59 | J169: 4.15 | K169: 11.26 | L169: 22.45 | M169: 35.28 | N169: 48.15 | O169: 69.25 | P169: 83.6 | Q169: 87.11 | R169: 87.75 | S169: 87.91 | T169: 87.81 | U169: 87.84 | V169: 87.68 | W169: 87.51 | X169: 0.54 | AA169: =D169*D$5 -> 0 | AB169: =E169*E$5 -> 0 | AC169: =F169*F$5 -> 0.3122 | AD169: =G169*G$5 -> 0.801 | AE169: =H169*H$5 -> 3.411 | AF169: =I169*I$5 -> 0.777 | AG169: =J169*J$5 -> 0.415 | AH169: =K169*K$5 -> 1.689 | AI169: =L169*L$5 -> 8.98 | AJ169: =M169*M$5 -> 20.1096 | AK169: =N169*N$5 -> 27.927 | AL169: =O169*O$5 -> 36.01 | AM169: =P169*P$5 -> 40.128 | AN169: =Q169*Q$5 -> 32.2307 | AO169: =R169*R$5 -> 21.06 | AP169: =S169*S$5 -> 15.8238 | AQ169: =T169*T$5 -> 11.4153 | AR169: =U169*U$5 -> 7.0272 | AS169: =V169*V$5 -> 4.384 | AT169: =W169*W$5 -> 2.6253 | AV169: =700/420*AVERAGE(AA169:AD169) -> 0.4638333333 | AW169: =700/510*AVERAGE(AE169:AH169) -> 2.159019608 | AX169: =700/570*AVERAGE(AI169:AL169) -> 28.56079825 | AY169: =700/640*AVERAGE(AM169:AP169) -> 29.87099609 | AZ169: =AVERAGE(AQ169:AT169) -> 6.36295 | BB169: =B169 -> #20 MED AMBER | BC169: =MAX(AV169-SUM(AW169:AZ169)/quo,0) -> 0 | BD169: =MAX(AW169-(AV169+SUM(AX169:AZ169))/quo,0) -> 0 | BE169: =MAX(AX169-(SUM(AV169:AW169)+SUM(AY169:AZ169))/quo,0) -> 9.132398728 | BF169: =MAX(AY169-(SUM(AV169:AX169)+AZ169)/quo,0) -> 11.0976955 | BG169: =MAX(AZ169-SUM(AV169:AY169)/quo,0) -> 0
A170: ROSCOLUX | B170: #3411 SUN 3/4 CTO | C170: =CONCATENATE(A170," ",B170) -> ROSCOLUX #3411 SUN 3/4 CTO | D170: 56.07 | E170: 55.1 | F170: 38.77 | G170: 19.29 | H170: 11.53 | I170: 19.79 | J170: 45.96 | K170: 45.68 | L170: 39.32 | M170: 44.2 | N170: 44.7 | O170: 65.01 | P170: 81.56 | Q170: 84.47 | R170: 84.92 | S170: 85.24 | T170: 85.5 | U170: 85.68 | V170: 85.89 | W170: 86.03 | X170: 0.58 | AA170: =D170*D$5 -> 0 | AB170: =E170*E$5 -> 0 | AC170: =F170*F$5 -> 0.7754 | AD170: =G170*G$5 -> 1.929 | AE170: =H170*H$5 -> 10.377 | AF170: =I170*I$5 -> 5.937 | AG170: =J170*J$5 -> 4.596 | AH170: =K170*K$5 -> 6.852 | AI170: =L170*L$5 -> 15.728 | AJ170: =M170*M$5 -> 25.194 | AK170: =N170*N$5 -> 25.926 | AL170: =O170*O$5 -> 33.8052 | AM170: =P170*P$5 -> 39.1488 | AN170: =Q170*Q$5 -> 31.2539 | AO170: =R170*R$5 -> 20.3808 | AP170: =S170*S$5 -> 15.3432 | AQ170: =T170*T$5 -> 11.115 | AR170: =U170*U$5 -> 6.8544 | AS170: =V170*V$5 -> 4.2945 | AT170: =W170*W$5 -> 2.5809 | AV170: =700/420*AVERAGE(AA170:AD170) -> 1.126833333 | AW170: =700/510*AVERAGE(AE170:AH170) -> 9.526176471 | AX170: =700/570*AVERAGE(AI170:AL170) -> 30.90229825 | AY170: =700/640*AVERAGE(AM170:AP170) -> 29.01901953 | AZ170: =AVERAGE(AQ170:AT170) -> 6.2112 | BB170: =B170 -> #3411 SUN 3/4 CTO | BC170: =MAX(AV170-SUM(AW170:AZ170)/quo,0) -> 0 | BD170: =MAX(AW170-(AV170+SUM(AX170:AZ170))/quo,0) -> 0 | BE170: =MAX(AX170-(SUM(AV170:AW170)+SUM(AY170:AZ170))/quo,0) -> 7.960683578 | BF170: =MAX(AY170-(SUM(AV170:AX170)+AZ170)/quo,0) -> 5.135765506 | BG170: =MAX(AZ170-SUM(AV170:AY170)/quo,0) -> 0
A171: ROSCOLUX | B171: #90 DARK YELLOW GREEN | C171: =CONCATENATE(A171," ",B171) -> ROSCOLUX #90 DARK YELLOW GREEN | D171: 7.82 | E171: 5.28 | F171: 1.27 | G171: 0.33 | H171: 0.46 | I171: 1.03 | J171: 3.84 | K171: 14.49 | L171: 25.88 | M171: 20.13 | N171: 8.53 | O171: 1.96 | P171: 0.41 | Q171: 0.04 | R171: 0.02 | S171: 0.04 | T171: 0.04 | U171: 0.06 | V171: 0.21 | W171: 4 | X171: 0.13 | AA171: =D171*D$5 -> 0 | AB171: =E171*E$5 -> 0 | AC171: =F171*F$5 -> 0.0254 | AD171: =G171*G$5 -> 0.033 | AE171: =H171*H$5 -> 0.414 | AF171: =I171*I$5 -> 0.309 | AG171: =J171*J$5 -> 0.384 | AH171: =K171*K$5 -> 2.1735 | AI171: =L171*L$5 -> 10.352 | AJ171: =M171*M$5 -> 11.4741 | AK171: =N171*N$5 -> 4.9474 | AL171: =O171*O$5 -> 1.0192 | AM171: =P171*P$5 -> 0.1968 | AN171: =Q171*Q$5 -> 0.0148 | AO171: =R171*R$5 -> 0.0048 | AP171: =S171*S$5 -> 0.0072 | AQ171: =T171*T$5 -> 0.0052 | AR171: =U171*U$5 -> 0.0048 | AS171: =V171*V$5 -> 0.0105 | AT171: =W171*W$5 -> 0.12 | AV171: =700/420*AVERAGE(AA171:AD171) -> 0.02433333333 | AW171: =700/510*AVERAGE(AE171:AH171) -> 1.125661765 | AX171: =700/570*AVERAGE(AI171:AL171) -> 8.532846491 | AY171: =700/640*AVERAGE(AM171:AP171) -> 0.061140625 | AZ171: =AVERAGE(AQ171:AT171) -> 0.035125 | BB171: =B171 -> #90 DARK YELLOW GREEN | BC171: =MAX(AV171-SUM(AW171:AZ171)/quo,0) -> 0 | BD171: =MAX(AW171-(AV171+SUM(AX171:AZ171))/quo,0) -> 0 | BE171: =MAX(AX171-(SUM(AV171:AW171)+SUM(AY171:AZ171))/quo,0) -> 7.90971613 | BF171: =MAX(AY171-(SUM(AV171:AX171)+AZ171)/quo,0) -> 0 | BG171: =MAX(AZ171-SUM(AV171:AY171)/quo,0) -> 0
A172: ROSCOLUX | B172: #316 GALLO GOLD | C172: =CONCATENATE(A172," ",B172) -> ROSCOLUX #316 GALLO GOLD | D172: 54.24 | E172: 53.67 | F172: 38 | G172: 19.12 | H172: 11.37 | I172: 19.29 | J172: 45.11 | K172: 44.79 | L172: 38.6 | M172: 43.47 | N172: 43.79 | O172: 63.71 | P172: 79.91 | Q172: 82.73 | R172: 83.15 | S172: 83.57 | T172: 83.78 | U172: 84.04 | V172: 84.25 | W172: 84.68 | X172: 0.58 | AA172: =D172*D$5 -> 0 | AB172: =E172*E$5 -> 0 | AC172: =F172*F$5 -> 0.76 | AD172: =G172*G$5 -> 1.912 | AE172: =H172*H$5 -> 10.233 | AF172: =I172*I$5 -> 5.787 | AG172: =J172*J$5 -> 4.511 | AH172: =K172*K$5 -> 6.7185 | AI172: =L172*L$5 -> 15.44 | AJ172: =M172*M$5 -> 24.7779 | AK172: =N172*N$5 -> 25.3982 | AL172: =O172*O$5 -> 33.1292 | AM172: =P172*P$5 -> 38.3568 | AN172: =Q172*Q$5 -> 30.6101 | AO172: =R172*R$5 -> 19.956 | AP172: =S172*S$5 -> 15.0426 | AQ172: =T172*T$5 -> 10.8914 | AR172: =U172*U$5 -> 6.7232 | AS172: =V172*V$5 -> 4.2125 | AT172: =W172*W$5 -> 2.5404 | AV172: =700/420*AVERAGE(AA172:AD172) -> 1.113333333 | AW172: =700/510*AVERAGE(AE172:AH172) -> 9.350318627 | AX172: =700/570*AVERAGE(AI172:AL172) -> 30.31653947 | AY172: =700/640*AVERAGE(AM172:AP172) -> 28.42806641 | AZ172: =AVERAGE(AQ172:AT172) -> 6.091875 | BB172: =B172 -> #316 GALLO GOLD | BC172: =MAX(AV172-SUM(AW172:AZ172)/quo,0) -> 0 | BD172: =MAX(AW172-(AV172+SUM(AX172:AZ172))/quo,0) -> 0 | BE172: =MAX(AX172-(SUM(AV172:AW172)+SUM(AY172:AZ172))/quo,0) -> 7.82474279 | BF172: =MAX(AY172-(SUM(AV172:AX172)+AZ172)/quo,0) -> 4.992033189 | BG172: =MAX(AZ172-SUM(AV172:AY172)/quo,0) -> 0
A173: ROSCOLUX | B173: #18 FLAME | C173: =CONCATENATE(A173," ",B173) -> ROSCOLUX #18 FLAME | D173: 37.68 | E173: 49.42 | F173: 47.72 | G173: 35.94 | H173: 22.39 | I173: 14.65 | J173: 12.42 | K173: 14.49 | L173: 20.07 | M173: 41.28 | N173: 53.01 | O173: 66.35 | P173: 76.04 | Q173: 77.7 | R173: 78.09 | S173: 78.29 | T173: 78.29 | U173: 78.46 | V173: 78.7 | W173: 79.12 | X173: 0.56 | AA173: =D173*D$5 -> 0 | AB173: =E173*E$5 -> 0 | AC173: =F173*F$5 -> 0.9544 | AD173: =G173*G$5 -> 3.594 | AE173: =H173*H$5 -> 20.151 | AF173: =I173*I$5 -> 4.395 | AG173: =J173*J$5 -> 1.242 | AH173: =K173*K$5 -> 2.1735 | AI173: =L173*L$5 -> 8.028 | AJ173: =M173*M$5 -> 23.5296 | AK173: =N173*N$5 -> 30.7458 | AL173: =O173*O$5 -> 34.502 | AM173: =P173*P$5 -> 36.4992 | AN173: =Q173*Q$5 -> 28.749 | AO173: =R173*R$5 -> 18.7416 | AP173: =S173*S$5 -> 14.0922 | AQ173: =T173*T$5 -> 10.1777 | AR173: =U173*U$5 -> 6.2768 | AS173: =V173*V$5 -> 3.935 | AT173: =W173*W$5 -> 2.3736 | AV173: =700/420*AVERAGE(AA173:AD173) -> 1.895166667 | AW173: =700/510*AVERAGE(AE173:AH173) -> 9.594632353 | AX173: =700/570*AVERAGE(AI173:AL173) -> 29.72095614 | AY173: =700/640*AVERAGE(AM173:AP173) -> 26.81929688 | AZ173: =AVERAGE(AQ173:AT173) -> 5.690775 | BB173: =B173 -> #18 FLAME | BC173: =MAX(AV173-SUM(AW173:AZ173)/quo,0) -> 0 | BD173: =MAX(AW173-(AV173+SUM(AX173:AZ173))/quo,0) -> 0 | BE173: =MAX(AX173-(SUM(AV173:AW173)+SUM(AY173:AZ173))/quo,0) -> 7.721020693 | BF173: =MAX(AY173-(SUM(AV173:AX173)+AZ173)/quo,0) -> 3.368531795 | BG173: =MAX(AZ173-SUM(AV173:AY173)/quo,0) -> 0
A174: ROSCOLUX | B174: #2004 VS GREEN | C174: #2004 VS GREEN | D174: 4.07 | E174: 2.09 | F174: 0.22 | G174: 0.04 | H174: 0.03 | I174: 0.19 | J174: 8.37 | K174: 23.62 | L174: 25.4 | M174: 19.11 | N174: 9.67 | O174: 3.9 | P174: 1.17 | Q174: 0.44 | R174: 0.31 | S174: 0.22 | T174: 0.56 | U174: 5.6 | V174: 27.35 | W174: 56.59 | X174: 0.15 | AA174: =D174*D$5 -> 0 | AB174: =E174*E$5 -> 0 | AC174: =F174*F$5 -> 0.0044 | AD174: =G174*G$5 -> 0.004 | AE174: =H174*H$5 -> 0.027 | AF174: =I174*I$5 -> 0.057 | AG174: =J174*J$5 -> 0.837 | AH174: =K174*K$5 -> 3.543 | AI174: =L174*L$5 -> 10.16 | AJ174: =M174*M$5 -> 10.8927 | AK174: =N174*N$5 -> 5.6086 | AL174: =O174*O$5 -> 2.028 | AM174: =P174*P$5 -> 0.5616 | AN174: =Q174*Q$5 -> 0.1628 | AO174: =R174*R$5 -> 0.0744 | AP174: =S174*S$5 -> 0.0396 | AQ174: =T174*T$5 -> 0.0728 | AR174: =U174*U$5 -> 0.448 | AS174: =V174*V$5 -> 1.3675 | AT174: =W174*W$5 -> 1.6977 | AV174: =700/420*AVERAGE(AA174:AD174) -> 0.0035 | AW174: =700/510*AVERAGE(AE174:AH174) -> 1.531764706 | AX174: =700/570*AVERAGE(AI174:AL174) -> 8.808118421 | AY174: =700/640*AVERAGE(AM174:AP174) -> 0.22925 | AZ174: =AVERAGE(AQ174:AT174) -> 0.8965 | BB174: =B174 -> #2004 VS GREEN | BC174: =MAX(AV174-SUM(AW174:AZ174)/quo,0) -> 0 | BD174: =MAX(AW174-(AV174+SUM(AX174:AZ174))/quo,0) -> 0 | BE174: =MAX(AX174-(SUM(AV174:AW174)+SUM(AY174:AZ174))/quo,0) -> 7.477611068 | BF174: =MAX(AY174-(SUM(AV174:AX174)+AZ174)/quo,0) -> 0 | BG174: =MAX(AZ174-SUM(AV174:AY174)/quo,0) -> 0
A175: ROSCOLUX | B175: #05 ROSE TINT | C175: =CONCATENATE(A175," ",B175) -> ROSCOLUX #05 ROSE TINT | D175: 62.42 | E175: 72.12 | F175: 75.21 | G175: 74.52 | H175: 69.8 | I175: 63.6 | J175: 58.81 | K175: 56.75 | L175: 58.49 | M175: 64.17 | N175: 71.11 | O175: 79.79 | P175: 85.22 | Q175: 87.04 | R175: 87.71 | S175: 87.82 | T175: 87.65 | U175: 87.96 | V175: 88.06 | W175: 88.22 | X175: 0.8 | AA175: =D175*D$5 -> 0 | AB175: =E175*E$5 -> 0 | AC175: =F175*F$5 -> 1.5042 | AD175: =G175*G$5 -> 7.452 | AE175: =H175*H$5 -> 62.82 | AF175: =I175*I$5 -> 19.08 | AG175: =J175*J$5 -> 5.881 | AH175: =K175*K$5 -> 8.5125 | AI175: =L175*L$5 -> 23.396 | AJ175: =M175*M$5 -> 36.5769 | AK175: =N175*N$5 -> 41.2438 | AL175: =O175*O$5 -> 41.4908 | AM175: =P175*P$5 -> 40.9056 | AN175: =Q175*Q$5 -> 32.2048 | AO175: =R175*R$5 -> 21.0504 | AP175: =S175*S$5 -> 15.8076 | AQ175: =T175*T$5 -> 11.3945 | AR175: =U175*U$5 -> 7.0368 | AS175: =V175*V$5 -> 4.403 | AT175: =W175*W$5 -> 2.6466 | AV175: =700/420*AVERAGE(AA175:AD175) -> 3.73175 | AW175: =700/510*AVERAGE(AE175:AH175) -> 33.04188725 | AX175: =700/570*AVERAGE(AI175:AL175) -> 43.81370614 | AY175: =700/640*AVERAGE(AM175:AP175) -> 30.06948437 | AZ175: =AVERAGE(AQ175:AT175) -> 6.370225 | BB175: =B175 -> #05 ROSE TINT | BC175: =MAX(AV175-SUM(AW175:AZ175)/quo,0) -> 0 | BD175: =MAX(AW175-(AV175+SUM(AX175:AZ175))/quo,0) -> 0 | BE175: =MAX(AX175-(SUM(AV175:AW175)+SUM(AY175:AZ175))/quo,0) -> 7.207032825 | BF175: =MAX(AY175-(SUM(AV175:AX175)+AZ175)/quo,0) -> 0 | BG175: =MAX(AZ175-SUM(AV175:AY175)/quo,0) -> 0
A176: ROSCOLUX | B176: #304 PALE APRICOT | C176: =CONCATENATE(A176," ",B176) -> ROSCOLUX #304 PALE APRICOT | D176: 60.11 | E176: 67.62 | F176: 68.03 | G176: 64.49 | H176: 56.67 | I176: 49.22 | J176: 45.43 | K176: 45.81 | L176: 49.66 | M176: 57.71 | N176: 65.82 | O176: 78.56 | P176: 86.41 | Q176: 88.25 | R176: 88.68 | S176: 88.71 | T176: 88.64 | U176: 88.73 | V176: 88.77 | W176: 89 | X176: 0.79 | AA176: =D176*D$5 -> 0 | AB176: =E176*E$5 -> 0 | AC176: =F176*F$5 -> 1.3606 | AD176: =G176*G$5 -> 6.449 | AE176: =H176*H$5 -> 51.003 | AF176: =I176*I$5 -> 14.766 | AG176: =J176*J$5 -> 4.543 | AH176: =K176*K$5 -> 6.8715 | AI176: =L176*L$5 -> 19.864 | AJ176: =M176*M$5 -> 32.8947 | AK176: =N176*N$5 -> 38.1756 | AL176: =O176*O$5 -> 40.8512 | AM176: =P176*P$5 -> 41.4768 | AN176: =Q176*Q$5 -> 32.6525 | AO176: =R176*R$5 -> 21.2832 | AP176: =S176*S$5 -> 15.9678 | AQ176: =T176*T$5 -> 11.5232 | AR176: =U176*U$5 -> 7.0984 | AS176: =V176*V$5 -> 4.4385 | AT176: =W176*W$5 -> 2.67 | AV176: =700/420*AVERAGE(AA176:AD176) -> 3.254 | AW176: =700/510*AVERAGE(AE176:AH176) -> 26.48453431 | AX176: =700/570*AVERAGE(AI176:AL176) -> 40.46046053 | AY176: =700/640*AVERAGE(AM176:AP176) -> 30.45555078 | AZ176: =AVERAGE(AQ176:AT176) -> 6.432525 | BB176: =B176 -> #304 PALE APRICOT | BC176: =MAX(AV176-SUM(AW176:AZ176)/quo,0) -> 0 | BD176: =MAX(AW176-(AV176+SUM(AX176:AZ176))/quo,0) -> 0 | BE176: =MAX(AX176-(SUM(AV176:AW176)+SUM(AY176:AZ176))/quo,0) -> 7.147155479 | BF176: =MAX(AY176-(SUM(AV176:AX176)+AZ176)/quo,0) -> 0 | BG176: =MAX(AZ176-SUM(AV176:AY176)/quo,0) -> 0
A177: ROSCOLUX | B177: #97 LT GREY | C177: =CONCATENATE(A177," ",B177) -> ROSCOLUX #97 LT GREY | D177: 46.7 | E177: 51.82 | F177: 49.45 | G177: 42.08 | H177: 36.21 | I177: 40.14 | J177: 52.02 | K177: 48.99 | L177: 42.71 | M177: 43.99 | N177: 40.96 | O177: 47.25 | P177: 47.82 | Q177: 43.92 | R177: 41.64 | S177: 39.31 | T177: 44.84 | U177: 59.3 | V177: 72.61 | W177: 79.36 | X177: 0.5 | AA177: =D177*D$5 -> 0 | AB177: =E177*E$5 -> 0 | AC177: =F177*F$5 -> 0.989 | AD177: =G177*G$5 -> 4.208 | AE177: =H177*H$5 -> 32.589 | AF177: =I177*I$5 -> 12.042 | AG177: =J177*J$5 -> 5.202 | AH177: =K177*K$5 -> 7.3485 | AI177: =L177*L$5 -> 17.084 | AJ177: =M177*M$5 -> 25.0743 | AK177: =N177*N$5 -> 23.7568 | AL177: =O177*O$5 -> 24.57 | AM177: =P177*P$5 -> 22.9536 | AN177: =Q177*Q$5 -> 16.2504 | AO177: =R177*R$5 -> 9.9936 | AP177: =S177*S$5 -> 7.0758 | AQ177: =T177*T$5 -> 5.8292 | AR177: =U177*U$5 -> 4.744 | AS177: =V177*V$5 -> 3.6305 | AT177: =W177*W$5 -> 2.3808 | AV177: =700/420*AVERAGE(AA177:AD177) -> 2.165416667 | AW177: =700/510*AVERAGE(AE177:AH177) -> 19.62110294 | AX177: =700/570*AVERAGE(AI177:AL177) -> 27.78051316 | AY177: =700/640*AVERAGE(AM177:AP177) -> 15.38725781 | AZ177: =AVERAGE(AQ177:AT177) -> 4.146125 | BB177: =B177 -> #97 LT GREY | BC177: =MAX(AV177-SUM(AW177:AZ177)/quo,0) -> 0 | BD177: =MAX(AW177-(AV177+SUM(AX177:AZ177))/quo,0) -> 0 | BE177: =MAX(AX177-(SUM(AV177:AW177)+SUM(AY177:AZ177))/quo,0) -> 7.120561948 | BF177: =MAX(AY177-(SUM(AV177:AX177)+AZ177)/quo,0) -> 0 | BG177: =MAX(AZ177-SUM(AV177:AY177)/quo,0) -> 0
A178: ROSCOLUX | B178: #398 NEUTRAL GREY | C178: =CONCATENATE(A178," ",B178) -> ROSCOLUX #398 NEUTRAL GREY | D178: 23.18 | E178: 29.61 | F178: 35.33 | G178: 38.66 | H178: 41.08 | I178: 42.71 | J178: 43.47 | K178: 43.54 | L178: 43.17 | M178: 41.73 | N178: 41.17 | O178: 39.93 | P178: 39.77 | Q178: 40.58 | R178: 41.35 | S178: 37.14 | T178: 28.16 | U178: 43.98 | V178: 48.36 | W178: 52.12 | X178: 0.4 | AA178: =D178*D$5 -> 0 | AB178: =E178*E$5 -> 0 | AC178: =F178*F$5 -> 0.7066 | AD178: =G178*G$5 -> 3.866 | AE178: =H178*H$5 -> 36.972 | AF178: =I178*I$5 -> 12.813 | AG178: =J178*J$5 -> 4.347 | AH178: =K178*K$5 -> 6.531 | AI178: =L178*L$5 -> 17.268 | AJ178: =M178*M$5 -> 23.7861 | AK178: =N178*N$5 -> 23.8786 | AL178: =O178*O$5 -> 20.7636 | AM178: =P178*P$5 -> 19.0896 | AN178: =Q178*Q$5 -> 15.0146 | AO178: =R178*R$5 -> 9.924 | AP178: =S178*S$5 -> 6.6852 | AQ178: =T178*T$5 -> 3.6608 | AR178: =U178*U$5 -> 3.5184 | AS178: =V178*V$5 -> 2.418 | AT178: =W178*W$5 -> 1.5636 | AV178: =700/420*AVERAGE(AA178:AD178) -> 1.90525 | AW178: =700/510*AVERAGE(AE178:AH178) -> 20.81573529 | AX178: =700/570*AVERAGE(AI178:AL178) -> 26.31026754 | AY178: =700/640*AVERAGE(AM178:AP178) -> 13.86694531 | AZ178: =AVERAGE(AQ178:AT178) -> 2.7902 | BB178: =B178 -> #398 NEUTRAL GREY | BC178: =MAX(AV178-SUM(AW178:AZ178)/quo,0) -> 0 | BD178: =MAX(AW178-(AV178+SUM(AX178:AZ178))/quo,0) -> 0 | BE178: =MAX(AX178-(SUM(AV178:AW178)+SUM(AY178:AZ178))/quo,0) -> 6.621202241 | BF178: =MAX(AY178-(SUM(AV178:AX178)+AZ178)/quo,0) -> 0 | BG178: =MAX(AZ178-SUM(AV178:AY178)/quo,0) -> 0
A179: ROSCOLUX | B179: #3314 TOUGH 1/4 MINUSGREEN | C179: #3314 TOUGH 1/4 MINUSGREEN | D179: 65.26 | E179: 71.31 | F179: 75 | G179: 76.69 | H179: 76.78 | I179: 76.13 | J179: 74.8 | K179: 71.88 | L179: 69.21 | M179: 68.32 | N179: 69.69 | O179: 72.12 | P179: 78.64 | Q179: 81.32 | R179: 81.38 | S179: 83.01 | T179: 85.03 | U179: 85.61 | V179: 85.97 | W179: 86.26 | X179: 0.81 | AA179: =D179*D$5 -> 0 | AB179: =E179*E$5 -> 0 | AC179: =F179*F$5 -> 1.5 | AD179: =G179*G$5 -> 7.669 | AE179: =H179*H$5 -> 69.102 | AF179: =I179*I$5 -> 22.839 | AG179: =J179*J$5 -> 7.48 | AH179: =K179*K$5 -> 10.782 | AI179: =L179*L$5 -> 27.684 | AJ179: =M179*M$5 -> 38.9424 | AK179: =N179*N$5 -> 40.4202 | AL179: =O179*O$5 -> 37.5024 | AM179: =P179*P$5 -> 37.7472 | AN179: =Q179*Q$5 -> 30.0884 | AO179: =R179*R$5 -> 19.5312 | AP179: =S179*S$5 -> 14.9418 | AQ179: =T179*T$5 -> 11.0539 | AR179: =U179*U$5 -> 6.8488 | AS179: =V179*V$5 -> 4.2985 | AT179: =W179*W$5 -> 2.5878 | AV179: =700/420*AVERAGE(AA179:AD179) -> 3.820416667 | AW179: =700/510*AVERAGE(AE179:AH179) -> 37.8147549 | AX179: =700/570*AVERAGE(AI179:AL179) -> 44.37907895 | AY179: =700/640*AVERAGE(AM179:AP179) -> 27.97500781 | AZ179: =AVERAGE(AQ179:AT179) -> 6.19725 | BB179: =B179 -> #3314 TOUGH 1/4 MINUSGREEN | BC179: =MAX(AV179-SUM(AW179:AZ179)/quo,0) -> 0 | BD179: =MAX(AW179-(AV179+SUM(AX179:AZ179))/quo,0) -> 0 | BE179: =MAX(AX179-(SUM(AV179:AW179)+SUM(AY179:AZ179))/quo,0) -> 6.475364257 | BF179: =MAX(AY179-(SUM(AV179:AX179)+AZ179)/quo,0) -> 0 | BG179: =MAX(AZ179-SUM(AV179:AY179)/quo,0) -> 0
A180: ROSCOLUX | B180: #305 ROSE GOLD | C180: =CONCATENATE(A180," ",B180) -> ROSCOLUX #305 ROSE GOLD | D180: 59.33 | E180: 66.81 | F180: 68.17 | G180: 65.85 | H180: 58.99 | I180: 51.71 | J180: 47.02 | K180: 46.04 | L180: 48.98 | M180: 56.36 | N180: 63.79 | O180: 75.54 | P180: 82.57 | Q180: 84.11 | R180: 84.43 | S180: 84.72 | T180: 85.49 | U180: 86.54 | V180: 87.18 | W180: 87.67 | X180: 0.75 | AA180: =D180*D$5 -> 0 | AB180: =E180*E$5 -> 0 | AC180: =F180*F$5 -> 1.3634 | AD180: =G180*G$5 -> 6.585 | AE180: =H180*H$5 -> 53.091 | AF180: =I180*I$5 -> 15.513 | AG180: =J180*J$5 -> 4.702 | AH180: =K180*K$5 -> 6.906 | AI180: =L180*L$5 -> 19.592 | AJ180: =M180*M$5 -> 32.1252 | AK180: =N180*N$5 -> 36.9982 | AL180: =O180*O$5 -> 39.2808 | AM180: =P180*P$5 -> 39.6336 | AN180: =Q180*Q$5 -> 31.1207 | AO180: =R180*R$5 -> 20.2632 | AP180: =S180*S$5 -> 15.2496 | AQ180: =T180*T$5 -> 11.1137 | AR180: =U180*U$5 -> 6.9232 | AS180: =V180*V$5 -> 4.359 | AT180: =W180*W$5 -> 2.6301 | AV180: =700/420*AVERAGE(AA180:AD180) -> 3.311833333 | AW180: =700/510*AVERAGE(AE180:AH180) -> 27.52372549 | AX180: =700/570*AVERAGE(AI180:AL180) -> 39.29707895 | AY180: =700/640*AVERAGE(AM180:AP180) -> 29.05741016 | AZ180: =AVERAGE(AQ180:AT180) -> 6.2565 | BB180: =B180 -> #305 ROSE GOLD | BC180: =MAX(AV180-SUM(AW180:AZ180)/quo,0) -> 0 | BD180: =MAX(AW180-(AV180+SUM(AX180:AZ180))/quo,0) -> 0 | BE180: =MAX(AX180-(SUM(AV180:AW180)+SUM(AY180:AZ180))/quo,0) -> 6.222344457 | BF180: =MAX(AY180-(SUM(AV180:AX180)+AZ180)/quo,0) -> 0 | BG180: =MAX(AZ180-SUM(AV180:AY180)/quo,0) -> 0
A181: ROSCOLUX | B181: #03 DRK BASTARD AMBER | C181: =CONCATENATE(A181," ",B181) -> ROSCOLUX #03 DRK BASTARD AMBER | D181: 46.02 | E181: 53.54 | F181: 53.35 | G181: 48.78 | H181: 40.07 | I181: 32.98 | J181: 30.5 | K181: 32.42 | L181: 37.58 | M181: 46.73 | N181: 56.46 | O181: 72 | P181: 82.03 | Q181: 84.62 | R181: 85.35 | S181: 85.52 | T181: 85.57 | U181: 85.74 | V181: 85.93 | W181: 86.39 | X181: 0.62 | AA181: =D181*D$5 -> 0 | AB181: =E181*E$5 -> 0 | AC181: =F181*F$5 -> 1.067 | AD181: =G181*G$5 -> 4.878 | AE181: =H181*H$5 -> 36.063 | AF181: =I181*I$5 -> 9.894 | AG181: =J181*J$5 -> 3.05 | AH181: =K181*K$5 -> 4.863 | AI181: =L181*L$5 -> 15.032 | AJ181: =M181*M$5 -> 26.6361 | AK181: =N181*N$5 -> 32.7468 | AL181: =O181*O$5 -> 37.44 | AM181: =P181*P$5 -> 39.3744 | AN181: =Q181*Q$5 -> 31.3094 | AO181: =R181*R$5 -> 20.484 | AP181: =S181*S$5 -> 15.3936 | AQ181: =T181*T$5 -> 11.1241 | AR181: =U181*U$5 -> 6.8592 | AS181: =V181*V$5 -> 4.2965 | AT181: =W181*W$5 -> 2.5917 | AV181: =700/420*AVERAGE(AA181:AD181) -> 2.477083333 | AW181: =700/510*AVERAGE(AE181:AH181) -> 18.48480392 | AX181: =700/570*AVERAGE(AI181:AL181) -> 34.34141667 | AY181: =700/640*AVERAGE(AM181:AP181) -> 29.13788281 | AZ181: =AVERAGE(AQ181:AT181) -> 6.217875 | BB181: =B181 -> #03 DRK BASTARD AMBER | BC181: =MAX(AV181-SUM(AW181:AZ181)/quo,0) -> 0 | BD181: =MAX(AW181-(AV181+SUM(AX181:AZ181))/quo,0) -> 0 | BE181: =MAX(AX181-(SUM(AV181:AW181)+SUM(AY181:AZ181))/quo,0) -> 6.182594133 | BF181: =MAX(AY181-(SUM(AV181:AX181)+AZ181)/quo,0) -> 0 | BG181: =MAX(AZ181-SUM(AV181:AY181)/quo,0) -> 0
A182: ROSCOLUX | B182: #4615 CALCOLOR 15 RED | C182: =B182 -> #4615 CALCOLOR 15 RED | D182: 65.82 | E182: 70.37 | F182: 66.82 | G182: 58.37 | H182: 52.48 | I182: 56.46 | J182: 67.44 | K182: 63.54 | L182: 59.45 | M182: 58.41 | N182: 61.3 | O182: 66.48 | P182: 79.62 | Q182: 84.82 | R182: 85.73 | S182: 85.98 | T182: 86.21 | U182: 86.4 | V182: 86.54 | W182: 86.63 | X182: 0.67 | AA182: =D182*D$5 -> 0 | AB182: =E182*E$5 -> 0 | AC182: =F182*F$5 -> 1.3364 | AD182: =G182*G$5 -> 5.837 | AE182: =H182*H$5 -> 47.232 | AF182: =I182*I$5 -> 16.938 | AG182: =J182*J$5 -> 6.744 | AH182: =K182*K$5 -> 9.531 | AI182: =L182*L$5 -> 23.78 | AJ182: =M182*M$5 -> 33.2937 | AK182: =N182*N$5 -> 35.554 | AL182: =O182*O$5 -> 34.5696 | AM182: =P182*P$5 -> 38.2176 | AN182: =Q182*Q$5 -> 31.3834 | AO182: =R182*R$5 -> 20.5752 | AP182: =S182*S$5 -> 15.4764 | AQ182: =T182*T$5 -> 11.2073 | AR182: =U182*U$5 -> 6.912 | AS182: =V182*V$5 -> 4.327 | AT182: =W182*W$5 -> 2.5989 | AV182: =700/420*AVERAGE(AA182:AD182) -> 2.988916667 | AW182: =700/510*AVERAGE(AE182:AH182) -> 27.60367647 | AX182: =700/570*AVERAGE(AI182:AL182) -> 39.05180263 | AY182: =700/640*AVERAGE(AM182:AP182) -> 28.88938281 | AZ182: =AVERAGE(AQ182:AT182) -> 6.2613 | BB182: =B182 -> #4615 CALCOLOR 15 RED | BC182: =MAX(AV182-SUM(AW182:AZ182)/quo,0) -> 0 | BD182: =MAX(AW182-(AV182+SUM(AX182:AZ182))/quo,0) -> 0 | BE182: =MAX(AX182-(SUM(AV182:AW182)+SUM(AY182:AZ182))/quo,0) -> 6.180164657 | BF182: =MAX(AY182-(SUM(AV182:AX182)+AZ182)/quo,0) -> 0 | BG182: =MAX(AZ182-SUM(AV182:AY182)/quo,0) -> 0
A183: ROSCOLUX | B183: #3407 SUN CTO | C183: =CONCATENATE(A183," ",B183) -> ROSCOLUX #3407 SUN CTO | D183: 47.84 | E183: 46.67 | F183: 29.21 | G183: 11.6 | H183: 5.78 | I183: 12.95 | J183: 37.13 | K183: 37.1 | L183: 30.51 | M183: 35.33 | N183: 35.59 | O183: 57.38 | P183: 75.58 | Q183: 77.17 | R183: 76.03 | S183: 74.97 | T183: 74.13 | U183: 75.59 | V183: 79.93 | W183: 83.53 | X183: 0.47 | AA183: =D183*D$5 -> 0 | AB183: =E183*E$5 -> 0 | AC183: =F183*F$5 -> 0.5842 | AD183: =G183*G$5 -> 1.16 | AE183: =H183*H$5 -> 5.202 | AF183: =I183*I$5 -> 3.885 | AG183: =J183*J$5 -> 3.713 | AH183: =K183*K$5 -> 5.565 | AI183: =L183*L$5 -> 12.204 | AJ183: =M183*M$5 -> 20.1381 | AK183: =N183*N$5 -> 20.6422 | AL183: =O183*O$5 -> 29.8376 | AM183: =P183*P$5 -> 36.2784 | AN183: =Q183*Q$5 -> 28.5529 | AO183: =R183*R$5 -> 18.2472 | AP183: =S183*S$5 -> 13.4946 | AQ183: =T183*T$5 -> 9.6369 | AR183: =U183*U$5 -> 6.0472 | AS183: =V183*V$5 -> 3.9965 | AT183: =W183*W$5 -> 2.5059 | AV183: =700/420*AVERAGE(AA183:AD183) -> 0.72675 | AW183: =700/510*AVERAGE(AE183:AH183) -> 6.301715686 | AX183: =700/570*AVERAGE(AI183:AL183) -> 25.42777632 | AY183: =700/640*AVERAGE(AM183:AP183) -> 26.40670703 | AZ183: =AVERAGE(AQ183:AT183) -> 5.546625 | BB183: =B183 -> #3407 SUN CTO | BC183: =MAX(AV183-SUM(AW183:AZ183)/quo,0) -> 0 | BD183: =MAX(AW183-(AV183+SUM(AX183:AZ183))/quo,0) -> 0 | BE183: =MAX(AX183-(SUM(AV183:AW183)+SUM(AY183:AZ183))/quo,0) -> 5.936877457 | BF183: =MAX(AY183-(SUM(AV183:AX183)+AZ183)/quo,0) -> 7.40527353 | BG183: =MAX(AZ183-SUM(AV183:AY183)/quo,0) -> 0
A184: ROSCOLUX | B184: #04 MED BASTARD AMBER | C184: =CONCATENATE(A184," ",B184) -> ROSCOLUX #04 MED BASTARD AMBER | D184: 48.84 | E184: 53.63 | F184: 52.92 | G184: 51.62 | H184: 47.81 | I184: 42.28 | J184: 38.38 | K184: 37.88 | L184: 41.49 | M184: 50.08 | N184: 59.7 | O184: 75.18 | P184: 84.99 | Q184: 87.37 | R184: 87.95 | S184: 87.99 | T184: 87.86 | U184: 87.95 | V184: 87.92 | W184: 88.05 | X184: 0.66 | AA184: =D184*D$5 -> 0 | AB184: =E184*E$5 -> 0 | AC184: =F184*F$5 -> 1.0584 | AD184: =G184*G$5 -> 5.162 | AE184: =H184*H$5 -> 43.029 | AF184: =I184*I$5 -> 12.684 | AG184: =J184*J$5 -> 3.838 | AH184: =K184*K$5 -> 5.682 | AI184: =L184*L$5 -> 16.596 | AJ184: =M184*M$5 -> 28.5456 | AK184: =N184*N$5 -> 34.626 | AL184: =O184*O$5 -> 39.0936 | AM184: =P184*P$5 -> 40.7952 | AN184: =Q184*Q$5 -> 32.3269 | AO184: =R184*R$5 -> 21.108 | AP184: =S184*S$5 -> 15.8382 | AQ184: =T184*T$5 -> 11.4218 | AR184: =U184*U$5 -> 7.036 | AS184: =V184*V$5 -> 4.396 | AT184: =W184*W$5 -> 2.6415 | AV184: =700/420*AVERAGE(AA184:AD184) -> 2.591833333 | AW184: =700/510*AVERAGE(AE184:AH184) -> 22.38387255 | AX184: =700/570*AVERAGE(AI184:AL184) -> 36.49247368 | AY184: =700/640*AVERAGE(AM184:AP184) -> 30.09680078 | AZ184: =AVERAGE(AQ184:AT184) -> 6.373825 | BB184: =B184 -> #04 MED BASTARD AMBER | BC184: =MAX(AV184-SUM(AW184:AZ184)/quo,0) -> 0 | BD184: =MAX(AW184-(AV184+SUM(AX184:AZ184))/quo,0) -> 0 | BE184: =MAX(AX184-(SUM(AV184:AW184)+SUM(AY184:AZ184))/quo,0) -> 5.769307852 | BF184: =MAX(AY184-(SUM(AV184:AX184)+AZ184)/quo,0) -> 0 | BG184: =MAX(AZ184-SUM(AV184:AY184)/quo,0) -> 0
A185: ROSCOLUX | B185: #93 BLUE GREEN | C185: =CONCATENATE(A185," ",B185) -> ROSCOLUX #93 BLUE GREEN | D185: 53.09 | E185: 55.21 | F185: 43.72 | G185: 25.76 | H185: 17.51 | I185: 27.47 | J185: 58.8 | K185: 58.45 | L185: 47.65 | M185: 33 | N185: 21.54 | O185: 11.55 | P185: 8.4 | Q185: 7.6 | R185: 5.97 | S185: 20.04 | T185: 58.9 | U185: 77.66 | V185: 82.34 | W185: 84.21 | X185: 0.35 | AA185: =D185*D$5 -> 0 | AB185: =E185*E$5 -> 0 | AC185: =F185*F$5 -> 0.8744 | AD185: =G185*G$5 -> 2.576 | AE185: =H185*H$5 -> 15.759 | AF185: =I185*I$5 -> 8.241 | AG185: =J185*J$5 -> 5.88 | AH185: =K185*K$5 -> 8.7675 | AI185: =L185*L$5 -> 19.06 | AJ185: =M185*M$5 -> 18.81 | AK185: =N185*N$5 -> 12.4932 | AL185: =O185*O$5 -> 6.006 | AM185: =P185*P$5 -> 4.032 | AN185: =Q185*Q$5 -> 2.812 | AO185: =R185*R$5 -> 1.4328 | AP185: =S185*S$5 -> 3.6072 | AQ185: =T185*T$5 -> 7.657 | AR185: =U185*U$5 -> 6.2128 | AS185: =V185*V$5 -> 4.117 | AT185: =W185*W$5 -> 2.5263 | AV185: =700/420*AVERAGE(AA185:AD185) -> 1.437666667 | AW185: =700/510*AVERAGE(AE185:AH185) -> 13.26139706 | AX185: =700/570*AVERAGE(AI185:AL185) -> 17.30633333 | AY185: =700/640*AVERAGE(AM185:AP185) -> 3.24953125 | AZ185: =AVERAGE(AQ185:AT185) -> 5.128275 | BB185: =B185 -> #93 BLUE GREEN | BC185: =MAX(AV185-SUM(AW185:AZ185)/quo,0) -> 0 | BD185: =MAX(AW185-(AV185+SUM(AX185:AZ185))/quo,0) -> 0 | BE185: =MAX(AX185-(SUM(AV185:AW185)+SUM(AY185:AZ185))/quo,0) -> 5.767898346 | BF185: =MAX(AY185-(SUM(AV185:AX185)+AZ185)/quo,0) -> 0 | BG185: =MAX(AZ185-SUM(AV185:AY185)/quo,0) -> 0
A186: ROSCOLUX | B186: #17 LT FLAME | C186: =CONCATENATE(A186," ",B186) -> ROSCOLUX #17 LT FLAME | D186: 56.88 | E186: 64.29 | F186: 58.42 | G186: 44.79 | H186: 28.44 | I186: 17.54 | J186: 13.5 | K186: 15.19 | L186: 20.34 | M186: 41.96 | N186: 52.37 | O186: 69.23 | P186: 81.53 | Q186: 83.63 | R186: 83.85 | S186: 84.2 | T186: 84.44 | U186: 84.62 | V186: 84.78 | W186: 85.04 | X186: 0.56 | AA186: =D186*D$5 -> 0 | AB186: =E186*E$5 -> 0 | AC186: =F186*F$5 -> 1.1684 | AD186: =G186*G$5 -> 4.479 | AE186: =H186*H$5 -> 25.596 | AF186: =I186*I$5 -> 5.262 | AG186: =J186*J$5 -> 1.35 | AH186: =K186*K$5 -> 2.2785 | AI186: =L186*L$5 -> 8.136 | AJ186: =M186*M$5 -> 23.9172 | AK186: =N186*N$5 -> 30.3746 | AL186: =O186*O$5 -> 35.9996 | AM186: =P186*P$5 -> 39.1344 | AN186: =Q186*Q$5 -> 30.9431 | AO186: =R186*R$5 -> 20.124 | AP186: =S186*S$5 -> 15.156 | AQ186: =T186*T$5 -> 10.9772 | AR186: =U186*U$5 -> 6.7696 | AS186: =V186*V$5 -> 4.239 | AT186: =W186*W$5 -> 2.5512 | AV186: =700/420*AVERAGE(AA186:AD186) -> 2.353083333 | AW186: =700/510*AVERAGE(AE186:AH186) -> 11.83360294 | AX186: =700/570*AVERAGE(AI186:AL186) -> 30.2189386 | AY186: =700/640*AVERAGE(AM186:AP186) -> 28.80869141 | AZ186: =AVERAGE(AQ186:AT186) -> 6.13425 | BB186: =B186 -> #17 LT FLAME | BC186: =MAX(AV186-SUM(AW186:AZ186)/quo,0) -> 0 | BD186: =MAX(AW186-(AV186+SUM(AX186:AZ186))/quo,0) -> 0 | BE186: =MAX(AX186-(SUM(AV186:AW186)+SUM(AY186:AZ186))/quo,0) -> 5.654124756 | BF186: =MAX(AY186-(SUM(AV186:AX186)+AZ186)/quo,0) -> 3.538753971 | BG186: =MAX(AZ186-SUM(AV186:AY186)/quo,0) -> 0
A187: ROSCOLUX | B187: #3405 SUN85 N.3 | C187: =CONCATENATE(A187," ",B187) -> ROSCOLUX #3405 SUN85 N.3 | D187: 34.58 | E187: 36.7 | F187: 23.01 | G187: 7.83 | H187: 3.36 | I187: 8.57 | J187: 27.53 | K187: 26.14 | L187: 19.13 | M187: 22.61 | N187: 21.38 | O187: 38.55 | P187: 50.57 | Q187: 44.18 | R187: 36.62 | S187: 31.74 | T187: 28.46 | U187: 32.47 | V187: 50.58 | W187: 71.1 | X187: 0.33 | AA187: =D187*D$5 -> 0 | AB187: =E187*E$5 -> 0 | AC187: =F187*F$5 -> 0.4602 | AD187: =G187*G$5 -> 0.783 | AE187: =H187*H$5 -> 3.024 | AF187: =I187*I$5 -> 2.571 | AG187: =J187*J$5 -> 2.753 | AH187: =K187*K$5 -> 3.921 | AI187: =L187*L$5 -> 7.652 | AJ187: =M187*M$5 -> 12.8877 | AK187: =N187*N$5 -> 12.4004 | AL187: =O187*O$5 -> 20.046 | AM187: =P187*P$5 -> 24.2736 | AN187: =Q187*Q$5 -> 16.3466 | AO187: =R187*R$5 -> 8.7888 | AP187: =S187*S$5 -> 5.7132 | AQ187: =T187*T$5 -> 3.6998 | AR187: =U187*U$5 -> 2.5976 | AS187: =V187*V$5 -> 2.529 | AT187: =W187*W$5 -> 2.133 | AV187: =700/420*AVERAGE(AA187:AD187) -> 0.518 | AW187: =700/510*AVERAGE(AE187:AH187) -> 4.20995098 | AX187: =700/570*AVERAGE(AI187:AL187) -> 16.26766228 | AY187: =700/640*AVERAGE(AM187:AP187) -> 15.07247656 | AZ187: =AVERAGE(AQ187:AT187) -> 2.73985 | BB187: =B187 -> #3405 SUN85 N.3 | BC187: =MAX(AV187-SUM(AW187:AZ187)/quo,0) -> 0 | BD187: =MAX(AW187-(AV187+SUM(AX187:AZ187))/quo,0) -> 0 | BE187: =MAX(AX187-(SUM(AV187:AW187)+SUM(AY187:AZ187))/quo,0) -> 4.997523509 | BF187: =MAX(AY187-(SUM(AV187:AX187)+AZ187)/quo,0) -> 3.204744932 | BG187: =MAX(AZ187-SUM(AV187:AY187)/quo,0) -> 0
A188: ROSCOLUX | B188: #317 APRICOT | C188: =CONCATENATE(A188," ",B188) -> ROSCOLUX #317 APRICOT | D188: 22.29 | E188: 21.08 | F188: 17.59 | G188: 18.18 | H188: 20.68 | I188: 20.69 | J188: 19.66 | K188: 20.21 | L188: 23.91 | M188: 33.41 | N188: 45.13 | O188: 67.34 | P188: 83.58 | Q188: 87.67 | R188: 88.51 | S188: 88.72 | T188: 88.62 | U188: 88.69 | V188: 88.62 | W188: 88.67 | X188: 0.51 | AA188: =D188*D$5 -> 0 | AB188: =E188*E$5 -> 0 | AC188: =F188*F$5 -> 0.3518 | AD188: =G188*G$5 -> 1.818 | AE188: =H188*H$5 -> 18.612 | AF188: =I188*I$5 -> 6.207 | AG188: =J188*J$5 -> 1.966 | AH188: =K188*K$5 -> 3.0315 | AI188: =L188*L$5 -> 9.564 | AJ188: =M188*M$5 -> 19.0437 | AK188: =N188*N$5 -> 26.1754 | AL188: =O188*O$5 -> 35.0168 | AM188: =P188*P$5 -> 40.1184 | AN188: =Q188*Q$5 -> 32.4379 | AO188: =R188*R$5 -> 21.2424 | AP188: =S188*S$5 -> 15.9696 | AQ188: =T188*T$5 -> 11.5206 | AR188: =U188*U$5 -> 7.0952 | AS188: =V188*V$5 -> 4.431 | AT188: =W188*W$5 -> 2.6601 | AV188: =700/420*AVERAGE(AA188:AD188) -> 0.9040833333 | AW188: =700/510*AVERAGE(AE188:AH188) -> 10.23115196 | AX188: =700/570*AVERAGE(AI188:AL188) -> 27.57014474 | AY188: =700/640*AVERAGE(AM188:AP188) -> 30.01476953 | AZ188: =AVERAGE(AQ188:AT188) -> 6.426725 | BB188: =B188 -> #317 APRICOT | BC188: =MAX(AV188-SUM(AW188:AZ188)/quo,0) -> 0 | BD188: =MAX(AW188-(AV188+SUM(AX188:AZ188))/quo,0) -> 0 | BE188: =MAX(AX188-(SUM(AV188:AW188)+SUM(AY188:AZ188))/quo,0) -> 3.781779824 | BF188: =MAX(AY188-(SUM(AV188:AX188)+AZ188)/quo,0) -> 7.448717016 | BG188: =MAX(AZ188-SUM(AV188:AY188)/quo,0) -> 0
A189: ROSCOLUX | B189: #99 CHOCOLATE | C189: =CONCATENATE(A189," ",B189) -> ROSCOLUX #99 CHOCOLATE | D189: 39.34 | E189: 45.52 | F189: 37.34 | G189: 21.34 | H189: 13.37 | I189: 18.44 | J189: 32.78 | K189: 28.3 | L189: 20.57 | M189: 23.78 | N189: 22.45 | O189: 38.55 | P189: 48.63 | Q189: 41.83 | R189: 34.39 | S189: 29.59 | T189: 26.17 | U189: 30.33 | V189: 48.87 | W189: 69.87 | X189: 0.35 | AA189: =D189*D$5 -> 0 | AB189: =E189*E$5 -> 0 | AC189: =F189*F$5 -> 0.7468 | AD189: =G189*G$5 -> 2.134 | AE189: =H189*H$5 -> 12.033 | AF189: =I189*I$5 -> 5.532 | AG189: =J189*J$5 -> 3.278 | AH189: =K189*K$5 -> 4.245 | AI189: =L189*L$5 -> 8.228 | AJ189: =M189*M$5 -> 13.5546 | AK189: =N189*N$5 -> 13.021 | AL189: =O189*O$5 -> 20.046 | AM189: =P189*P$5 -> 23.3424 | AN189: =Q189*Q$5 -> 15.4771 | AO189: =R189*R$5 -> 8.2536 | AP189: =S189*S$5 -> 5.3262 | AQ189: =T189*T$5 -> 3.4021 | AR189: =U189*U$5 -> 2.4264 | AS189: =V189*V$5 -> 2.4435 | AT189: =W189*W$5 -> 2.0961 | AV189: =700/420*AVERAGE(AA189:AD189) -> 1.200333333 | AW189: =700/510*AVERAGE(AE189:AH189) -> 8.608627451 | AX189: =700/570*AVERAGE(AI189:AL189) -> 16.83978947 | AY189: =700/640*AVERAGE(AM189:AP189) -> 14.32793359 | AZ189: =AVERAGE(AQ189:AT189) -> 2.592025 | BB189: =B189 -> #99 CHOCOLATE | BC189: =MAX(AV189-SUM(AW189:AZ189)/quo,0) -> 0 | BD189: =MAX(AW189-(AV189+SUM(AX189:AZ189))/quo,0) -> 0 | BE189: =MAX(AX189-(SUM(AV189:AW189)+SUM(AY189:AZ189))/quo,0) -> 3.475329785 | BF189: =MAX(AY189-(SUM(AV189:AX189)+AZ189)/quo,0) -> 0 | BG189: =MAX(AZ189-SUM(AV189:AY189)/quo,0) -> 0
A190: ROSCOLUX | B190: #98 MED GREY | C190: =CONCATENATE(A190," ",B190) -> ROSCOLUX #98 MED GREY | D190: 34.68 | E190: 39.33 | F190: 32.93 | G190: 21.7 | H190: 14.77 | I190: 19.11 | J190: 32.27 | K190: 27.67 | L190: 20.1 | M190: 21.46 | N190: 18.19 | O190: 25.4 | P190: 26.59 | Q190: 22.28 | R190: 19.96 | S190: 17.73 | T190: 23.68 | U190: 42.92 | V190: 65.02 | W190: 77.59 | X190: 0.25 | AA190: =D190*D$5 -> 0 | AB190: =E190*E$5 -> 0 | AC190: =F190*F$5 -> 0.6586 | AD190: =G190*G$5 -> 2.17 | AE190: =H190*H$5 -> 13.293 | AF190: =I190*I$5 -> 5.733 | AG190: =J190*J$5 -> 3.227 | AH190: =K190*K$5 -> 4.1505 | AI190: =L190*L$5 -> 8.04 | AJ190: =M190*M$5 -> 12.2322 | AK190: =N190*N$5 -> 10.5502 | AL190: =O190*O$5 -> 13.208 | AM190: =P190*P$5 -> 12.7632 | AN190: =Q190*Q$5 -> 8.2436 | AO190: =R190*R$5 -> 4.7904 | AP190: =S190*S$5 -> 3.1914 | AQ190: =T190*T$5 -> 3.0784 | AR190: =U190*U$5 -> 3.4336 | AS190: =V190*V$5 -> 3.251 | AT190: =W190*W$5 -> 2.3277 | AV190: =700/420*AVERAGE(AA190:AD190) -> 1.178583333 | AW190: =700/510*AVERAGE(AE190:AH190) -> 9.06002451 | AX190: =700/570*AVERAGE(AI190:AL190) -> 13.51810526 | AY190: =700/640*AVERAGE(AM190:AP190) -> 7.926570312 | AZ190: =AVERAGE(AQ190:AT190) -> 3.022675 | BB190: =B190 -> #98 MED GREY | BC190: =MAX(AV190-SUM(AW190:AZ190)/quo,0) -> 0 | BD190: =MAX(AW190-(AV190+SUM(AX190:AZ190))/quo,0) -> 0 | BE190: =MAX(AX190-(SUM(AV190:AW190)+SUM(AY190:AZ190))/quo,0) -> 2.924178685 | BF190: =MAX(AY190-(SUM(AV190:AX190)+AZ190)/quo,0) -> 0 | BG190: =MAX(AZ190-SUM(AV190:AY190)/quo,0) -> 0
A191: ROSCOLUX | B191: #321 SFT GOLD AMBER | C191: =CONCATENATE(A191," ",B191) -> ROSCOLUX #321 SFT GOLD AMBER | D191: 46.99 | E191: 43.54 | F191: 22.39 | G191: 6.23 | H191: 2.33 | I191: 7.06 | J191: 27.15 | K191: 26.98 | L191: 20.33 | M191: 24.84 | N191: 25.09 | O191: 48.95 | P191: 71.63 | Q191: 72.97 | R191: 70.14 | S191: 67.85 | T191: 66 | U191: 68.19 | V191: 76.29 | W191: 83.43 | X191: 0.39 | AA191: =D191*D$5 -> 0 | AB191: =E191*E$5 -> 0 | AC191: =F191*F$5 -> 0.4478 | AD191: =G191*G$5 -> 0.623 | AE191: =H191*H$5 -> 2.097 | AF191: =I191*I$5 -> 2.118 | AG191: =J191*J$5 -> 2.715 | AH191: =K191*K$5 -> 4.047 | AI191: =L191*L$5 -> 8.132 | AJ191: =M191*M$5 -> 14.1588 | AK191: =N191*N$5 -> 14.5522 | AL191: =O191*O$5 -> 25.454 | AM191: =P191*P$5 -> 34.3824 | AN191: =Q191*Q$5 -> 26.9989 | AO191: =R191*R$5 -> 16.8336 | AP191: =S191*S$5 -> 12.213 | AQ191: =T191*T$5 -> 8.58 | AR191: =U191*U$5 -> 5.4552 | AS191: =V191*V$5 -> 3.8145 | AT191: =W191*W$5 -> 2.5029 | AV191: =700/420*AVERAGE(AA191:AD191) -> 0.4461666667 | AW191: =700/510*AVERAGE(AE191:AH191) -> 3.766617647 | AX191: =700/570*AVERAGE(AI191:AL191) -> 19.12627193 | AY191: =700/640*AVERAGE(AM191:AP191) -> 24.72637891 | AZ191: =AVERAGE(AQ191:AT191) -> 5.08815 | BB191: =B191 -> #321 SFT GOLD AMBER | BC191: =MAX(AV191-SUM(AW191:AZ191)/quo,0) -> 0 | BD191: =MAX(AW191-(AV191+SUM(AX191:AZ191))/quo,0) -> 0 | BE191: =MAX(AX191-(SUM(AV191:AW191)+SUM(AY191:AZ191))/quo,0) -> 2.11261532 | BF191: =MAX(AY191-(SUM(AV191:AX191)+AZ191)/quo,0) -> 10.51277578 | BG191: =MAX(AZ191-SUM(AV191:AY191)/quo,0) -> 0
A192: ROSCOLUX | B192: #4815 CALCOLOR 15 PINK | C192: =B192 -> #4815 CALCOLOR 15 PINK | D192: 66.56 | E192: 71.97 | F192: 72.2 | G192: 69.24 | H192: 66.14 | I192: 65.62 | J192: 66.62 | K192: 61.33 | L192: 56.7 | M192: 55.24 | N192: 58.64 | O192: 64 | P192: 77.59 | Q192: 83.09 | R192: 83.9 | S192: 84.05 | T192: 84.02 | U192: 84.07 | V192: 84.21 | W192: 84.5 | X192: 0.71 | AA192: =D192*D$5 -> 0 | AB192: =E192*E$5 -> 0 | AC192: =F192*F$5 -> 1.444 | AD192: =G192*G$5 -> 6.924 | AE192: =H192*H$5 -> 59.526 | AF192: =I192*I$5 -> 19.686 | AG192: =J192*J$5 -> 6.662 | AH192: =K192*K$5 -> 9.1995 | AI192: =L192*L$5 -> 22.68 | AJ192: =M192*M$5 -> 31.4868 | AK192: =N192*N$5 -> 34.0112 | AL192: =O192*O$5 -> 33.28 | AM192: =P192*P$5 -> 37.2432 | AN192: =Q192*Q$5 -> 30.7433 | AO192: =R192*R$5 -> 20.136 | AP192: =S192*S$5 -> 15.129 | AQ192: =T192*T$5 -> 10.9226 | AR192: =U192*U$5 -> 6.7256 | AS192: =V192*V$5 -> 4.2105 | AT192: =W192*W$5 -> 2.535 | AV192: =700/420*AVERAGE(AA192:AD192) -> 3.486666667 | AW192: =700/510*AVERAGE(AE192:AH192) -> 32.6232598 | AX192: =700/570*AVERAGE(AI192:AL192) -> 37.28973684 | AY192: =700/640*AVERAGE(AM192:AP192) -> 28.23283203 | AZ192: =AVERAGE(AQ192:AT192) -> 6.098425 | BB192: =B192 -> #4815 CALCOLOR 15 PINK | BC192: =MAX(AV192-SUM(AW192:AZ192)/quo,0) -> 0 | BD192: =MAX(AW192-(AV192+SUM(AX192:AZ192))/quo,0) -> 0 | BE192: =MAX(AX192-(SUM(AV192:AW192)+SUM(AY192:AZ192))/quo,0) -> 2.069145091 | BF192: =MAX(AY192-(SUM(AV192:AX192)+AZ192)/quo,0) -> 0 | BG192: =MAX(AZ192-SUM(AV192:AY192)/quo,0) -> 0
A193: ROSCOLUX | B193: #3406 SUN85 N.6 | C193: =CONCATENATE(A193," ",B193) -> ROSCOLUX #3406 SUN85 N.6 | D193: 24.97 | E193: 27.25 | F193: 13.87 | G193: 3.17 | H193: 0.92 | I193: 3.73 | J193: 15.27 | K193: 13.32 | L193: 7.94 | M193: 10.07 | N193: 9.04 | O193: 22.24 | P193: 32.13 | Q193: 24.35 | R193: 16.94 | S193: 12.88 | T193: 10.36 | U193: 13.29 | V193: 31.24 | W193: 59.2 | X193: 0.17 | AA193: =D193*D$5 -> 0 | AB193: =E193*E$5 -> 0 | AC193: =F193*F$5 -> 0.2774 | AD193: =G193*G$5 -> 0.317 | AE193: =H193*H$5 -> 0.828 | AF193: =I193*I$5 -> 1.119 | AG193: =J193*J$5 -> 1.527 | AH193: =K193*K$5 -> 1.998 | AI193: =L193*L$5 -> 3.176 | AJ193: =M193*M$5 -> 5.7399 | AK193: =N193*N$5 -> 5.2432 | AL193: =O193*O$5 -> 11.5648 | AM193: =P193*P$5 -> 15.4224 | AN193: =Q193*Q$5 -> 9.0095 | AO193: =R193*R$5 -> 4.0656 | AP193: =S193*S$5 -> 2.3184 | AQ193: =T193*T$5 -> 1.3468 | AR193: =U193*U$5 -> 1.0632 | AS193: =V193*V$5 -> 1.562 | AT193: =W193*W$5 -> 1.776 | AV193: =700/420*AVERAGE(AA193:AD193) -> 0.2476666667 | AW193: =700/510*AVERAGE(AE193:AH193) -> 1.877647059 | AX193: =700/570*AVERAGE(AI193:AL193) -> 7.897688596 | AY193: =700/640*AVERAGE(AM193:AP193) -> 8.426222656 | AZ193: =AVERAGE(AQ193:AT193) -> 1.437 | BB193: =B193 -> #3406 SUN85 N.6 | BC193: =MAX(AV193-SUM(AW193:AZ193)/quo,0) -> 0 | BD193: =MAX(AW193-(AV193+SUM(AX193:AZ193))/quo,0) -> 0 | BE193: =MAX(AX193-(SUM(AV193:AW193)+SUM(AY193:AZ193))/quo,0) -> 1.903420406 | BF193: =MAX(AY193-(SUM(AV193:AX193)+AZ193)/quo,0) -> 2.696221495 | BG193: =MAX(AZ193-SUM(AV193:AY193)/quo,0) -> 0
A194: ROSCOLUX | B194: #303 WARM PEACH | C194: =CONCATENATE(A194," ",B194) -> ROSCOLUX #303 WARM PEACH | D194: 35.98 | E194: 47.5 | F194: 46.44 | G194: 38.2 | H194: 26.27 | I194: 18.18 | J194: 14.87 | K194: 15.62 | L194: 20.28 | M194: 31.81 | N194: 44.99 | O194: 68.88 | P194: 85.93 | Q194: 89.78 | R194: 90.24 | S194: 90.38 | T194: 90.24 | U194: 90.5 | V194: 90.48 | W194: 90.76 | X194: 0.55 | AA194: =D194*D$5 -> 0 | AB194: =E194*E$5 -> 0 | AC194: =F194*F$5 -> 0.9288 | AD194: =G194*G$5 -> 3.82 | AE194: =H194*H$5 -> 23.643 | AF194: =I194*I$5 -> 5.454 | AG194: =J194*J$5 -> 1.487 | AH194: =K194*K$5 -> 2.343 | AI194: =L194*L$5 -> 8.112 | AJ194: =M194*M$5 -> 18.1317 | AK194: =N194*N$5 -> 26.0942 | AL194: =O194*O$5 -> 35.8176 | AM194: =P194*P$5 -> 41.2464 | AN194: =Q194*Q$5 -> 33.2186 | AO194: =R194*R$5 -> 21.6576 | AP194: =S194*S$5 -> 16.2684 | AQ194: =T194*T$5 -> 11.7312 | AR194: =U194*U$5 -> 7.24 | AS194: =V194*V$5 -> 4.524 | AT194: =W194*W$5 -> 2.7228 | AV194: =700/420*AVERAGE(AA194:AD194) -> 1.978666667 | AW194: =700/510*AVERAGE(AE194:AH194) -> 11.29848039 | AX194: =700/570*AVERAGE(AI194:AL194) -> 27.06528509 | AY194: =700/640*AVERAGE(AM194:AP194) -> 30.73191406 | AZ194: =AVERAGE(AQ194:AT194) -> 6.5545 | BB194: =B194 -> #303 WARM PEACH | BC194: =MAX(AV194-SUM(AW194:AZ194)/quo,0) -> 0 | BD194: =MAX(AW194-(AV194+SUM(AX194:AZ194))/quo,0) -> 0 | BE194: =MAX(AX194-(SUM(AV194:AW194)+SUM(AY194:AZ194))/quo,0) -> 1.783504527 | BF194: =MAX(AY194-(SUM(AV194:AX194)+AZ194)/quo,0) -> 7.283447989 | BG194: =MAX(AZ194-SUM(AV194:AY194)/quo,0) -> 0
A195: ROSCOLUX | B195: #3313 TOUGH 1/2 MINUSGREEN | C195: #3313 TOUGH 1/2 MINUSGREEN | D195: 61.29 | E195: 68.57 | F195: 72.28 | G195: 74.21 | H195: 73.96 | I195: 71.44 | J195: 67.18 | K195: 61.78 | L195: 57.29 | M195: 55.7 | N195: 58.34 | O195: 62.65 | P195: 74.42 | Q195: 79.47 | R195: 79.99 | S195: 81.68 | T195: 83.76 | U195: 84.43 | V195: 84.83 | W195: 85.16 | X195: 0.71 | AA195: =D195*D$5 -> 0 | AB195: =E195*E$5 -> 0 | AC195: =F195*F$5 -> 1.4456 | AD195: =G195*G$5 -> 7.421 | AE195: =H195*H$5 -> 66.564 | AF195: =I195*I$5 -> 21.432 | AG195: =J195*J$5 -> 6.718 | AH195: =K195*K$5 -> 9.267 | AI195: =L195*L$5 -> 22.916 | AJ195: =M195*M$5 -> 31.749 | AK195: =N195*N$5 -> 33.8372 | AL195: =O195*O$5 -> 32.578 | AM195: =P195*P$5 -> 35.7216 | AN195: =Q195*Q$5 -> 29.4039 | AO195: =R195*R$5 -> 19.1976 | AP195: =S195*S$5 -> 14.7024 | AQ195: =T195*T$5 -> 10.8888 | AR195: =U195*U$5 -> 6.7544 | AS195: =V195*V$5 -> 4.2415 | AT195: =W195*W$5 -> 2.5548 | AV195: =700/420*AVERAGE(AA195:AD195) -> 3.694416667 | AW195: =700/510*AVERAGE(AE195:AH195) -> 35.6797549 | AX195: =700/570*AVERAGE(AI195:AL195) -> 37.17374561 | AY195: =700/640*AVERAGE(AM195:AP195) -> 27.07728516 | AZ195: =AVERAGE(AQ195:AT195) -> 6.109875 | BB195: =B195 -> #3313 TOUGH 1/2 MINUSGREEN | BC195: =MAX(AV195-SUM(AW195:AZ195)/quo,0) -> 0 | BD195: =MAX(AW195-(AV195+SUM(AX195:AZ195))/quo,0) -> 0 | BE195: =MAX(AX195-(SUM(AV195:AW195)+SUM(AY195:AZ195))/quo,0) -> 0.8930797516 | BF195: =MAX(AY195-(SUM(AV195:AX195)+AZ195)/quo,0) -> 0 | BG195: =MAX(AZ195-SUM(AV195:AY195)/quo,0) -> 0
A196: ROSCOLUX | B196: #333 BLUSH PINK | C196: =CONCATENATE(A196," ",B196) -> ROSCOLUX #333 BLUSH PINK | D196: 61.29 | E196: 68.57 | F196: 72.28 | G196: 74.21 | H196: 73.96 | I196: 71.44 | J196: 67.18 | K196: 61.78 | L196: 57.29 | M196: 55.7 | N196: 58.34 | O196: 62.65 | P196: 74.42 | Q196: 79.47 | R196: 79.99 | S196: 81.68 | T196: 83.76 | U196: 84.43 | V196: 84.83 | W196: 85.16 | X196: 0.71 | AA196: =D196*D$5 -> 0 | AB196: =E196*E$5 -> 0 | AC196: =F196*F$5 -> 1.4456 | AD196: =G196*G$5 -> 7.421 | AE196: =H196*H$5 -> 66.564 | AF196: =I196*I$5 -> 21.432 | AG196: =J196*J$5 -> 6.718 | AH196: =K196*K$5 -> 9.267 | AI196: =L196*L$5 -> 22.916 | AJ196: =M196*M$5 -> 31.749 | AK196: =N196*N$5 -> 33.8372 | AL196: =O196*O$5 -> 32.578 | AM196: =P196*P$5 -> 35.7216 | AN196: =Q196*Q$5 -> 29.4039 | AO196: =R196*R$5 -> 19.1976 | AP196: =S196*S$5 -> 14.7024 | AQ196: =T196*T$5 -> 10.8888 | AR196: =U196*U$5 -> 6.7544 | AS196: =V196*V$5 -> 4.2415 | AT196: =W196*W$5 -> 2.5548 | AV196: =700/420*AVERAGE(AA196:AD196) -> 3.694416667 | AW196: =700/510*AVERAGE(AE196:AH196) -> 35.6797549 | AX196: =700/570*AVERAGE(AI196:AL196) -> 37.17374561 | AY196: =700/640*AVERAGE(AM196:AP196) -> 27.07728516 | AZ196: =AVERAGE(AQ196:AT196) -> 6.109875 | BB196: =B196 -> #333 BLUSH PINK | BC196: =MAX(AV196-SUM(AW196:AZ196)/quo,0) -> 0 | BD196: =MAX(AW196-(AV196+SUM(AX196:AZ196))/quo,0) -> 0 | BE196: =MAX(AX196-(SUM(AV196:AW196)+SUM(AY196:AZ196))/quo,0) -> 0.8930797516 | BF196: =MAX(AY196-(SUM(AV196:AX196)+AZ196)/quo,0) -> 0 | BG196: =MAX(AZ196-SUM(AV196:AY196)/quo,0) -> 0
A197: ROSCOLUX | B197: #4630 CALCOLOR 30 RED | C197: =B197 -> #4630 CALCOLOR 30 RED | D197: 60.26 | E197: 64.46 | F197: 54.08 | G197: 37.41 | H197: 28.16 | I197: 34.2 | J197: 52.41 | K197: 46.43 | L197: 39.99 | M197: 38.06 | N197: 42.27 | O197: 50.13 | P197: 73.05 | Q197: 83.46 | R197: 85.1 | S197: 85.45 | T197: 85.74 | U197: 86.18 | V197: 86.44 | W197: 86.63 | X197: 0.55 | AA197: =D197*D$5 -> 0 | AB197: =E197*E$5 -> 0 | AC197: =F197*F$5 -> 1.0816 | AD197: =G197*G$5 -> 3.741 | AE197: =H197*H$5 -> 25.344 | AF197: =I197*I$5 -> 10.26 | AG197: =J197*J$5 -> 5.241 | AH197: =K197*K$5 -> 6.9645 | AI197: =L197*L$5 -> 15.996 | AJ197: =M197*M$5 -> 21.6942 | AK197: =N197*N$5 -> 24.5166 | AL197: =O197*O$5 -> 26.0676 | AM197: =P197*P$5 -> 35.064 | AN197: =Q197*Q$5 -> 30.8802 | AO197: =R197*R$5 -> 20.424 | AP197: =S197*S$5 -> 15.381 | AQ197: =T197*T$5 -> 11.1462 | AR197: =U197*U$5 -> 6.8944 | AS197: =V197*V$5 -> 4.322 | AT197: =W197*W$5 -> 2.5989 | AV197: =700/420*AVERAGE(AA197:AD197) -> 2.009416667 | AW197: =700/510*AVERAGE(AE197:AH197) -> 16.40522059 | AX197: =700/570*AVERAGE(AI197:AL197) -> 27.10178947 | AY197: =700/640*AVERAGE(AM197:AP197) -> 27.82204688 | AZ197: =AVERAGE(AQ197:AT197) -> 6.240375 | BB197: =B197 -> #4630 CALCOLOR 30 RED | BC197: =MAX(AV197-SUM(AW197:AZ197)/quo,0) -> 0 | BD197: =MAX(AW197-(AV197+SUM(AX197:AZ197))/quo,0) -> 0 | BE197: =MAX(AX197-(SUM(AV197:AW197)+SUM(AY197:AZ197))/quo,0) -> 0.8632599087 | BF197: =MAX(AY197-(SUM(AV197:AX197)+AZ197)/quo,0) -> 1.943646011 | BG197: =MAX(AZ197-SUM(AV197:AY197)/quo,0) -> 0
A198: ROSCOLUX | B198: #01 LT BASTARD AMBER | C198: =CONCATENATE(A198," ",B198) -> ROSCOLUX #01 LT BASTARD AMBER | D198: 45.91 | E198: 59.29 | F198: 61.65 | G198: 57.57 | H198: 46.79 | I198: 35.86 | J198: 29.03 | K198: 26.96 | L198: 29.69 | M198: 38.41 | N198: 50.21 | O198: 69.12 | P198: 82.38 | Q198: 86.43 | R198: 87.53 | S198: 88.09 | T198: 88.21 | U198: 88.26 | V198: 88.29 | W198: 88.47 | X198: 0.56 | AA198: =D198*D$5 -> 0 | AB198: =E198*E$5 -> 0 | AC198: =F198*F$5 -> 1.233 | AD198: =G198*G$5 -> 5.757 | AE198: =H198*H$5 -> 42.111 | AF198: =I198*I$5 -> 10.758 | AG198: =J198*J$5 -> 2.903 | AH198: =K198*K$5 -> 4.044 | AI198: =L198*L$5 -> 11.876 | AJ198: =M198*M$5 -> 21.8937 | AK198: =N198*N$5 -> 29.1218 | AL198: =O198*O$5 -> 35.9424 | AM198: =P198*P$5 -> 39.5424 | AN198: =Q198*Q$5 -> 31.9791 | AO198: =R198*R$5 -> 21.0072 | AP198: =S198*S$5 -> 15.8562 | AQ198: =T198*T$5 -> 11.4673 | AR198: =U198*U$5 -> 7.0608 | AS198: =V198*V$5 -> 4.4145 | AT198: =W198*W$5 -> 2.6541 | AV198: =700/420*AVERAGE(AA198:AD198) -> 2.9125 | AW198: =700/510*AVERAGE(AE198:AH198) -> 20.52509804 | AX198: =700/570*AVERAGE(AI198:AL198) -> 30.34374123 | AY198: =700/640*AVERAGE(AM198:AP198) -> 29.63649609 | AZ198: =AVERAGE(AQ198:AT198) -> 6.399175 | BB198: =B198 -> #01 LT BASTARD AMBER | BC198: =MAX(AV198-SUM(AW198:AZ198)/quo,0) -> 0 | BD198: =MAX(AW198-(AV198+SUM(AX198:AZ198))/quo,0) -> 0 | BE198: =MAX(AX198-(SUM(AV198:AW198)+SUM(AY198:AZ198))/quo,0) -> 0.6071066616 | BF198: =MAX(AY198-(SUM(AV198:AX198)+AZ198)/quo,0) -> 0 | BG198: =MAX(AZ198-SUM(AV198:AY198)/quo,0) -> 0
A199: ROSCOLUX | B199: #91 PRIMARY GREEN | C199: =CONCATENATE(A199," ",B199) -> ROSCOLUX #91 PRIMARY GREEN | D199: 12.5 | E199: 6.72 | F199: 0.51 | G199: 0.05 | H199: 0.03 | I199: 0.26 | J199: 8.11 | K199: 16.31 | L199: 11.39 | M199: 5.64 | N199: 2.13 | O199: 0.69 | P199: 0.32 | Q199: 0.3 | R199: 0.19 | S199: 2.36 | T199: 28.35 | U199: 63.43 | V199: 76.72 | W199: 80.64 | X199: 0.07 | AA199: =D199*D$5 -> 0 | AB199: =E199*E$5 -> 0 | AC199: =F199*F$5 -> 0.0102 | AD199: =G199*G$5 -> 0.005 | AE199: =H199*H$5 -> 0.027 | AF199: =I199*I$5 -> 0.078 | AG199: =J199*J$5 -> 0.811 | AH199: =K199*K$5 -> 2.4465 | AI199: =L199*L$5 -> 4.556 | AJ199: =M199*M$5 -> 3.2148 | AK199: =N199*N$5 -> 1.2354 | AL199: =O199*O$5 -> 0.3588 | AM199: =P199*P$5 -> 0.1536 | AN199: =Q199*Q$5 -> 0.111 | AO199: =R199*R$5 -> 0.0456 | AP199: =S199*S$5 -> 0.4248 | AQ199: =T199*T$5 -> 3.6855 | AR199: =U199*U$5 -> 5.0744 | AS199: =V199*V$5 -> 3.836 | AT199: =W199*W$5 -> 2.4192 | AV199: =700/420*AVERAGE(AA199:AD199) -> 0.006333333333 | AW199: =700/510*AVERAGE(AE199:AH199) -> 1.15379902 | AX199: =700/570*AVERAGE(AI199:AL199) -> 2.875219298 | AY199: =700/640*AVERAGE(AM199:AP199) -> 0.2009765625 | AZ199: =AVERAGE(AQ199:AT199) -> 3.753775 | BB199: =B199 -> #91 PRIMARY GREEN | BC199: =MAX(AV199-SUM(AW199:AZ199)/quo,0) -> 0 | BD199: =MAX(AW199-(AV199+SUM(AX199:AZ199))/quo,0) -> 0 | BE199: =MAX(AX199-(SUM(AV199:AW199)+SUM(AY199:AZ199))/quo,0) -> 0.3177773405 | BF199: =MAX(AY199-(SUM(AV199:AX199)+AZ199)/quo,0) -> 0 | BG199: =MAX(AZ199-SUM(AV199:AY199)/quo,0) -> 1.635610893
A200: ROSCOLUX | B200: #33 NO COLOR PINK | C200: =CONCATENATE(A200," ",B200) -> ROSCOLUX #33 NO COLOR PINK | D200: 55.85 | E200: 67.79 | F200: 75.16 | G200: 75.41 | H200: 70.61 | I200: 63.76 | J200: 57.26 | K200: 51.99 | L200: 49.59 | M200: 51.49 | N200: 56.75 | O200: 69.4 | P200: 80.5 | Q200: 85.4 | R200: 86.87 | S200: 87.33 | T200: 87.32 | U200: 87.41 | V200: 87.31 | W200: 87.06 | X200: 0.65 | AA200: =D200*D$5 -> 0 | AB200: =E200*E$5 -> 0 | AC200: =F200*F$5 -> 1.5032 | AD200: =G200*G$5 -> 7.541 | AE200: =H200*H$5 -> 63.549 | AF200: =I200*I$5 -> 19.128 | AG200: =J200*J$5 -> 5.726 | AH200: =K200*K$5 -> 7.7985 | AI200: =L200*L$5 -> 19.836 | AJ200: =M200*M$5 -> 29.3493 | AK200: =N200*N$5 -> 32.915 | AL200: =O200*O$5 -> 36.088 | AM200: =P200*P$5 -> 38.64 | AN200: =Q200*Q$5 -> 31.598 | AO200: =R200*R$5 -> 20.8488 | AP200: =S200*S$5 -> 15.7194 | AQ200: =T200*T$5 -> 11.3516 | AR200: =U200*U$5 -> 6.9928 | AS200: =V200*V$5 -> 4.3655 | AT200: =W200*W$5 -> 2.6118 | AV200: =700/420*AVERAGE(AA200:AD200) -> 3.768416667 | AW200: =700/510*AVERAGE(AE200:AH200) -> 33.01031863 | AX200: =700/570*AVERAGE(AI200:AL200) -> 36.28588158 | AY200: =700/640*AVERAGE(AM200:AP200) -> 29.20482031 | AZ200: =AVERAGE(AQ200:AT200) -> 6.330425 | BB200: =B200 -> #33 NO COLOR PINK | BC200: =MAX(AV200-SUM(AW200:AZ200)/quo,0) -> 0 | BD200: =MAX(AW200-(AV200+SUM(AX200:AZ200))/quo,0) -> 0 | BE200: =MAX(AX200-(SUM(AV200:AW200)+SUM(AY200:AZ200))/quo,0) -> 0.1288912756 | BF200: =MAX(AY200-(SUM(AV200:AX200)+AZ200)/quo,0) -> 0 | BG200: =MAX(AZ200-SUM(AV200:AY200)/quo,0) -> 0
A201: ROSCOLUX | B201: #19 FIRE | C201: =CONCATENATE(A201," ",B201) -> ROSCOLUX #19 FIRE | D201: 1.27 | E201: 1.8 | F201: 1.4 | G201: 0.62 | H201: 0.13 | I201: 0.09 | J201: 0.06 | K201: 0.03 | L201: 0.05 | M201: 0.19 | N201: 1.21 | O201: 14.73 | P201: 54.48 | Q201: 77.64 | R201: 84.08 | S201: 86.07 | T201: 86.63 | U201: 86.76 | V201: 86.8 | W201: 86.85 | X201: 0.2 | AA201: =D201*D$5 -> 0 | AB201: =E201*E$5 -> 0 | AC201: =F201*F$5 -> 0.028 | AD201: =G201*G$5 -> 0.062 | AE201: =H201*H$5 -> 0.117 | AF201: =I201*I$5 -> 0.027 | AG201: =J201*J$5 -> 0.006 | AH201: =K201*K$5 -> 0.0045 | AI201: =L201*L$5 -> 0.02 | AJ201: =M201*M$5 -> 0.1083 | AK201: =N201*N$5 -> 0.7018 | AL201: =O201*O$5 -> 7.6596 | AM201: =P201*P$5 -> 26.1504 | AN201: =Q201*Q$5 -> 28.7268 | AO201: =R201*R$5 -> 20.1792 | AP201: =S201*S$5 -> 15.4926 | AQ201: =T201*T$5 -> 11.2619 | AR201: =U201*U$5 -> 6.9408 | AS201: =V201*V$5 -> 4.34 | AT201: =W201*W$5 -> 2.6055 | AV201: =700/420*AVERAGE(AA201:AD201) -> 0.0375 | AW201: =700/510*AVERAGE(AE201:AH201) -> 0.05301470588 | AX201: =700/570*AVERAGE(AI201:AL201) -> 2.606486842 | AY201: =700/640*AVERAGE(AM201:AP201) -> 24.75949219 | AZ201: =AVERAGE(AQ201:AT201) -> 6.28705 | BB201: =B201 -> #19 FIRE | BC201: =MAX(AV201-SUM(AW201:AZ201)/quo,0) -> 0 | BD201: =MAX(AW201-(AV201+SUM(AX201:AZ201))/quo,0) -> 0 | BE201: =MAX(AX201-(SUM(AV201:AW201)+SUM(AY201:AZ201))/quo,0) -> 0 | BF201: =MAX(AY201-(SUM(AV201:AX201)+AZ201)/quo,0) -> 20.26746641 | BG201: =MAX(AZ201-SUM(AV201:AY201)/quo,0) -> 0
A202: ROSCOLUX | B202: #22 DEEP AMBER | C202: =CONCATENATE(A202," ",B202) -> ROSCOLUX #22 DEEP AMBER | D202: 0.87 | E202: 5.67 | F202: 5.8 | G202: 1.47 | H202: 0.31 | I202: 0.09 | J202: 0.06 | K202: 0.15 | L202: 0.49 | M202: 2.43 | N202: 9.45 | O202: 32.39 | P202: 64.54 | Q202: 80.88 | R202: 84.97 | S202: 85.75 | T202: 85.86 | U202: 85.68 | V202: 86.13 | W202: 86.62 | X202: 0.26 | AA202: =D202*D$5 -> 0 | AB202: =E202*E$5 -> 0 | AC202: =F202*F$5 -> 0.116 | AD202: =G202*G$5 -> 0.147 | AE202: =H202*H$5 -> 0.279 | AF202: =I202*I$5 -> 0.027 | AG202: =J202*J$5 -> 0.006 | AH202: =K202*K$5 -> 0.0225 | AI202: =L202*L$5 -> 0.196 | AJ202: =M202*M$5 -> 1.3851 | AK202: =N202*N$5 -> 5.481 | AL202: =O202*O$5 -> 16.8428 | AM202: =P202*P$5 -> 30.9792 | AN202: =Q202*Q$5 -> 29.9256 | AO202: =R202*R$5 -> 20.3928 | AP202: =S202*S$5 -> 15.435 | AQ202: =T202*T$5 -> 11.1618 | AR202: =U202*U$5 -> 6.8544 | AS202: =V202*V$5 -> 4.3065 | AT202: =W202*W$5 -> 2.5986 | AV202: =700/420*AVERAGE(AA202:AD202) -> 0.1095833333 | AW202: =700/510*AVERAGE(AE202:AH202) -> 0.1147794118 | AX202: =700/570*AVERAGE(AI202:AL202) -> 7.339223684 | AY202: =700/640*AVERAGE(AM202:AP202) -> 26.45032031 | AZ202: =AVERAGE(AQ202:AT202) -> 6.230325 | BB202: =B202 -> #22 DEEP AMBER | BC202: =MAX(AV202-SUM(AW202:AZ202)/quo,0) -> 0 | BD202: =MAX(AW202-(AV202+SUM(AX202:AZ202))/quo,0) -> 0 | BE202: =MAX(AX202-(SUM(AV202:AW202)+SUM(AY202:AZ202))/quo,0) -> 0 | BF202: =MAX(AY202-(SUM(AV202:AX202)+AZ202)/quo,0) -> 19.5533646 | BG202: =MAX(AZ202-SUM(AV202:AY202)/quo,0) -> 0
A203: ROSCOLUX | B203: #41 SALMON | C203: =CONCATENATE(A203," ",B203) -> ROSCOLUX #41 SALMON | D203: 30.85 | E203: 36.15 | F203: 27.73 | G203: 11.74 | H203: 4.68 | I203: 4.94 | J203: 7.48 | K203: 4.05 | L203: 1.6 | M203: 2.84 | N203: 2.98 | O203: 24.23 | P203: 68.4 | Q203: 80.71 | R203: 82.14 | S203: 82.88 | T203: 83.46 | U203: 83.87 | V203: 84.23 | W203: 84.89 | X203: 0.24 | AA203: =D203*D$5 -> 0 | AB203: =E203*E$5 -> 0 | AC203: =F203*F$5 -> 0.5546 | AD203: =G203*G$5 -> 1.174 | AE203: =H203*H$5 -> 4.212 | AF203: =I203*I$5 -> 1.482 | AG203: =J203*J$5 -> 0.748 | AH203: =K203*K$5 -> 0.6075 | AI203: =L203*L$5 -> 0.64 | AJ203: =M203*M$5 -> 1.6188 | AK203: =N203*N$5 -> 1.7284 | AL203: =O203*O$5 -> 12.5996 | AM203: =P203*P$5 -> 32.832 | AN203: =Q203*Q$5 -> 29.8627 | AO203: =R203*R$5 -> 19.7136 | AP203: =S203*S$5 -> 14.9184 | AQ203: =T203*T$5 -> 10.8498 | AR203: =U203*U$5 -> 6.7096 | AS203: =V203*V$5 -> 4.2115 | AT203: =W203*W$5 -> 2.5467 | AV203: =700/420*AVERAGE(AA203:AD203) -> 0.72025 | AW203: =700/510*AVERAGE(AE203:AH203) -> 2.418946078 | AX203: =700/570*AVERAGE(AI203:AL203) -> 5.092438596 | AY203: =700/640*AVERAGE(AM203:AP203) -> 26.61276953 | AZ203: =AVERAGE(AQ203:AT203) -> 6.0794 | BB203: =B203 -> #41 SALMON | BC203: =MAX(AV203-SUM(AW203:AZ203)/quo,0) -> 0 | BD203: =MAX(AW203-(AV203+SUM(AX203:AZ203))/quo,0) -> 0 | BE203: =MAX(AX203-(SUM(AV203:AW203)+SUM(AY203:AZ203))/quo,0) -> 0 | BF203: =MAX(AY203-(SUM(AV203:AX203)+AZ203)/quo,0) -> 19.45725219 | BG203: =MAX(AZ203-SUM(AV203:AY203)/quo,0) -> 0
... 33 more rows

Sheet Sheet2
K7: uv | L7: 340 | M7: 430
K8: blue | L8: 430 | M8: 480
K9: green | L9: 480 | M9: 540
K10: yellow | L10: 540 | M10: 570
K11: orange | L11: 570 | M11: 640
K12: red | L12: 640 | M12: 700
K13: ir | L13: 700 | M13: 740

Sheet backup
A5: NICHIA | B5: NS6W183T-E | D5: 0 | E5: 0 | F5: 0.02 | G5: 0.1 | H5: 0.9 | I5: 0.3 | J5: 0.1 | K5: 0.15 | L5: 0.4 | M5: 0.57 | N5: 0.58 | O5: 0.52 | P5: 0.48 | Q5: 0.37 | R5: 0.24 | S5: 0.18 | T5: 0.13 | U5: 0.08 | V5: 0.05 | W5: 0.03 | Y5: CIELAB | AB5: CIELAB | AE5: CIE 1964 | AH5: CIE 1964 | BE5: energy
Y6: SOURCE A | AB6: SOURCE D65 | AE6: SOURCE A | AH6: SOURCE D65 | BE6: corrected | BG6: quo | BH6: 4
A7: RANGE | B7: COLOR | C7: CHART TITLE | D7: 360 | E7: 380 | F7: 400 | G7: 420 | H7: 440 | I7: 460 | J7: 480 | K7: 500 | L7: 520 | M7: 540 | N7: 560 | O7: 580 | P7: 600 | Q7: 620 | R7: 640 | S7: 660 | T7: 680 | U7: 700 | V7: 720 | W7: 740 | X7: TRANS. | Y7: L* | Z7: A* | AA7: B* | AB7: L* | AC7: A* | AD7: B* | AE7: Y | AF7: (x) | AG7: (y) | AH7: Y | AI7: (x) | AJ7: (y) | AL7: General Description | AM7: Substrate | AN7: Thickness | AO7: Origin | AP7: Mired Shift | AQ7: CC | AR7: Description | AT7: 20" x 24" | AU7: 24" x 25' | AV7: 48" x 25' | AW7: 60" x 20' | AX7: 13.5" Diam | AZ7: uv | BA7: blue | BB7: green | BC7: orange | BD7: red | BG7: uvness1 | BH7: blueness1 | BI7: greenness1 | BJ7: orangeness1 | BK7: redness1
A8: ROSCOLUX | B8: #378 ALICE BLUE | C8: =CONCATENATE(A8," ",B8) -> ROSCOLUX #378 ALICE BLUE | D8: 47.14 | E8: 58.27 | F8: 66.75 | G8: 68.13 | H8: 60.96 | I8: 49.2 | J8: 36.36 | K8: 25.88 | L8: 15.81 | M8: 12.75 | N8: 8.44 | O8: 7.81 | P8: 7.54 | Q8: 7.72 | R8: 5.77 | S8: 15.27 | T8: 51.29 | U8: 74.64 | V8: 80.97 | W8: 82.99 | X8: 0.15 | Y8: 40.876 | Z8: -3.357 | AA8: -60.301 | AB8: 45.426 | AC8: 16.982 | AD8: -55.627 | AE8: 11.7872683 | AF8: 0.2967555372 | AG8: 0.2816060544 | AH8: 14.84850531 | AI8: 0.1906480727 | AJ8: 0.1665029293 | AL8: Deep-Dyed Polyester Film | AM8: PET (Polyethylene Terephthalate) | AN8: 1.5 mil (.0015'' or 38 micron) | AO8: U.S.A. | AP8: Not Applicable. | AQ8: Not Applicable. | AR8: Color Effects Lighting Filter. | AT8: √ | AU8: √ | AV8: √ | AZ8: =700/420*AVERAGE(D8,G8) -> 96.05833333 | BA8: =700/510*AVERAGE(H8,K8) -> 59.59607843 | BB8: =700/570*AVERAGE(L8,O8) -> 14.50350877 | BC8: =700/640*AVERAGE(P8,S8) -> 12.47421875 | BD8: =AVERAGE(T8,W8) -> 67.14 | BF8: =B8 -> #378 ALICE BLUE | BG8: =MAX(AZ8-SUM(BA8:BD8)/quo,0) -> 57.62988185 | BH8: =MAX(BA8-(AZ8+SUM(BB8:BD8))/quo,0) -> 12.05206322 | BI8: =MAX(BB8-(SUM(AZ8:BA8)+SUM(BC8:BD8))/quo,0) -> 0 | BJ8: =MAX(BC8-(SUM(AZ8:BB8)+BD8)/quo,0) -> 0 | BK8: =MAX(BD8-SUM(AZ8:BC8)/quo,0) -> 21.48196518 | BN8: 1) max spectral purity
A9: ROSCOLUX | B9: #364 BLUE BELL | C9: =CONCATENATE(A9," ",B9) -> ROSCOLUX #364 BLUE BELL | D9: 57.75 | E9: 67.52 | F9: 73 | G9: 74.14 | H9: 72.03 | I9: 67.19 | J9: 60.33 | K9: 51.5 | L9: 41.02 | M9: 31.07 | N9: 24.82 | O9: 18.27 | P9: 17.26 | Q9: 17.3 | R9: 15.98 | S9: 27.31 | T9: 55.92 | U9: 75.9 | V9: 82.69 | W9: 84.64 | X9: 0.32 | Y9: 58.704 | Z9: -16.384 | AA9: -45.502 | AB9: 63.147 | AC9: -5.123 | AD9: -39.295 | AE9: 26.7089984 | AF9: 0.3329813638 | AG9: 0.3545996458 | AH9: 31.76357717 | AI9: 0.2145241407 | AJ9: 0.2362515669 | AL9: Deep-Dyed Polyester Film | AM9: PET (Polyethylene Terephthalate) | AN9: 1.5 mil (.0015'' or 38 micron) | AO9: U.S.A. | AP9: Not Applicable. | AQ9: Not Applicable. | AR9: Color Effects Lighting Filter. | AT9: √ | AU9: √ | AZ9: =700/420*AVERAGE(D9,G9) -> 109.9083333 | BA9: =700/510*AVERAGE(H9,K9) -> 84.7754902 | BB9: =700/570*AVERAGE(L9,O9) -> 36.40614035 | BC9: =700/640*AVERAGE(P9,S9) -> 24.37421875 | BD9: =AVERAGE(T9,W9) -> 70.28 | BF9: =B9 -> #364 BLUE BELL | BG9: =MAX(AZ9-SUM(BA9:BD9)/quo,0) -> 55.94937101 | BH9: =MAX(BA9-(AZ9+SUM(BB9:BD9))/quo,0) -> 24.53331709 | BI9: =MAX(BB9-(SUM(AZ9:BA9)+SUM(BC9:BD9))/quo,0) -> 0 | BJ9: =MAX(BC9-(SUM(AZ9:BB9)+BD9)/quo,0) -> 0 | BK9: =MAX(BD9-SUM(AZ9:BC9)/quo,0) -> 6.413954342 | BN9: 2) min and max
A10: ROSCOLUX | B10: #4260 CALCOLOR 60 BLUE | C10: #4260 CALCOLOR 60 BLUE | D10: 47.25 | E10: 58.21 | F10: 66 | G10: 67.07 | H10: 61.61 | I10: 51.71 | J10: 39.93 | K10: 30.07 | L10: 19.9 | M10: 16.9 | N10: 12.21 | O10: 12.24 | P10: 12.67 | Q10: 12.24 | R10: 11.07 | S10: 21.67 | T10: 50.74 | U10: 72.54 | V10: 80.05 | W10: 82.15 | X10: 0.24 | Y10: 47.136 | Z10: -1.981 | AA10: -51.56 | AB10: 50.683 | AC10: 13.531 | AD10: -48.19 | AE10: 16.12342208 | AF10: 0.338397141 | AG10: 0.3111695135 | AH10: 18.99640511 | AI10: 0.21106856 | AJ10: 0.1938843478 | AL10: Deep-dyed polyester film | AM10: PET (Polyethylene Terephthalate) | AN10: 2.0 mil (.002" or 50 micron) | AO10: U.S.A. | AP10: Not Applicable. | AQ10: cc 60 Blue | AR10: Color Lighting Filter. Enhances Blue by Two Stops. | AT10: √ | AU10: √ | AV10: √ | AZ10: =700/420*AVERAGE(D10,G10) -> 95.26666667 | BA10: =700/510*AVERAGE(H10,K10) -> 62.91764706 | BB10: =700/570*AVERAGE(L10,O10) -> 19.73508772 | BC10: =700/640*AVERAGE(P10,S10) -> 18.7796875 | BD10: =AVERAGE(T10,W10) -> 66.445 | BF10: =B10 -> #4260 CALCOLOR 60 BLUE | BG10: =MAX(AZ10-SUM(BA10:BD10)/quo,0) -> 53.2973111 | BH10: =MAX(BA10-(AZ10+SUM(BB10:BD10))/quo,0) -> 12.86103659 | BI10: =MAX(BB10-(SUM(AZ10:BA10)+SUM(BC10:BD10))/quo,0) -> 0 | BJ10: =MAX(BC10-(SUM(AZ10:BB10)+BD10)/quo,0) -> 0 | BK10: =MAX(BD10-SUM(AZ10:BC10)/quo,0) -> 17.27022776 | BN10: 3) best pairs
A11: ROSCOLUX | B11: #4290 CALCOLOR 90 BLUE | C11: #4290 CALCOLOR 90 BLUE | D11: 39.07 | E11: 51.85 | F11: 62.32 | G11: 63.4 | H11: 54.36 | I11: 40.09 | J11: 25.84 | K11: 15.87 | L11: 7.84 | M11: 5.88 | N11: 3.37 | O11: 3.24 | P11: 3.49 | Q11: 3.39 | R11: 2.53 | S11: 11.42 | T11: 48 | U11: 73.68 | V11: 81.05 | W11: 83.41 | X11: 0.15 | Y11: 29.973 | Z11: 5.257 | AA11: -69.828 | AB11: 35.057 | AC11: 31.31 | AD11: -65.044 | AE11: 6.224931359 | AF11: 0.2646051164 | AG11: 0.220057339 | AH11: 8.526914559 | AI11: 0.1753690904 | AJ11: 0.1240795127 | AL11: Deep-dyed polyester film | AM11: PET (Polyethylene Terephthalate) | AN11: 2.0 mil (.002" or 50 micron) | AO11: U.S.A. | AP11: Not Applicable. | AQ11: cc 90 Blue | AR11: Color Lighting Filter. Enhances Blue by Three Stops. | AT11: √ | AU11: √ | AV11: √ | AZ11: =700/420*AVERAGE(D11,G11) -> 85.39166667 | BA11: =700/510*AVERAGE(H11,K11) -> 48.19705882 | BB11: =700/570*AVERAGE(L11,O11) -> 6.803508772 | BC11: =700/640*AVERAGE(P11,S11) -> 8.15390625 | BD11: =AVERAGE(T11,W11) -> 65.705 | BF11: =B11 -> #4290 CALCOLOR 90 BLUE | BG11: =MAX(AZ11-SUM(BA11:BD11)/quo,0) -> 53.17679821 | BH11: =MAX(BA11-(AZ11+SUM(BB11:BD11))/quo,0) -> 6.683538401 | BI11: =MAX(BB11-(SUM(AZ11:BA11)+SUM(BC11:BD11))/quo,0) -> 0 | BJ11: =MAX(BC11-(SUM(AZ11:BB11)+BD11)/quo,0) -> 0 | BK11: =MAX(BD11-SUM(AZ11:BC11)/quo,0) -> 28.56846487 | BN11: 4) best triplets
